Workbook

Sheet Eingabewerte
N1: Amt für Bau und Immobilien
N2: Energiemanagement
A4: Energieverbrauchsausweis für Nichtwohngebäude | W4: 1 | X4: 2007
W5: 2 | X5: 2009
A6: Version 4.9 vom 06.10.2015 | D6: Klimawerte vom 01.01.2002 bis | F6: =MIN((Klimafaktor!D3:CC4)) -> 2008-02-01 | G6: bis | H6: =MAX((Klimafaktor!D3:CC4)) -> 2015-02-28 | J6: Referenzort Potsdam | W6: 3 | X6: 2014
A7: Um den Energieausweis korrekt zu erstellen ist es notwendig, die Makros zu aktivieren. | W7: 4 | X7: 2016
A9: 1. Daten eingeben: | D9: Die weißen Felder sind Eingabefelder, die grauen sind berechnete Felder.
A11: Liegenschaft | D11: Amt für Bau und Immobilien
A12: Adresse | D12: Gerbermühlstraße 48
A13: Bundesland | D13: Hessen
A14: Gebäude- / Liegenschaftsteil | D14: ganze Liegenschaft
C15: BZK | D15: Nutzungsart | I15: =Hilfstabellen!C29 -> 1 | K15: NRF | M15: Faktor
A16: Hauptnutzung (Auswahlfeld nutzen) | C16: =IF(D16="","",VLOOKUP(D16,'Klassengrenzen Heizung'!$B$10:$N$69,13)) -> 1310 | D16: Verwaltungsgeb. mit norm. techn. Ausst. | I16: 11,425 m² | K16: =IF(OR(I16="",AND(Hilfstabellen!$C$27=FALSE,Hilfstabellen!$C$28=FALSE)),"",IF(Hilfstabellen!$C$27=TRUE,I16,I16*M16)) -> 9,711 m² | M16: =IF($D16="","",VLOOKUP(D16,'Umrechnung BGF-NRF'!$B$5:$C$65,2,0)) -> 0.85
A17: 2. Nutzung (Auswahlfeld) | C17: =IF(D17="","",VLOOKUP(D17,'Klassengrenzen Heizung'!$B$10:$N$69,13)) -> 6500 | D17: Verpflegungseinrichtungen | I17: 385 m² | K17: =IF(OR(I17="",AND(Hilfstabellen!$C$27=FALSE,Hilfstabellen!$C$28=FALSE)),"",IF(Hilfstabellen!$C$27=TRUE,I17,I17*M17)) -> 350 m² | M17: =IF($D17="","",VLOOKUP(D17,'Umrechnung BGF-NRF'!$B$5:$C$65,2,0)) -> 0.91
A18: 3. Nutzung | C18: =IF(D18="","",VLOOKUP(D18,'Klassengrenzen Heizung'!$B$10:$N$69,13)) ->  | K18: =IF(OR(I18="",AND(Hilfstabellen!$C$27=FALSE,Hilfstabellen!$C$28=FALSE)),"",IF(Hilfstabellen!$C$27=TRUE,I18,I18*M18)) ->  | M18: =IF($D18="","",VLOOKUP(D18,'Umrechnung BGF-NRF'!$B$5:$C$65,2,0)) -> 
A19: 4. Nutzung | C19: =IF(D19="","",VLOOKUP(D19,'Klassengrenzen Heizung'!$B$10:$N$69,13)) ->  | K19: =IF(OR(I19="",AND(Hilfstabellen!$C$27=FALSE,Hilfstabellen!$C$28=FALSE)),"",IF(Hilfstabellen!$C$27=TRUE,I19,I19*M19)) ->  | M19: =IF($D19="","",VLOOKUP(D19,'Umrechnung BGF-NRF'!$B$5:$C$65,2,0)) -> 
D20: Gebäude | F20: Wärmeerzeuger | H20: Summe: | I20: =SUM(I16:I19) -> 11,810 m² | K20: =ROUND(SUM(K16:K19),0) -> 10,062 m²
A21: Baujahr | D21: 1980 | F21: 1980
A22: Wesentliche Energieträger für Heizung & Warmwasser | F22: =IF(INDEX(Hilfstabellen!B4:C24,$A$44,1)=0,"",INDEX(Hilfstabellen!B4:C24,$A$44,1)) -> Heizöl EL
A23: Erneuerbare Energien | C23: Art: | G23: Verwendung:
A24: Art der Lüftung / Kühlung
F25: =IF(OR(C16=5200,C17=5200,C18=5200,C19=5200),"*Achtung, bei Schwimmhallen direkt in das Feld NGF/BGF nur die Wasseroberfläche eintragen!","") -> 
A26: Heizenergie | D26: =IF(AND(D27<F6,NOT(D27="")),CONCATENATE("Keine Klimawerte vor dem ",TEXT($F$6,"TT.MM.JJJJ")," vorhanden!"),IF(F27<=$H$6,IF(H27<1000,"Zeitraum nach EnEV mindestens 3 Jahre!",""),CONCATENATE("Keine Klimawerte nach dem ",TEXT($H$6,"TT.MM.JJJJ")," vorhanden!"))) -> 
A27: Abrechnungszeitraum von | D27: 2012-01-01 | E27: bis | F27: 2014-12-31 | G27: oder | H27: =IF((F27-D27)<1,"",F27-D27) -> 1,095 | I27: Tage | J27: (nach EnEV mindestens 3 Jahre)
A28: Klimazone auswählen PLZ | B28: 60594 | D28: =IF(OR(B28="",B28=0),"",VLOOKUP(VALUE(B28),Klimafaktor!A6:B8240,2,0)) -> Frankfurt am Main, Stadtteil Sachsenhausen | H28: =IF(OR(ISERROR(D28),D28=""),"",Klimafaktor!C8256) -> 1.21 | I28: =IF(ISERROR(D28)," Klimazone nicht vorhanden","gemittelter Klimafaktor") -> gemittelter Klimafaktor
A29: Heizenergieverbrauch im Abrechnungszeitr. | D29: 2,348,081 | E29: kWh | G29: oder | H29: =IF(OR(H28="",$K$20=0,$H$27=0),"",ROUND(D29/$K$20*365/$H$27*H28,0)) -> 94 | I29: kWh/m²a
A30: Heizkosten im Abrechnungszeitraum | D30: 185,423 | E30: € | G30: oder | H30: =IF(OR(D30=0,D30=""),"",D30*365/$H$27) -> 61,808 | I30: €/a | J30: Energiebezugspreis | M30: =ROUND(D30/D29,3)*100 -> 7.90 Ct/kWh
A31: Heizenergie enthält
A32: Strom (ohne Heizstrom) | D32: =IF(F33<=H6,IF(H33<1000,"Zeitraum nach EnEV mindestens 3 Jahre!",""),CONCATENATE("Keine Klimawerte nach dem ",TEXT($H$6,"TT.MM.JJJJ")," verhanden!")) -> 
A33: Abrechnungszeitraum von | D33: =D27 -> 2012-01-01 | E33: bis | F33: =F27 -> 2014-12-31 | G33: oder | H33: =IF((F33-D33)<1,"",F33-D33) -> 1,095 | I33: Tage | J33: (nach EnEV mindestens 3 Jahre)
A34: Stromverbrauch im Abrechnungszeitraum | D34: 1,558,080 | E34: kWh | G34: oder | H34: =IF(OR(D34=0,D34="",$K$20=0,H33=0),"",ROUND(D34/$K$20*365/$H$33,0)) -> 52 | I34: kWh/m²a
A35: Stromkosten im Abrechnungszeitraum | D35: 249,359 | E35: € | G35: oder | H35: =IF(OR(D35="",D35=0),"",D35*365/$H$33) -> 83,120 | I35: €/a | J35: Energiebezugspreis | M35: =ROUND(D35/D34,3)*100 -> 16.00 Ct/kWh
A36: Strom enthält
A37: Wasser | D37: =IF(F38<=H6,IF(H38<1000,"Zeitraum nach EnEV mindestens 3 Jahre!",""),CONCATENATE("Keine Klimawerte nach dem ",TEXT($H$6,"TT.MM.JJJJ")," verhanden!")) -> 
A38: Abrechnungszeitraum von | D38: =D27 -> 2012-01-01 | E38: bis | F38: =F27 -> 2014-12-31 | G38: oder | H38: =IF((F38-D38)<1,"",F38-D38) -> 1,095 | I38: Tage | J38: (nach EnEV mindestens 3 Jahre)
A39: Wasserverbrauch im Abrechnungszeitraum | D39: 3,609 | E39: m³ | G39: oder | H39: =IF(OR(D39=0,D39="",K20=0,H38=0),"",ROUND(D39/$K$20*365/$H$38*1000,0)) -> 120 | I39: l/m²a
A40: Wasserkosten im Abrechnungsszeitraum | D40: 11,752 | E40: € | G40: oder | H40: =IF(OR(D39=0,D39=""),"",D40*365/$H$38) -> 3,917 | I40: €/a | J40: Wasserbezugspreis | M40: =ROUND(D40/D39,2) -> 3.26 €/m³
A42: Berechnung der Primärenergie (PE)
A43: Heizenergie | D43: PE-Faktor | F43: Anteil [%] | H43: spez. PE-Verbrauch | K43: CO2-Emissionen
A44: 6 | D44: =INDEX(Hilfstabellen!$C$4:$C$24,Eingabewerte!$A44) -> 1.10 | F44: 100% | H44: =IF(OR(F44="",F44=0),"",IF(AND($A44=17,$F44>0)=TRUE,0,$H$29*$F44*D44)) -> 103 | I44: kWh/m²a | K44: =IF(A44=20,"",INDEX(Hilfstabellen!$D$4:$D$23,Eingabewerte!A44)*F44*$H$29*$K$20/1000) -> 296 | L44: t/a
A45: 20 | D45: =INDEX(Hilfstabellen!$C$4:$C$24,Eingabewerte!$A45) -> 0.00 | H45: =IF(OR(F45="",F45=0),"",IF(AND($A45=17,$F45>0)=TRUE,0,$H$29*$F45*D45)) ->  | I45: kWh/m²a | K45: =IF(A45=20,"",INDEX(Hilfstabellen!$D$4:$D$23,Eingabewerte!A45)*F45*$H$29*$K$20/1000) ->  | L45: t/a
A46: 20 | D46: =INDEX(Hilfstabellen!$C$4:$C$24,Eingabewerte!$A46) -> 0.00 | H46: =IF(OR(F46="",F46=0),"",IF(AND($A46=17,$F46>0)=TRUE,0,$H$29*$F46*D46)) ->  | I46: kWh/m²a | K46: =IF(A46=20,"",INDEX(Hilfstabellen!$D$4:$D$23,Eingabewerte!A46)*F46*$H$29*$K$20/1000) ->  | L46: t/a
A47: Summe Heizenergie | D47: =D44*F44+D45*F45+D46*F46 -> 1.10 | F47: =IF(AND(F44="",F45="",F46=""),"",IF(SUM(F44:F46)=1,SUM(F44:F46),IF(SUM(F44:F46)=0,0))) -> 100% | H47: =SUM(H44:H46) -> 103 | I47: kWh/m²a | K47: =SUM(K44:K46) -> 296 | L47: t/a
A48: Strom | D48: PE-Faktor | F48: Anteil [%] | H48: spez. PE-Verbrauch | K48: CO2-Emissionen
A49: 2 | D49: =INDEX(Hilfstabellen!$C$20:$C$23,A49) -> 2.40 | F49: 100% | H49: =IF(OR(F49="",F49=0),"",IF(AND($A49=4,$F49>0)=TRUE,0,$H$34*$F49*D49)) -> 125 | I49: kWh/m²a | K49: =IF(A49=4,"",INDEX(Hilfstabellen!$D$20:$D$24,Eingabewerte!A49)*F49*$H$34*$K$20/1000) -> 330 | L49: t/a
A50: 4 | D50: =INDEX(Hilfstabellen!$C$20:$C$23,A50) -> 0.00 | H50: =IF(OR(F50="",F50=0),"",IF(AND($A50=4,$F50>0)=TRUE,0,$H$34*$F50*D50)) ->  | I50: kWh/m²a | K50: =IF(A50=4,"",INDEX(Hilfstabellen!$D$20:$D$24,Eingabewerte!A50)*F50*$H$34*$K$20/1000) ->  | L50: t/a
A51: 4 | D51: =INDEX(Hilfstabellen!$C$20:$C$23,A51) -> 0.00 | H51: =IF(OR(F51="",F51=0),"",IF(AND($A51=4,$F51>0)=TRUE,0,$H$34*$F51*D51)) ->  | I51: kWh/m²a | K51: =IF(A51=4,"",INDEX(Hilfstabellen!$D$20:$D$24,Eingabewerte!A51)*F51*$H$34*$K$20/1000) ->  | L51: t/a
A52: Summe Strom | D52: =D49*F49+D50*F50+D51*F51 -> 2.40 | F52: =IF(AND(F49="",F50="",F51=""),"",IF(SUM(F49:F51)=1,SUM(F49:F51),IF(SUM(F49:F51)=0,0))) -> 100% | H52: =SUM(H49:H51) -> 125 | I52: kWh/m²a | K52: =SUM(K49:K51) -> 330 | L52: t/a
A53: Summe Heizenergie und Strom | H53: =H47+H52 -> 228 | I53: kWh/m²a | K53: =SUM(K47,K52) -> 626 | L53: t/a
A55: Leerstand
K57: Leerstandszuschläge in kWh
E58: Leerstandsfaktor | L58: gesamt
E59: Beschreibung | L59: Warmwasseranteil
E60: Startdatum des Leerstandes | G60: =IF(F61>F27,"Enddatum liegt außerhalb des Abrechnungszeitraums!",IF(OR(F60>D27,F60=""),"","Enddatum liegt außerhalb des Abrechnungszeitraums!")) ->  | L60: Heizanteil
E61: Enddatum des Leerstandes | L61: Strom
E62: Klimafaktor | F62: =IF(OR(F60="",F61=""),"",(HLOOKUP((ROUND((F60-Klimafaktor!D3)/365*12+0.5,0)),Klimafaktor!D8248:CE8257,10)+HLOOKUP(ROUND((F61-Klimafaktor!D3)/365*12+0.5,0),Klimafaktor!D8248:CE8257,10))/2) -> 
E63: Primärenergiefaktor | F63: =IF(F60="","",$D$47) -> 
A66: Erläuterungen
A67: Die Verbrauchswerte werden beeinflusst durch den baulichen Zustand, die Betriebsführung und das Nutzerverhalten.
A73: Empfehlungen zur kosteneffizienten Modernisierung | F73: Bau- / Anlagenteil | H73: Art | I73: Lebens-dauer | J73: Medium | K73: Kosten | M73: Einsparung
A74: Einbau von Bewegungsmeldern in den Fluren | F74: Beleuchtung | H74: EM | I74: 12 Jahre | J74: S | K74: 2,000 € | M74: 500 €/a
A75: Dämmung oberste Geschossdecke | F75: oberste Geschossdecke | H75: EM | I75: 40 Jahre | J75: H | K75: 30,000 € | M75: 1,000 €/a
A80: Empfehlungen zu Nutzung und Betrieb | M80: Einsparung
A81: Lüftung nur kurz und stoßweise | M81: =IF(K20=0,"",ROUND(H30/12,-2)) -> 5,200 €/a
A82: Abschalten der Beleuchtung bei ausreichendem Tageslicht | M82: =IF(K20=0,"",ROUND(H35/15,-2)) -> 5,500 €/a
A83: Konsequente Nutzung der Sparfunktion an Toilettenspülungen | M83: =IF(K20=0,"",ROUND(H40/8,-2)) -> 500 €/a
A86: Aussteller und Zugang DIBt-Konto
A87: Ingenieurbüro/Amt | D87: Amt für Bau und Immobilien | H87: E-Mail-Adresse | K87: peter.dorn.amt65@stadt-frankfurt.de
A88: Berufsbezeichnung | D88: Dipl. Wirtschaftsingenieur | H88: Passwort | K88: unbekannt
A89: Name des Ausstellers | D89: Dorn | H89: Anlass der Ausstellung | K89: 2
A90: Vorname des Ausstellers | D90: Peter | N90: Login DIBt
A91: Adresse | D91: Gerbermühlstraße 48 | H91: Datenerhebung
A92: PLZ, Ort | D92: 60459 | E92: Frankfurt a. Main
A93: Ausstellungsdatum | D93: =TODAY() -> 2020-06-10
A94: Registriernummer nach EnEV 2014 | D94: HE-2015-000472842 | G94: (wird automatisch bei der Registrierung eingetragen)
A96: 2. Reiter setzen: | D96: Die grüne Schaltfläche "Reiter setzen" anklicken >
A97: 3. Blatt wechseln: | D97: Durch Anklicken des entsprechenden Registers in der Fußzeile das Blatt "Energieausweis" auswählen.
A98: 4. Foto einfügen: | D98: Durch Klicken auf die Schaltfläche rechts oben in Blatt "Energieausweis" ein Foto einfügen.
A99: 5. Unterschrift einfügen: | D99: Durch Klicken auf die Schaltfläche rechts unten in Blatt "Energieausweis" die Unterschrift einfügen.
A100: 6. Daten überprüfen: | D100: Grünen Haken "Energieausweis validieren" im Register "EnEV-Schnittstelle" in der Kopfzeile betätigen.
A101: 7. Datei speichern | D101: Excel-Datei wie gewohnt speichern. Zusätzlich können die Daten mit der Schaltfläche "Energieausweis exportieren" im Register "EnEV-Schnittstelle" als XML-Datei gespeichert werden.
A102: 8. Energieausweis registrieren: | D102: Blauen Pfeil "Energieausweis registrieren" im Register "EnEV-Schnittstelle" in der Kopfzeile betätigen.
A103: 9. Ausdrucken | D103: Die Seite "Energieausweis" als PDF-Dokument speichern und ausdrucken - fertig!

Sheet Energieausweis
N1: Amt für Bau und Immobilien
N2: Energiemanagement
B3: ENERGIEAUSWEIS für Nichtwohngebäude
B4: gemäß den §§ 16 ff. Energieeinsparverordnung (EnEV) vom | G4: 2013-11-18
B6: Gültig bis: | D6: =Eingabewerte!D93+10*365.2 -> 2030-06-10 | G6: =CONCATENATE("Registriernummer:"," ",IF(Eingabewerte!D94="","",Eingabewerte!D94)) -> Registriernummer: HE-2015-000472842 | M6: Aushang
B8: Liegenschaft | D8: =IF(OR(Eingabewerte!D11="",Eingabewerte!D11=0,),"",Eingabewerte!D11) -> Amt für Bau und Immobilien | K8: Anklicken um Foto oder Zeichnung einfügen
B9: Adresse | D9: =IF(Eingabewerte!D12="", "", Eingabewerte!D12) -> Gerbermühlstraße 48
B10: Hauptnutzung | D10: =IF('Mittelung Klassengrenzen'!C5="","",(VLOOKUP('Mittelung Klassengrenzen'!$C5,'Klassengrenzen Heizung'!$A$10:$J$71,2,0))) -> Verwaltungsgeb. mit norm. techn. Ausst. | I10: =Eingabewerte!K16 -> 9,711 m²
B11: =IF('Mittelung Klassengrenzen'!D6="","","2. Nutzung") -> 2. Nutzung | D11: =IF('Mittelung Klassengrenzen'!C6="","",(VLOOKUP('Mittelung Klassengrenzen'!$C6,'Klassengrenzen Heizung'!$A$10:$J$71,2,0))) -> Verpflegungseinrichtungen | I11: =Eingabewerte!K17 -> 350 m² | J11: =IF(I11="","","m²") -> m²
B12: =IF('Mittelung Klassengrenzen'!D7="","","3. Nutzung") ->  | D12: =IF('Mittelung Klassengrenzen'!C7="","",(VLOOKUP('Mittelung Klassengrenzen'!$C7,'Klassengrenzen Heizung'!$A$10:$J$71,2,0))) ->  | I12: =Eingabewerte!K18 ->  | J12: =IF(I12="","","m²") -> 
B13: =IF('Mittelung Klassengrenzen'!D8="","","4. Nutzung") ->  | D13: =IF('Mittelung Klassengrenzen'!C8="","",(VLOOKUP('Mittelung Klassengrenzen'!$C8,'Klassengrenzen Heizung'!$A$10:$J$71,2,0))) ->  | I13: =Eingabewerte!K19 ->  | J13: =IF(I13="","","m²") -> 
B14: Baujahr Gebäude | D14: =Eingabewerte!D21 -> 1980 | H14: Netto-Raumfläche (beheizt) | I14: =SUM(I10:I13) -> 10,062 m²
B15: Wesentliche Energieträger für Heizung & Warmwasser | G15: =IF(Eingabewerte!F22="", "", Eingabewerte!F22) -> Heizöl EL
B16: Erneuerbare Energien | D16: =IF(Eingabewerte!D23="", "", "Art: " &Eingabewerte!D23) ->  | G16: =IF(Eingabewerte!I23="", "","Verwendung: "&Eingabewerte!I23) -> 
B23: Heizenergie | D23: ="Verbrauchskennwert " & YEAR(Eingabewerte!D27) & " - " & YEAR(Eingabewerte!F27) -> Verbrauchskennwert 2012 - 2014 | N23: Kosten/Jahr
B25: Diese Liegenschaft | D25: =IF(AND('Mittelung Klassengrenzen'!$A$15<=Energieausweis!E26,'Mittelung Klassengrenzen'!$A$15>Energieausweis!D26)=TRUE,'Mittelung Klassengrenzen'!$A$15,IF(B25<10000,"kWh/m²a","")) ->  | E25: =IF(AND('Mittelung Klassengrenzen'!$A$15<=Energieausweis!F26,'Mittelung Klassengrenzen'!$A$15>Energieausweis!E26)=TRUE,'Mittelung Klassengrenzen'!$A$15,IF(D25<10000,"kWh/m²a","")) ->  | F25: =IF(AND('Mittelung Klassengrenzen'!$A$15<=Energieausweis!G26,'Mittelung Klassengrenzen'!$A$15>Energieausweis!F26)=TRUE,'Mittelung Klassengrenzen'!$A$15,IF(E25<10000,"kWh/m²a","")) -> 94 | G25: =IF(AND('Mittelung Klassengrenzen'!$A$15<=Energieausweis!H26,'Mittelung Klassengrenzen'!$A$15>Energieausweis!G26)=TRUE,'Mittelung Klassengrenzen'!$A$15,IF(F25<10000,"kWh/m²a","")) -> kWh/m²a | H25: =IF(AND('Mittelung Klassengrenzen'!$A$15<=Energieausweis!I26,'Mittelung Klassengrenzen'!$A$15>Energieausweis!H26)=TRUE,'Mittelung Klassengrenzen'!$A$15,IF(G25<10000," kWh/m²a","")) ->  | I25: =IF(AND('Mittelung Klassengrenzen'!$A$15<=Energieausweis!J26,'Mittelung Klassengrenzen'!$A$15>Energieausweis!I26)=TRUE,'Mittelung Klassengrenzen'!$A$15,IF(H25<10000,"kWh/m²a","")) ->  | J25: =IF(AND('Mittelung Klassengrenzen'!$A$15<=Energieausweis!K26,'Mittelung Klassengrenzen'!$A$15>Energieausweis!J26)=TRUE,'Mittelung Klassengrenzen'!$A$15,IF(I25<10000,"kWh/m²a","")) ->  | K25: =IF(AND('Mittelung Klassengrenzen'!$A$15<=Energieausweis!L26,'Mittelung Klassengrenzen'!$A$15>Energieausweis!K26)=TRUE,'Mittelung Klassengrenzen'!$A$15,IF(J25<10000,"kWh/m²a","")) ->  | M25: ='Mittelung Klassengrenzen'!B15 -> 61,808 | N25: €/a
D26: ='Mittelung Klassengrenzen'!C23 -> 0 | E26: ='Mittelung Klassengrenzen'!D23 -> 71 | F26: ='Mittelung Klassengrenzen'!E23 -> 89 | G26: ='Mittelung Klassengrenzen'!F23 -> 104 | H26: ='Mittelung Klassengrenzen'!G23 -> 120 | I26: ='Mittelung Klassengrenzen'!H23 -> 139 | J26: ='Mittelung Klassengrenzen'!I23 -> 175 | K26: kWh/m²a
B27: effizient | D27: =IF(OR(D25>15,D25=""),"A", "A⁺") -> A | E27: B | F27: C | G27: D | H27: E | I27: F | J27: G | K27: ineffizient | M27: =M25/I$14 -> 6.14 €/(m²a)
B28: =CONCATENATE("Vergleichswert EnEV ") -> Vergleichswert EnEV | D28: =IF(AND('Mittelung Klassengrenzen'!$J$23<=Energieausweis!E$26,'Mittelung Klassengrenzen'!$J$23>Energieausweis!D26)=TRUE,'Mittelung Klassengrenzen'!$J$23,IF(B28<10000,"kWh/m²a","")) ->  | E28: =IF(AND('Mittelung Klassengrenzen'!$J$23<=Energieausweis!F$26,'Mittelung Klassengrenzen'!$J$23>Energieausweis!E26)=TRUE,'Mittelung Klassengrenzen'!$J$23,IF(D28<10000,"kWh/m²a","")) -> 86 | F28: =IF(AND('Mittelung Klassengrenzen'!$J$23<=Energieausweis!G$26,'Mittelung Klassengrenzen'!$J$23>Energieausweis!F26)=TRUE,'Mittelung Klassengrenzen'!$J$23,IF(E28<10000,"kWh/m²a","")) -> kWh/m²a | G28: =IF(AND('Mittelung Klassengrenzen'!$J$23<=Energieausweis!H$26,'Mittelung Klassengrenzen'!$J$23>Energieausweis!G26)=TRUE,'Mittelung Klassengrenzen'!$J$23,IF(F28<10000,"kWh/m²a","")) ->  | H28: =IF(AND('Mittelung Klassengrenzen'!$J$23<=Energieausweis!I$26,'Mittelung Klassengrenzen'!$J$23>Energieausweis!H26)=TRUE,'Mittelung Klassengrenzen'!$J$23,IF(G28<10000,"kWh/m²a","")) ->  | I28: =IF(AND('Mittelung Klassengrenzen'!$J$23<=Energieausweis!J$26,'Mittelung Klassengrenzen'!$J$23>Energieausweis!I26)=TRUE,'Mittelung Klassengrenzen'!$J$23,IF(H28<10000,"kWh/m²a","")) ->  | J28: =IF(AND('Mittelung Klassengrenzen'!$J$23<=Energieausweis!K$26,'Mittelung Klassengrenzen'!$J$23>Energieausweis!J26)=TRUE,'Mittelung Klassengrenzen'!$J$23,IF(I28<10000,"kWh/m²a","")) ->  | K28: =IF(AND('Mittelung Klassengrenzen'!$J$23<=Energieausweis!L$26,'Mittelung Klassengrenzen'!$J$23>Energieausweis!K26)=TRUE,'Mittelung Klassengrenzen'!$J$23,IF(J28<10000,"kWh/m²a","")) -> 
C29: Heizenergie enthält
B30: Strom | D30: ="Verbrauchskennwert " & YEAR(Eingabewerte!D33) & " - " & YEAR(Eingabewerte!F33) -> Verbrauchskennwert 2012 - 2014 | N30: Kosten/Jahr
B32: Diese Liegenschaft | D32: =IF(AND('Mittelung Klassengrenzen'!$C$15<=Energieausweis!E33,'Mittelung Klassengrenzen'!$C$15>Energieausweis!D33)=TRUE,'Mittelung Klassengrenzen'!$C$15,IF(B32<10000,"kWh/m²a","")) ->  | E32: =IF(AND('Mittelung Klassengrenzen'!$C$15<=Energieausweis!F33,'Mittelung Klassengrenzen'!$C$15>Energieausweis!E33)=TRUE,'Mittelung Klassengrenzen'!$C$15,IF(D32<10000,"kWh/m²a","")) ->  | F32: =IF(AND('Mittelung Klassengrenzen'!$C$15<=Energieausweis!G33,'Mittelung Klassengrenzen'!$C$15>Energieausweis!F33)=TRUE,'Mittelung Klassengrenzen'!$C$15,IF(E32<10000,"kWh/m²a","")) ->  | G32: =IF(AND('Mittelung Klassengrenzen'!$C$15<=Energieausweis!H33,'Mittelung Klassengrenzen'!$C$15>Energieausweis!G33)=TRUE,'Mittelung Klassengrenzen'!$C$15,IF(F32<10000,"kWh/m²a","")) ->  | H32: =IF(AND('Mittelung Klassengrenzen'!$C$15<=Energieausweis!I33,'Mittelung Klassengrenzen'!$C$15>Energieausweis!H33)=TRUE,'Mittelung Klassengrenzen'!$C$15,IF(G32<10000,"kWh/m²a","")) ->  | I32: =IF(AND('Mittelung Klassengrenzen'!$C$15<=Energieausweis!J33,'Mittelung Klassengrenzen'!$C$15>Energieausweis!I33)=TRUE,'Mittelung Klassengrenzen'!$C$15,IF(H32<10000,"kWh/m²a","")) ->  | J32: =IF(AND('Mittelung Klassengrenzen'!$C$15<=Energieausweis!K33,'Mittelung Klassengrenzen'!$C$15>Energieausweis!J33)=TRUE,'Mittelung Klassengrenzen'!$C$15,IF(I32<10000,"kWh/m²a","")) -> 52 | K32: =IF(AND('Mittelung Klassengrenzen'!$C$15<=Energieausweis!L33,'Mittelung Klassengrenzen'!$C$15>Energieausweis!K33)=TRUE,'Mittelung Klassengrenzen'!$C$15,IF(J32<10000,"kWh/m²a","")) -> kWh/m²a | M32: ='Mittelung Klassengrenzen'!D15 -> 83,120 | N32: €/a
D33: ='Mittelung Klassengrenzen'!C30 -> 0 | E33: ='Mittelung Klassengrenzen'!D30 -> 14 | F33: ='Mittelung Klassengrenzen'!E30 -> 19 | G33: ='Mittelung Klassengrenzen'!F30 -> 25 | H33: ='Mittelung Klassengrenzen'!G30 -> 30 | I33: ='Mittelung Klassengrenzen'!H30 -> 36 | J33: ='Mittelung Klassengrenzen'!I30 -> 49 | K33: kWh/m²a
B34: effizient | D34: A | E34: B | F34: C | G34: D | H34: E | I34: F | J34: G | K34: ineffizient | M34: =M32/I$14 -> 8.26 €/(m²a) | N34: €/m²a
B35: =CONCATENATE("Vergleichswert EnEV ") -> Vergleichswert EnEV | D35: =IF(AND('Mittelung Klassengrenzen'!$J$30<=Energieausweis!E$33,'Mittelung Klassengrenzen'!$J$30>Energieausweis!D33)=TRUE,'Mittelung Klassengrenzen'!$J$30,IF(B35<10000,"kWh/m²a","")) ->  | E35: =IF(AND('Mittelung Klassengrenzen'!$J$30<=Energieausweis!F$33,'Mittelung Klassengrenzen'!$J$30>Energieausweis!E33)=TRUE,'Mittelung Klassengrenzen'!$J$30,IF(D35<10000,"kWh/m²a","")) ->  | F35: =IF(AND('Mittelung Klassengrenzen'!$J$30<=Energieausweis!G$33,'Mittelung Klassengrenzen'!$J$30>Energieausweis!F33)=TRUE,'Mittelung Klassengrenzen'!$J$30,IF(E35<10000,"kWh/m²a","")) ->  | G35: =IF(AND('Mittelung Klassengrenzen'!$J$30<=Energieausweis!H$33,'Mittelung Klassengrenzen'!$J$30>Energieausweis!G33)=TRUE,'Mittelung Klassengrenzen'!$J$30,IF(F35<10000,"kWh/m²a","")) ->  | H35: =IF(AND('Mittelung Klassengrenzen'!$J$30<=Energieausweis!I$33,'Mittelung Klassengrenzen'!$J$30>Energieausweis!H33)=TRUE,'Mittelung Klassengrenzen'!$J$30,IF(G35<10000,"kWh/m²a","")) -> 32 | I35: =IF(AND('Mittelung Klassengrenzen'!$J$30<=Energieausweis!J$33,'Mittelung Klassengrenzen'!$J$30>Energieausweis!I33)=TRUE,'Mittelung Klassengrenzen'!$J$30,IF(H35<10000,"kWh/m²a","")) -> kWh/m²a | J35: =IF(AND('Mittelung Klassengrenzen'!$J$30<=Energieausweis!K$33,'Mittelung Klassengrenzen'!$J$30>Energieausweis!J33)=TRUE,'Mittelung Klassengrenzen'!$J$30,IF(I35<10000,"kWh/m²a","")) ->  | K35: =IF(AND('Mittelung Klassengrenzen'!$J$30<=Energieausweis!L$33,'Mittelung Klassengrenzen'!$J$30>Energieausweis!K33)=TRUE,'Mittelung Klassengrenzen'!$J$30,IF(J35<10000,"kWh/m²a","")) -> 
C36: Strom enthält
B37: Wasser | D37: ="Verbrauchskennwert " & YEAR(Eingabewerte!D38) & " - " & YEAR(Eingabewerte!F38) -> Verbrauchskennwert 2012 - 2014 | N37: Kosten/Jahr
B39: Diese Liegenschaft | D39: =IF(AND('Mittelung Klassengrenzen'!$E$15<=Energieausweis!E40,'Mittelung Klassengrenzen'!$E$15>Energieausweis!D40)=TRUE,'Mittelung Klassengrenzen'!$E$15,IF(B39<10000,"l/m²a","")) ->  | E39: =IF(AND('Mittelung Klassengrenzen'!$E$15<=Energieausweis!F40,'Mittelung Klassengrenzen'!$E$15>Energieausweis!E40)=TRUE,'Mittelung Klassengrenzen'!$E$15,IF(D39<10000,"l/m²a","")) -> 120 | F39: =IF(AND('Mittelung Klassengrenzen'!$E$15<=Energieausweis!G40,'Mittelung Klassengrenzen'!$E$15>Energieausweis!F40)=TRUE,'Mittelung Klassengrenzen'!$E$15,IF(E39<10000,"l/m²a","")) -> l/m²a | G39: =IF(AND('Mittelung Klassengrenzen'!$E$15<=Energieausweis!H40,'Mittelung Klassengrenzen'!$E$15>Energieausweis!G40)=TRUE,'Mittelung Klassengrenzen'!$E$15,IF(F39<10000,"l/m²a","")) ->  | H39: =IF(AND('Mittelung Klassengrenzen'!$E$15<=Energieausweis!I40,'Mittelung Klassengrenzen'!$E$15>Energieausweis!H40)=TRUE,'Mittelung Klassengrenzen'!$E$15,IF(G39<10000,"l/m²a","")) ->  | I39: =IF(AND('Mittelung Klassengrenzen'!$E$15<=Energieausweis!J40,'Mittelung Klassengrenzen'!$E$15>Energieausweis!I40)=TRUE,'Mittelung Klassengrenzen'!$E$15,IF(H39<10000,"l/m²a","")) ->  | J39: =IF(AND('Mittelung Klassengrenzen'!$E$15<=Energieausweis!K40,'Mittelung Klassengrenzen'!$E$15>Energieausweis!J40)=TRUE,'Mittelung Klassengrenzen'!$E$15,IF(I39<10000,"l/m²a","")) ->  | K39: =IF(AND('Mittelung Klassengrenzen'!$E$15<=Energieausweis!L40,'Mittelung Klassengrenzen'!$E$15>Energieausweis!K40)=TRUE,'Mittelung Klassengrenzen'!$E$15,IF(J39<10000,"l/m²a","")) ->  | M39: ='Mittelung Klassengrenzen'!F15 -> 3,917 | N39: €/a
D40: ='Mittelung Klassengrenzen'!C37 -> 0 | E40: ='Mittelung Klassengrenzen'!D37 -> 90 | F40: ='Mittelung Klassengrenzen'!E37 -> 133 | G40: ='Mittelung Klassengrenzen'!F37 -> 173 | H40: ='Mittelung Klassengrenzen'!G37 -> 222 | I40: ='Mittelung Klassengrenzen'!H37 -> 268 | J40: ='Mittelung Klassengrenzen'!I37 -> 378 | K40: l/m²a
B41: effizient | D41: A | E41: B | F41: C | G41: D | H41: E | I41: F | J41: G | K41: ineffizient | M41: =M39/I$14 -> 0.39 €/(m²a) | N41: €/m²a
B42: Mittelwert | D42: =IF(AND('Mittelung Klassengrenzen'!$J$37<=Energieausweis!E$40,'Mittelung Klassengrenzen'!$J$37>Energieausweis!D40)=TRUE,'Mittelung Klassengrenzen'!$J$37,IF(B42<10000,"l/m²a","")) ->  | E42: =IF(AND('Mittelung Klassengrenzen'!$J$37<=Energieausweis!F$40,'Mittelung Klassengrenzen'!$J$37>Energieausweis!E40)=TRUE,'Mittelung Klassengrenzen'!$J$37,IF(D42<10000,"l/m²a","")) ->  | F42: =IF(AND('Mittelung Klassengrenzen'!$J$37<=Energieausweis!G$40,'Mittelung Klassengrenzen'!$J$37>Energieausweis!F40)=TRUE,'Mittelung Klassengrenzen'!$J$37,IF(E42<10000,"l/m²a","")) ->  | G42: =IF(AND('Mittelung Klassengrenzen'!$J$37<=Energieausweis!H$40,'Mittelung Klassengrenzen'!$J$37>Energieausweis!G40)=TRUE,'Mittelung Klassengrenzen'!$J$37,IF(F42<10000,"l/m²a","")) ->  | H42: =IF(AND('Mittelung Klassengrenzen'!$J$37<=Energieausweis!I$40,'Mittelung Klassengrenzen'!$J$37>Energieausweis!H40)=TRUE,'Mittelung Klassengrenzen'!$J$37,IF(G42<10000,"l/m²a","")) ->  | I42: =IF(AND('Mittelung Klassengrenzen'!$J$37<=Energieausweis!J$40,'Mittelung Klassengrenzen'!$J$37>Energieausweis!I40)=TRUE,'Mittelung Klassengrenzen'!$J$37,IF(H42<10000,"l/m²a","")) -> 271 | J42: =IF(AND('Mittelung Klassengrenzen'!$J$37<=Energieausweis!K$40,'Mittelung Klassengrenzen'!$J$37>Energieausweis!J40)=TRUE,'Mittelung Klassengrenzen'!$J$37,IF(I42<10000,"l/m²a","")) -> l/m²a | K42: =IF(AND('Mittelung Klassengrenzen'!$J$37<=Energieausweis!L$40,'Mittelung Klassengrenzen'!$J$37>Energieausweis!K40)=TRUE,'Mittelung Klassengrenzen'!$J$37,IF(J42<10000,"l/m²a","")) -> 
B43: Primärenergieverbrauch | D43: =Eingabewerte!H53 -> 228 kWh/m²a | F43: =IF(Hilfstabellen!C145=FALSE(),"","CO₂-Emissionen ") ->  | H43: =IF(Hilfstabellen!$C$145=FALSE(),"",Eingabewerte!$K$53) ->  | L43: Energie und Wasserkosten | M43: =M25+M32+M39 -> 148,845 | N43: €/a
B45: Erläuterungen
B46: =IF(Eingabewerte!A67>0,Eingabewerte!A67,"") -> Die Verbrauchswerte werden beeinflusst durch den baulichen Zustand, die Betriebsführung und das Nutzerverhalten.
B52: Empfehlungen zur kosteneffizienten Modernisierung | K52: Kosten | M52: Einsparung
B53: =IF(Eingabewerte!A74>0,Eingabewerte!A74,"") -> Einbau von Bewegungsmeldern in den Fluren | K53: =IF(Eingabewerte!K74>0,Eingabewerte!K74,"") -> 2,000 € | L53: =IF(K53="","","€") -> € | M53: =IF(Eingabewerte!M74>0,Eingabewerte!M74,"") -> 500 | N53: =IF(M53="","","€/a") -> €/a
B54: =IF(Eingabewerte!A75>0,Eingabewerte!A75,"") -> Dämmung oberste Geschossdecke | K54: =IF(Eingabewerte!K75>0,Eingabewerte!K75,"") -> 30,000 € | L54: =IF(K54="","","€") -> € | M54: =IF(Eingabewerte!M75>0,Eingabewerte!M75,"") -> 1,000 | N54: =IF(M54="","","€/a") -> €/a
B55: =IF(Eingabewerte!A76>0,Eingabewerte!A76,"") ->  | K55: =IF(Eingabewerte!K76>0,Eingabewerte!K76,"") ->  | M55: =IF(Eingabewerte!M76>0,Eingabewerte!M76,"") ->  | N55: =IF(M55="","","€/a") -> 
B56: =IF(Eingabewerte!A77>0,Eingabewerte!A77,"") ->  | K56: =IF(Eingabewerte!K77>0,Eingabewerte!K77,"") ->  | M56: =IF(Eingabewerte!M77>0,Eingabewerte!M77,"") ->  | N56: =IF(M56="","","€/a") -> 
B57: =IF(Eingabewerte!A78>0,Eingabewerte!A78,"") ->  | K57: =IF(Eingabewerte!K78>0,Eingabewerte!K78,"") ->  | M57: =IF(Eingabewerte!M78>0,Eingabewerte!M78,"") ->  | N57: =IF(M57="","","€/a") -> 
B59: Empfehlungen zu Nutzung und Betrieb | M59: Einsparung
B60: =IF(Eingabewerte!A81>0,Eingabewerte!A81,"") -> Lüftung nur kurz und stoßweise | M60: =IF(Eingabewerte!M81>0,Eingabewerte!M81,"") -> 5,200 | N60: =IF(M60="","","€/a") -> €/a
B61: =IF(Eingabewerte!A82>0,Eingabewerte!A82,"") -> Abschalten der Beleuchtung bei ausreichendem Tageslicht | M61: =IF(Eingabewerte!M82>0,Eingabewerte!M82,"") -> 5,500 | N61: =IF(M61="","","€/a") -> €/a
B62: =IF(Eingabewerte!A83>0,Eingabewerte!A83,"") -> Konsequente Nutzung der Sparfunktion an Toilettenspülungen | M62: =IF(Eingabewerte!M83>0,Eingabewerte!M83,"") -> 500 | N62: =IF(M62="","","€/a") -> €/a
B63: =IF(Eingabewerte!A84>0,Eingabewerte!A84,"") ->  | M63: =IF(Eingabewerte!M84>0,Eingabewerte!M84,"") ->  | N63: =IF(M63="","","€/a") -> 
B65: Aussteller:
B66: =IF(Eingabewerte!D87="","",Eingabewerte!D87) -> Amt für Bau und Immobilien
B67: =J69 -> Dipl. Wirtschaftsingenieur Peter Dorn
B68: =IF(Eingabewerte!D91="","",Eingabewerte!D91) -> Gerbermühlstraße 48
B69: =Eingabewerte!D92& " " &Eingabewerte!E92 -> 60459 Frankfurt a. Main | I69: =Eingabewerte!D93 -> 2020-06-10 | J69: =Eingabewerte!D88 & " "& Eingabewerte!D90 &" " & Eingabewerte!D89 -> Dipl. Wirtschaftsingenieur Peter Dorn
B71: Weitere Informationen erhalten Sie unter: | J71: Ihre Ideen zur Energieeinsparung bitte an:
B72: energiemanagement.stadt-frankfurt.de | J72: energiemanagement@stadt-frankfurt.de

Sheet Klassengrenzen Heizung
A1: Klassengrenzen für Heizung
B3: Bezugsjahr: | C3: 2004
B4: Bezugsgröße: | C4: Nettogeschossfläche
B5: Bezugsklima: | C5: Würzburg (3.883 Kd/a) | H5: NWG-Regeln-Energieverbrauchskennwerten.pdf
C6: Datenquelle: Datensammlung des IEMB Stand: 09.11.2006 | K6: nach BBSR 07.04.2015
A7: BZK | B7: Bauwerkszuordnung | C7: Anzahl | D7: Untergrenzen der Klassen | K7: Vergleichswerte EnEV | N7: BZK
C8: Werte | D8: (kWh/m²a) | K8: (kWh/m²a) | L8: (kWh/m²a)
D9: A | E9: B | F9: C | G9: D | H9: E | I9: F | J9: G | K9: <=3.500 m² | L9: >3.500 m²
A10: 4100 | B10: Allgemeinbildende Schulen | C10: 1,739 | D10: 0 | E10: 81 | F10: 99 | G10: 116 | H10: 134 | I10: 159 | J10: 201 | K10: 105 | L10: 90 | N10: 4100
A11: 9121 | B11: Ausstellungsgebäude, Museen | C11: 83 | D11: 0 | E11: 67 | F11: 87 | G11: 100 | H11: 118 | I11: 144 | J11: 194 | K11: 75 | L11: 110 | N11: 9121
A12: 7740 | B12: Bauhöfe | C12: 35 | D12: 0 | E12: 70 | F12: 114 | G12: 159 | H12: 183 | I12: 278 | J12: 550 | K12: 145 | L12: 145 | N12: 7740
A13: 4200 | B13: Berufsbildende Schulen | C13: 292 | D13: 0 | E13: 72 | F13: 88 | G13: 102 | H13: 118 | I13: 139 | J13: 184 | K13: 80 | L13: 80 | N13: 4200
A14: 4210 | B14: Berufsfachschulen | C14: 14 | D14: 0 | E14: 86 | F14: 100 | G14: 115 | H14: 118 | I14: 140 | J14: 150 | K14: 80 | L14: 80 | N14: 4210
A15: 6400 | B15: Betreuungseinrichtungen | C15: 147 | D15: 0 | E15: 87 | F15: 121 | G15: 149 | H15: 189 | I15: 214 | J15: 259 | K15: 105 | L15: 150 | N15: 6400
A16: 7300 | B16: Betriebs- und Werkstätten | C16: 131 | D16: 0 | E16: 77 | F16: 103 | G16: 145 | H16: 172 | I16: 208 | J16: 278 | K16: 110 | L16: 160 | N16: 7300
A17: 9130 | B17: Bibliotheksgebäude | C17: 69 | D17: 0 | E17: 48 | F17: 76 | G17: 97 | H17: 105 | I17: 137 | J17: 205 | K17: 55 | L17: 80 | N17: 9130
A18: 7760 | B18: Feuerwehren | C18: 141 | D18: 0 | E18: 99 | F18: 127 | G18: 151 | H18: 178 | I18: 204 | J18: 271 | K18: 145 | L18: 145 | N18: 7760
A19: 5500 | B19: Freibadanlagen | C19: 44 | D19: 0 | E19: 174 | F19: 286 | G19: 380 | H19: 742 | I19: 1091 | J19: 1516 | K19: 826 | L19: 826 | N19: 5500
A20: 9700 | B20: Friedhofsanlagen | C20: 56 | D20: 0 | E20: 81 | F20: 106 | G20: 158 | H20: 195 | I20: 248 | J20: 374 | K20: 197 | L20: 197 | N20: 9700
A21: 7600 | B21: Garagengebäude | C21: 45 | D21: 0 | E21: 78 | F21: 114 | G21: 147 | H21: 166 | I21: 192 | J21: 368 | K21: 160 | L21: 160 | N21: 7600
A22: 9100 | B22: Geb. f. kulturelle u. musische Zwecke | C22: 354 | D22: 0 | E22: 66 | F22: 89 | G22: 107 | H22: 133 | I22: 170 | J22: 238 | K22: 65 | L22: 90 | N22: 9100
A23: 7700 | B23: Geb. f. öff. Bereitschaftsdienste | C23: 532 | D23: 0 | E23: 69 | F23: 94 | G23: 121 | H23: 151 | I23: 188 | J23: 243 | K23: 100 | L23: 145 | N23: 7700
A24: 5300 | B24: Geb. f. Sportplatz- u. Freibadanl. | C24: 73 | D24: 0 | E24: 115 | F24: 168 | G24: 224 | H24: 270 | I24: 346 | J24: 445 | K24: 135 | L24: 195 | N24: 5300
A25: 2000 | B25: Geb. f. wiss. Lehre u. Forschung | C25: 1,008 | D25: 0 | E25: 77 | F25: 102 | G25: 122 | H25: 145 | I25: 177 | J25: 241 | K25: 90 | L25: 90 | N25: 2000
A26: 9150 | B26: Gemeinschaftshäuser | C26: 80 | D26: 0 | E26: 100 | F26: 117 | G26: 157 | H26: 191 | I26: 230 | J26: 346 | K26: 135 | L26: 195 | N26: 9150
A27: 6300 | B27: Gemeinschaftsunterkünfte | C27: 71 | D27: 0 | E27: 104 | F27: 119 | G27: 134 | H27: 152 | I27: 183 | J27: 214 | K27: 105 | L27: 150 | N27: 6300
A28: 1200 | B28: Gerichtsgebäude | C28: 688 | D28: 0 | E28: 73 | F28: 89 | G28: 104 | H28: 116 | I28: 133 | J28: 164 | K28: 90 | L28: 70 | N28: 1200
A29: 4150 | B29: Gesamtschulen | C29: 114 | D29: 0 | E29: 70 | F29: 84 | G29: 97 | H29: 113 | I29: 142 | J29: 195 | K29: 105 | L29: 90 | N29: 4150
A30: 4115 | B30: Grund- u. Hauptschulen mit Turnhalle | C30: 163 | D30: 0 | E30: 101 | F30: 120 | G30: 135 | H30: 154 | I30: 173 | J30: 205 | K30: 105 | L30: 90 | N30: 4115
A31: 4112 | B31: Grund- und Hauptschulen | C31: 890 | D31: 0 | E31: 89 | F31: 109 | G31: 125 | H31: 146 | I31: 168 | J31: 213 | K31: 105 | L31: 90 | N31: 4112
A32: 4121 | B32: Grund-, Haupt- und Realschulen | C32: 972 | D32: 0 | E32: 89 | F32: 109 | G32: 125 | H32: 145 | I32: 168 | J32: 213 | K32: 105 | L32: 90 | N32: 4121
A33: 4110 | B33: Grundschulen | C33: 797 | D33: 0 | E33: 89 | F33: 109 | G33: 126 | H33: 147 | I33: 168 | J33: 213 | K33: 105 | L33: 90 | N33: 4110
A34: 4140 | B34: Gymnasien | C34: 271 | D34: 0 | E34: 74 | F34: 88 | G34: 103 | H34: 122 | I34: 151 | J34: 193 | K34: 105 | L34: 90 | N34: 4140
A35: 5100 | B35: Hallen (ohne Schwimmh.) | C35: 402 | D35: 0 | E35: 89 | F35: 111 | G35: 138 | H35: 159 | I35: 192 | J35: 248 | K35: 110 | L35: 155 | N35: 5100
A36: 4120 | B36: Hauptschulen | C36: 93 | D36: 0 | E36: 92 | F36: 109 | G36: 125 | H36: 141 | I36: 168 | J36: 214 | K36: 105 | L36: 90 | N36: 4120
A37: 2100 | B37: Hörsaalgebäude | C37: 41 | D37: 0 | E37: 68 | F37: 96 | G37: 112 | H37: 136 | I37: 160 | J37: 213 | K37: 90 | L37: 90 | N37: 2100
A38: 2300 | B38: Institutsgeb. f. Forsch. u. Unters. | C38: 153 | D38: 0 | E38: 92 | F38: 129 | G38: 154 | H38: 178 | I38: 223 | J38: 299 | K38: 135 | L38: 135 | N38: 2300
A39: 2200 | B39: Institutsgebäude f. Lehre u. Forsch. | C39: 600 | D39: 0 | E39: 78 | F39: 102 | G39: 125 | H39: 143 | I39: 176 | J39: 252 | K39: 105 | L39: 105 | N39: 2200
A40: 6430 | B40: Jugendzentren | C40: 91 | D40: 0 | E40: 83 | F40: 121 | G40: 139 | H40: 181 | I40: 208 | J40: 260 | K40: 105 | L40: 105 | N40: 6430
A41: 9600 | B41: Justizvollzugsanstalten | C41: 209 | D41: 0 | E41: 152 | F41: 191 | G41: 218 | H41: 251 | I41: 297 | J41: 378 | K41: 180 | L41: 260 | N41: 9600
A42: 4410 | B42: Kindergärten | C42: 265 | D42: 0 | E42: 83 | F42: 108 | G42: 140 | H42: 155 | I42: 178 | J42: 223 | K42: 110 | L42: 110 | N42: 4410
A43: 4400 | B43: Kindertagesstätten | C43: 634 | D43: 0 | E43: 112 | F43: 134 | G43: 158 | H43: 179 | I43: 209 | J43: 267 | K43: 110 | L43: 110 | N43: 4400
A44: 3200 | B44: Krankenhäuser für Akutkranke | C44: 32 | D44: 0 | E44: 126 | F44: 180 | G44: 215 | H44: 238 | I44: 303 | J44: 341 | K44: 250 | L44: 250 | N44: 3200
A45: 7500 | B45: Lagergebäude | C45: 57 | D45: 0 | E45: 53 | F45: 67 | G45: 89 | H45: 132 | I45: 189 | J45: 317 | K45: 110 | L45: 160 | N45: 7500
A46: 7100 | B46: Landwirtschaftl. Produktionsstätten | C46: 50 | D46: 0 | E46: 57 | F46: 98 | G46: 110 | H46: 151 | I46: 201 | J46: 303 | K46: 110 | L46: 160 | N46: 7100
A47: 5130 | B47: Mehrzweckhallen | C47: 26 | D47: 0 | E47: 72 | F47: 88 | G47: 115 | H47: 164 | I47: 192 | J47: 253 | K47: 240 | L47: 240 | N47: 5130
A48: 1100 | B48: Parlamentsgebäude | C48: 27 | D48: 0 | E48: 87 | F48: 99 | G48: 104 | H48: 121 | I48: 124 | J48: 138 | K48: 70 | L48: 70 | N48: 1100
A49: 3400 | B49: Pflegeheime (Alte, Behinderte) | C49: 15 | D49: 0 | E49: 122 | F49: 163 | G49: 203 | H49: 214 | I49: 235 | J49: 272 | K49: 135 | L49: 135 | N49: 3400
A50: 1340 | B50: Polizeidienstgebäude | C50: 1,424 | D50: 0 | E50: 79 | F50: 102 | G50: 119 | H50: 139 | I50: 163 | J50: 210 | K50: 90 | L50: 90 | N50: 1340
A51: 1313 | B51: Rathäuser | C51: 49 | D51: 0 | E51: 81 | F51: 105 | G51: 136 | H51: 146 | I51: 181 | J51: 242 | K51: 80 | L51: 85 | N51: 1313
A52: 4130 | B52: Realschulen | C52: 82 | D52: 0 | E52: 90 | F52: 101 | G52: 121 | H52: 139 | I52: 159 | J52: 224 | K52: 105 | L52: 90 | N52: 4130
A53: 1350 | B53: Rechenzentren | C53: 10 | D53: 0 | E53: 37 | F53: 92 | G53: 94 | H53: 109 | I53: 118 | J53: 182 | K53: 90 | L53: 90 | N53: 1350
A54: 4000 | B54: Schulen | C54: 3,386 | D54: 0 | E54: 84 | F54: 104 | G54: 123 | H54: 145 | I54: 171 | J54: 217 | K54: 105 | L54: 90 | N54: 4000
A55: 5200 | B55: Schwimmhallen (Beckenfläche) | C55: 74 | D55: 0 | E55: 2001 | F55: 2544 | G55: 2876 | H55: 3655 | I55: 4318 | J55: 5117 | K55: 385 | L55: 775 | N55: 5200
A56: 3300 | B56: Sonderkrankenhäuser (z.B. Sucht) | C56: 30 | D56: 0 | E56: 201 | F56: 256 | G56: 277 | H56: 314 | I56: 345 | J56: 389 | K56: 135 | L56: 135 | N56: 3300
A57: 4300 | B57: Sonderschulen | C57: 175 | D57: 0 | E57: 85 | F57: 106 | G57: 123 | H57: 147 | I57: 175 | J57: 222 | K57: 105 | L57: 105 | N57: 4300
A58: 5000 | B58: Sportbauten | C58: 30 | D58: 0 | E58: 113 | F58: 139 | G58: 152 | H58: 182 | I58: 231 | J58: 284 | K58: 120 | L58: 170 | N58: 5000
A59: 5110 | B59: Sporthallen | C59: 362 | D59: 0 | E59: 91 | F59: 113 | G59: 137 | H59: 158 | I59: 192 | J59: 245 | K59: 120 | L59: 120 | N59: 5110
A60: 5400 | B60: Sportplatzanlagen (Außenanlagen) | C60: 21 | D60: 0 | E60: 68 | F60: 188 | G60: 241 | H60: 276 | I60: 427 | J60: 599 | K60: 80 | L60: 80 | N60: 5400
A61: 9140 | B61: Veranstaltungsgebäude | C61: 50 | D61: 0 | E61: 80 | F61: 122 | G61: 139 | H61: 165 | I61: 208 | J61: 266 | K61: 110 | L61: 155 | N61: 9140
A62: 7200 | B62: Verkaufsstätten | C62: 28 | D62: 0 | E62: 93 | F62: 111 | G62: 127 | H62: 147 | I62: 187 | J62: 271 | K62: 110 | L62: 95 | N62: 7200
A63: 6500 | B63: Verpflegungseinrichtungen | C63: 20 | D63: 0 | E63: 81 | F63: 141 | G63: 154 | H63: 156 | I63: 207 | J63: 243 | K63: 105 | L63: 170 | N63: 6500
A64: 1320 | B64: Verwaltungsgeb. mit höh. techn. Ausst. | C64: 155 | D64: 0 | E64: 80 | F64: 91 | G64: 108 | H64: 121 | I64: 146 | J64: 183 | K64: 85 | L64: 85 | N64: 1320
A65: 1310 | B65: Verwaltungsgeb. mit norm. techn. Ausst. | C65: 2,116 | D65: 0 | E65: 71 | F65: 87 | G65: 102 | H65: 118 | I65: 136 | J65: 173 | K65: 80 | L65: 85 | N65: 1310
A66: 1300 | B66: Verwaltungsgebäude | C66: 4,034 | D66: 0 | E66: 74 | F66: 91 | G66: 109 | H66: 126 | I66: 149 | J66: 190 | K66: 80 | L66: 85 | N66: 1300
A67: 4500 | B67: Weiterbildungseinrichtungen | C67: 83 | D67: 0 | E67: 79 | F67: 106 | G67: 130 | H67: 144 | I67: 164 | J67: 196 | K67: 90 | L67: 90 | N67: 4500
A68: 6100 | B68: Wohnhäuser | C68: 43 | D68: 0 | E68: 64 | F68: 89 | G68: 101 | H68: 128 | I68: 145 | J68: 178 | K68: 130 | L68: 135 | N68: 6100
A69: 6200 | B69: Wohnheime | C69: 96 | D69: 0 | E69: 114 | F69: 141 | G69: 159 | H69: 183 | I69: 225 | J69: 288 | K69: 150 | L69: 150 | N69: 6200
B71: Summe | C71: 12,750

Sheet Klassengrenzen Strom
A1: Klassengrenzen für Strom
B3: Bezugsjahr: | C3: 2004
B4: Bezugsgröße: | C4: Nettogeschossfläche
H5: NWG-Regeln-Energieverbrauchskennwerten.pdf
C6: Datenquelle: Datensammlung des IEMB Stand: 09.11.2006 | K6: nach BBSR 07.04.2015 | M6: 2014 nach BBr 30.7.2009 | O6: 2016 nach BBr 30.7.2009
A7: BZK | B7: Bauwerkszuordnung | C7: Anzahl | D7: Untergrenzen der Klassen | K7: Vergleichswerte EnEV | M7: Vergleichswerte EnEV | O7: Vergleichswerte EnEV
C8: Werte | D8: (kWh/m²a) | K8: (kWh/m²a) | L8: (kWh/m²a) | M8: (kWh/m²a) | N8: (kWh/m²a) | O8: (kWh/m²a) | P8: (kWh/m²a)
D9: A | E9: B | F9: C | G9: D | H9: E | I9: F | J9: G | K9: <=3.500 m² | L9: >3.500 m² | M9: <=3.500 m² | N9: >3.500 m² | O9: <=3.500 m² | P9: >3.500 m²
A10: 4100 | B10: Allgemeinbildende Schulen | C10: 1,571 | D10: 0.0 | E10: 7.6 | F10: 9.5 | G10: 11.4 | H10: 13.3 | I10: 16.1 | J10: 21.2 | K10: 10 | L10: 10 | M10: 40 | N10: 40 | O10: 40 | P10: 40
A11: 9121 | B11: Ausstellungsgebäude, Museen | C11: 79 | D11: 0.0 | E11: 15.5 | F11: 24.7 | G11: 34.4 | H11: 40.8 | I11: 61.0 | J11: 143.5 | K11: 40 | L11: 40 | M11: 20 | N11: 25 | O11: 20 | P11: 25
A12: 7740 | B12: Bauhöfe | C12: 34 | D12: 0.0 | E12: 7.7 | F12: 9.5 | G12: 12.0 | H12: 19.4 | I12: 31.7 | J12: 55.4 | K12: 20 | L12: 65 | M12: 20 | N12: 30 | O12: 20 | P12: 30
A13: 4200 | B13: Berufsbildende Schulen | C13: 263 | D13: 0.0 | E13: 10.5 | F13: 13.9 | G13: 17.1 | H13: 20.7 | I13: 25.7 | J13: 33.8 | K13: 20 | L13: 20 | M13: 20 | N13: 30 | O13: 20 | P13: 30
A14: 4210 | B14: Berufsfachschulen | C14: 11 | D14: 0.0 | E14: 8.4 | F14: 8.8 | G14: 13.2 | H14: 16.3 | I14: 18.4 | J14: 28.9 | K14: 30 | L14: 30 | M14: 35 | N14: 35 | O14: 35 | P14: 35
A15: 6400 | B15: Betreuungseinrichtungen | C15: 146 | D15: 0.0 | E15: 12.3 | F15: 17.8 | G15: 21.0 | H15: 27.1 | I15: 34.8 | J15: 46.5 | K15: 20 | L15: 20 | M15: 40 | N15: 40 | O15: 40 | P15: 40
A16: 7300 | B16: Betriebs- und Werkstätten | C16: 129 | D16: 0.0 | E16: 8.3 | F16: 13.0 | G16: 17.3 | H16: 25.1 | I16: 37.0 | J16: 52.9 | K16: 20 | L16: 65 | M16: 30 | N16: 30 | O16: 30 | P16: 30
A17: 9130 | B17: Bibliotheksgebäude | C17: 88 | D17: 0.0 | E17: 12.1 | F17: 22.6 | G17: 28.7 | H17: 39.1 | I17: 48.6 | J17: 54.9 | K17: 40 | L17: 40 | M17: 155 | N17: 155 | O17: 155 | P17: 155
A18: 7760 | B18: Feuerwehren | C18: 143 | D18: 0.0 | E18: 9.8 | F18: 14.1 | G18: 20.0 | H18: 25.8 | I18: 37.3 | J18: 63.1 | K18: 20 | L18: 65 | M18: 65 | N18: 65 | O18: 65 | P18: 65
A19: 5500 | B19: Freibadanlagen | C19: 50 | D19: 0.0 | E19: 78.4 | F19: 106.1 | G19: 131.6 | H19: 169.1 | I19: 237.2 | J19: 414.7 | K19: 30 | L19: 30 | M19: 40 | N19: 40 | O19: 40 | P19: 40
A20: 9700 | B20: Friedhofsanlagen | C20: 61 | D20: 0.0 | E20: 12.1 | F20: 19.5 | G20: 29.4 | H20: 47.8 | I20: 63.6 | J20: 87.8 | K20: 40 | L20: 40 | M20: 65 | N20: 65 | O20: 65 | P20: 65
A21: 7600 | B21: Garagengebäude | C21: 52 | D21: 0.0 | E21: 10.5 | F21: 15.0 | G21: 19.1 | H21: 31.3 | I21: 42.2 | J21: 77.0 | K21: 20 | L21: 65 | M21: 65 | N21: 65 | O21: 65 | P21: 65
A22: 9100 | B22: Geb. f. kulturelle u. musische Zwecke | C22: 376 | D22: 0.0 | E22: 11.7 | F22: 19.0 | G22: 24.8 | H22: 35.9 | I22: 48.1 | J22: 69.9 | K22: 20 | L22: 20 | M22: 125 | N22: 80 | O22: 125 | P22: 80
A23: 7700 | B23: Geb. f. öff. Bereitschaftsdienste | C23: 624 | D23: 0.0 | E23: 9.2 | F23: 12.0 | G23: 15.6 | H23: 19.3 | I23: 25.4 | J23: 38.3 | K23: 20 | L23: 20 | M23: 135 | N23: 135 | O23: 135 | P23: 135
A24: 5300 | B24: Geb. f. Sportplatz- u. Freibadanl. | C24: 68 | D24: 0.0 | E24: 15.9 | F24: 21.9 | G24: 28.9 | H24: 42.0 | I24: 63.3 | J24: 79.7 | K24: 30 | L24: 30 | M24: 40 | N24: 40 | O24: 40 | P24: 40
A25: 2000 | B25: Geb. f. wiss. Lehre u. Forschung | C25: 866 | D25: 0.0 | E25: 15.8 | F25: 24.7 | G25: 35.5 | H25: 48.8 | I25: 69.5 | J25: 116.4 | K25: 65 | L25: 65 | M25: 15 | N25: 15 | O25: 15 | P25: 15
A26: 9150 | B26: Gemeinschaftshäuser | C26: 78 | D26: 0.0 | E26: 13.6 | F26: 18.8 | G26: 22.5 | H26: 27.1 | I26: 37.0 | J26: 57.2 | K26: 30 | L26: 30 | M26: 10 | N26: 10 | O26: 10 | P26: 10
A27: 6300 | B27: Gemeinschaftsunterkünfte | C27: 58 | D27: 0.0 | E27: 15.3 | F27: 21.4 | G27: 25.9 | H27: 29.8 | I27: 33.9 | J27: 53.6 | K27: 20 | L27: 20 | M27: 10 | N27: 10 | O27: 10 | P27: 10
A28: 1200 | B28: Gerichtsgebäude | C28: 637 | D28: 0.0 | E28: 13.5 | F28: 16.4 | G28: 20.9 | H28: 24.0 | I28: 28.9 | J28: 36.4 | K28: 20 | L28: 25 | M28: 10 | N28: 10 | O28: 10 | P28: 10
A29: 4150 | B29: Gesamtschulen | C29: 96 | D29: 0.0 | E29: 8.5 | F29: 10.2 | G29: 14.0 | H29: 16.3 | I29: 20.4 | J29: 33.0 | K29: 10 | L29: 10 | M29: 10 | N29: 10 | O29: 10 | P29: 10
A30: 4115 | B30: Grund- u. Hauptschulen mit Turnhalle | C30: 139 | D30: 0.0 | E30: 7.5 | F30: 10.1 | G30: 11.5 | H30: 13.8 | I30: 16.8 | J30: 20.2 | K30: 10 | L30: 10 | M30: 10 | N30: 10 | O30: 10 | P30: 10
A31: 4112 | B31: Grund- und Hauptschulen | C31: 757 | D31: 0.0 | E31: 7.4 | F31: 9.4 | G31: 11.4 | H31: 13.2 | I31: 15.8 | J31: 20.5 | K31: 10 | L31: 10 | M31: 10 | N31: 10 | O31: 10 | P31: 10
A32: 4121 | B32: Grund-, Haupt- und Realschulen | C32: 844 | D32: 0.0 | E32: 7.5 | F32: 9.5 | G32: 11.5 | H32: 13.3 | I32: 16.1 | J32: 20.4 | K32: 10 | L32: 10 | M32: 10 | N32: 10 | O32: 10 | P32: 10
A33: 4110 | B33: Grundschulen | C33: 684 | D33: 0.0 | E33: 7.3 | F33: 9.2 | G33: 11.1 | H33: 13.0 | I33: 15.3 | J33: 20.0 | K33: 10 | L33: 10 | M33: 10 | N33: 10 | O33: 10 | P33: 10
A34: 4140 | B34: Gymnasien | C34: 256 | D34: 0.0 | E34: 8.4 | F34: 10.8 | G34: 12.7 | H34: 15.0 | I34: 18.2 | J34: 24.5 | K34: 10 | L34: 10 | M34: 10 | N34: 10 | O34: 10 | P34: 10
A35: 5100 | B35: Hallen (ohne Schwimmh.) | C35: 261 | D35: 0.0 | E35: 8.5 | F35: 10.8 | G35: 15.3 | H35: 19.9 | I35: 29.1 | J35: 45.7 | K35: 25 | L35: 25 | M35: 20 | N35: 20 | O35: 20 | P35: 20
A36: 4120 | B36: Hauptschulen | C36: 73 | D36: 0.0 | E36: 9.1 | F36: 12.0 | G36: 14.6 | H36: 16.8 | I36: 19.8 | J36: 24.8 | K36: 10 | L36: 10 | M36: 30 | N36: 30 | O36: 30 | P36: 30
A37: 2100 | B37: Hörsaalgebäude | C37: 37 | D37: 0.0 | E37: 19.5 | F37: 29.1 | G37: 42.7 | H37: 46.5 | I37: 52.9 | J37: 103.1 | K37: 40 | L37: 40 | M37: 15 | N37: 15 | O37: 15 | P37: 15
A38: 2300 | B38: Institutsgeb. f. Forsch. u. Unters. | C38: 149 | D38: 0.0 | E38: 16.8 | F38: 35.8 | G38: 56.8 | H38: 81.2 | I38: 108.8 | J38: 147.8 | K38: 65 | L38: 65 | M38: 20 | N38: 20 | O38: 20 | P38: 20
A39: 2200 | B39: Institutsgebäude f. Lehre u. Forsch. | C39: 463 | D39: 0.0 | E39: 14.3 | F39: 22.8 | G39: 32.0 | H39: 46.4 | I39: 63.3 | J39: 113.3 | K39: 65 | L39: 65 | M39: 20 | N39: 20 | O39: 20 | P39: 20
A40: 6430 | B40: Jugendzentren | C40: 93 | D40: 0.0 | E40: 12.3 | F40: 17.8 | G40: 20.9 | H40: 27.4 | I40: 34.8 | J40: 44.3 | K40: 20 | L40: 20 | M40: 20 | N40: 20 | O40: 20 | P40: 20
A41: 9600 | B41: Justizvollzugsanstalten | C41: 188 | D41: 0.0 | E41: 32.7 | F41: 45.3 | G41: 50.9 | H41: 60.7 | I41: 70.5 | J41: 80.4 | K41: 40 | L41: 40 | M41: 30 | N41: 30 | O41: 30 | P41: 30
A42: 4410 | B42: Kindergärten | C42: 346 | D42: 0.0 | E42: 10.6 | F42: 15.1 | G42: 19.5 | H42: 23.1 | I42: 27.6 | J42: 35.8 | K42: 20 | L42: 20 | M42: 25 | N42: 25 | O42: 25 | P42: 25
A43: 4400 | B43: Kindertagesstätten | C43: 500 | D43: 0.0 | E43: 14.0 | F43: 19.4 | G43: 24.1 | H43: 27.3 | I43: 31.8 | J43: 37.3 | K43: 20 | L43: 20 | M43: 35 | N43: 35 | O43: 35 | P43: 35
A44: 3200 | B44: Krankenhäuser für Akutkranke | C44: 17 | D44: 0.0 | E44: 46.9 | F44: 89.0 | G44: 121.1 | H44: 150.9 | I44: 153.8 | J44: 216.4 | K44: 125 | L44: 80 | M44: 40 | N44: 40 | O44: 40 | P44: 40
A45: 7500 | B45: Lagergebäude | C45: 89 | D45: 0.0 | E45: 5.0 | F45: 6.5 | G45: 8.7 | H45: 13.4 | I45: 20.3 | J45: 40.5 | K45: 20 | L45: 65 | M45: 155 | N45: 155 | O45: 155 | P45: 155
A46: 7100 | B46: Landwirtschaftl. Produktionsstätten | C46: 41 | D46: 0.0 | E46: 3.4 | F46: 8.0 | G46: 22.7 | H46: 24.7 | I46: 35.6 | J46: 45.3 | K46: 20 | L46: 65 | M46: 30 | N46: 30 | O46: 30 | P46: 30
A47: 5130 | B47: Mehrzweckhallen | C47: 23 | D47: 0.0 | E47: 21.8 | F47: 26.5 | G47: 34.0 | H47: 36.1 | I47: 42.4 | J47: 55.1 | K47: 40 | L47: 40 | M47: 52 | N47: 45 | O47: 52 | P47: 45
A48: 1100 | B48: Parlamentsgebäude | C48: 34 | D48: 0.0 | E48: 19.0 | F48: 25.2 | G48: 30.0 | H48: 33.5 | I48: 49.2 | J48: 67.1 | K48: 40 | L48: 40 | M48: 30 | N48: 30 | O48: 30 | P48: 30
A49: 3400 | B49: Pflegeheime (Alte, Behinderte) | C49: 17 | D49: 0.0 | E49: 17.8 | F49: 28.8 | G49: 35.9 | H49: 43.9 | I49: 49.5 | J49: 63.0 | K49: 40 | L49: 40 | M49: 17 | N49: 30 | O49: 17 | P49: 30
A50: 1340 | B50: Polizeidienstgebäude | C50: 1,812 | D50: 0.0 | E50: 15.8 | F50: 22.7 | G50: 30.4 | H50: 38.1 | I50: 47.6 | J50: 63.0 | K50: 30 | L50: 30 | M50: 20 | N50: 20 | O50: 20 | P50: 20
A51: 1313 | B51: Rathäuser | C51: 51 | D51: 0.0 | E51: 20.8 | F51: 26.9 | G51: 34.1 | H51: 38.1 | I51: 42.4 | J51: 53.9 | K51: 35 | L51: 35 | M51: 20 | N51: 20 | O51: 20 | P51: 20
A52: 4130 | B52: Realschulen | C52: 87 | D52: 0.0 | E52: 9.4 | F52: 11.2 | G52: 12.9 | H52: 14.3 | I52: 16.7 | J52: 21.2 | K52: 10 | L52: 10 | M52: 20 | N52: 20 | O52: 20 | P52: 20
A53: 1350 | B53: Rechenzentren | C53: 12 | D53: 0.0 | E53: 124.0 | F53: 125.9 | G53: 143.6 | H53: 211.9 | I53: 311.9 | J53: 558.0 | K53: 155 | L53: 155 | M53: 20 | N53: 20 | O53: 20 | P53: 20
A54: 4000 | B54: Schulen | C54: 3,126 | D54: 0.0 | E54: 8.5 | F54: 11.0 | G54: 13.6 | H54: 17.4 | I54: 22.6 | J54: 30.6 | K54: 15 | L54: 15 | M54: 75 | N54: 75 | O54: 75 | P54: 75
A55: 5200 | B55: Schwimmhallen (Beckenfläche) | C55: 73 | D55: 0.0 | E55: 476.3 | F55: 667.3 | G55: 877.7 | H55: 1034.2 | I55: 1328.2 | J55: 1587.3 | K55: 155 | L55: 155 | M55: 20 | N55: 65 | O55: 20 | P55: 65
A56: 3300 | B56: Sonderkrankenhäuser (z.B. Sucht) | C56: 30 | D56: 0.0 | E56: 39.3 | F56: 43.8 | G56: 51.0 | H56: 55.7 | I56: 61.1 | J56: 71.8 | K56: 135 | L56: 135 | M56: 75 | N56: 265 | O56: 75 | P56: 265
A57: 4300 | B57: Sonderschulen | C57: 161 | D57: 0.0 | E57: 8.1 | F57: 10.4 | G57: 12.1 | H57: 15.0 | I57: 19.3 | J57: 29.0 | K57: 15 | L57: 15 | M57: 20 | N57: 65 | O57: 20 | P57: 65
A58: 5000 | B58: Sportbauten | C58: 39 | D58: 0.0 | E58: 13.6 | F58: 15.2 | G58: 18.4 | H58: 26.1 | I58: 37.2 | J58: 63.6 | K58: 30 | L58: 30 | M58: 20 | N58: 65 | O58: 20 | P58: 65
A59: 5110 | B59: Sporthallen | C59: 230 | D59: 0.0 | E59: 8.3 | F59: 10.4 | G59: 13.6 | H59: 18.2 | I59: 24.9 | J59: 42.5 | K59: 35 | L59: 35 | M59: 20 | N59: 65 | O59: 20 | P59: 65
A60: 5400 | B60: Sportplatzanlagen (Außenanlagen) | C60: 22 | D60: 0.0 | E60: 17.6 | F60: 28.9 | G60: 33.8 | H60: 53.9 | I60: 79.4 | J60: 114.1 | K60: 52 | L60: 45 | M60: 20 | N60: 20 | O60: 20 | P60: 20
A61: 9140 | B61: Veranstaltungsgebäude | C61: 49 | D61: 0.0 | E61: 10.2 | F61: 23.9 | G61: 34.3 | H61: 57.5 | I61: 67.2 | J61: 93.6 | K61: 40 | L61: 40 | M61: 20 | N61: 65 | O61: 20 | P61: 65
A62: 7200 | B62: Verkaufsstätten | C62: 28 | D62: 0.0 | E62: 198.2 | F62: 228.1 | G62: 240.4 | H62: 268.1 | I62: 280.7 | J62: 326.3 | K62: 75 | L62: 265 | M62: 20 | N62: 65 | O62: 20 | P62: 65
A63: 6500 | B63: Verpflegungseinrichtungen | C63: 18 | D63: 0.0 | E63: 10.4 | F63: 21.2 | G63: 39.7 | H63: 54.4 | I63: 71.8 | J63: 128.7 | K63: 75 | L63: 75 | M63: 20 | N63: 20 | O63: 20 | P63: 20
A64: 1320 | B64: Verwaltungsgeb. mit höh. techn. Ausst. | C64: 164 | D64: 0.0 | E64: 12.9 | F64: 20.6 | G64: 32.0 | H64: 44.6 | I64: 57.2 | J64: 98.6 | K64: 40 | L64: 40 | M64: 40 | N64: 40 | O64: 40 | P64: 40
A65: 1310 | B65: Verwaltungsgeb. mit norm. techn. Ausst. | C65: 2,270 | D65: 0.0 | E65: 14.1 | F65: 19.1 | G65: 23.9 | H65: 28.7 | I65: 35.0 | J65: 46.5 | K65: 20 | L65: 30 | M65: 40 | N65: 40 | O65: 40 | P65: 40
A66: 1300 | B66: Verwaltungsgebäude | C66: 4,562 | D66: 0.0 | E66: 14.7 | F66: 20.3 | G66: 25.8 | H66: 32.4 | I66: 40.9 | J66: 55.2 | K66: 20 | L66: 30 | M66: 40 | N66: 40 | O66: 40 | P66: 40
A67: 4500 | B67: Weiterbildungseinrichtungen | C67: 90 | D67: 0.0 | E67: 11.8 | F67: 16.9 | G67: 20.1 | H67: 24.4 | I67: 29.5 | J67: 45.6 | K67: 20 | L67: 20 | M67: 30 | N67: 30 | O67: 30 | P67: 30
A68: 6100 | B68: Wohnhäuser | C68: 41 | D68: 0.0 | E68: 2.2 | F68: 4.1 | G68: 5.8 | H68: 8.6 | I68: 16.3 | J68: 38.1 | K68: 17 | L68: 30 | M68: 40 | N68: 40 | O68: 40 | P68: 40
A69: 6200 | B69: Wohnheime | C69: 84 | D69: 0.0 | E69: 11.5 | F69: 16.9 | G69: 20.1 | H69: 26.4 | I69: 33.4 | J69: 55.1 | K69: 20 | L69: 20 | M69: 40 | N69: 40 | O69: 40 | P69: 40
B71: Summe | C71: 12,740

Sheet Klassengrenzen Wasser
A1: Klassengrenzen für Wasser
B3: Bezugsjahr: | C3: 2004
B4: Bezugsgröße: | C4: Nettogeschossfläche
C6: Datenquelle: Datensammlung des IEMB Stand: 09.11.2006
A7: BZK | B7: Bauwerkszuordnung | C7: Anzahl | D7: Untergrenzen der Klassen | K7: Mittelwert
C8: Werte | D8: (l/m²a) | K8: (l/m²a)
D9: A | E9: B | F9: C | G9: D | H9: E | I9: F | J9: G
A10: 4100 | B10: Allgemeinbildende Schulen | C10: 1,464 | D10: 0 | E10: 72 | F10: 108 | G10: 134 | H10: 171 | I10: 219 | J10: 304 | K10: 209
A11: 9121 | B11: Ausstellungsgebäude, Museen | C11: 78 | D11: 0 | E11: 77 | F11: 97 | G11: 119 | H11: 183 | I11: 250 | J11: 528 | K11: 246
A12: 7740 | B12: Bauhöfe | C12: 17 | D12: 0 | E12: 151 | F12: 191 | G12: 346 | H12: 427 | I12: 552 | J12: 737 | K12: 489
A13: 4200 | B13: Berufsbildende Schulen | C13: 256 | D13: 0 | E13: 73 | F13: 113 | G13: 156 | H13: 196 | I13: 255 | J13: 336 | K13: 239
A14: 4210 | B14: Berufsfachschulen | C14: 13 | D14: 0 | E14: 143 | F14: 169 | G14: 177 | H14: 180 | I14: 279 | J14: 374 | K14: 237
A15: 6400 | B15: Betreuungseinrichtungen | C15: 151 | D15: 0 | E15: 103 | F15: 143 | G15: 216 | H15: 283 | I15: 402 | J15: 569 | K15: 501
A16: 9130 | B16: Betriebs- und Werkstätten | C16: 63 | D16: 0 | E16: 63 | F16: 83 | G16: 155 | H16: 208 | I16: 306 | J16: 414 | K16: 352
A17: 7760 | B17: Bibliotheksgebäude | C17: 139 | D17: 0 | E17: 92 | F17: 151 | G17: 288 | H17: 419 | I17: 560 | J17: 840 | K17: 516
A18: 5500 | B18: Feuerwehren | C18: 54 | D18: 0 | E18: 3,963 | F18: 7,159 | G18: 8,926 | H18: 11,367 | I18: 16,691 | J18: 23,772 | K18: 14,556
A19: 9700 | B19: Freibadanlagen | C19: 59 | D19: 0 | E19: 487 | F19: 1,312 | G19: 1,913 | H19: 3,098 | I19: 4,917 | J19: 8,072 | K19: 4,154
A20: 7600 | B20: Friedhofsanlagen | C20: 51 | D20: 0 | E20: 111 | F20: 193 | G20: 291 | H20: 387 | I20: 491 | J20: 895 | K20: 425
A21: 9100 | B21: Garagengebäude | C21: 319 | D21: 0 | E21: 65 | F21: 105 | G21: 179 | H21: 268 | I21: 375 | J21: 690 | K21: 458
A22: 7700 | B22: Geb. f. kulturelle u. musische Zwecke | C22: 514 | D22: 0 | E22: 78 | F22: 139 | G22: 201 | H22: 297 | I22: 467 | J22: 811 | K22: 519
A23: 5300 | B23: Geb. f. öff. Bereitschaftsdienste | C23: 60 | D23: 0 | E23: 500 | F23: 870 | G23: 1,856 | H23: 2,388 | I23: 2,956 | J23: 4,238 | K23: 2,695
A24: 2000 | B24: Geb. f. Sportplatz- u. Freibadanl. | C24: 763 | D24: 0 | E24: 87 | F24: 140 | G24: 192 | H24: 256 | I24: 400 | J24: 756 | K24: 520
A25: 9150 | B25: Geb. f. wiss. Lehre u. Forschung | C25: 85 | D25: 0 | E25: 187 | F25: 244 | G25: 330 | H25: 421 | I25: 708 | J25: 1,027 | K25: 735
A26: 6300 | B26: Gemeinschaftshäuser | C26: 56 | D26: 0 | E26: 169 | F26: 204 | G26: 256 | H26: 295 | I26: 433 | J26: 960 | K26: 537
A27: 1200 | B27: Gemeinschaftsunterkünfte | C27: 436 | D27: 0 | E27: 75 | F27: 99 | G27: 117 | H27: 140 | I27: 176 | J27: 244 | K27: 172
A28: 4150 | B28: Gerichtsgebäude | C28: 88 | D28: 0 | E28: 57 | F28: 81 | G28: 110 | H28: 119 | I28: 161 | J28: 245 | K28: 163
A29: 4115 | B29: Gesamtschulen | C29: 104 | D29: 0 | E29: 103 | F29: 125 | G29: 152 | H29: 183 | I29: 221 | J29: 343 | K29: 210
A30: 4112 | B30: Grund- u. Hauptschulen mit Turnhalle | C30: 754 | D30: 0 | E30: 78 | F30: 118 | G30: 153 | H30: 194 | I30: 242 | J30: 337 | K30: 232
A31: 4121 | B31: Grund- und Hauptschulen | C31: 837 | D31: 0 | E31: 73 | F31: 114 | G31: 150 | H31: 190 | I31: 241 | J31: 334 | K31: 231
A32: 4110 | B32: Grund-, Haupt- und Realschulen | C32: 670 | D32: 0 | E32: 78 | F32: 120 | G32: 153 | H32: 196 | I32: 242 | J32: 342 | K32: 236
A33: 4140 | B33: Grundschulen | C33: 227 | D33: 0 | E33: 68 | F33: 99 | G33: 128 | H33: 150 | I33: 192 | J33: 285 | K33: 179
A34: 5100 | B34: Gymnasien | C34: 302 | D34: 0 | E34: 99 | F34: 137 | G34: 179 | H34: 232 | I34: 317 | J34: 514 | K34: 382
A35: 4120 | B35: Hallen (ohne Schwimmh.) | C35: 84 | D35: 0 | E35: 71 | F35: 107 | G35: 148 | H35: 181 | I35: 247 | J35: 324 | K35: 202
A36: 2100 | B36: Hauptschulen | C36: 44 | D36: 0 | E36: 135 | F36: 183 | G36: 214 | H36: 251 | I36: 279 | J36: 394 | K36: 247
A37: 2300 | B37: Hörsaalgebäude | C37: 150 | D37: 0 | E37: 103 | F37: 163 | G37: 256 | H37: 398 | I37: 648 | J37: 1,113 | K37: 979
A38: 2200 | B38: Institutsgeb. f. Forsch. u. Unters. | C38: 444 | D38: 0 | E38: 80 | F38: 137 | G38: 191 | H38: 256 | I38: 420 | J38: 762 | K38: 467
A39: 6430 | B39: Institutsgebäude f. Lehre u. Forsch. | C39: 96 | D39: 0 | E39: 103 | F39: 137 | G39: 159 | H39: 224 | I39: 301 | J39: 400 | K39: 292
A40: 9600 | B40: Jugendzentren | C40: 122 | D40: 0 | E40: 655 | F40: 1,163 | G40: 1,474 | H40: 1,645 | I40: 2,000 | J40: 2,527 | K40: 1,687
A41: 4410 | B41: Justizvollzugsanstalten | C41: 231 | D41: 0 | E41: 237 | F41: 373 | G41: 488 | H41: 550 | I41: 668 | J41: 833 | K41: 725
A42: 4400 | B42: Kindergärten | C42: 515 | D42: 0 | E42: 188 | F42: 361 | G42: 483 | H42: 575 | I42: 669 | J42: 837 | K42: 678
A43: 3200 | B43: Kindertagesstätten | C43: 17 | D43: 0 | E43: 52 | F43: 188 | G43: 214 | H43: 1,064 | I43: 1,408 | J43: 2,369 | K43: 890
A44: 7500 | B44: Krankenhäuser für Akutkranke | C44: 67 | D44: 0 | E44: 55 | F44: 125 | G44: 158 | H44: 258 | I44: 429 | J44: 651 | K44: 441
A45: 7100 | B45: Lagergebäude | C45: 29 | D45: 0 | E45: 166 | F45: 200 | G45: 368 | H45: 439 | I45: 662 | J45: 1,073 | K45: 527
A46: 5130 | B46: Landwirtschaftl. Produktionsstätten | C46: 28 | D46: 0 | E46: 124 | F46: 206 | G46: 311 | H46: 380 | I46: 514 | J46: 1,398 | K46: 549
A47: 1100 | B47: Mehrzweckhallen | C47: 32 | D47: 0 | E47: 135 | F47: 181 | G47: 221 | H47: 238 | I47: 281 | J47: 494 | K47: 277
A48: 3400 | B48: Parlamentsgebäude | C48: 13 | D48: 0 | E48: 870 | F48: 1,047 | G48: 1,095 | H48: 1,190 | I48: 1,321 | J48: 1,813 | K48: 1,181
A49: 1340 | B49: Pflegeheime (Alte, Behinderte) | C49: 929 | D49: 0 | E49: 103 | F49: 143 | G49: 178 | H49: 221 | I49: 271 | J49: 362 | K49: 273
A50: 1313 | B50: Polizeidienstgebäude | C50: 44 | D50: 0 | E50: 76 | F50: 129 | G50: 175 | H50: 216 | I50: 272 | J50: 460 | K50: 275
A51: 4130 | B51: Rathäuser | C51: 83 | D51: 0 | E51: 38 | F51: 89 | G51: 123 | H51: 164 | I51: 219 | J51: 294 | K51: 226
A52: 1350 | B52: Realschulen | C52: 7 | D52: 0 | E52: 107 | F52: 134 | G52: 143 | H52: 245 | I52: 382 | J52: 1,630 | K52: 387
A53: 4000 | B53: Rechenzentren | C53: 1,986 | D53: 0 | E53: 75 | F53: 112 | G53: 140 | H53: 178 | I53: 227 | J53: 324 | K53: 219
A54: 5200 | B54: Schulen | C54: 78 | D54: 0 | E54: 19,906 | F54: 26,994 | G54: 31,950 | H54: 40,715 | I54: 50,040 | J54: 63,281 | K54: 40,681
A55: 3300 | B55: Schwimmhallen (Beckenfläche) | C55: 45 | D55: 0 | E55: 646 | F55: 796 | G55: 969 | H55: 1,132 | I55: 1,170 | J55: 1,225 | K55: 985
A56: 4300 | B56: Sonderkrankenhäuser (z.B. Sucht) | C56: 143 | D56: 0 | E56: 79 | F56: 112 | G56: 145 | H56: 198 | I56: 285 | J56: 446 | K56: 244
A57: 5000 | B57: Sonderschulen | C57: 32 | D57: 0 | E57: 148 | F57: 172 | G57: 222 | H57: 394 | I57: 630 | J57: 1,391 | K57: 973
A58: 5110 | B58: Sportbauten | C58: 264 | D58: 0 | E58: 97 | F58: 136 | G58: 169 | H58: 219 | I58: 291 | J58: 423 | K58: 348
A59: 5400 | B59: Sporthallen | C59: 22 | D59: 0 | E59: 653 | F59: 919 | G59: 1,133 | H59: 1,741 | I59: 3,111 | J59: 4,296 | K59: 2,458
A60: 9140 | B60: Sportplatzanlagen (Außenanlagen) | C60: 45 | D60: 0 | E60: 92 | F60: 187 | G60: 283 | H60: 379 | I60: 507 | J60: 692 | K60: 405
A61: 7200 | B61: Veranstaltungsgebäude | C61: 3 | D61: 0 | E61: 0 | F61: 0 | G61: 0 | H61: 0 | I61: 0 | J61: 0 | K61: 398
A62: 6500 | B62: Verkaufsstätten | C62: 19 | D62: 0 | E62: 292 | F62: 454 | G62: 768 | H62: 1,160 | I62: 1,305 | J62: 1,600 | K62: 1,006
A63: 1320 | B63: Verpflegungseinrichtungen | C63: 141 | D63: 0 | E63: 94 | F63: 154 | G63: 189 | H63: 239 | I63: 287 | J63: 417 | K63: 261
A64: 1300 | B64: Verwaltungsgeb. mit höh. techn. Ausst. | C64: 2,818 | D64: 0 | E64: 88 | F64: 127 | G64: 163 | H64: 200 | I64: 252 | J64: 356 | K64: 270
A65: 1310 | B65: Verwaltungsgebäude | C65: 1,442 | D65: 0 | E65: 83 | F65: 121 | G65: 152 | H65: 188 | I65: 231 | J65: 334 | K65: 244
A66: 4500 | B66: Verwaltungsgeb. mit norm. techn. Ausst. | C66: 45 | D66: 0 | E66: 104 | F66: 139 | G66: 248 | H66: 308 | I66: 416 | J66: 613 | K66: 445
A67: 7300 | B67: Weiterbildungseinrichtungen | C67: 147 | D67: 0 | E67: 108 | F67: 183 | G67: 278 | H67: 339 | I67: 581 | J67: 1,296 | K67: 620
A68: 6100 | B68: Wohnhäuser | C68: 11 | D68: 0 | E68: 102 | F68: 168 | G68: 469 | H68: 2,318 | I68: 3,091 | J68: 4,256 | K68: 1,937
A69: 6200 | B69: Wohnheime | C69: 91 | D69: 0 | E69: 225 | F69: 430 | G69: 622 | H69: 850 | I69: 1,238 | J69: 1,787 | K69: 1,017
B71: Summe | C71: 17,827

Sheet Mittelung Klassengrenzen
A1: Mittelung der Klassengrenzen
A4: Gebäudekategorie | C4: BWZK | D4: m²
A5: =IF(Eingabewerte!D16="","",Eingabewerte!D16) -> Verwaltungsgeb. mit norm. techn. Ausst. | C5: =IF(Eingabewerte!D16="","",VLOOKUP(Eingabewerte!D16,'Klassengrenzen Heizung'!B$10:N$71,13,0)) -> 1310 | D5: =IF(C5="","",Eingabewerte!K16) -> 9,711
A6: =IF(Eingabewerte!D17="","",Eingabewerte!D17) -> Verpflegungseinrichtungen | C6: =IF(Eingabewerte!D17="","",VLOOKUP(Eingabewerte!D17,'Klassengrenzen Heizung'!B$10:N$71,13,0)) -> 6500 | D6: =IF(C6="","",Eingabewerte!K17) -> 350
A7: =IF(Eingabewerte!D18="","",Eingabewerte!D18) ->  | C7: =IF(Eingabewerte!D18="","",VLOOKUP(Eingabewerte!D18,'Klassengrenzen Heizung'!B$10:N$71,13,0)) ->  | D7: =IF(C7="","",Eingabewerte!K18) -> 
A8: =IF(Eingabewerte!D19="","",Eingabewerte!D19) ->  | C8: =IF(Eingabewerte!D19="","",VLOOKUP(Eingabewerte!D19,'Klassengrenzen Heizung'!B$10:N$71,13,0)) ->  | D8: =IF(C8="","",Eingabewerte!K19) -> 
A9: Summe | D9: =SUM(D5:D8)+0.0001 -> 10,062
A11: Flächengrenze Vergleichwerte | D11: 3,500 | E11: m²
A13: Verbrauch Heizung | C13: Verbrauch Strom | E13: Verbrauch Wasser
A14: kWh/m²a | B14: €/a | C14: kWh/m²a | D14: €/a | E14: l/m²a | F14: €/a
A15: =Eingabewerte!H29 -> 94 | B15: =Eingabewerte!H30 -> 61,808 | C15: =Eingabewerte!H34 -> 52 | D15: =Eingabewerte!H35 -> 83,120 | E15: =Eingabewerte!H39 -> 120 | F15: =Eingabewerte!H40 -> 3,917 | H15: Mittelwertberechnung erfolgt nach den Kennwerten | L15: =IF(J16=12,2007,IF(J16=14,2009,IF(J16=16,2014,IF(J16=18,2016,"")))) -> 
J16: =IF(Eingabewerte!D7="","",Eingabewerte!D7*2+10) -> 
A18: Heizung | C18: A | D18: B | E18: C | F18: D | G18: E | H18: F | I18: G | J18: =(CONCATENATE("Vergleichswerte EnEV ",$L$15)) -> Vergleichswerte EnEV
A19: =IF($A$5="","",$A$5) -> Verwaltungsgeb. mit norm. techn. Ausst. | C19: =IF($C5="","",VLOOKUP($C5,'Klassengrenzen Heizung'!$A$10:$L$71,4,0)) -> 0 | D19: =IF($C5="","",VLOOKUP($C5,'Klassengrenzen Heizung'!$A$10:$N$71,5,0)) -> 71 | E19: =IF($C5="","",VLOOKUP($C5,'Klassengrenzen Heizung'!$A$10:$N$71,6,0)) -> 87 | F19: =IF($C5="","",VLOOKUP($C5,'Klassengrenzen Heizung'!$A$10:$N$71,7,0)) -> 102 | G19: =IF($C5="","",VLOOKUP($C5,'Klassengrenzen Heizung'!$A$10:$N$71,8,0)) -> 118 | H19: =IF($C5="","",VLOOKUP($C5,'Klassengrenzen Heizung'!$A$10:$N$71,9,0)) -> 136 | I19: =IF($C5="","",VLOOKUP($C5,'Klassengrenzen Heizung'!$A$10:$N$71,10,0)) -> 173 | J19: =IF($C5="","",IF($D5>$D$11,ROUND(VLOOKUP($C5,'Klassengrenzen Heizung'!$A$10:$N$71,12,0),0),ROUND(VLOOKUP($C5,'Klassengrenzen Heizung'!$A$10:$N$71,12-1,0),0))) -> 85
A20: =IF($A$6="","",$A$6) -> Verpflegungseinrichtungen | C20: =IF($C6="","",VLOOKUP($C6,'Klassengrenzen Heizung'!$A$10:$N$71,4,0)) -> 0 | D20: =IF($C6="","",VLOOKUP($C6,'Klassengrenzen Heizung'!$A$10:$N$71,5,0)) -> 81 | E20: =IF($C6="","",VLOOKUP($C6,'Klassengrenzen Heizung'!$A$10:$N$71,6,0)) -> 141 | F20: =IF($C6="","",VLOOKUP($C6,'Klassengrenzen Heizung'!$A$10:$N$71,7,0)) -> 154 | G20: =IF($C6="","",VLOOKUP($C6,'Klassengrenzen Heizung'!$A$10:$N$71,8,0)) -> 156 | H20: =IF($C6="","",VLOOKUP($C6,'Klassengrenzen Heizung'!$A$10:$N$71,9,0)) -> 207 | I20: =IF($C6="","",VLOOKUP($C6,'Klassengrenzen Heizung'!$A$10:$N$71,10,0)) -> 243 | J20: =IF($C6="","",IF($D6>$D$11,ROUND(VLOOKUP($C6,'Klassengrenzen Heizung'!$A$10:$N$71,12,0),0),ROUND(VLOOKUP($C6,'Klassengrenzen Heizung'!$A$10:$N$71,12-1,0),0))) -> 105
A21: =IF($A$7="","",$A$7) ->  | C21: =IF($C7="","",VLOOKUP($C7,'Klassengrenzen Heizung'!$A$10:$J$71,4,0)) ->  | D21: =IF($C7="","",ROUND(VLOOKUP($C7,'Klassengrenzen Heizung'!$A$10:$J$71,5,0),0)) ->  | E21: =IF($C7="","",ROUND(VLOOKUP($C7,'Klassengrenzen Heizung'!$A$10:$J$71,6,0),0)) ->  | F21: =IF($C7="","",ROUND(VLOOKUP($C7,'Klassengrenzen Heizung'!$A$10:$J$71,7,0),0)) ->  | G21: =IF($C7="","",ROUND(VLOOKUP($C7,'Klassengrenzen Heizung'!$A$10:$J$71,8,0),0)) ->  | H21: =IF($C7="","",ROUND(VLOOKUP($C7,'Klassengrenzen Heizung'!$A$10:$J$71,9,0),0)) ->  | I21: =IF($C7="","",ROUND(VLOOKUP($C7,'Klassengrenzen Heizung'!$A$10:$J$71,10,0),0)) ->  | J21: =IF($C7="","",IF($D7>$D$11,ROUND(VLOOKUP($C7,'Klassengrenzen Heizung'!$A$10:$N$71,12,0),0),ROUND(VLOOKUP($C7,'Klassengrenzen Heizung'!$A$10:$N$71,12-1,0),0))) -> 
A22: =IF($A$8="","",$A$8) ->  | C22: =IF($C8="","",VLOOKUP($C8,'Klassengrenzen Heizung'!$A$10:$J$71,4,0)) ->  | D22: =IF($C8="","",VLOOKUP($C8,'Klassengrenzen Heizung'!$A$10:$J$71,5,0)) ->  | E22: =IF($C8="","",VLOOKUP($C8,'Klassengrenzen Heizung'!$A$10:$J$71,6,0)) ->  | F22: =IF($C8="","",VLOOKUP($C8,'Klassengrenzen Heizung'!$A$10:$J$71,7,0)) ->  | G22: =IF($C8="","",VLOOKUP($C8,'Klassengrenzen Heizung'!$A$10:$J$71,8,0)) ->  | H22: =IF($C8="","",VLOOKUP($C8,'Klassengrenzen Heizung'!$A$10:$J$71,9,0)) ->  | I22: =IF($C8="","",VLOOKUP($C8,'Klassengrenzen Heizung'!$A$10:$J$71,10,0)) ->  | J22: =IF($C8="","",IF($D8>$D$11,ROUND(VLOOKUP($C8,'Klassengrenzen Heizung'!$A$10:$N$71,12,0),0),ROUND(VLOOKUP($C8,'Klassengrenzen Heizung'!$A$10:$N$71,12-1,0),0))) -> 
A23: Heiz Mittelwert | C23: =ROUND((IF($D$5="",0,$D$5*C19)+IF($D$6="",0,$D$6*C20)+IF($D$7="",0,$D$7*C21)+IF($D$8="",0,$D$8*C22))/$D$9,0) -> 0 | D23: 71 | E23: 89 | F23: 104 | G23: 120 | H23: 139 | I23: 175 | J23: =ROUND((IF($D$5="",0,$D$5*J19)+IF($D$6="",0,$D$6*J20)+IF($D$7="",0,$D$7*J21)+IF($D$8="",0,$D$8*J22))/$D$9,0) -> 86
A25: Strom | C25: A | D25: B | E25: C | F25: D | G25: E | H25: F | I25: G | J25: =(CONCATENATE("Vergleichswerte EnEV ",$L$15)) -> Vergleichswerte EnEV
A26: =IF($A$5="","",$A$5) -> Verwaltungsgeb. mit norm. techn. Ausst. | C26: =IF($C5="","",ROUND(VLOOKUP($C5,'Klassengrenzen Strom'!$A$10:$T$71,4,0),0)) -> 0 | D26: =IF($C5="","",ROUND(VLOOKUP($C5,'Klassengrenzen Strom'!$A$10:$T$71,5,0),0)) -> 14 | E26: =IF($C5="","",ROUND(VLOOKUP($C5,'Klassengrenzen Strom'!$A$10:$T$71,6,0),0)) -> 19 | F26: =IF($C5="","",ROUND(VLOOKUP($C5,'Klassengrenzen Strom'!$A$10:$T$71,7,0),0)) -> 24 | G26: =IF($C5="","",ROUND(VLOOKUP($C5,'Klassengrenzen Strom'!$A$10:$T$71,8,0),0)) -> 29 | H26: =IF($C5="","",ROUND(VLOOKUP($C5,'Klassengrenzen Strom'!$A$10:$T$71,9,0),0)) -> 35 | I26: =IF($C5="","",ROUND(VLOOKUP($C5,'Klassengrenzen Strom'!$A$10:$T$71,10,0),0)) -> 46 | J26: =IF($C5="","",IF(D5>D$11,ROUND(VLOOKUP($C5,'Klassengrenzen Strom'!$A$10:$L$71,12,0),0),ROUND(VLOOKUP($C5,'Klassengrenzen Strom'!$A$10:$L$71,12-1,0),0))) -> 30
A27: =IF($A$6="","",$A$6) -> Verpflegungseinrichtungen | C27: =IF($C6="","",ROUND(VLOOKUP($C6,'Klassengrenzen Strom'!$A$10:$T$71,4,0),0)) -> 0 | D27: =IF($C6="","",ROUND(VLOOKUP($C6,'Klassengrenzen Strom'!$A$10:$T$71,5,0),0)) -> 10 | E27: =IF($C6="","",ROUND(VLOOKUP($C6,'Klassengrenzen Strom'!$A$10:$T$71,6,0),0)) -> 21 | F27: =IF($C6="","",ROUND(VLOOKUP($C6,'Klassengrenzen Strom'!$A$10:$T$71,7,0),0)) -> 40 | G27: =IF($C6="","",ROUND(VLOOKUP($C6,'Klassengrenzen Strom'!$A$10:$T$71,8,0),0)) -> 54 | H27: =IF($C6="","",ROUND(VLOOKUP($C6,'Klassengrenzen Strom'!$A$10:$T$71,9,0),0)) -> 72 | I27: =IF($C6="","",ROUND(VLOOKUP($C6,'Klassengrenzen Strom'!$A$10:$T$71,10,0),0)) -> 129 | J27: =IF($C6="","",IF(D6>D$11,ROUND(VLOOKUP($C6,'Klassengrenzen Strom'!$A$10:$L$71,12,0),0),ROUND(VLOOKUP($C6,'Klassengrenzen Strom'!$A$10:$L$71,11,0),0))) -> 75
A28: =IF($A$7="","",$A$7) ->  | C28: =IF($C7="","",ROUND(VLOOKUP($C7,'Klassengrenzen Strom'!$A$10:$J$71,4,0),0)) ->  | D28: =IF($C7="","",ROUND(VLOOKUP($C7,'Klassengrenzen Strom'!$A$10:$J$71,5,0),0)) ->  | E28: =IF($C7="","",ROUND(VLOOKUP($C7,'Klassengrenzen Strom'!$A$10:$J$71,6,0),0)) ->  | F28: =IF($C7="","",ROUND(VLOOKUP($C7,'Klassengrenzen Strom'!$A$10:$J$71,7,0),0)) ->  | G28: =IF($C7="","",ROUND(VLOOKUP($C7,'Klassengrenzen Strom'!$A$10:$J$71,8,0),0)) ->  | H28: =IF($C7="","",ROUND(VLOOKUP($C7,'Klassengrenzen Strom'!$A$10:$J$71,9,0),0)) ->  | I28: =IF($C7="","",ROUND(VLOOKUP($C7,'Klassengrenzen Strom'!$A$10:$J$71,10,0),0)) ->  | J28: =IF($C7="","",IF(D7>D$11,ROUND(VLOOKUP($C7,'Klassengrenzen Strom'!$A$10:$L$71,12,0),0),ROUND(VLOOKUP($C7,'Klassengrenzen Strom'!$A$10:$L$71,11,0),0))) -> 
A29: =IF($A$8="","",$A$8) ->  | C29: =IF($C8="","",ROUND(VLOOKUP($C8,'Klassengrenzen Strom'!$A$10:$J$71,4,0),0)) ->  | D29: =IF($C8="","",ROUND(VLOOKUP($C8,'Klassengrenzen Strom'!$A$10:$J$71,5,0),0)) ->  | E29: =IF($C8="","",ROUND(VLOOKUP($C8,'Klassengrenzen Strom'!$A$10:$J$71,6,0),0)) ->  | F29: =IF($C8="","",ROUND(VLOOKUP($C8,'Klassengrenzen Strom'!$A$10:$J$71,7,0),0)) ->  | G29: =IF($C8="","",ROUND(VLOOKUP($C8,'Klassengrenzen Strom'!$A$10:$J$71,8,0),0)) ->  | H29: =IF($C8="","",ROUND(VLOOKUP($C8,'Klassengrenzen Strom'!$A$10:$J$71,9,0),0)) ->  | I29: =IF($C8="","",ROUND(VLOOKUP($C8,'Klassengrenzen Strom'!$A$10:$J$71,10,0),0)) ->  | J29: =IF($C8="","",IF(D8>D$11,ROUND(VLOOKUP($C8,'Klassengrenzen Strom'!$A$10:$L$71,12,0),0),ROUND(VLOOKUP($C8,'Klassengrenzen Strom'!$A$10:$L$71,11,0),0))) -> 
A30: Strom Mittelwert | C30: =ROUND((IF($D$5="",0,$D$5*C26)+IF($D$6="",0,$D$6*C27)+IF($D$7="",0,$D$7*C28)+IF($D$8="",0,$D$8*C29))/$D$9,0) -> 0 | D30: 14 | E30: 19 | F30: 25 | G30: 30 | H30: 36 | I30: 49 | J30: 32
A32: Wasser | C32: A | D32: B | E32: C | F32: D | G32: E | H32: F | I32: G | J32: =(CONCATENATE("Vergleichswerte EnEV ",$L$15)) -> Vergleichswerte EnEV
A33: =IF($A$5="","",$A$5) -> Verwaltungsgeb. mit norm. techn. Ausst. | C33: =IF($C5="","",ROUND(VLOOKUP($C5,'Klassengrenzen Wasser'!$A$10:$L$71,4,0),0)) -> 0 | D33: =IF($C5="","",ROUND(VLOOKUP($C5,'Klassengrenzen Wasser'!$A$10:$L$71,5,0),0)) -> 83 | E33: =IF($C5="","",ROUND(VLOOKUP($C5,'Klassengrenzen Wasser'!$A$10:$L$71,6,0),0)) -> 121 | F33: =IF($C5="","",ROUND(VLOOKUP($C5,'Klassengrenzen Wasser'!$A$10:$L$71,7,0),0)) -> 152 | G33: =IF($C5="","",ROUND(VLOOKUP($C5,'Klassengrenzen Wasser'!$A$10:$L$71,8,0),0)) -> 188 | H33: =IF($C5="","",ROUND(VLOOKUP($C5,'Klassengrenzen Wasser'!$A$10:$L$71,9,0),0)) -> 231 | I33: =IF($C5="","",ROUND(VLOOKUP($C5,'Klassengrenzen Wasser'!$A$10:$L$71,10,0),0)) -> 334 | J33: =IF($C5="","",ROUND(VLOOKUP($C5,'Klassengrenzen Wasser'!$A$10:$L$71,11,0),0)) -> 244
A34: =IF($A$6="","",$A$6) -> Verpflegungseinrichtungen | C34: =IF($C6="","",ROUND(VLOOKUP($C6,'Klassengrenzen Wasser'!$A$10:$L$71,4,0),0)) -> 0 | D34: =IF($C6="","",ROUND(VLOOKUP($C6,'Klassengrenzen Wasser'!$A$10:$L$71,5,0),0)) -> 292 | E34: =IF($C6="","",ROUND(VLOOKUP($C6,'Klassengrenzen Wasser'!$A$10:$L$71,6,0),0)) -> 454 | F34: =IF($C6="","",ROUND(VLOOKUP($C6,'Klassengrenzen Wasser'!$A$10:$L$71,7,0),0)) -> 768 | G34: =IF($C6="","",ROUND(VLOOKUP($C6,'Klassengrenzen Wasser'!$A$10:$L$71,8,0),0)) -> 1160 | H34: =IF($C6="","",ROUND(VLOOKUP($C6,'Klassengrenzen Wasser'!$A$10:$L$71,9,0),0)) -> 1305 | I34: =IF($C6="","",ROUND(VLOOKUP($C6,'Klassengrenzen Wasser'!$A$10:$L$71,10,0),0)) -> 1600 | J34: =IF($C6="","",ROUND(VLOOKUP($C6,'Klassengrenzen Wasser'!$A$10:$L$71,11,0),0)) -> 1006
A35: =IF($A$7="","",$A$7) ->  | C35: =IF($C7="","",ROUND(VLOOKUP($C7,'Klassengrenzen Wasser'!$A$10:$L$71,4,0),0)) ->  | D35: =IF($C7="","",ROUND(VLOOKUP($C7,'Klassengrenzen Wasser'!$A$10:$L$71,5,0),0)) ->  | E35: =IF($C7="","",ROUND(VLOOKUP($C7,'Klassengrenzen Wasser'!$A$10:$L$71,6,0),0)) ->  | F35: =IF($C7="","",ROUND(VLOOKUP($C7,'Klassengrenzen Wasser'!$A$10:$L$71,7,0),0)) ->  | G35: =IF($C7="","",ROUND(VLOOKUP($C7,'Klassengrenzen Wasser'!$A$10:$L$71,8,0),0)) ->  | H35: =IF($C7="","",ROUND(VLOOKUP($C7,'Klassengrenzen Wasser'!$A$10:$L$71,9,0),0)) ->  | I35: =IF($C7="","",ROUND(VLOOKUP($C7,'Klassengrenzen Wasser'!$A$10:$L$71,10,0),0)) ->  | J35: =IF($C7="","",ROUND(VLOOKUP($C7,'Klassengrenzen Wasser'!$A$10:$L$71,11,0),0)) -> 
A36: =IF($A$8="","",$A$8) ->  | C36: =IF($C8="","",ROUND(VLOOKUP($C8,'Klassengrenzen Wasser'!$A$10:$L$71,4,0),0)) ->  | D36: =IF($C8="","",ROUND(VLOOKUP($C8,'Klassengrenzen Wasser'!$A$10:$L$71,5,0),0)) ->  | E36: =IF($C8="","",ROUND(VLOOKUP($C8,'Klassengrenzen Wasser'!$A$10:$L$71,6,0),0)) ->  | F36: =IF($C8="","",ROUND(VLOOKUP($C8,'Klassengrenzen Wasser'!$A$10:$L$71,7,0),0)) ->  | G36: =IF($C8="","",ROUND(VLOOKUP($C8,'Klassengrenzen Wasser'!$A$10:$L$71,8,0),0)) ->  | H36: =IF($C8="","",ROUND(VLOOKUP($C8,'Klassengrenzen Wasser'!$A$10:$L$71,9,0),0)) ->  | I36: =IF($C8="","",ROUND(VLOOKUP($C8,'Klassengrenzen Wasser'!$A$10:$L$71,10,0),0)) ->  | J36: =IF($C8="","",ROUND(VLOOKUP($C8,'Klassengrenzen Wasser'!$A$10:$L$71,11,0),0)) -> 
A37: Wasser Mittelwert | C37: =ROUND((IF($D$5="",0,$D$5*C33)+IF($D$6="",0,$D$6*C34)+IF($D$7="",0,$D$7*C35)+IF($D$8="",0,$D$8*C36))/$D$9,0) -> 0 | D37: 90 | E37: 133 | F37: 173 | G37: 222 | H37: 268 | I37: 378 | J37: 271

Sheet Umrechnung BGF-NRF
A1: Umrechnungsfaktoren Fläche
A2: nach der Bekanntmachung des Bundesministeriums für Wirtschaft und Energie sowie des Bundesministeriums für Umwelt, Naturschutz, Bau und Reaktorsicherheit "Regeln für Energieverbrauchswerte und Vergleichswerte im Nichtwohngebäudebestand" vom 07.04.2015; Tabelle 1
C3: Umrechnungsfaktor
A4: BZK | B4: Bauwerkszuordnung | C4: BGF in NRF
A5: 4100 | B5: Allgemeinbildende Schulen | C5: 0.90 | D5: =A5 -> 4100.00
A6: 1312 | B6: Ämtergebäude | C6: 0.84 | D6: =A6 -> 1312.00
A7: 9121 | B7: Ausstellungsgebäude, Museen | C7: 0.87 | D7: 9121.00
A8: 7740 | B8: Bauhöfe | C8: 0.86 | D8: 7740.00
A9: 4200 | B9: Berufsbildende Schulen | C9: 0.90 | D9: 4200.00
A10: 4210 | B10: Berufsfachschulen | C10: 0.90 | D10: 4210.00
A11: 6400 | B11: Betreuungseinrichtungen | C11: 0.85 | D11: 6400.00
A12: 7300 | B12: Betriebs- und Werkstätten | C12: 0.91 | D12: 7300.00
A13: 9130 | B13: Bibliotheksgebäude | C13: 0.90 | D13: 9130.00
A14: 7760 | B14: Feuerwehren | C14: 0.86 | D14: 7760.00
A15: 5500 | B15: Freibadanlagen | C15: 0.88 | D15: 5500.00
A16: 9700 | B16: Friedhofsanlagen | C16: 0.84 | D16: 9700.00
A17: 7600 | B17: Garagengebäude | C17: 0.89 | D17: 7600.00
A18: 9100 | B18: Geb. f. kulturelle u. musische Zwecke | C18: 0.88 | D18: 9100.00
A19: 7700 | B19: Geb. f. öff. Bereitschaftsdienste | C19: 0.87 | D19: 7700.00
A20: 5300 | B20: Geb. f. Sportplatz- u. Freibadanl. | C20: 0.88 | D20: 5300.00
A21: 2000 | B21: Geb. f. wiss. Lehre u. Forschung | C21: 0.88 | D21: 2000.00
A22: 9150 | B22: Gemeinschaftshäuser | C22: 0.88 | D22: 9150.00
A23: 6300 | B23: Gemeinschaftsunterkünfte | C23: 0.85 | D23: 6300.00
A24: 1200 | B24: Gerichtsgebäude | C24: 0.83 | D24: 1200.00
A25: 4150 | B25: Gesamtschulen | C25: 0.90 | D25: 4150.00
A26: 4115 | B26: Grund- u. Hauptschulen mit Turnhalle | C26: 0.90 | D26: 4115.00
A27: 4112 | B27: Grund- und Hauptschulen | C27: 0.90 | D27: 4112.00
A28: 4121 | B28: Grund-, Haupt- und Realschulen | C28: 0.90 | D28: 4121.00
A29: 4110 | B29: Grundschulen | C29: 0.90 | D29: 4110.00
A30: 4140 | B30: Gymnasien | C30: 0.90 | D30: 4140.00
A31: 5100 | B31: Hallen (ohne Schwimmh.) | C31: 0.91 | D31: 5100.00
A32: 4120 | B32: Hauptschulen | C32: 0.90 | D32: 4120.00
A33: 2100 | B33: Hörsaalgebäude | C33: 0.88 | D33: 2100.00
A34: 2300 | B34: Institutsgeb. f. Forsch. u. Unters. | C34: 0.87 | D34: 2300.00
A35: 2200 | B35: Institutsgebäude f. Lehre u. Forsch. | C35: 0.89 | D35: 2200.00
A36: 6430 | B36: Jugendzentren | C36: 0.85 | D36: 6430.00
A37: 9600 | B37: Justizvollzugsanstalten | C37: 0.84 | D37: 9600.00
A38: 4410 | B38: Kindergärten | C38: 0.86 | D38: 4410.00
A39: 4400 | B39: Kindertagesstätten | C39: 0.86 | D39: 4400.00
A40: 3200 | B40: Krankenhäuser für Akutkranke | C40: 0.86 | D40: 3200.00
A41: 7500 | B41: Lagergebäude | C41: 0.89 | D41: 7500.00
A42: 7100 | B42: Landwirtschaftl. Produktionsstätten | C42: 0.90 | D42: 7100.00
A43: 5130 | B43: Mehrzweckhallen | C43: 0.91 | D43: 5130.00
A44: 1100 | B44: Parlamentsgebäude | C44: 0.85 | D44: 1100.00
A45: 3400 | B45: Pflegeheime (Alte, Behinderte) | C45: 0.86 | D45: 3400.00
A46: 1340 | B46: Polizeidienstgebäude | C46: 0.84 | D46: 1340.00
A47: 1313 | B47: Rathäuser | C47: 0.84 | D47: 1313.00
A48: 4130 | B48: Realschulen | C48: 0.90 | D48: 4130.00
A49: 1350 | B49: Rechenzentren | C49: 0.88 | D49: 1350.00
A50: 4000 | B50: Schulen | C50: 0.89 | D50: 4000.00
A51: 5200 | B51: Schwimmhallen (Beckenfläche) | C51: 0.88 | D51: 5200.00
A52: 3300 | B52: Sonderkrankenhäuser (z.B. Sucht) | C52: 0.86 | D52: 3300.00
A53: 4300 | B53: Sonderschulen | C53: 0.88 | D53: 4300.00
A54: 5000 | B54: Sportbauten | C54: 0.91 | D54: 5000.00
A55: 5110 | B55: Sporthallen | C55: 0.91 | D55: 5110.00
A56: 5400 | B56: Sportplatzanlagen (Außenanlagen) | C56: 0.88 | D56: 5400.00
A57: 9140 | B57: Veranstaltungsgebäude | C57: 0.88 | D57: 9140.00
A58: 7200 | B58: Verkaufsstätten | C58: 0.89 | D58: 7200.00
A59: 6500 | B59: Verpflegungseinrichtungen | C59: 0.91 | D59: 6500.00
A60: 1320 | B60: Verwaltungsgeb. mit höh. techn. Ausst. | C60: 0.86 | D60: 1320.00
A61: 1300 | B61: Verwaltungsgebäude | C61: 0.85 | D61: 1300.00
A62: 1310 | B62: Verwaltungsgeb. mit norm. techn. Ausst. | C62: 0.85 | D62: 1310.00
A63: 4500 | B63: Weiterbildungseinrichtungen | C63: 0.88 | D63: 4500.00
A64: 6100 | B64: Wohnhäuser | C64: 0.84 | D64: 6100.00
A65: 6200 | B65: Wohnheime | C65: 0.84 | D65: 6200.00

Sheet Klimafaktor
B1: Berechnung des Klimafaktors | L1: nach Klimafaktoren für die Bekanntmachungen für Energie-verbrauchskennwerte und unter http://www.dwd.de/klimafaktoren für Potsdam | S1: Stand Juni. 2014
D2: 1 | E2: 2 | F2: 3 | G2: 4 | H2: 5 | I2: 6 | J2: 7 | K2: 8 | L2: 9 | M2: 10 | N2: 11 | O2: 12 | P2: 13 | Q2: 14 | R2: 15 | S2: 16 | T2: 17 | U2: 18 | V2: 19 | W2: 20 | X2: 21 | Y2: 22 | Z2: 23 | AA2: 24 | AB2: 25 | AC2: 26 | AD2: 27 | AE2: 28 | AF2: 29 | AG2: 30 | AH2: 31 | AI2: 32 | AJ2: 33 | AK2: 34 | AL2: 35 | AM2: 36 | AN2: 37 | AO2: 38 | AP2: 39 | AQ2: 40 | AR2: 41 | AS2: 42 | AT2: 43 | AU2: 44 | AV2: 45 | AW2: 46 | AX2: 47 | AY2: 48 | AZ2: 49 | BA2: 50 | BB2: 51 | BC2: 52 | BD2: 53 | BE2: 54 | BF2: 55 | BG2: 56 | BH2: 57 | BI2: 58 | BJ2: 59 | BK2: 60 | BL2: 61 | BM2: 62 | BN2: 63 | BO2: 64 | BP2: 65 | BQ2: 66 | BR2: 67 | BS2: 68 | BT2: 69 | BU2: 70 | BV2: 71 | BW2: 72 | BX2: 73
B3: Zeitraum Stationsname | C3: von | D3: 2008-02-01 | E3: 2008-03-01 | F3: 2008-04-01 | G3: 2008-05-01 | H3: 2008-06-01 | I3: 2008-07-01 | J3: 2008-08-01 | K3: 2008-09-01 | L3: 2008-10-01 | M3: 2008-11-01 | N3: 2008-12-01 | O3: 2009-01-01 | P3: 2009-02-01 | Q3: 2009-03-01 | R3: 2009-04-01 | S3: 2009-05-01 | T3: 2009-06-01 | U3: 2009-07-01 | V3: 2009-08-01 | W3: 2009-09-01 | X3: 2009-10-01 | Y3: 2009-11-01 | Z3: 2009-12-01 | AA3: 2010-01-01 | AB3: 2010-02-01 | AC3: 2010-03-01 | AD3: 2010-04-01 | AE3: 2010-05-01 | AF3: 2010-06-01 | AG3: 2010-07-01 | AH3: 2010-08-01 | AI3: 2010-09-01 | AJ3: 2010-10-01 | AK3: 2010-11-01 | AL3: 2010-12-01 | AM3: 2011-01-01 | AN3: 2011-02-01 | AO3: 2011-03-01 | AP3: 2011-04-01 | AQ3: 2011-05-01 | AR3: 2011-06-01 | AS3: 2011-07-01 | AT3: 2011-08-01 | AU3: 2011-09-01 | AV3: 2011-10-01 | AW3: 2011-11-01 | AX3: 2011-12-01 | AY3: 2012-01-01 | AZ3: 2012-02-01 | BA3: 2012-03-01 | BB3: 2012-04-01 | BC3: 2012-05-01 | BD3: 2012-06-01 | BE3: 2012-07-01 | BF3: 2012-08-01 | BG3: 2012-09-01 | BH3: 2012-10-01 | BI3: 2012-11-01 | BJ3: 2012-12-01 | BK3: 2013-01-01 | BL3: 2013-02-01 | BM3: 2013-03-01 | BN3: 2013-04-01 | BO3: 2013-05-01 | BP3: 2013-06-01 | BQ3: 2013-07-01 | BR3: 2013-08-01 | BS3: 2013-09-01 | BT3: 2013-10-01 | BU3: 2013-11-01 | BV3: 2013-12-01 | BW3: 2014-01-01 | BX3: 2014-02-01 | BY3: 2014-03-01
C4: bis | D4: 2009-01-31 | E4: 2009-02-28 | F4: 2009-03-31 | G4: 2009-04-30 | H4: 2009-05-31 | I4: 2009-06-30 | J4: 2009-07-31 | K4: 2009-08-31 | L4: 2009-09-30 | M4: 2009-10-31 | N4: 2009-11-30 | O4: 2009-12-31 | P4: 2010-01-31 | Q4: 2010-02-28 | R4: 2010-03-31 | S4: 2010-04-30 | T4: 2010-05-31 | U4: 2010-06-30 | V4: 2010-07-31 | W4: 2010-08-31 | X4: 2010-09-30 | Y4: 2010-10-31 | Z4: 2010-11-30 | AA4: 2010-12-31 | AB4: 2011-01-31 | AC4: 2011-02-28 | AD4: 2011-03-31 | AE4: 2011-04-30 | AF4: 2011-05-31 | AG4: 2011-06-30 | AH4: 2011-07-31 | AI4: 2011-08-31 | AJ4: 2011-09-30 | AK4: 2011-10-31 | AL4: 2011-11-30 | AM4: 2011-12-31 | AN4: 2012-01-31 | AO4: 2012-02-29 | AP4: 2012-03-31 | AQ4: 2012-04-30 | AR4: 2012-05-31 | AS4: 2012-06-30 | AT4: 2012-07-31 | AU4: 2012-08-31 | AV4: 2012-09-30 | AW4: 2012-10-31 | AX4: 2012-11-30 | AY4: 2012-12-31 | AZ4: 2013-01-31 | BA4: 2013-02-28 | BB4: 2013-03-31 | BC4: 2013-04-30 | BD4: 2013-05-31 | BE4: 2013-06-30 | BF4: 2013-07-31 | BG4: 2013-08-31 | BH4: 2013-09-30 | BI4: 2013-10-31 | BJ4: 2013-11-30 | BK4: 2013-12-31 | BL4: 2014-01-31 | BM4: 2014-02-28 | BN4: 2014-03-31 | BO4: 2014-04-30 | BP4: 2014-05-31 | BQ4: 2014-06-30 | BR4: 2014-07-31 | BS4: 2014-08-31 | BT4: 2014-09-30 | BU4: 2014-10-31 | BV4: 2014-11-30 | BW4: 2014-12-31 | BX4: 2015-01-31 | BY4: 2015-02-28
B5: Kreis / Ort | C5: PLZ
A6: =C6 -> 1067 | B6: Dresden, Stadt / Dresden | C6: 1067 | D6: 1,07 | E6: 1,04 | F6: 1,04 | G6: 1,08 | H6: 1,08 | I6: 1,07 | J6: 1,07 | K6: 1,07 | L6: 1,1 | M6: 1,08 | N6: 1,11 | O6: 1,09 | P6: 1,08 | Q6: 1,07 | R6: 1,07 | S6: 1,03 | T6: 1 | U6: 1,01 | V6: 1,01 | W6: 1 | X6: 0,97 | Y6: 0,97 | Z6: 0,96 | AA6: 0,93 | AB6: 0,97 | AC6: 0,97 | AD6: 0,97 | AE6: 1 | AF6: 1,03 | AG6: 1,04 | AH6: 1,04 | AI6: 1,04 | AJ6: 1,07 | AK6: 1,09 | AL6: 1,08 | AM6: 1,16 | AN6: 1,17 | AO6: 1,14 | AP6: 1,16 | AQ6: 1,12 | AR6: 1,12 | AS6: 1,11 | AT6: 1,12 | AU6: 1,12 | AV6: 1,11 | AW6: 1,1 | AX6: 1,11 | AY6: 1,08 | AZ6: 1,06 | BA6: 1,09 | BB6: 1,02 | BC6: 1,02 | BD6: 1,01 | BE6: 1,01 | BF6: 1,01 | BG6: 1,01 | BH6: 0,99 | BI6: 1,01 | BJ6: 1,01 | BK6: 1,03 | BL6: 1,04 | BM6: 1,09 | BN6: 1,17 | BO6: 1,2 | BP6: 1.19 | BQ6: 1.2 | BR6: 1.2 | BS6: 1.18 | BT6: 1.22 | BU6: 1.24 | BV6: 1.26 | BW6: 1.25 | BX6: 1.27 | BY6: 1.23
A7: =C7 -> 1069 | B7: Dresden, Stadt / Dresden | C7: 1069 | D7: 1,06 | E7: 1,04 | F7: 1,03 | G7: 1,08 | H7: 1,07 | I7: 1,06 | J7: 1,06 | K7: 1,06 | L7: 1,09 | M7: 1,08 | N7: 1,1 | O7: 1,09 | P7: 1,07 | Q7: 1,07 | R7: 1,07 | S7: 1,03 | T7: 1 | U7: 1 | V7: 1 | W7: 1 | X7: 0,97 | Y7: 0,97 | Z7: 0,95 | AA7: 0,92 | AB7: 0,96 | AC7: 0,96 | AD7: 0,96 | AE7: 0,99 | AF7: 1,03 | AG7: 1,04 | AH7: 1,03 | AI7: 1,03 | AJ7: 1,07 | AK7: 1,09 | AL7: 1,07 | AM7: 1,16 | AN7: 1,17 | AO7: 1,13 | AP7: 1,16 | AQ7: 1,12 | AR7: 1,12 | AS7: 1,11 | AT7: 1,11 | AU7: 1,12 | AV7: 1,1 | AW7: 1,09 | AX7: 1,11 | AY7: 1,07 | AZ7: 1,06 | BA7: 1,09 | BB7: 1,02 | BC7: 1,02 | BD7: 1,01 | BE7: 1 | BF7: 1 | BG7: 1 | BH7: 0,99 | BI7: 1,01 | BJ7: 1,01 | BK7: 1,03 | BL7: 1,04 | BM7: 1,08 | BN7: 1,17 | BO7: 1,19 | BP7: 1.18 | BQ7: 1.19 | BR7: 1.19 | BS7: 1.18 | BT7: 1.21 | BU7: 1.23 | BV7: 1.25 | BW7: 1.24 | BX7: 1.26 | BY7: 1.22
A8: 1097 | B8: Dresden, Stadt / Dresden | C8: 1097 | D8: 1,06 | E8: 1,03 | F8: 1,03 | G8: 1,07 | H8: 1,07 | I8: 1,06 | J8: 1,06 | K8: 1,06 | L8: 1,09 | M8: 1,08 | N8: 1,1 | O8: 1,09 | P8: 1,07 | Q8: 1,06 | R8: 1,06 | S8: 1,03 | T8: 0,99 | U8: 1 | V8: 1 | W8: 0,99 | X8: 0,97 | Y8: 0,96 | Z8: 0,95 | AA8: 0,92 | AB8: 0,96 | AC8: 0,96 | AD8: 0,96 | AE8: 0,99 | AF8: 1,02 | AG8: 1,04 | AH8: 1,03 | AI8: 1,03 | AJ8: 1,06 | AK8: 1,08 | AL8: 1,07 | AM8: 1,15 | AN8: 1,16 | AO8: 1,13 | AP8: 1,15 | AQ8: 1,11 | AR8: 1,11 | AS8: 1,1 | AT8: 1,11 | AU8: 1,11 | AV8: 1,1 | AW8: 1,09 | AX8: 1,1 | AY8: 1,07 | AZ8: 1,05 | BA8: 1,08 | BB8: 1,02 | BC8: 1,02 | BD8: 1 | BE8: 1 | BF8: 1 | BG8: 1 | BH8: 0,99 | BI8: 1,01 | BJ8: 1 | BK8: 1,03 | BL8: 1,04 | BM8: 1,08 | BN8: 1,16 | BO8: 1,19 | BP8: 1.18 | BQ8: 1.19 | BR8: 1.18 | BS8: 1.17 | BT8: 1.21 | BU8: 1.23 | BV8: 1.24 | BW8: 1.24 | BX8: 1.26 | BY8: 1.21
A9: 1099 | B9: Dresden, Stadt / Dresden | C9: 1099 | D9: 0,95 | E9: 0,92 | F9: 0,92 | G9: 0,95 | H9: 0,95 | I9: 0,93 | J9: 0,93 | K9: 0,94 | L9: 0,96 | M9: 0,95 | N9: 0,96 | O9: 0,95 | P9: 0,94 | Q9: 0,93 | R9: 0,93 | S9: 0,9 | T9: 0,88 | U9: 0,89 | V9: 0,89 | W9: 0,89 | X9: 0,86 | Y9: 0,86 | Z9: 0,85 | AA9: 0,82 | AB9: 0,85 | AC9: 0,85 | AD9: 0,86 | AE9: 0,88 | AF9: 0,9 | AG9: 0,91 | AH9: 0,9 | AI9: 0,9 | AJ9: 0,93 | AK9: 0,94 | AL9: 0,93 | AM9: 1 | AN9: 1 | AO9: 0,98 | AP9: 0,99 | AQ9: 0,97 | AR9: 0,98 | AS9: 0,97 | AT9: 0,97 | AU9: 0,98 | AV9: 0,97 | AW9: 0,96 | AX9: 0,97 | AY9: 0,94 | AZ9: 0,93 | BA9: 0,96 | BB9: 0,91 | BC9: 0,91 | BD9: 0,89 | BE9: 0,89 | BF9: 0,9 | BG9: 0,89 | BH9: 0,88 | BI9: 0,9 | BJ9: 0,9 | BK9: 0,92 | BL9: 0,92 | BM9: 0,95 | BN9: 1,02 | BO9: 1,03 | BP9: 1.03 | BQ9: 1.03 | BR9: 1.03 | BS9: 1.01 | BT9: 1.04 | BU9: 1.05 | BV9: 1.07 | BW9: 1.06 | BX9: 1.07 | BY9: 1.04
A10: 1108 | B10: Dresden, Stadt / Dresden | C10: 1108 | D10: 0,97 | E10: 0,95 | F10: 0,95 | G10: 0,98 | H10: 0,98 | I10: 0,96 | J10: 0,96 | K10: 0,97 | L10: 0,99 | M10: 0,98 | N10: 0,99 | O10: 0,98 | P10: 0,97 | Q10: 0,96 | R10: 0,96 | S10: 0,93 | T10: 0,91 | U10: 0,92 | V10: 0,92 | W10: 0,91 | X10: 0,89 | Y10: 0,89 | Z10: 0,87 | AA10: 0,85 | AB10: 0,88 | AC10: 0,88 | AD10: 0,88 | AE10: 0,9 | AF10: 0,93 | AG10: 0,94 | AH10: 0,93 | AI10: 0,93 | AJ10: 0,96 | AK10: 0,98 | AL10: 0,96 | AM10: 1,03 | AN10: 1,04 | AO10: 1,01 | AP10: 1,03 | AQ10: 1,01 | AR10: 1,01 | AS10: 1 | AT10: 1,01 | AU10: 1,01 | AV10: 1 | AW10: 0,99 | AX10: 1 | AY10: 0,97 | AZ10: 0,96 | BA10: 0,99 | BB10: 0,93 | BC10: 0,93 | BD10: 0,92 | BE10: 0,92 | BF10: 0,92 | BG10: 0,92 | BH10: 0,91 | BI10: 0,92 | BJ10: 0,92 | BK10: 0,94 | BL10: 0,95 | BM10: 0,98 | BN10: 1,05 | BO10: 1,07 | BP10: 1.06 | BQ10: 1.07 | BR10: 1.06 | BS10: 1.05 | BT10: 1.08 | BU10: 1.09 | BV10: 1.11 | BW10: 1.10 | BX10: 1.12 | BY10: 1.08
A11: 1109 | B11: Dresden, Stadt / Dresden | C11: 1109 | D11: 0,97 | E11: 0,95 | F11: 0,95 | G11: 0,98 | H11: 0,97 | I11: 0,96 | J11: 0,96 | K11: 0,96 | L11: 0,99 | M11: 0,98 | N11: 0,99 | O11: 0,98 | P11: 0,96 | Q11: 0,96 | R11: 0,96 | S11: 0,93 | T11: 0,91 | U11: 0,91 | V11: 0,91 | W11: 0,91 | X11: 0,88 | Y11: 0,88 | Z11: 0,87 | AA11: 0,84 | AB11: 0,88 | AC11: 0,88 | AD11: 0,88 | AE11: 0,9 | AF11: 0,93 | AG11: 0,94 | AH11: 0,93 | AI11: 0,93 | AJ11: 0,95 | AK11: 0,97 | AL11: 0,96 | AM11: 1,03 | AN11: 1,04 | AO11: 1,01 | AP11: 1,03 | AQ11: 1 | AR11: 1 | AS11: 0,99 | AT11: 1 | AU11: 1,01 | AV11: 1 | AW11: 0,99 | AX11: 1 | AY11: 0,97 | AZ11: 0,96 | BA11: 0,98 | BB11: 0,93 | BC11: 0,93 | BD11: 0,91 | BE11: 0,91 | BF11: 0,92 | BG11: 0,92 | BH11: 0,9 | BI11: 0,92 | BJ11: 0,92 | BK11: 0,94 | BL11: 0,95 | BM11: 0,98 | BN11: 1,05 | BO11: 1,07 | BP11: 1.06 | BQ11: 1.06 | BR11: 1.06 | BS11: 1.05 | BT11: 1.07 | BU11: 1.09 | BV11: 1.10 | BW11: 1.10 | BX11: 1.11 | BY11: 1.08
A12: 1127 | B12: Dresden, Stadt / Dresden | C12: 1127 | D12: 1,07 | E12: 1,04 | F12: 1,04 | G12: 1,08 | H12: 1,08 | I12: 1,06 | J12: 1,07 | K12: 1,07 | L12: 1,1 | M12: 1,08 | N12: 1,1 | O12: 1,09 | P12: 1,08 | Q12: 1,07 | R12: 1,07 | S12: 1,03 | T12: 1 | U12: 1,01 | V12: 1,01 | W12: 1 | X12: 0,97 | Y12: 0,97 | Z12: 0,96 | AA12: 0,92 | AB12: 0,97 | AC12: 0,96 | AD12: 0,97 | AE12: 1 | AF12: 1,03 | AG12: 1,04 | AH12: 1,04 | AI12: 1,04 | AJ12: 1,07 | AK12: 1,09 | AL12: 1,07 | AM12: 1,16 | AN12: 1,17 | AO12: 1,14 | AP12: 1,16 | AQ12: 1,12 | AR12: 1,12 | AS12: 1,11 | AT12: 1,12 | AU12: 1,12 | AV12: 1,11 | AW12: 1,09 | AX12: 1,11 | AY12: 1,08 | AZ12: 1,06 | BA12: 1,09 | BB12: 1,02 | BC12: 1,02 | BD12: 1,01 | BE12: 1,01 | BF12: 1,01 | BG12: 1,01 | BH12: 0,99 | BI12: 1,01 | BJ12: 1,01 | BK12: 1,03 | BL12: 1,04 | BM12: 1,09 | BN12: 1,17 | BO12: 1,2 | BP12: 1.19 | BQ12: 1.2 | BR12: 1.19 | BS12: 1.18 | BT12: 1.22 | BU12: 1.24 | BV12: 1.26 | BW12: 1.25 | BX12: 1.27 | BY12: 1.23
A13: 1129 | B13: Dresden, Stadt / Dresden | C13: 1129 | D13: 1,02 | E13: 0,99 | F13: 0,99 | G13: 1,03 | H13: 1,03 | I13: 1,01 | J13: 1,02 | K13: 1,02 | L13: 1,04 | M13: 1,03 | N13: 1,05 | O13: 1,04 | P13: 1,02 | Q13: 1,02 | R13: 1,02 | S13: 0,98 | T13: 0,96 | U13: 0,96 | V13: 0,96 | W13: 0,96 | X13: 0,93 | Y13: 0,93 | Z13: 0,91 | AA13: 0,89 | AB13: 0,92 | AC13: 0,92 | AD13: 0,92 | AE13: 0,95 | AF13: 0,98 | AG13: 0,99 | AH13: 0,98 | AI13: 0,98 | AJ13: 1,01 | AK13: 1,03 | AL13: 1,02 | AM13: 1,1 | AN13: 1,1 | AO13: 1,07 | AP13: 1,09 | AQ13: 1,06 | AR13: 1,07 | AS13: 1,05 | AT13: 1,06 | AU13: 1,06 | AV13: 1,05 | AW13: 1,04 | AX13: 1,06 | AY13: 1,03 | AZ13: 1,01 | BA13: 1,04 | BB13: 0,98 | BC13: 0,98 | BD13: 0,96 | BE13: 0,96 | BF13: 0,96 | BG13: 0,96 | BH13: 0,95 | BI13: 0,97 | BJ13: 0,97 | BK13: 0,99 | BL13: 1 | BM13: 1,04 | BN13: 1,11 | BO13: 1,13 | BP13: 1.13 | BQ13: 1.13 | BR13: 1.13 | BS13: 1.11 | BT13: 1.15 | BU13: 1.16 | BV13: 1.18 | BW13: 1.17 | BX13: 1.19 | BY13: 1.15
A14: 1139 | B14: Dresden, Stadt / Dresden | C14: 1139 | D14: 1,05 | E14: 1,02 | F14: 1,02 | G14: 1,06 | H14: 1,05 | I14: 1,04 | J14: 1,04 | K14: 1,04 | L14: 1,07 | M14: 1,06 | N14: 1,08 | O14: 1,07 | P14: 1,05 | Q14: 1,05 | R14: 1,04 | S14: 1,01 | T14: 0,98 | U14: 0,99 | V14: 0,99 | W14: 0,98 | X14: 0,95 | Y14: 0,95 | Z14: 0,94 | AA14: 0,91 | AB14: 0,95 | AC14: 0,95 | AD14: 0,95 | AE14: 0,97 | AF14: 1,01 | AG14: 1,02 | AH14: 1,01 | AI14: 1,01 | AJ14: 1,04 | AK14: 1,06 | AL14: 1,04 | AM14: 1,13 | AN14: 1,14 | AO14: 1,1 | AP14: 1,13 | AQ14: 1,09 | AR14: 1,09 | AS14: 1,08 | AT14: 1,09 | AU14: 1,09 | AV14: 1,08 | AW14: 1,07 | AX14: 1,09 | AY14: 1,05 | AZ14: 1,04 | BA14: 1,07 | BB14: 1 | BC14: 1,01 | BD14: 0,99 | BE14: 0,99 | BF14: 0,99 | BG14: 0,99 | BH14: 0,97 | BI14: 1 | BJ14: 0,99 | BK14: 1,02 | BL14: 1,02 | BM14: 1,06 | BN14: 1,14 | BO14: 1,17 | BP14: 1.16 | BQ14: 1.17 | BR14: 1.16 | BS14: 1.15 | BT14: 1.18 | BU14: 1.20 | BV14: 1.22 | BW14: 1.21 | BX14: 1.23 | BY14: 1.19
A15: 1156 | B15: Dresden, Stadt / Dresden | C15: 1156 | D15: 0,93 | E15: 0,91 | F15: 0,91 | G15: 0,94 | H15: 0,94 | I15: 0.92 | J15: 0,92 | K15: 0,93 | L15: 0,95 | M15: 0,94 | N15: 0,95 | O15: 0,94 | P15: 0,92 | Q15: 0,92 | R15: 0,92 | S15: 0,89 | T15: 0,87 | U15: 0,88 | V15: 0,88 | W15: 0,88 | X15: 0,85 | Y15: 0,85 | Z15: 0,84 | AA15: 0,82 | AB15: 0,84 | AC15: 0,85 | AD15: 0,85 | AE15: 0,87 | AF15: 0,89 | AG15: 0,9 | AH15: 0,89 | AI15: 0,89 | AJ15: 0,91 | AK15: 0,93 | AL15: 0,92 | AM15: 0,98 | AN15: 0,99 | AO15: 0,96 | AP15: 0,98 | AQ15: 0,96 | AR15: 0,96 | AS15: 0,95 | AT15: 0,96 | AU15: 0,97 | AV15: 0,96 | AW15: 0,95 | AX15: 0,96 | AY15: 0,93 | AZ15: 0,92 | BA15: 0,95 | BB15: 0,9 | BC15: 0,9 | BD15: 0,88 | BE15: 0,88 | BF15: 0,89 | BG15: 0,88 | BH15: 0,87 | BI15: 0,89 | BJ15: 0,89 | BK15: 0,9 | BL15: 0,91 | BM15: 0,94 | BN15: 1 | BO15: 1,02 | BP15: 1.01 | BQ15: 1.02 | BR15: 1.01 | BS15: 1.00 | BT15: 1.02 | BU15: 1.03 | BV15: 1.05 | BW15: 1.04 | BX15: 1.06 | BY15: 1.03
A16: 1157 | B16: Dresden, Stadt / Dresden | C16: 1157 | D16: 1,03 | E16: 1 | F16: 1 | G16: 1,04 | H16: 1,04 | I16: 1,02 | J16: 1,02 | K16: 1,02 | L16: 1,05 | M16: 1,04 | N16: 1,06 | O16: 1,04 | P16: 1,03 | Q16: 1,02 | R16: 1,02 | S16: 0,99 | T16: 0,96 | U16: 0,97 | V16: 0,97 | W16: 0,96 | X16: 0,94 | Y16: 0,93 | Z16: 0,92 | AA16: 0,89 | AB16: 0,93 | AC16: 0,93 | AD16: 0,93 | AE16: 0,96 | AF16: 0,99 | AG16: 1 | AH16: 0,99 | AI16: 0,99 | AJ16: 1,02 | AK16: 1,04 | AL16: 1,02 | AM16: 1,1 | AN16: 1,11 | AO16: 1,08 | AP16: 1,1 | AQ16: 1,07 | AR16: 1,07 | AS16: 1,06 | AT16: 1,07 | AU16: 1,07 | AV16: 1,06 | AW16: 1,05 | AX16: 1,07 | AY16: 1,03 | AZ16: 1,02 | BA16: 1,05 | BB16: 0,99 | BC16: 0,99 | BD16: 0,97 | BE16: 0,97 | BF16: 0,97 | BG16: 0,97 | BH16: 0,96 | BI16: 0,98 | BJ16: 0,98 | BK16: 1 | BL16: 1,01 | BM16: 1,04 | BN16: 1,12 | BO16: 1,14 | BP16: 1.13 | BQ16: 1.14 | BR16: 1.13 | BS16: 1.12 | BT16: 1.15 | BU16: 1.17 | BV16: 1.19 | BW16: 1.18 | BX16: 1.20 | BY16: 1.16
A17: 1159 | B17: Dresden, Stadt / Dresden | C17: 1159 | D17: 1,05 | E17: 1,02 | F17: 1,02 | G17: 1,06 | H17: 1,05 | I17: 1,04 | J17: 1,04 | K17: 1,05 | L17: 1,07 | M17: 1,06 | N17: 1,08 | O17: 1,07 | P17: 1,05 | Q17: 1,05 | R17: 1,05 | S17: 1,01 | T17: 0,98 | U17: 0,99 | V17: 0,99 | W17: 0,98 | X17: 0,96 | Y17: 0,95 | Z17: 0,94 | AA17: 0,91 | AB17: 0,95 | AC17: 0,95 | AD17: 0,95 | AE17: 0,98 | AF17: 1,01 | AG17: 1,02 | AH17: 1,01 | AI17: 1,01 | AJ17: 1,04 | AK17: 1,07 | AL17: 1,05 | AM17: 1,13 | AN17: 1,14 | AO17: 1,11 | AP17: 1,13 | AQ17: 1,1 | AR17: 1,1 | AS17: 1,08 | AT17: 1,09 | AU17: 1,1 | AV17: 1,08 | AW17: 1,07 | AX17: 1,09 | AY17: 1,05 | AZ17: 1,04 | BA17: 1,07 | BB17: 1 | BC17: 1 | BD17: 0,99 | BE17: 0,99 | BF17: 0,99 | BG17: 0,99 | BH17: 0,97 | BI17: 0,99 | BJ17: 0,99 | BK17: 1,01 | BL17: 1,02 | BM17: 1,07 | BN17: 1,14 | BO17: 1,17 | BP17: 1.16 | BQ17: 1.17 | BR17: 1.17 | BS17: 1.15 | BT17: 1.19 | BU17: 1.20 | BV17: 1.22 | BW17: 1.21 | BX17: 1.23 | BY17: 1.19
A18: 1169 | B18: Dresden, Stadt / Dresden | C18: 1169 | D18: 0,99 | E18: 0,96 | F18: 0,96 | G18: 1 | H18: 0,99 | I18: 0,98 | J18: 0,98 | K18: 0,98 | L18: 1 | M18: 0,99 | N18: 1,01 | O18: 1 | P18: 0,98 | Q18: 0,98 | R18: 0,98 | S18: 0,95 | T18: 0,92 | U18: 0,93 | V18: 0,93 | W18: 0,93 | X18: 0,9 | Y18: 0,9 | Z18: 0,89 | AA18: 0,86 | AB18: 0,89 | AC18: 0,89 | AD18: 0,9 | AE18: 0,92 | AF18: 0,95 | AG18: 0,96 | AH18: 0,94 | AI18: 0,95 | AJ18: 0,97 | AK18: 0,99 | AL18: 0,98 | AM18: 1,05 | AN18: 1,06 | AO18: 1,03 | AP18: 1,05 | AQ18: 1,02 | AR18: 1,02 | AS18: 1,01 | AT18: 1,02 | AU18: 1,03 | AV18: 1,02 | AW18: 1 | AX18: 1,02 | AY18: 0,99 | AZ18: 0,98 | BA18: 1 | BB18: 0,95 | BC18: 0,95 | BD18: 0,93 | BE18: 0,93 | BF18: 0,93 | BG18: 0,93 | BH18: 0,92 | BI18: 0,94 | BJ18: 0,94 | BK18: 0,96 | BL18: 0,96 | BM18: 1 | BN18: 1,07 | BO18: 1,09 | BP18: 1.08 | BQ18: 1.09 | BR18: 1.08 | BS18: 1.07 | BT18: 1.10 | BU18: 1.11 | BV18: 1.13 | BW18: 1.12 | BX18: 1.14 | BY18: 1.10
A19: 1187 | B19: Dresden, Stadt / Dresden | C19: 1187 | D19: 1,03 | E19: 1,01 | F19: 1,01 | G19: 1,04 | H19: 1,04 | I19: 1,03 | J19: 1,03 | K19: 1,03 | L19: 1,06 | M19: 1,04 | N19: 1,06 | O19: 1,05 | P19: 1,04 | Q19: 1,03 | R19: 1,03 | S19: 1 | T19: 0,97 | U19: 0,97 | V19: 0,97 | W19: 0,97 | X19: 0,94 | Y19: 0,94 | Z19: 0,93 | AA19: 0,9 | AB19: 0,93 | AC19: 0,93 | AD19: 0,94 | AE19: 0,96 | AF19: 1 | AG19: 1,01 | AH19: 1 | AI19: 1 | AJ19: 1,03 | AK19: 1,05 | AL19: 1,03 | AM19: 1,11 | AN19: 1,12 | AO19: 1,09 | AP19: 1,11 | AQ19: 1,08 | AR19: 1,08 | AS19: 1,07 | AT19: 1,08 | AU19: 1,08 | AV19: 1,07 | AW19: 1,06 | AX19: 1,07 | AY19: 1,04 | AZ19: 1,02 | BA19: 1,05 | BB19: 0,99 | BC19: 0,99 | BD19: 0,98 | BE19: 0,97 | BF19: 0,98 | BG19: 0,97 | BH19: 0,96 | BI19: 0,98 | BJ19: 0,98 | BK19: 1 | BL19: 1,01 | BM19: 1,05 | BN19: 1,13 | BO19: 1,15 | BP19: 1.14 | BQ19: 1.15 | BR19: 1.14 | BS19: 1.13 | BT19: 1.16 | BU19: 1.18 | BV19: 1.20 | BW19: 1.19 | BX19: 1.21 | BY19: 1.17
A20: 1189 | B20: Dresden, Stadt / Dresden | C20: 1189 | D20: 0,97 | E20: 0,94 | F20: 0,94 | G20: 0,98 | H20: 0,97 | I20: 0,96 | J20: 0,96 | K20: 0,96 | L20: 0,99 | M20: 0,98 | N20: 0,99 | O20: 0,98 | P20: 0,97 | Q20: 0,96 | R20: 0,96 | S20: 0,93 | T20: 0,91 | U20: 0,91 | V20: 0,92 | W20: 0,91 | X20: 0,89 | Y20: 0,88 | Z20: 0,87 | AA20: 0,84 | AB20: 0,88 | AC20: 0,88 | AD20: 0,88 | AE20: 0,9 | AF20: 0,93 | AG20: 0,94 | AH20: 0,93 | AI20: 0,93 | AJ20: 0,96 | AK20: 0,98 | AL20: 0,96 | AM20: 1,03 | AN20: 1,04 | AO20: 1,01 | AP20: 1,03 | AQ20: 1 | AR20: 1 | AS20: 0,99 | AT20: 1 | AU20: 1,01 | AV20: 1 | AW20: 0,99 | AX20: 1 | AY20: 0,97 | AZ20: 0,96 | BA20: 0,98 | BB20: 0,93 | BC20: 0,93 | BD20: 0,91 | BE20: 0,91 | BF20: 0,92 | BG20: 0,92 | BH20: 0,9 | BI20: 0,92 | BJ20: 0,92 | BK20: 0,94 | BL20: 0,95 | BM20: 0,98 | BN20: 1,05 | BO20: 1,07 | BP20: 1.06 | BQ20: 1.06 | BR20: 1.06 | BS20: 1.05 | BT20: 1.07 | BU20: 1.09 | BV20: 1.10 | BW20: 1.10 | BX20: 1.11 | BY20: 1.08
A21: 1217 | B21: Dresden, Stadt / Dresden | C21: 1217 | D21: 1,01 | E21: 0,99 | F21: 0,99 | G21: 1,02 | H21: 1,02 | I21: 1,01 | J21: 1,01 | K21: 1,01 | L21: 1,03 | M21: 1,02 | N21: 1,04 | O21: 1,03 | P21: 1,01 | Q21: 1,01 | R21: 1,01 | S21: 0,98 | T21: 0,95 | U21: 0,96 | V21: 0,96 | W21: 0,95 | X21: 0,92 | Y21: 0,92 | Z21: 0,91 | AA21: 0,88 | AB21: 0,92 | AC21: 0,92 | AD21: 0,92 | AE21: 0,94 | AF21: 0,97 | AG21: 0,98 | AH21: 0,97 | AI21: 0,97 | AJ21: 1 | AK21: 1,02 | AL21: 1,01 | AM21: 1,08 | AN21: 1,09 | AO21: 1,06 | AP21: 1,08 | AQ21: 1,05 | AR21: 1,06 | AS21: 1,04 | AT21: 1,05 | AU21: 1,06 | AV21: 1,05 | AW21: 1,03 | AX21: 1,05 | AY21: 1,02 | AZ21: 1,01 | BA21: 1,03 | BB21: 0,97 | BC21: 0,97 | BD21: 0,96 | BE21: 0,96 | BF21: 0,96 | BG21: 0,96 | BH21: 0,95 | BI21: 0,96 | BJ21: 0,96 | BK21: 0,98 | BL21: 0,99 | BM21: 1,03 | BN21: 1,1 | BO21: 1,12 | BP21: 1.12 | BQ21: 1.12 | BR21: 1.12 | BS21: 1.10 | BT21: 1.13 | BU21: 1.15 | BV21: 1.17 | BW21: 1.16 | BX21: 1.18 | BY21: 1.14
A22: 1219 | B22: Dresden, Stadt / Dresden | C22: 1219 | D22: 1,04 | E22: 1,01 | F22: 1,01 | G22: 1,05 | H22: 1,04 | I22: 1,03 | J22: 1,03 | K22: 1,03 | L22: 1,06 | M22: 1,05 | N22: 1,07 | O22: 1,06 | P22: 1,04 | Q22: 1,04 | R22: 1,03 | S22: 1 | T22: 0,97 | U22: 0,98 | V22: 0,98 | W22: 0,97 | X22: 0,95 | Y22: 0,94 | Z22: 0,93 | AA22: 0,9 | AB22: 0,94 | AC22: 0,94 | AD22: 0,94 | AE22: 0,97 | AF22: 1 | AG22: 1,01 | AH22: 1 | AI22: 1 | AJ22: 1,03 | AK22: 1,05 | AL22: 1,03 | AM22: 1,12 | AN22: 1,13 | AO22: 1,09 | AP22: 1,11 | AQ22: 1,08 | AR22: 1,08 | AS22: 1,07 | AT22: 1,08 | AU22: 1,08 | AV22: 1,07 | AW22: 1,06 | AX22: 1,08 | AY22: 1,04 | AZ22: 1,03 | BA22: 1,06 | BB22: 1 | BC22: 1 | BD22: 0,98 | BE22: 0,98 | BF22: 0,98 | BG22: 0,98 | BH22: 0,97 | BI22: 0,99 | BJ22: 0,99 | BK22: 1,01 | BL22: 1,02 | BM22: 1,05 | BN22: 1,13 | BO22: 1,15 | BP22: 1.15 | BQ22: 1.15 | BR22: 1.15 | BS22: 1.14 | BT22: 1.17 | BU22: 1.19 | BV22: 1.20 | BW22: 1.20 | BX22: 1.22 | BY22: 1.18
A23: 1237 | B23: Dresden, Stadt / Dresden | C23: 1237 | D23: 1,05 | E23: 1,02 | F23: 1,02 | G23: 1,07 | H23: 1,06 | I23: 1,05 | J23: 1,05 | K23: 1,05 | L23: 1,08 | M23: 1,07 | N23: 1,09 | O23: 1,07 | P23: 1,06 | Q23: 1,05 | R23: 1,05 | S23: 1,02 | T23: 0,99 | U23: 0,99 | V23: 0,99 | W23: 0,99 | X23: 0,96 | Y23: 0,96 | Z23: 0,94 | AA23: 0,91 | AB23: 0,95 | AC23: 0,95 | AD23: 0,95 | AE23: 0,98 | AF23: 1,01 | AG23: 1,03 | AH23: 1,02 | AI23: 1,02 | AJ23: 1,05 | AK23: 1,07 | AL23: 1,05 | AM23: 1,14 | AN23: 1,15 | AO23: 1,11 | AP23: 1,14 | AQ23: 1,1 | AR23: 1,1 | AS23: 1,09 | AT23: 1,1 | AU23: 1,1 | AV23: 1,09 | AW23: 1,08 | AX23: 1,09 | AY23: 1,06 | AZ23: 1,05 | BA23: 1,08 | BB23: 1,01 | BC23: 1,01 | BD23: 1 | BE23: 0,99 | BF23: 0,99 | BG23: 0,99 | BH23: 0,98 | BI23: 1 | BJ23: 1 | BK23: 1,02 | BL23: 1,03 | BM23: 1,07 | BN23: 1,15 | BO23: 1,17 | BP23: 1.17 | BQ23: 1.17 | BR23: 1.17 | BS23: 1.16 | BT23: 1.19 | BU23: 1.21 | BV23: 1.23 | BW23: 1.22 | BX23: 1.24 | BY23: 1.20
A24: 1239 | B24: Dresden, Stadt / Dresden | C24: 1239 | D24: 1 | E24: 0,98 | F24: 0,98 | G24: 1,01 | H24: 1,01 | I24: 0,99 | J24: 0,99 | K24: 1 | L24: 1,02 | M24: 1,01 | N24: 1,02 | O24: 1,01 | P24: 1 | Q24: 0,99 | R24: 0,99 | S24: 0,96 | T24: 0,94 | U24: 0,94 | V24: 0,95 | W24: 0,94 | X24: 0,91 | Y24: 0,91 | Z24: 0,9 | AA24: 0,87 | AB24: 0,9 | AC24: 0,9 | AD24: 0,91 | AE24: 0,93 | AF24: 0,96 | AG24: 0,97 | AH24: 0,96 | AI24: 0,96 | AJ24: 0,99 | AK24: 1,01 | AL24: 0,99 | AM24: 1,06 | AN24: 1,07 | AO24: 1,04 | AP24: 1,06 | AQ24: 1,04 | AR24: 1,04 | AS24: 1,03 | AT24: 1,04 | AU24: 1,04 | AV24: 1,03 | AW24: 1,02 | AX24: 1,03 | AY24: 1,01 | AZ24: 0,99 | BA24: 1,02 | BB24: 0,96 | BC24: 0,96 | BD24: 0,95 | BE24: 0,95 | BF24: 0,95 | BG24: 0,95 | BH24: 0,94 | BI24: 0,95 | BJ24: 0,95 | BK24: 0,97 | BL24: 0,98 | BM24: 1,01 | BN24: 1,09 | BO24: 1,1 | BP24: 1.1 | BQ24: 1.1 | BR24: 1.1 | BS24: 1.08 | BT24: 1.11 | BU24: 1.13 | BV24: 1.14 | BW24: 1.14 | BX24: 1.16 | BY24: 1.12
A25: 1257 | B25: Dresden, Stadt / Dresden | C25: 1257 | D25: 1,04 | E25: 1,01 | F25: 1,01 | G25: 1,05 | H25: 1,04 | I25: 1,03 | J25: 1,03 | K25: 1,03 | L25: 1,06 | M25: 1,05 | N25: 1,07 | O25: 1,05 | P25: 1,04 | Q25: 1,03 | R25: 1,03 | S25: 1 | T25: 0,97 | U25: 0,98 | V25: 0,98 | W25: 0,97 | X25: 0,94 | Y25: 0,94 | Z25: 0,93 | AA25: 0,9 | AB25: 0,94 | AC25: 0,94 | AD25: 0,94 | AE25: 0,96 | AF25: 1 | AG25: 1,01 | AH25: 1 | AI25: 1 | AJ25: 1,03 | AK25: 1,05 | AL25: 1,03 | AM25: 1,11 | AN25: 1,12 | AO25: 1,09 | AP25: 1,11 | AQ25: 1,08 | AR25: 1,08 | AS25: 1,07 | AT25: 1,08 | AU25: 1,08 | AV25: 1,07 | AW25: 1,06 | AX25: 1,07 | AY25: 1,04 | AZ25: 1,03 | BA25: 1,06 | BB25: 1 | BC25: 1 | BD25: 0,98 | BE25: 0,98 | BF25: 0,98 | BG25: 0,98 | BH25: 0,97 | BI25: 0,99 | BJ25: 0,98 | BK25: 1,01 | BL25: 1,01 | BM25: 1,05 | BN25: 1,13 | BO25: 1,15 | BP25: 1.14 | BQ25: 1.15 | BR25: 1.15 | BS25: 1.13 | BT25: 1.17 | BU25: 1.18 | BV25: 1.20 | BW25: 1.19 | BX25: 1.21 | BY25: 1.17
A26: 1259 | B26: Dresden, Stadt / Dresden | C26: 1259 | D26: 1,04 | E26: 1,01 | F26: 1,01 | G26: 1,05 | H26: 1,05 | I26: 1,03 | J26: 1,04 | K26: 1,04 | L26: 1,07 | M26: 1,05 | N26: 1,07 | O26: 1,06 | P26: 1,04 | Q26: 1,04 | R26: 1,04 | S26: 1 | T26: 0,98 | U26: 0,98 | V26: 0,98 | W26: 0,98 | X26: 0,95 | Y26: 0,95 | Z26: 0,93 | AA26: 0,9 | AB26: 0,94 | AC26: 0,94 | AD26: 0,94 | AE26: 0,97 | AF26: 1 | AG26: 1,01 | AH26: 1 | AI26: 1 | AJ26: 1,03 | AK26: 1,06 | AL26: 1,04 | AM26: 1,12 | AN26: 1,13 | AO26: 1,1 | AP26: 1,12 | AQ26: 1,09 | AR26: 1,09 | AS26: 1,07 | AT26: 1,08 | AU26: 1,09 | AV26: 1,08 | AW26: 1,06 | AX26: 1,08 | AY26: 1,05 | AZ26: 1,03 | BA26: 1,06 | BB26: 1 | BC26: 1 | BD26: 0,99 | BE26: 0,98 | BF26: 0,98 | BG26: 0,98 | BH26: 0,97 | BI26: 0,99 | BJ26: 0,99 | BK26: 1,01 | BL26: 1,02 | BM26: 1,06 | BN26: 1,14 | BO26: 1,16 | BP26: 1.15 | BQ26: 1.16 | BR26: 1.15 | BS26: 1.14 | BT26: 1.17 | BU26: 1.19 | BV26: 1.21 | BW26: 1.20 | BX26: 1.22 | BY26: 1.18
A27: 1277 | B27: Dresden, Stadt / Dresden | C27: 1277 | D27: 1,06 | E27: 1,03 | F27: 1,03 | G27: 1,07 | H27: 1,07 | I27: 1,06 | J27: 1,06 | K27: 1,06 | L27: 1,09 | M27: 1,08 | N27: 1,1 | O27: 1,08 | P27: 1,07 | Q27: 1,06 | R27: 1,06 | S27: 1,03 | T27: 0,99 | U27: 1 | V27: 1 | W27: 0,99 | X27: 0,97 | Y27: 0,96 | Z27: 0,95 | AA27: 0,92 | AB27: 0,96 | AC27: 0,96 | AD27: 0,96 | AE27: 0,99 | AF27: 1,02 | AG27: 1,04 | AH27: 1,03 | AI27: 1,03 | AJ27: 1,06 | AK27: 1,08 | AL27: 1,07 | AM27: 1,15 | AN27: 1,16 | AO27: 1,13 | AP27: 1,15 | AQ27: 1,11 | AR27: 1,11 | AS27: 1,1 | AT27: 1,11 | AU27: 1,11 | AV27: 1,1 | AW27: 1,09 | AX27: 1,1 | AY27: 1,07 | AZ27: 1,05 | BA27: 1,08 | BB27: 1,02 | BC27: 1,02 | BD27: 1 | BE27: 1 | BF27: 1 | BG27: 1 | BH27: 0,99 | BI27: 1,01 | BJ27: 1 | BK27: 1,03 | BL27: 1,04 | BM27: 1,08 | BN27: 1,16 | BO27: 1,19 | BP27: 1.18 | BQ27: 1.19 | BR27: 1.18 | BS27: 1.17 | BT27: 1.21 | BU27: 1.23 | BV27: 1.24 | BW27: 1.23 | BX27: 1.26 | BY27: 1.21
A28: 1279 | B28: Dresden, Stadt / Dresden | C28: 1279 | D28: 1,05 | E28: 1,02 | F28: 1,02 | G28: 1,06 | H28: 1,06 | I28: 1,04 | J28: 1,05 | K28: 1,05 | L28: 1,08 | M28: 1,06 | N28: 1,08 | O28: 1,07 | P28: 1,06 | Q28: 1,05 | R28: 1,05 | S28: 1,01 | T28: 0,98 | U28: 0,99 | V28: 0,99 | W28: 0,98 | X28: 0,96 | Y28: 0,95 | Z28: 0,94 | AA28: 0,91 | AB28: 0,95 | AC28: 0,95 | AD28: 0,95 | AE28: 0,98 | AF28: 1,01 | AG28: 1,02 | AH28: 1,01 | AI28: 1,01 | AJ28: 1,04 | AK28: 1,07 | AL28: 1,05 | AM28: 1,13 | AN28: 1,14 | AO28: 1,11 | AP28: 1,13 | AQ28: 1,1 | AR28: 1,1 | AS28: 1,09 | AT28: 1,09 | AU28: 1,1 | AV28: 1,09 | AW28: 1,07 | AX28: 1,09 | AY28: 1,06 | AZ28: 1,04 | BA28: 1,07 | BB28: 1,01 | BC28: 1,01 | BD28: 0,99 | BE28: 0,99 | BF28: 0,99 | BG28: 0,99 | BH28: 0,98 | BI28: 1 | BJ28: 1 | BK28: 1,02 | BL28: 1,03 | BM28: 1,07 | BN28: 1,15 | BO28: 1,17 | BP28: 1.16 | BQ28: 1.17 | BR28: 1.17 | BS28: 1.15 | BT28: 1.19 | BU28: 1.20 | BV28: 1.22 | BW28: 1.21 | BX28: 1.23 | BY28: 1.19
A29: 1307 | B29: Dresden, Stadt / Dresden | C29: 1307 | D29: 1,05 | E29: 1,02 | F29: 1,02 | G29: 1,07 | H29: 1,06 | I29: 1,05 | J29: 1,05 | K29: 1,05 | L29: 1,08 | M29: 1,07 | N29: 1,09 | O29: 1,07 | P29: 1,06 | Q29: 1,05 | R29: 1,05 | S29: 1,02 | T29: 0,99 | U29: 0,99 | V29: 0,99 | W29: 0,99 | X29: 0,96 | Y29: 0,96 | Z29: 0,94 | AA29: 0,91 | AB29: 0,95 | AC29: 0,95 | AD29: 0,95 | AE29: 0,98 | AF29: 1,01 | AG29: 1,03 | AH29: 1,02 | AI29: 1,02 | AJ29: 1,05 | AK29: 1,07 | AL29: 1,05 | AM29: 1,14 | AN29: 1,15 | AO29: 1,12 | AP29: 1,14 | AQ29: 1,1 | AR29: 1,1 | AS29: 1,09 | AT29: 1,1 | AU29: 1,1 | AV29: 1,09 | AW29: 1,08 | AX29: 1,09 | AY29: 1,06 | AZ29: 1,04 | BA29: 1,07 | BB29: 1,01 | BC29: 1,01 | BD29: 0,99 | BE29: 0,99 | BF29: 0,99 | BG29: 0,99 | BH29: 0,98 | BI29: 1 | BJ29: 1 | BK29: 1,02 | BL29: 1,03 | BM29: 1,07 | BN29: 1,15 | BO29: 1,18 | BP29: 1.17 | BQ29: 1.17 | BR29: 1.17 | BS29: 1.16 | BT29: 1.19 | BU29: 1.21 | BV29: 1.23 | BW29: 1.22 | BX29: 1.24 | BY29: 1.20
A30: 1309 | B30: Dresden, Stadt / Dresden | C30: 1309 | D30: 1,05 | E30: 1,03 | F30: 1,03 | G30: 1,07 | H30: 1,06 | I30: 1,05 | J30: 1,05 | K30: 1,05 | L30: 1,08 | M30: 1,07 | N30: 1,09 | O30: 1,08 | P30: 1,06 | Q30: 1,06 | R30: 1,06 | S30: 1,02 | T30: 0,99 | U30: 1 | V30: 0,99 | W30: 0,99 | X30: 0,96 | Y30: 0,96 | Z30: 0,94 | AA30: 0,91 | AB30: 0,95 | AC30: 0,95 | AD30: 0,96 | AE30: 0,98 | AF30: 1,02 | AG30: 1,03 | AH30: 1,02 | AI30: 1,02 | AJ30: 1,05 | AK30: 1,08 | AL30: 1,06 | AM30: 1,14 | AN30: 1,15 | AO30: 1,12 | AP30: 1,14 | AQ30: 1,11 | AR30: 1,11 | AS30: 1,09 | AT30: 1,1 | AU30: 1,1 | AV30: 1,09 | AW30: 1,08 | AX30: 1,1 | AY30: 1,06 | AZ30: 1,05 | BA30: 1,08 | BB30: 1,01 | BC30: 1,01 | BD30: 1 | BE30: 1 | BF30: 1 | BG30: 1 | BH30: 0,98 | BI30: 1 | BJ30: 1 | BK30: 1,02 | BL30: 1,03 | BM30: 1,07 | BN30: 1,15 | BO30: 1,18 | BP30: 1.17 | BQ30: 1.18 | BR30: 1.17 | BS30: 1.16 | BT30: 1.20 | BU30: 1.22 | BV30: 1.23 | BW30: 1.23 | BX30: 1.25 | BY30: 1.21
A31: 1324 | B31: Dresden, Stadt / Dresden | C31: 1324 | D31: 0,94 | E31: 0,92 | F31: 0,92 | G31: 0,95 | H31: 0,95 | I31: 0,93 | J31: 0,93 | K31: 0,94 | L31: 0,96 | M31: 0,95 | N31: 0,96 | O31: 0,95 | P31: 0,94 | Q31: 0,93 | R31: 0,93 | S31: 0,9 | T31: 0,88 | U31: 0,89 | V31: 0,89 | W31: 0,88 | X31: 0,86 | Y31: 0,86 | Z31: 0,85 | AA31: 0,82 | AB31: 0,85 | AC31: 0,85 | AD31: 0,86 | AE31: 0,88 | AF31: 0,9 | AG31: 0,91 | AH31: 0,9 | AI31: 0,9 | AJ31: 0,93 | AK31: 0,94 | AL31: 0,93 | AM31: 1 | AN31: 1 | AO31: 0,98 | AP31: 0,99 | AQ31: 0,97 | AR31: 0,97 | AS31: 0,96 | AT31: 0,97 | AU31: 0,98 | AV31: 0,97 | AW31: 0,96 | AX31: 0,97 | AY31: 0,94 | AZ31: 0,93 | BA31: 0,96 | BB31: 0,9 | BC31: 0,9 | BD31: 0,89 | BE31: 0,89 | BF31: 0,89 | BG31: 0,89 | BH31: 0,88 | BI31: 0,9 | BJ31: 0,89 | BK31: 0,91 | BL31: 0,92 | BM31: 0,95 | BN31: 1,02 | BO31: 1,03 | BP31: 1.03 | BQ31: 1.03 | BR31: 1.03 | BS31: 1.01 | BT31: 1.04 | BU31: 1.05 | BV31: 1.06 | BW31: 1.06 | BX31: 1.07 | BY31: 1.04
A32: 1326 | B32: Dresden, Stadt / Dresden | C32: 1326 | D32: 1,04 | E32: 1,01 | F32: 1,01 | G32: 1,05 | H32: 1,04 | I32: 1,03 | J32: 1,03 | K32: 1,03 | L32: 1,06 | M32: 1,05 | N32: 1,06 | O32: 1,05 | P32: 1,04 | Q32: 1,03 | R32: 1,03 | S32: 1 | T32: 0,97 | U32: 0,98 | V32: 0,98 | W32: 0,97 | X32: 0,94 | Y32: 0,94 | Z32: 0,93 | AA32: 0,9 | AB32: 0,94 | AC32: 0,93 | AD32: 0,94 | AE32: 0,96 | AF32: 0,99 | AG32: 1 | AH32: 1 | AI32: 1 | AJ32: 1,03 | AK32: 1,05 | AL32: 1,03 | AM32: 1,11 | AN32: 1,12 | AO32: 1,09 | AP32: 1,11 | AQ32: 1,08 | AR32: 1,08 | AS32: 1,07 | AT32: 1,08 | AU32: 1,08 | AV32: 1,07 | AW32: 1,06 | AX32: 1,07 | AY32: 1,04 | AZ32: 1,03 | BA32: 1,06 | BB32: 1 | BC32: 1 | BD32: 0,98 | BE32: 0,98 | BF32: 0,98 | BG32: 0,98 | BH32: 0,97 | BI32: 0,99 | BJ32: 0,99 | BK32: 1,01 | BL32: 1,01 | BM32: 1,05 | BN32: 1,13 | BO32: 1,15 | BP32: 1.14 | BQ32: 1.15 | BR32: 1.14 | BS32: 1.13 | BT32: 1.16 | BU32: 1.18 | BV32: 1.20 | BW32: 1.19 | BX32: 1.21 | BY32: 1.17
A33: 1328 | B33: Dresden, Stadt / Dresden | C33: 1328 | D33: 0,91 | E33: 0,89 | F33: 0,89 | G33: 0,91 | H33: 0,91 | I33: 0,9 | J33: 0,9 | K33: 0,9 | L33: 0,92 | M33: 0,91 | N33: 0,92 | O33: 0,91 | P33: 0,9 | Q33: 0,89 | R33: 0,89 | S33: 0,87 | T33: 0,85 | U33: 0,86 | V33: 0,86 | W33: 0,85 | X33: 0,83 | Y33: 0,83 | Z33: 0,82 | AA33: 0,79 | AB33: 0,82 | AC33: 0,82 | AD33: 0,83 | AE33: 0,84 | AF33: 0,87 | AG33: 0,87 | AH33: 0,86 | AI33: 0,86 | AJ33: 0,89 | AK33: 0,9 | AL33: 0,89 | AM33: 0,95 | AN33: 0,96 | AO33: 0,93 | AP33: 0,95 | AQ33: 0,93 | AR33: 0,93 | AS33: 0,93 | AT33: 0,93 | AU33: 0,94 | AV33: 0,93 | AW33: 0,92 | AX33: 0,93 | AY33: 0,91 | AZ33: 0,9 | BA33: 0,92 | BB33: 0,87 | BC33: 0,87 | BD33: 0,86 | BE33: 0,85 | BF33: 0,86 | BG33: 0,86 | BH33: 0,85 | BI33: 0,86 | BJ33: 0,86 | BK33: 0,88 | BL33: 0,89 | BM33: 0,92 | BN33: 0,97 | BO33: 0,99 | BP33: 0.98 | BQ33: 0.98 | BR33: 0.98 | BS33: 0.97 | BT33: 0.99 | BU33: 1.00 | BV33: 1.01 | BW33: 1.01 | BX33: 1.02 | BY33: 0.99
A34: 1445 | B34: Meißen / Radebeul | C34: 1445 | D34: 1,03 | E34: 1 | F34: 1 | G34: 1,04 | H34: 1,04 | I34: 1,02 | J34: 1,02 | K34: 1,03 | L34: 1,05 | M34: 1,04 | N34: 1,06 | O34: 1,05 | P34: 1,03 | Q34: 1,03 | R34: 1,02 | S34: 0,99 | T34: 0,96 | U34: 0,97 | V34: 0,97 | W34: 0,97 | X34: 0,94 | Y34: 0,94 | Z34: 0,92 | AA34: 0,89 | AB34: 0,93 | AC34: 0,93 | AD34: 0,93 | AE34: 0,96 | AF34: 0,99 | AG34: 1 | AH34: 0,99 | AI34: 0,99 | AJ34: 1,02 | AK34: 1,04 | AL34: 1,02 | AM34: 1,1 | AN34: 1,11 | AO34: 1,08 | AP34: 1,1 | AQ34: 1,07 | AR34: 1,07 | AS34: 1,06 | AT34: 1,07 | AU34: 1,07 | AV34: 1,06 | AW34: 1,05 | AX34: 1,07 | AY34: 1,04 | AZ34: 1,02 | BA34: 1,05 | BB34: 0,99 | BC34: 0,99 | BD34: 0,97 | BE34: 0,97 | BF34: 0,97 | BG34: 0,97 | BH34: 0,96 | BI34: 0,98 | BJ34: 0,98 | BK34: 1 | BL34: 1,01 | BM34: 1,04 | BN34: 1,12 | BO34: 1,14 | BP34: 1.14 | BQ34: 1.14 | BR34: 1.14 | BS34: 1.13 | BT34: 1.16 | BU34: 1.17 | BV34: 1.19 | BW34: 1.18 | BX34: 1.20 | BY34: 1.16
A35: 1454 | B35: Kamenz / Radeberg | C35: 1454 | D35: 0,94 | E35: 0,92 | F35: 0,92 | G35: 0,95 | H35: 0,95 | I35: 0,93 | J35: 0,93 | K35: 0,93 | L35: 0,96 | M35: 0,95 | N35: 0,96 | O35: 0,95 | P35: 0,93 | Q35: 0,93 | R35: 0,93 | S35: 0,9 | T35: 0,88 | U35: 0,89 | V35: 0,89 | W35: 0,88 | X35: 0,86 | Y35: 0,86 | Z35: 0,85 | AA35: 0,82 | AB35: 0,85 | AC35: 0,85 | AD35: 0,85 | AE35: 0,87 | AF35: 0,9 | AG35: 0,91 | AH35: 0,89 | AI35: 0,9 | AJ35: 0,92 | AK35: 0,94 | AL35: 0,93 | AM35: 0,99 | AN35: 1 | AO35: 0,97 | AP35: 0,99 | AQ35: 0,97 | AR35: 0,97 | AS35: 0,96 | AT35: 0,97 | AU35: 0,98 | AV35: 0,97 | AW35: 0,96 | AX35: 0,97 | AY35: 0,94 | AZ35: 0,93 | BA35: 0,96 | BB35: 0,9 | BC35: 0,9 | BD35: 0,89 | BE35: 0,89 | BF35: 0,89 | BG35: 0,89 | BH35: 0,88 | BI35: 0,9 | BJ35: 0,89 | BK35: 0,91 | BL35: 0,92 | BM35: 0,95 | BN35: 1,01 | BO35: 1,03 | BP35: 1.02 | BQ35: 1.03 | BR35: 1.02 | BS35: 1.01 | BT35: 1.03 | BU35: 1.05 | BV35: 1.06 | BW35: 1.05 | BX35: 1.07 | BY35: 1.04
A36: 1458 | B36: Kamenz / Ottendorf-Okrilla | C36: 1458 | D36: 0,97 | E36: 0,95 | F36: 0,95 | G36: 0,98 | H36: 0,98 | I36: 0,96 | J36: 0,96 | K36: 0,97 | L36: 0,99 | M36: 0,98 | N36: 0,99 | O36: 0,98 | P36: 0,96 | Q36: 0,96 | R36: 0,96 | S36: 0,93 | T36: 0,91 | U36: 0,91 | V36: 0,92 | W36: 0,91 | X36: 0,89 | Y36: 0,88 | Z36: 0,87 | AA36: 0,84 | AB36: 0,88 | AC36: 0,88 | AD36: 0,88 | AE36: 0,9 | AF36: 0,93 | AG36: 0,94 | AH36: 0,92 | AI36: 0,93 | AJ36: 0,95 | AK36: 0,97 | AL36: 0,96 | AM36: 1,03 | AN36: 1,03 | AO36: 1,01 | AP36: 1,03 | AQ36: 1 | AR36: 1,01 | AS36: 1 | AT36: 1 | AU36: 1,01 | AV36: 1 | AW36: 0,99 | AX36: 1 | AY36: 0,97 | AZ36: 0,96 | BA36: 0,99 | BB36: 0,93 | BC36: 0,93 | BD36: 0,92 | BE36: 0,92 | BF36: 0,92 | BG36: 0,92 | BH36: 0,91 | BI36: 0,93 | BJ36: 0,92 | BK36: 0,95 | BL36: 0,95 | BM36: 0,98 | BN36: 1,05 | BO36: 1,07 | BP36: 1.06 | BQ36: 1.06 | BR36: 1.06 | BS36: 1.05 | BT36: 1.07 | BU36: 1.09 | BV36: 1.10 | BW36: 1.09 | BX36: 1.11 | BY36: 1.08
A37: 1465 | B37: Meißen / Moritzburg | C37: 1465 | D37: 0,95 | E37: 0,93 | F37: 0,93 | G37: 0,96 | H37: 0,95 | I37: 0,94 | J37: 0,94 | K37: 0,94 | L37: 0,96 | M37: 0,95 | N37: 0,96 | O37: 0,95 | P37: 0,94 | Q37: 0,93 | R37: 0,93 | S37: 0,91 | T37: 0,89 | U37: 0,89 | V37: 0,89 | W37: 0,89 | X37: 0,86 | Y37: 0,86 | Z37: 0,85 | AA37: 0,83 | AB37: 0,86 | AC37: 0,86 | AD37: 0,86 | AE37: 0,88 | AF37: 0,91 | AG37: 0,91 | AH37: 0,9 | AI37: 0,9 | AJ37: 0,93 | AK37: 0,94 | AL37: 0,93 | AM37: 1 | AN37: 1 | AO37: 0,98 | AP37: 1 | AQ37: 0,97 | AR37: 0,98 | AS37: 0,97 | AT37: 0,98 | AU37: 0,98 | AV37: 0,97 | AW37: 0,96 | AX37: 0,97 | AY37: 0,95 | AZ37: 0,94 | BA37: 0,96 | BB37: 0,91 | BC37: 0,91 | BD37: 0,9 | BE37: 0,89 | BF37: 0,9 | BG37: 0,9 | BH37: 0,89 | BI37: 0,9 | BJ37: 0,9 | BK37: 0,92 | BL37: 0,93 | BM37: 0,96 | BN37: 1,02 | BO37: 1,04 | BP37: 1.03 | BQ37: 1.03 | BR37: 1.03 | BS37: 1.01 | BT37: 1.04 | BU37: 1.05 | BV37: 1.07 | BW37: 1.06 | BX37: 1.08 | BY37: 1.05
A38: 1468 | B38: Meißen / Moritzburg | C38: 1468 | D38: 0,97 | E38: 0,94 | F38: 0,94 | G38: 0,97 | H38: 0,97 | I38: 0,95 | J38: 0,95 | K38: 0,96 | L38: 0,98 | M38: 0,97 | N38: 0,98 | O38: 0,97 | P38: 0,96 | Q38: 0,95 | R38: 0,95 | S38: 0,92 | T38: 0,9 | U38: 0,91 | V38: 0,91 | W38: 0,9 | X38: 0,88 | Y38: 0,88 | Z38: 0,87 | AA38: 0,84 | AB38: 0,87 | AC38: 0,87 | AD38: 0,87 | AE38: 0,89 | AF38: 0,92 | AG38: 0,93 | AH38: 0,92 | AI38: 0,92 | AJ38: 0,94 | AK38: 0,96 | AL38: 0,95 | AM38: 1,02 | AN38: 1,02 | AO38: 1 | AP38: 1,02 | AQ38: 0,99 | AR38: 1 | AS38: 0,99 | AT38: 1 | AU38: 1 | AV38: 0,99 | AW38: 0,98 | AX38: 0,99 | AY38: 0,97 | AZ38: 0,96 | BA38: 0,98 | BB38: 0,93 | BC38: 0,93 | BD38: 0,91 | BE38: 0,91 | BF38: 0,92 | BG38: 0,91 | BH38: 0,9 | BI38: 0,92 | BJ38: 0,92 | BK38: 0,94 | BL38: 0,94 | BM38: 0,97 | BN38: 1,04 | BO38: 1,06 | BP38: 1.05 | BQ38: 1.05 | BR38: 1.05 | BS38: 1.04 | BT38: 1.06 | BU38: 1.08 | BV38: 1.09 | BW38: 1.08 | BX38: 1.10 | BY38: 1.07
A39: 1471 | B39: Meißen / Radeburg | C39: 1471 | D39: 0,99 | E39: 0,96 | F39: 0,96 | G39: 0,99 | H39: 0,99 | I39: 0,97 | J39: 0,97 | K39: 0,98 | L39: 1 | M39: 0,99 | N39: 1 | O39: 0,99 | P39: 0,98 | Q39: 0,97 | R39: 0,97 | S39: 0,94 | T39: 0,92 | U39: 0,92 | V39: 0,93 | W39: 0,92 | X39: 0,9 | Y39: 0,89 | Z39: 0,88 | AA39: 0,85 | AB39: 0,89 | AC39: 0,89 | AD39: 0,89 | AE39: 0,91 | AF39: 0,94 | AG39: 0,95 | AH39: 0,93 | AI39: 0,94 | AJ39: 0,96 | AK39: 0,98 | AL39: 0,97 | AM39: 1,04 | AN39: 1,05 | AO39: 1,02 | AP39: 1,04 | AQ39: 1,01 | AR39: 1,02 | AS39: 1,01 | AT39: 1,02 | AU39: 1,02 | AV39: 1,01 | AW39: 1 | AX39: 1,01 | AY39: 0,99 | AZ39: 0,97 | BA39: 1 | BB39: 0,94 | BC39: 0,94 | BD39: 0,93 | BE39: 0,93 | BF39: 0,93 | BG39: 0,93 | BH39: 0,92 | BI39: 0,94 | BJ39: 0,94 | BK39: 0,96 | BL39: 0,96 | BM39: 0,99 | BN39: 1,06 | BO39: 1,08 | BP39: 1.07 | BQ39: 1.08 | BR39: 1.07 | BS39: 1.06 | BT39: 1.09 | BU39: 1.10 | BV39: 1.11 | BW39: 1.11 | BX39: 1.13 | BY39: 1.09
A40: 1477 | B40: Kamenz / Arnsdorf | C40: 1477 | D40: 0,94 | E40: 0,91 | F40: 0,91 | G40: 0,94 | H40: 0,94 | I40: 0,92 | J40: 0,92 | K40: 0,93 | L40: 0,95 | M40: 0,94 | N40: 0,95 | O40: 0,94 | P40: 0,92 | Q40: 0,92 | R40: 0,92 | S40: 0,89 | T40: 0,87 | U40: 0,88 | V40: 0,88 | W40: 0,87 | X40: 0,85 | Y40: 0,85 | Z40: 0,84 | AA40: 0,81 | AB40: 0,84 | AC40: 0,84 | AD40: 0,85 | AE40: 0,87 | AF40: 0,89 | AG40: 0,9 | AH40: 0,89 | AI40: 0,89 | AJ40: 0,91 | AK40: 0,93 | AL40: 0,92 | AM40: 0,98 | AN40: 0,99 | AO40: 0,96 | AP40: 0,98 | AQ40: 0,96 | AR40: 0,96 | AS40: 0,95 | AT40: 0,96 | AU40: 0,97 | AV40: 0,96 | AW40: 0,95 | AX40: 0,96 | AY40: 0,93 | AZ40: 0,92 | BA40: 0,95 | BB40: 0,9 | BC40: 0,9 | BD40: 0,88 | BE40: 0,88 | BF40: 0,89 | BG40: 0,88 | BH40: 0,87 | BI40: 0,89 | BJ40: 0,89 | BK40: 0,91 | BL40: 0,91 | BM40: 0,94 | BN40: 1 | BO40: 1,02 | BP40: 1.01 | BQ40: 1.02 | BR40: 1.01 | BS40: 1.00 | BT40: 1.02 | BU40: 1.04 | BV40: 1.05 | BW40: 1.04 | BX40: 1.06 | BY40: 1.03
A41: 1558 | B41: Riesa-Großenhain / Großenhain | C41: 1558 | D41: 1,02 | E41: 1 | F41: 1 | G41: 1,03 | H41: 1,03 | I41: 1,01 | J41: 1,01 | K41: 1,02 | L41: 1,04 | M41: 1,03 | N41: 1,05 | O41: 1,03 | P41: 1,02 | Q41: 1,01 | R41: 1,01 | S41: 0,98 | T41: 0,95 | U41: 0,96 | V41: 0,96 | W41: 0,96 | X41: 0,93 | Y41: 0,93 | Z41: 0,91 | AA41: 0,88 | AB41: 0,92 | AC41: 0,92 | AD41: 0,92 | AE41: 0,95 | AF41: 0,98 | AG41: 0,99 | AH41: 0,98 | AI41: 0,98 | AJ41: 1,01 | AK41: 1,03 | AL41: 1,01 | AM41: 1,09 | AN41: 1,1 | AO41: 1,07 | AP41: 1,09 | AQ41: 1,06 | AR41: 1,06 | AS41: 1,05 | AT41: 1,06 | AU41: 1,06 | AV41: 1,05 | AW41: 1,04 | AX41: 1,05 | AY41: 1,02 | AZ41: 1,01 | BA41: 1,04 | BB41: 0,98 | BC41: 0,98 | BD41: 0,96 | BE41: 0,96 | BF41: 0,96 | BG41: 0,96 | BH41: 0,95 | BI41: 0,97 | BJ41: 0,97 | BK41: 0,99 | BL41: 1 | BM41: 1,03 | BN41: 1,11 | BO41: 1,13 | BP41: 1.12 | BQ41: 1.13 | BR41: 1.13 | BS41: 1.11 | BT41: 1.14 | BU41: 1.16 | BV41: 1.18 | BW41: 1.17 | BX41: 1.19 | BY41: 1.15
A42: 1561 | B42: Riesa-Großenhain / Schönfeld | C42: 1561 | D42: 0,98 | E42: 0,96 | F42: 0,96 | G42: 0,99 | H42: 0,99 | I42: 0,97 | J42: 0,97 | K42: 0,97 | L42: 1 | M42: 0,98 | N42: 1 | O42: 0,99 | P42: 0,97 | Q42: 0,97 | R42: 0,96 | S42: 0,94 | T42: 0,91 | U42: 0,92 | V42: 0,92 | W42: 0,92 | X42: 0,89 | Y42: 0,89 | Z42: 0,88 | AA42: 0,85 | AB42: 0,88 | AC42: 0,88 | AD42: 0,89 | AE42: 0,91 | AF42: 0,93 | AG42: 0,94 | AH42: 0,93 | AI42: 0,93 | AJ42: 0,96 | AK42: 0,98 | AL42: 0,96 | AM42: 1,03 | AN42: 1,04 | AO42: 1,01 | AP42: 1,03 | AQ42: 1,01 | AR42: 1,01 | AS42: 1 | AT42: 1,01 | AU42: 1,02 | AV42: 1,01 | AW42: 0,99 | AX42: 1,01 | AY42: 0,98 | AZ42: 0,97 | BA42: 1 | BB42: 0,94 | BC42: 0,94 | BD42: 0,93 | BE42: 0,92 | BF42: 0,93 | BG42: 0,93 | BH42: 0,92 | BI42: 0,93 | BJ42: 0,93 | BK42: 0,95 | BL42: 0,96 | BM42: 0,99 | BN42: 1,06 | BO42: 1,08 | BP42: 1.07 | BQ42: 1.07 | BR42: 1.07 | BS42: 1.05 | BT42: 1.08 | BU42: 1.10 | BV42: 1.11 | BW42: 1.10 | BX42: 1.12 | BY42: 1.09
A43: 1587 | B43: Riesa-Großenhain / Riesa | C43: 1587 | D43: 1,01 | E43: 0,98 | F43: 0,98 | G43: 1,02 | H43: 1,01 | I43: 1 | J43: 1 | K43: 1 | L43: 1,02 | M43: 1,01 | N43: 1,03 | O43: 1,02 | P43: 1 | Q43: 0,99 | R43: 0,99 | S43: 0,96 | T43: 0,94 | U43: 0,95 | V43: 0,95 | W43: 0,94 | X43: 0,92 | Y43: 0,91 | Z43: 0,9 | AA43: 0,87 | AB43: 0,91 | AC43: 0,91 | AD43: 0,91 | AE43: 0,93 | AF43: 0,96 | AG43: 0,97 | AH43: 0,96 | AI43: 0,96 | AJ43: 0,99 | AK43: 1,01 | AL43: 0,99 | AM43: 1,07 | AN43: 1,08 | AO43: 1,05 | AP43: 1,07 | AQ43: 1,04 | AR43: 1,04 | AS43: 1,03 | AT43: 1,04 | AU43: 1,04 | AV43: 1,03 | AW43: 1,02 | AX43: 1,04 | AY43: 1,01 | AZ43: 0,99 | BA43: 1,02 | BB43: 0,96 | BC43: 0,96 | BD43: 0,95 | BE43: 0,95 | BF43: 0,95 | BG43: 0,95 | BH43: 0,94 | BI43: 0,96 | BJ43: 0,96 | BK43: 0,98 | BL43: 0,98 | BM43: 1,02 | BN43: 1,09 | BO43: 1,11 | BP43: 1.1 | BQ43: 1.11 | BR43: 1.1 | BS43: 1.09 | BT43: 1.12 | BU43: 1.13 | BV43: 1.15 | BW43: 1.14 | BX43: 1.16 | BY43: 1.12
A44: 1589 | B44: Riesa-Großenhain / Riesa | C44: 1589 | D44: 1,02 | E44: 0,99 | F44: 0,99 | G44: 1,03 | H44: 1,02 | I44: 1,01 | J44: 1,01 | K44: 1,01 | L44: 1,03 | M44: 1,02 | N44: 1,04 | O44: 1,03 | P44: 1,01 | Q44: 1,01 | R44: 1 | S44: 0,97 | T44: 0,95 | U44: 0,96 | V44: 0,96 | W44: 0,95 | X44: 0,93 | Y44: 0,92 | Z44: 0,91 | AA44: 0,88 | AB44: 0,91 | AC44: 0,92 | AD44: 0,92 | AE44: 0,94 | AF44: 0,97 | AG44: 0,98 | AH44: 0,97 | AI44: 0,97 | AJ44: 1 | AK44: 1,02 | AL44: 1 | AM44: 1,08 | AN44: 1,09 | AO44: 1,06 | AP44: 1,08 | AQ44: 1,05 | AR44: 1,05 | AS44: 1,04 | AT44: 1,05 | AU44: 1,06 | AV44: 1,04 | AW44: 1,03 | AX44: 1,05 | AY44: 1,02 | AZ44: 1,01 | BA44: 1,03 | BB44: 0,97 | BC44: 0,97 | BD44: 0,96 | BE44: 0,96 | BF44: 0,96 | BG44: 0,96 | BH44: 0,95 | BI44: 0,97 | BJ44: 0,97 | BK44: 0,99 | BL44: 1 | BM44: 1,03 | BN44: 1,1 | BO44: 1,12 | BP44: 1.12 | BQ44: 1.12 | BR44: 1.12 | BS44: 1.10 | BT44: 1.13 | BU44: 1.15 | BV44: 1.16 | BW44: 1.15 | BX44: 1.17 | BY44: 1.14
A45: 1591 | B45: Riesa-Großenhain / Riesa | C45: 1591 | D45: 1,02 | E45: 0,99 | F45: 0,99 | G45: 1,03 | H45: 1,02 | I45: 1,01 | J45: 1,01 | K45: 1,01 | L45: 1,03 | M45: 1,02 | N45: 1,04 | O45: 1,03 | P45: 1,01 | Q45: 1 | R45: 1 | S45: 0,97 | T45: 0,95 | U45: 0,95 | V45: 0,96 | W45: 0,95 | X45: 0,93 | Y45: 0,92 | Z45: 0,91 | AA45: 0,88 | AB45: 0,91 | AC45: 0,92 | AD45: 0,92 | AE45: 0,94 | AF45: 0,97 | AG45: 0,98 | AH45: 0,97 | AI45: 0,97 | AJ45: 1 | AK45: 1,02 | AL45: 1 | AM45: 1,08 | AN45: 1,09 | AO45: 1,06 | AP45: 1,08 | AQ45: 1,05 | AR45: 1,05 | AS45: 1,04 | AT45: 1,05 | AU45: 1,05 | AV45: 1,04 | AW45: 1,03 | AX45: 1,05 | AY45: 1,02 | AZ45: 1 | BA45: 1,03 | BB45: 0,97 | BC45: 0,97 | BD45: 0,96 | BE45: 0,96 | BF45: 0,96 | BG45: 0,96 | BH45: 0,95 | BI45: 0,97 | BJ45: 0,97 | BK45: 0,99 | BL45: 0,99 | BM45: 1,03 | BN45: 1,1 | BO45: 1,12 | BP45: 1.12 | BQ45: 1.12 | BR45: 1.12 | BS45: 1.10 | BT45: 1.13 | BU45: 1.15 | BV45: 1.16 | BW45: 1.15 | BX45: 1.17 | BY45: 1.13
A46: 1594 | B46: Riesa-Großenhain / Hirschstein | C46: 1594 | D46: 1 | E46: 0,97 | F46: 0,97 | G46: 1,01 | H46: 1 | I46: 0,98 | J46: 0,98 | K46: 0,99 | L46: 1,01 | M46: 1 | N46: 1,01 | O46: 1 | P46: 0,99 | Q46: 0,98 | R46: 0,98 | S46: 0,95 | T46: 0,93 | U46: 0,94 | V46: 0,94 | W46: 0,93 | X46: 0,91 | Y46: 0,9 | Z46: 0,89 | AA46: 0,86 | AB46: 0,9 | AC46: 0,9 | AD46: 0,9 | AE46: 0,92 | AF46: 0,95 | AG46: 0,96 | AH46: 0,95 | AI46: 0,95 | AJ46: 0,97 | AK46: 0,99 | AL46: 0,98 | AM46: 1,05 | AN46: 1,06 | AO46: 1,03 | AP46: 1,05 | AQ46: 1,03 | AR46: 1,03 | AS46: 1,02 | AT46: 1,03 | AU46: 1,03 | AV46: 1,02 | AW46: 1,01 | AX46: 1,02 | AY46: 1 | AZ46: 0,99 | BA46: 1,01 | BB46: 0,95 | BC46: 0,96 | BD46: 0,94 | BE46: 0,94 | BF46: 0,94 | BG46: 0,94 | BH46: 0,93 | BI46: 0,95 | BJ46: 0,95 | BK46: 0,97 | BL46: 0,98 | BM46: 1,01 | BN46: 1,08 | BO46: 1,09 | BP46: 1.09 | BQ46: 1.09 | BR46: 1.09 | BS46: 1.07 | BT46: 1.10 | BU46: 1.11 | BV46: 1.13 | BW46: 1.12 | BX46: 1.14 | BY46: 1.10
A47: 1609 | B47: Riesa-Großenhain / Gröditz | C47: 1609 | D47: 1,01 | E47: 0,99 | F47: 0,98 | G47: 1,02 | H47: 1,01 | I47: 1 | J47: 1 | K47: 1 | L47: 1,02 | M47: 1,01 | N47: 1,03 | O47: 1,02 | P47: 1 | Q47: 0,99 | R47: 0,99 | S47: 0,96 | T47: 0,94 | U47: 0,95 | V47: 0,95 | W47: 0,94 | X47: 0,92 | Y47: 0,91 | Z47: 0,9 | AA47: 0,87 | AB47: 0,91 | AC47: 0,91 | AD47: 0,91 | AE47: 0,93 | AF47: 0,96 | AG47: 0,97 | AH47: 0,96 | AI47: 0,96 | AJ47: 0,99 | AK47: 1 | AL47: 0,99 | AM47: 1,06 | AN47: 1,07 | AO47: 1,04 | AP47: 1,07 | AQ47: 1,04 | AR47: 1,04 | AS47: 1,03 | AT47: 1,04 | AU47: 1,05 | AV47: 1,03 | AW47: 1,02 | AX47: 1,04 | AY47: 1,01 | AZ47: 1 | BA47: 1,02 | BB47: 0,96 | BC47: 0,97 | BD47: 0,95 | BE47: 0,95 | BF47: 0,95 | BG47: 0,95 | BH47: 0,94 | BI47: 0,96 | BJ47: 0,96 | BK47: 0,98 | BL47: 0,99 | BM47: 1,02 | BN47: 1,09 | BO47: 1,11 | BP47: 1.1 | BQ47: 1.11 | BR47: 1.1 | BS47: 1.09 | BT47: 1.12 | BU47: 1.13 | BV47: 1.15 | BW47: 1.14 | BX47: 1.16 | BY47: 1.12
A48: 1612 | B48: Riesa-Großenhain / Glaubitz | C48: 1612 | D48: 1,01 | E48: 0,99 | F48: 0,99 | G48: 1,02 | H48: 1,02 | I48: 1 | J48: 1 | K48: 1 | L48: 1,03 | M48: 1,02 | N48: 1,03 | O48: 1,02 | P48: 1,01 | Q48: 1 | R48: 1 | S48: 0,97 | T48: 0,94 | U48: 0,95 | V48: 0,95 | W48: 0,95 | X48: 0,92 | Y48: 0,92 | Z48: 0,91 | AA48: 0,88 | AB48: 0,91 | AC48: 0,91 | AD48: 0,91 | AE48: 0,94 | AF48: 0,97 | AG48: 0,98 | AH48: 0,96 | AI48: 0,96 | AJ48: 0,99 | AK48: 1,01 | AL48: 0,99 | AM48: 1,07 | AN48: 1,08 | AO48: 1,05 | AP48: 1,07 | AQ48: 1,05 | AR48: 1,05 | AS48: 1,04 | AT48: 1,05 | AU48: 1,05 | AV48: 1,04 | AW48: 1,03 | AX48: 1,04 | AY48: 1,01 | AZ48: 1 | BA48: 1,03 | BB48: 0,97 | BC48: 0,97 | BD48: 0,96 | BE48: 0,95 | BF48: 0,96 | BG48: 0,96 | BH48: 0,94 | BI48: 0,96 | BJ48: 0,96 | BK48: 0,98 | BL48: 0,99 | BM48: 1,02 | BN48: 1,1 | BO48: 1,12 | BP48: 1.11 | BQ48: 1.11 | BR48: 1.11 | BS48: 1.09 | BT48: 1.13 | BU48: 1.14 | BV48: 1.15 | BW48: 1.15 | BX48: 1.17 | BY48: 1.13
A49: 1616 | B49: Riesa-Großenhain / Strehla | C49: 1616 | D49: 1 | E49: 0,97 | F49: 0,97 | G49: 1,01 | H49: 1 | I49: 0,99 | J49: 0,99 | K49: 0,99 | L49: 1,01 | M49: 1 | N49: 1,02 | O49: 1 | P49: 0,99 | Q49: 0,98 | R49: 0,98 | S49: 0,95 | T49: 0,93 | U49: 0,94 | V49: 0,94 | W49: 0,93 | X49: 0,91 | Y49: 0,91 | Z49: 0,89 | AA49: 0,86 | AB49: 0,9 | AC49: 0,9 | AD49: 0,9 | AE49: 0,92 | AF49: 0,95 | AG49: 0,96 | AH49: 0,95 | AI49: 0,95 | AJ49: 0,97 | AK49: 0,99 | AL49: 0,98 | AM49: 1,05 | AN49: 1,06 | AO49: 1,03 | AP49: 1,05 | AQ49: 1,03 | AR49: 1,03 | AS49: 1,02 | AT49: 1,03 | AU49: 1,03 | AV49: 1,02 | AW49: 1,01 | AX49: 1,02 | AY49: 1 | AZ49: 0,99 | BA49: 1,01 | BB49: 0,95 | BC49: 0,95 | BD49: 0,94 | BE49: 0,94 | BF49: 0,94 | BG49: 0,94 | BH49: 0,93 | BI49: 0,95 | BJ49: 0,95 | BK49: 0,97 | BL49: 0,98 | BM49: 1,01 | BN49: 1,08 | BO49: 1,1 | BP49: 1.09 | BQ49: 1.09 | BR49: 1.09 | BS49: 1.07 | BT49: 1.10 | BU49: 1.12 | BV49: 1.13 | BW49: 1.12 | BX49: 1.14 | BY49: 1.11
A50: 1619 | B50: Riesa-Großenhain / Röderaue | C50: 1619 | D50: 1,02 | E50: 0,99 | F50: 0,99 | G50: 1,03 | H50: 1,02 | I50: 1,01 | J50: 1,01 | K50: 1,01 | L50: 1,03 | M50: 1,02 | N50: 1,04 | O50: 1,02 | P50: 1,01 | Q50: 1 | R50: 1 | S50: 0,97 | T50: 0,95 | U50: 0,95 | V50: 0,96 | W50: 0,95 | X50: 0,92 | Y50: 0,92 | Z50: 0,91 | AA50: 0,88 | AB50: 0,91 | AC50: 0,91 | AD50: 0,92 | AE50: 0,94 | AF50: 0,97 | AG50: 0,98 | AH50: 0,97 | AI50: 0,97 | AJ50: 1 | AK50: 1,02 | AL50: 1 | AM50: 1,08 | AN50: 1,09 | AO50: 1,06 | AP50: 1,08 | AQ50: 1,05 | AR50: 1,05 | AS50: 1,04 | AT50: 1,05 | AU50: 1,05 | AV50: 1,04 | AW50: 1,03 | AX50: 1,05 | AY50: 1,02 | AZ50: 1 | BA50: 1,03 | BB50: 0,97 | BC50: 0,97 | BD50: 0,96 | BE50: 0,96 | BF50: 0,96 | BG50: 0,96 | BH50: 0,95 | BI50: 0,97 | BJ50: 0,97 | BK50: 0,99 | BL50: 0,99 | BM50: 1,03 | BN50: 1,1 | BO50: 1,12 | BP50: 1.11 | BQ50: 1.12 | BR50: 1.11 | BS50: 1.10 | BT50: 1.13 | BU50: 1.15 | BV50: 1.16 | BW50: 1.15 | BX50: 1.17 | BY50: 1.13
A51: 1623 | B51: Meißen / Lommatzsch | C51: 1623 | D51: 0,97 | E51: 0,94 | F51: 0,94 | G51: 0,97 | H51: 0,97 | I51: 0,95 | J51: 0,95 | K51: 0,96 | L51: 0,98 | M51: 0,97 | N51: 0,98 | O51: 0,97 | P51: 0,96 | Q51: 0,95 | R51: 0,95 | S51: 0,92 | T51: 0,9 | U51: 0,91 | V51: 0,91 | W51: 0,9 | X51: 0,88 | Y51: 0,88 | Z51: 0,87 | AA51: 0,84 | AB51: 0,87 | AC51: 0,87 | AD51: 0,88 | AE51: 0,9 | AF51: 0,92 | AG51: 0,93 | AH51: 0,92 | AI51: 0,92 | AJ51: 0,95 | AK51: 0,96 | AL51: 0,95 | AM51: 1,02 | AN51: 1,03 | AO51: 1 | AP51: 1,02 | AQ51: 0,99 | AR51: 1 | AS51: 0,99 | AT51: 1 | AU51: 1 | AV51: 0,99 | AW51: 0,98 | AX51: 0,99 | AY51: 0,97 | AZ51: 0,95 | BA51: 0,98 | BB51: 0,93 | BC51: 0,93 | BD51: 0,91 | BE51: 0,91 | BF51: 0,91 | BG51: 0,91 | BH51: 0,9 | BI51: 0,92 | BJ51: 0,92 | BK51: 0,94 | BL51: 0,94 | BM51: 0,97 | BN51: 1,04 | BO51: 1,06 | BP51: 1.05 | BQ51: 1.05 | BR51: 1.05 | BS51: 1.04 | BT51: 1.06 | BU51: 1.08 | BV51: 1.09 | BW51: 1.08 | BX51: 1.10 | BY51: 1.07
A52: 1640 | B52: Meißen / Coswig | C52: 1640 | D52: 1,04 | E52: 1,01 | F52: 1,01 | G52: 1,05 | H52: 1,04 | I52: 1,03 | J52: 1,03 | K52: 1,03 | L52: 1,06 | M52: 1,05 | N52: 1,06 | O52: 1,05 | P52: 1,04 | Q52: 1,03 | R52: 1,03 | S52: 1 | T52: 0,97 | U52: 0,98 | V52: 0,98 | W52: 0,97 | X52: 0,94 | Y52: 0,94 | Z52: 0,93 | AA52: 0,9 | AB52: 0,93 | AC52: 0,93 | AD52: 0,94 | AE52: 0,96 | AF52: 1 | AG52: 1 | AH52: 1 | AI52: 1 | AJ52: 1,03 | AK52: 1,05 | AL52: 1,03 | AM52: 1,11 | AN52: 1,12 | AO52: 1,09 | AP52: 1,11 | AQ52: 1,08 | AR52: 1,08 | AS52: 1,07 | AT52: 1,08 | AU52: 1,08 | AV52: 1,07 | AW52: 1,06 | AX52: 1,07 | AY52: 1,04 | AZ52: 1,03 | BA52: 1,06 | BB52: 0,99 | BC52: 0,99 | BD52: 0,98 | BE52: 0,98 | BF52: 0,98 | BG52: 0,98 | BH52: 0,97 | BI52: 0,99 | BJ52: 0,98 | BK52: 1,01 | BL52: 1,01 | BM52: 1,05 | BN52: 1,13 | BO52: 1,15 | BP52: 1.14 | BQ52: 1.15 | BR52: 1.15 | BS52: 1.13 | BT52: 1.16 | BU52: 1.18 | BV52: 1.20 | BW52: 1.19 | BX52: 1.21 | BY52: 1.17
A53: 1662 | B53: Meißen / Meißen | C53: 1662 | D53: 1,03 | E53: 1,01 | F53: 1,01 | G53: 1,04 | H53: 1,04 | I53: 1,03 | J53: 1,03 | K53: 1,03 | L53: 1,05 | M53: 1,04 | N53: 1,06 | O53: 1,05 | P53: 1,03 | Q53: 1,03 | R53: 1,03 | S53: 0,99 | T53: 0,97 | U53: 0,97 | V53: 0,97 | W53: 0,97 | X53: 0,94 | Y53: 0,94 | Z53: 0,92 | AA53: 0,89 | AB53: 0,93 | AC53: 0,93 | AD53: 0,93 | AE53: 0,96 | AF53: 0,99 | AG53: 1 | AH53: 0,99 | AI53: 0,99 | AJ53: 1,02 | AK53: 1,04 | AL53: 1,02 | AM53: 1,11 | AN53: 1,12 | AO53: 1,08 | AP53: 1,11 | AQ53: 1,07 | AR53: 1,08 | AS53: 1,06 | AT53: 1,07 | AU53: 1,08 | AV53: 1,07 | AW53: 1,05 | AX53: 1,07 | AY53: 1,04 | AZ53: 1,02 | BA53: 1,05 | BB53: 0,99 | BC53: 0,99 | BD53: 0,98 | BE53: 0,97 | BF53: 0,98 | BG53: 0,98 | BH53: 0,96 | BI53: 0,98 | BJ53: 0,98 | BK53: 1 | BL53: 1,01 | BM53: 1,05 | BN53: 1,12 | BO53: 1,15 | BP53: 1.14 | BQ53: 1.14 | BR53: 1.14 | BS53: 1.13 | BT53: 1.16 | BU53: 1.18 | BV53: 1.19 | BW53: 1.18 | BX53: 1.20 | BY53: 1.16
A54: 1665 | B54: Meißen / Triebischtal | C54: 1665 | D54: 0,97 | E54: 0,94 | F54: 0,94 | G54: 0,97 | H54: 0,97 | I54: 0,95 | J54: 0,95 | K54: 0,96 | L54: 0,98 | M54: 0,97 | N54: 0,98 | O54: 0,97 | P54: 0,96 | Q54: 0,95 | R54: 0,95 | S54: 0,93 | T54: 0,9 | U54: 0,91 | V54: 0,91 | W54: 0,91 | X54: 0,88 | Y54: 0,88 | Z54: 0,87 | AA54: 0,84 | AB54: 0,87 | AC54: 0,87 | AD54: 0,88 | AE54: 0,9 | AF54: 0,93 | AG54: 0,93 | AH54: 0,92 | AI54: 0,92 | AJ54: 0,95 | AK54: 0,97 | AL54: 0,95 | AM54: 1,02 | AN54: 1,03 | AO54: 1 | AP54: 1,02 | AQ54: 1 | AR54: 1 | AS54: 0,99 | AT54: 1 | AU54: 1 | AV54: 0,99 | AW54: 0,98 | AX54: 0,99 | AY54: 0,97 | AZ54: 0,96 | BA54: 0,98 | BB54: 0,93 | BC54: 0,93 | BD54: 0,91 | BE54: 0,91 | BF54: 0,91 | BG54: 0,91 | BH54: 0,9 | BI54: 0,92 | BJ54: 0,92 | BK54: 0,94 | BL54: 0,94 | BM54: 0,98 | BN54: 1,04 | BO54: 1,06 | BP54: 1.05 | BQ54: 1.06 | BR54: 1.05 | BS54: 1.04 | BT54: 1.07 | BU54: 1.08 | BV54: 1.09 | BW54: 1.09 | BX54: 1.10 | BY54: 1.07
A55: 1683 | B55: Meißen / Heynitz | C55: 1683 | D55: 0,93 | E55: 0,91 | F55: 0,91 | G55: 0,94 | H55: 0,94 | I55: 0,92 | J55: 0,92 | K55: 0,93 | L55: 0,95 | M55: 0,94 | N55: 0,95 | O55: 0,94 | P55: 0,93 | Q55: 0,92 | R55: 0,92 | S55: 0,9 | T55: 0,87 | U55: 0,88 | V55: 0,88 | W55: 0,88 | X55: 0,85 | Y55: 0,85 | Z55: 0,84 | AA55: 0,82 | AB55: 0,85 | AC55: 0,85 | AD55: 0,85 | AE55: 0,87 | AF55: 0,9 | AG55: 0,9 | AH55: 0,89 | AI55: 0,89 | AJ55: 0,92 | AK55: 0,93 | AL55: 0,93 | AM55: 0,99 | AN55: 0,99 | AO55: 0,97 | AP55: 0,98 | AQ55: 0,96 | AR55: 0,96 | AS55: 0,95 | AT55: 0,96 | AU55: 0,97 | AV55: 0,96 | AW55: 0,95 | AX55: 0,96 | AY55: 0,93 | AZ55: 0,92 | BA55: 0,95 | BB55: 0,89 | BC55: 0,89 | BD55: 0,88 | BE55: 0,88 | BF55: 0,88 | BG55: 0,88 | BH55: 0,87 | BI55: 0,89 | BJ55: 0,88 | BK55: 0,9 | BL55: 0,91 | BM55: 0,94 | BN55: 1 | BO55: 1,02 | BP55: 1.02 | BQ55: 1.02 | BR55: 1.02 | BS55: 1.00 | BT55: 1.03 | BU55: 1.04 | BV55: 1.05 | BW55: 1.05 | BX55: 1.06 | BY55: 1.03
A56: 1689 | B56: Meißen / Weinböhla | C56: 1689 | D56: 1,01 | E56: 0,99 | F56: 0,99 | G56: 1,02 | H56: 1,02 | I56: 1 | J56: 1 | K56: 1,01 | L56: 1,03 | M56: 1,02 | N56: 1,04 | O56: 1,02 | P56: 1,01 | Q56: 1 | R56: 1 | S56: 0,97 | T56: 0,95 | U56: 0,95 | V56: 0,95 | W56: 0,95 | X56: 0,92 | Y56: 0,92 | Z56: 0,91 | AA56: 0,88 | AB56: 0,91 | AC56: 0,91 | AD56: 0,92 | AE56: 0,94 | AF56: 0,97 | AG56: 0,98 | AH56: 0,97 | AI56: 0,97 | AJ56: 1 | AK56: 1,02 | AL56: 1 | AM56: 1,08 | AN56: 1,09 | AO56: 1,06 | AP56: 1,08 | AQ56: 1,05 | AR56: 1,05 | AS56: 1,04 | AT56: 1,05 | AU56: 1,05 | AV56: 1,04 | AW56: 1,03 | AX56: 1,05 | AY56: 1,02 | AZ56: 1 | BA56: 1,03 | BB56: 0,97 | BC56: 0,97 | BD56: 0,96 | BE56: 0,95 | BF56: 0,96 | BG56: 0,96 | BH56: 0,94 | BI56: 0,96 | BJ56: 0,96 | BK56: 0,98 | BL56: 0,99 | BM56: 1,03 | BN56: 1,1 | BO56: 1,12 | BP56: 1.11 | BQ56: 1.12 | BR56: 1.11 | BS56: 1.10 | BT56: 1.13 | BU56: 1.14 | BV56: 1.16 | BW56: 1.15 | BX56: 1.17 | BY56: 1.13
A57: 1705 | B57: Weißeritzkreis / Freital | C57: 1705 | D57: 1 | E57: 0,97 | F57: 0,97 | G57: 1,01 | H57: 1,01 | I57: 0,99 | J57: 0,99 | K57: 0,99 | L57: 1,02 | M57: 1,01 | N57: 1,02 | O57: 1,01 | P57: 1 | Q57: 0,99 | R57: 0,99 | S57: 0,96 | T57: 0,94 | U57: 0,94 | V57: 0,95 | W57: 0,94 | X57: 0,91 | Y57: 0,91 | Z57: 0,9 | AA57: 0,87 | AB57: 0,9 | AC57: 0,9 | AD57: 0,91 | AE57: 0,93 | AF57: 0,96 | AG57: 0,97 | AH57: 0,96 | AI57: 0,96 | AJ57: 0,99 | AK57: 1,01 | AL57: 0,99 | AM57: 1,07 | AN57: 1,08 | AO57: 1,05 | AP57: 1,07 | AQ57: 1,04 | AR57: 1,04 | AS57: 1,03 | AT57: 1,04 | AU57: 1,04 | AV57: 1,03 | AW57: 1,02 | AX57: 1,03 | AY57: 1 | AZ57: 0,99 | BA57: 1,02 | BB57: 0,96 | BC57: 0,96 | BD57: 0,95 | BE57: 0,94 | BF57: 0,95 | BG57: 0,95 | BH57: 0,93 | BI57: 0,95 | BJ57: 0,95 | BK57: 0,97 | BL57: 0,98 | BM57: 1,01 | BN57: 1,08 | BO57: 1,1 | BP57: 1.1 | BQ57: 1.1 | BR57: 1.1 | BS57: 1.09 | BT57: 1.12 | BU57: 1.13 | BV57: 1.15 | BW57: 1.14 | BX57: 1.16 | BY57: 1.12
A58: 1723 | B58: Weißeritzkreis / Wilsdruff | C58: 1723 | D58: 0,91 | E58: 0,89 | F58: 0,89 | G58: 0,92 | H58: 0,91 | I58: 0,9 | J58: 0,9 | K58: 0,9 | L58: 0,92 | M58: 0,91 | N58: 0,92 | O58: 0,91 | P58: 0,9 | Q58: 0,9 | R58: 0,89 | S58: 0,87 | T58: 0,85 | U58: 0,86 | V58: 0,86 | W58: 0,85 | X58: 0,83 | Y58: 0,83 | Z58: 0,82 | AA58: 0,8 | AB58: 0,82 | AC58: 0,83 | AD58: 0,83 | AE58: 0,85 | AF58: 0,87 | AG58: 0,88 | AH58: 0,86 | AI58: 0,87 | AJ58: 0,89 | AK58: 0,91 | AL58: 0,9 | AM58: 0,96 | AN58: 0,96 | AO58: 0,94 | AP58: 0,95 | AQ58: 0,93 | AR58: 0,94 | AS58: 0,93 | AT58: 0,94 | AU58: 0,94 | AV58: 0,93 | AW58: 0,92 | AX58: 0,93 | AY58: 0,91 | AZ58: 0,9 | BA58: 0,92 | BB58: 0,87 | BC58: 0,87 | BD58: 0,86 | BE58: 0,86 | BF58: 0,86 | BG58: 0,86 | BH58: 0,85 | BI58: 0,86 | BJ58: 0,86 | BK58: 0,88 | BL58: 0,89 | BM58: 0,92 | BN58: 0,98 | BO58: 0,99 | BP58: 0.99 | BQ58: 0.99 | BR58: 0.98 | BS58: 0.97 | BT58: 0.99 | BU58: 1.00 | BV58: 1.02 | BW58: 1.01 | BX58: 1.02 | BY58: 1.00
A59: 1728 | B59: Weißeritzkreis / Bannewitz | C59: 1728 | D59: 0,93 | E59: 0,91 | F59: 0,91 | G59: 0,94 | H59: 0,93 | I59: 0,92 | J59: 0,92 | K59: 0,92 | L59: 0,94 | M59: 0,93 | N59: 0,94 | O59: 0,93 | P59: 0,92 | Q59: 0,91 | R59: 0,91 | S59: 0,89 | T59: 0,87 | U59: 0,88 | V59: 0,88 | W59: 0,87 | X59: 0,85 | Y59: 0,85 | Z59: 0,84 | AA59: 0,81 | AB59: 0,84 | AC59: 0,84 | AD59: 0,84 | AE59: 0,86 | AF59: 0,89 | AG59: 0,89 | AH59: 0,88 | AI59: 0,88 | AJ59: 0,91 | AK59: 0,93 | AL59: 0,91 | AM59: 0,98 | AN59: 0,98 | AO59: 0,96 | AP59: 0,97 | AQ59: 0,95 | AR59: 0,96 | AS59: 0,95 | AT59: 0,96 | AU59: 0,96 | AV59: 0,95 | AW59: 0,94 | AX59: 0,95 | AY59: 0,93 | AZ59: 0,92 | BA59: 0,94 | BB59: 0,89 | BC59: 0,89 | BD59: 0,88 | BE59: 0,87 | BF59: 0,88 | BG59: 0,88 | BH59: 0,87 | BI59: 0,88 | BJ59: 0,88 | BK59: 0,9 | BL59: 0,91 | BM59: 0,94 | BN59: 1 | BO59: 1,01 | BP59: 1.01 | BQ59: 1.01 | BR59: 1.01 | BS59: 0.99 | BT59: 1.02 | BU59: 1.03 | BV59: 1.04 | BW59: 1.04 | BX59: 1.05 | BY59: 1.02
A60: 1731 | B60: Weißeritzkreis / Kreischa | C60: 1731 | D60: 0,96 | E60: 0,94 | F60: 0,93 | G60: 0,97 | H60: 0,96 | I60: 0,95 | J60: 0,95 | K60: 0,95 | L60: 0,97 | M60: 0,96 | N60: 0,98 | O60: 0,96 | P60: 0,95 | Q60: 0,95 | R60: 0,94 | S60: 0,92 | T60: 0,9 | U60: 0,9 | V60: 0,91 | W60: 0,9 | X60: 0,88 | Y60: 0,87 | Z60: 0,86 | AA60: 0,84 | AB60: 0,87 | AC60: 0,87 | AD60: 0,87 | AE60: 0,89 | AF60: 0,92 | AG60: 0,92 | AH60: 0,91 | AI60: 0,91 | AJ60: 0,94 | AK60: 0,96 | AL60: 0,94 | AM60: 1,01 | AN60: 1,02 | AO60: 0,99 | AP60: 1,01 | AQ60: 0,98 | AR60: 0,99 | AS60: 0,98 | AT60: 0,99 | AU60: 0,99 | AV60: 0,98 | AW60: 0,97 | AX60: 0,99 | AY60: 0,96 | AZ60: 0,95 | BA60: 0,97 | BB60: 0,92 | BC60: 0,92 | BD60: 0,91 | BE60: 0,9 | BF60: 0,91 | BG60: 0,91 | BH60: 0,9 | BI60: 0,91 | BJ60: 0,91 | BK60: 0,93 | BL60: 0,94 | BM60: 0,97 | BN60: 1,03 | BO60: 1,05 | BP60: 1.04 | BQ60: 1.04 | BR60: 1.04 | BS60: 1.03 | BT60: 1.05 | BU60: 1.07 | BV60: 1.08 | BW60: 1.07 | BX60: 1.09 | BY60: 1.06
A61: 1734 | B61: Weißeritzkreis / Rabenau | C61: 1734 | D61: 0,92 | E61: 0,9 | F61: 0,9 | G61: 0,92 | H61: 0,92 | I61: 0,91 | J61: 0,91 | K61: 0,91 | L61: 0,93 | M61: 0,92 | N61: 0,93 | O61: 0,92 | P61: 0,91 | Q61: 0,9 | R61: 0,9 | S61: 0,88 | T61: 0,86 | U61: 0,87 | V61: 0,87 | W61: 0,86 | X61: 0,84 | Y61: 0,84 | Z61: 0,83 | AA61: 0,8 | AB61: 0,83 | AC61: 0,83 | AD61: 0,84 | AE61: 0,85 | AF61: 0,88 | AG61: 0,89 | AH61: 0,87 | AI61: 0,87 | AJ61: 0,9 | AK61: 0,92 | AL61: 0,91 | AM61: 0,97 | AN61: 0,97 | AO61: 0,95 | AP61: 0,96 | AQ61: 0,94 | AR61: 0,94 | AS61: 0,94 | AT61: 0,95 | AU61: 0,95 | AV61: 0,94 | AW61: 0,93 | AX61: 0,94 | AY61: 0,92 | AZ61: 0,91 | BA61: 0,93 | BB61: 0,88 | BC61: 0,88 | BD61: 0,87 | BE61: 0,86 | BF61: 0,87 | BG61: 0,87 | BH61: 0,86 | BI61: 0,87 | BJ61: 0,87 | BK61: 0,89 | BL61: 0,9 | BM61: 0,93 | BN61: 0,99 | BO61: 1 | BP61: 1 | BQ61: 1 | BR61: 0.99 | BS61: 0.98 | BT61: 1.00 | BU61: 1.01 | BV61: 1.03 | BW61: 1.02 | BX61: 1.03 | BY61: 1.01
A62: 1737 | B62: Weißeritzkreis / Tharandt | C62: 1737 | D62: 0,94 | E62: 0,92 | F62: 0,92 | G62: 0,95 | H62: 0,95 | I62: 0,93 | J62: 0,93 | K62: 0,93 | L62: 0,95 | M62: 0,94 | N62: 0,96 | O62: 0,95 | P62: 0,93 | Q62: 0,93 | R62: 0,93 | S62: 0,9 | T62: 0,88 | U62: 0,89 | V62: 0,89 | W62: 0,88 | X62: 0,86 | Y62: 0,86 | Z62: 0,85 | AA62: 0,82 | AB62: 0,85 | AC62: 0,85 | AD62: 0,86 | AE62: 0,88 | AF62: 0,9 | AG62: 0,91 | AH62: 0,89 | AI62: 0,9 | AJ62: 0,92 | AK62: 0,94 | AL62: 0,93 | AM62: 0,99 | AN62: 1 | AO62: 0,97 | AP62: 0,99 | AQ62: 0,97 | AR62: 0,97 | AS62: 0,96 | AT62: 0,97 | AU62: 0,98 | AV62: 0,97 | AW62: 0,96 | AX62: 0,97 | AY62: 0,94 | AZ62: 0,93 | BA62: 0,96 | BB62: 0,9 | BC62: 0,9 | BD62: 0,89 | BE62: 0,89 | BF62: 0,89 | BG62: 0,89 | BH62: 0,88 | BI62: 0,9 | BJ62: 0,89 | BK62: 0,91 | BL62: 0,92 | BM62: 0,95 | BN62: 1,01 | BO62: 1,03 | BP62: 1.02 | BQ62: 1.03 | BR62: 1.02 | BS62: 1.01 | BT62: 1.03 | BU62: 1.04 | BV62: 1.06 | BW62: 1.05 | BX62: 1.07 | BY62: 1.04
A63: 1738 | B63: Weißeritzkreis / Dorfhain | C63: 1738 | D63: 0,91 | E63: 0,89 | F63: 0,89 | G63: 0,91 | H63: 0,91 | I63: 0,9 | J63: 0,9 | K63: 0,9 | L63: 0,92 | M63: 0,91 | N63: 0,92 | O63: 0,91 | P63: 0,9 | Q63: 0,89 | R63: 0,89 | S63: 0,87 | T63: 0,85 | U63: 0,86 | V63: 0,86 | W63: 0,85 | X63: 0,83 | Y63: 0,83 | Z63: 0,82 | AA63: 0,8 | AB63: 0,82 | AC63: 0,82 | AD63: 0,83 | AE63: 0,85 | AF63: 0,87 | AG63: 0,88 | AH63: 0,86 | AI63: 0,87 | AJ63: 0,89 | AK63: 0,91 | AL63: 0,9 | AM63: 0,95 | AN63: 0,96 | AO63: 0,93 | AP63: 0,95 | AQ63: 0,93 | AR63: 0,93 | AS63: 0,93 | AT63: 0,93 | AU63: 0,94 | AV63: 0,93 | AW63: 0,92 | AX63: 0,93 | AY63: 0,91 | AZ63: 0,9 | BA63: 0,92 | BB63: 0,87 | BC63: 0,87 | BD63: 0,86 | BE63: 0,85 | BF63: 0,86 | BG63: 0,86 | BH63: 0,85 | BI63: 0,86 | BJ63: 0,86 | BK63: 0,88 | BL63: 0,89 | BM63: 0,92 | BN63: 0,97 | BO63: 0,99 | BP63: 0.98 | BQ63: 0.99 | BR63: 0.98 | BS63: 0.97 | BT63: 0.99 | BU63: 1.00 | BV63: 1.01 | BW63: 1.01 | BX63: 1.02 | BY63: 0.99
A64: 1744 | B64: Weißeritzkreis / Dippoldiswalde | C64: 1744 | D64: 0,9 | E64: 0,88 | F64: 0,88 | G64: 0,9 | H64: 0,9 | I64: 0,89 | J64: 0,89 | K64: 0,89 | L64: 0,91 | M64: 0,9 | N64: 0,91 | O64: 0,9 | P64: 0,89 | Q64: 0,89 | R64: 0,88 | S64: 0,86 | T64: 0,84 | U64: 0,85 | V64: 0,85 | W64: 0,84 | X64: 0,82 | Y64: 0,82 | Z64: 0,81 | AA64: 0,79 | AB64: 0,82 | AC64: 0,82 | AD64: 0,82 | AE64: 0,84 | AF64: 0,86 | AG64: 0,87 | AH64: 0,86 | AI64: 0,86 | AJ64: 0,88 | AK64: 0,9 | AL64: 0,89 | AM64: 0,95 | AN64: 0,95 | AO64: 0,93 | AP64: 0,94 | AQ64: 0,92 | AR64: 0,93 | AS64: 0,92 | AT64: 0,93 | AU64: 0,93 | AV64: 0,92 | AW64: 0,91 | AX64: 0,92 | AY64: 0,9 | AZ64: 0,89 | BA64: 0,91 | BB64: 0,86 | BC64: 0,86 | BD64: 0,85 | BE64: 0,85 | BF64: 0,85 | BG64: 0,85 | BH64: 0,84 | BI64: 0,85 | BJ64: 0,85 | BK64: 0,87 | BL64: 0,88 | BM64: 0,91 | BN64: 0,96 | BO64: 0,98 | BP64: 0.97 | BQ64: 0.98 | BR64: 0.97 | BS64: 0.96 | BT64: 0.98 | BU64: 0.99 | BV64: 1.01 | BW64: 1.00 | BX64: 1.01 | BY64: 0.98
A65: 1762 | B65: Weißeritzkreis / Schmiedeberg | C65: 1762 | D65: 0,84 | E65: 0,82 | F65: 0,82 | G65: 0,85 | H65: 0,84 | I65: 0,83 | J65: 0,83 | K65: 0,84 | L65: 0,85 | M65: 0,84 | N65: 0,85 | O65: 0,84 | P65: 0,83 | Q65: 0,83 | R65: 0,83 | S65: 0,81 | T65: 0,79 | U65: 0,8 | V65: 0,8 | W65: 0,79 | X65: 0,77 | Y65: 0,77 | Z65: 0,76 | AA65: 0,74 | AB65: 0,77 | AC65: 0,77 | AD65: 0,77 | AE65: 0,79 | AF65: 0,81 | AG65: 0,82 | AH65: 0,8 | AI65: 0,81 | AJ65: 0,83 | AK65: 0,84 | AL65: 0,84 | AM65: 0,89 | AN65: 0,89 | AO65: 0,87 | AP65: 0,88 | AQ65: 0,86 | AR65: 0,86 | AS65: 0,86 | AT65: 0,87 | AU65: 0,87 | AV65: 0,86 | AW65: 0,86 | AX65: 0,86 | AY65: 0,84 | AZ65: 0,83 | BA65: 0,85 | BB65: 0,81 | BC65: 0,81 | BD65: 0,79 | BE65: 0,79 | BF65: 0,8 | BG65: 0,8 | BH65: 0,79 | BI65: 0,8 | BJ65: 0,8 | BK65: 0,81 | BL65: 0,82 | BM65: 0,85 | BN65: 0,9 | BO65: 0,91 | BP65: 0.91 | BQ65: 0.91 | BR65: 0.91 | BS65: 0.89 | BT65: 0.91 | BU65: 0.92 | BV65: 0.93 | BW65: 0.93 | BX65: 0.94 | BY65: 0.91
A66: 1768 | B66: Weißeritzkreis / Glashütte | C66: 1768 | D66: 0,88 | E66: 0,86 | F66: 0,86 | G66: 0,89 | H66: 0,88 | I66: 0,87 | J66: 0,87 | K66: 0,87 | L66: 0,89 | M66: 0,88 | N66: 0,89 | O66: 0,88 | P66: 0,87 | Q66: 0,87 | R66: 0,86 | S66: 0,84 | T66: 0,83 | U66: 0,83 | V66: 0,84 | W66: 0,83 | X66: 0,81 | Y66: 0,81 | Z66: 0,79 | AA66: 0,77 | AB66: 0,8 | AC66: 0,8 | AD66: 0,8 | AE66: 0,82 | AF66: 0,84 | AG66: 0,85 | AH66: 0,84 | AI66: 0,84 | AJ66: 0,86 | AK66: 0,88 | AL66: 0,87 | AM66: 0,92 | AN66: 0,93 | AO66: 0,9 | AP66: 0,92 | AQ66: 0,9 | AR66: 0,9 | AS66: 0,9 | AT66: 0,91 | AU66: 0,91 | AV66: 0,9 | AW66: 0,89 | AX66: 0,9 | AY66: 0,88 | AZ66: 0,87 | BA66: 0,89 | BB66: 0,85 | BC66: 0,84 | BD66: 0,83 | BE66: 0,83 | BF66: 0,84 | BG66: 0,83 | BH66: 0,82 | BI66: 0,84 | BJ66: 0,83 | BK66: 0,85 | BL66: 0,86 | BM66: 0,89 | BN66: 0,94 | BO66: 0,96 | BP66: 0.95 | BQ66: 0.95 | BR66: 0.95 | BS66: 0.93 | BT66: 0.96 | BU66: 0.97 | BV66: 0.98 | BW66: 0.97 | BX66: 0.99 | BY66: 0.96
A67: 1773 | B67: Weißeritzkreis / Altenberg | C67: 1773 | D67: 0,77 | E67: 0,75 | F67: 0,75 | G67: 0,77 | H67: 0,77 | I67: 0,75 | J67: 0,75 | K67: 0,76 | L67: 0,77 | M67: 0,77 | N67: 0,78 | O67: 0,77 | P67: 0,75 | Q67: 0,75 | R67: 0,75 | S67: 0,73 | T67: 0,72 | U67: 0,73 | V67: 0,73 | W67: 0,72 | X67: 0,71 | Y67: 0,71 | Z67: 0,7 | AA67: 0,68 | AB67: 0,7 | AC67: 0,7 | AD67: 0,71 | AE67: 0,72 | AF67: 0,74 | AG67: 0,74 | AH67: 0,73 | AI67: 0,73 | AJ67: 0,75 | AK67: 0,76 | AL67: 0,77 | AM67: 0,8 | AN67: 0,81 | AO67: 0,79 | AP67: 0,79 | AQ67: 0,78 | AR67: 0,78 | AS67: 0,78 | AT67: 0,79 | AU67: 0,79 | AV67: 0,78 | AW67: 0,78 | AX67: 0,78 | AY67: 0,76 | AZ67: 0,75 | BA67: 0,77 | BB67: 0,73 | BC67: 0,73 | BD67: 0,72 | BE67: 0,72 | BF67: 0,73 | BG67: 0,72 | BH67: 0,72 | BI67: 0,72 | BJ67: 0,72 | BK67: 0,74 | BL67: 0,74 | BM67: 0,77 | BN67: 0,81 | BO67: 0,82 | BP67: 0.82 | BQ67: 0.82 | BR67: 0.82 | BS67: 0.81 | BT67: 0.82 | BU67: 0.83 | BV67: 0.84 | BW67: 0.83 | BX67: 0.84 | BY67: 0.82
A68: 1774 | B68: Weißeritzkreis / Höckendorf | C68: 1774 | D68: 0,86 | E68: 0,84 | F68: 0,84 | G68: 0,87 | H68: 0,86 | I68: 0,85 | J68: 0,85 | K68: 0,85 | L68: 0,87 | M68: 0,86 | N68: 0,87 | O68: 0,86 | P68: 0,85 | Q68: 0,85 | R68: 0,85 | S68: 0,83 | T68: 0,81 | U68: 0,81 | V68: 0,82 | W68: 0,81 | X68: 0,79 | Y68: 0,79 | Z68: 0,78 | AA68: 0,76 | AB68: 0,78 | AC68: 0,79 | AD68: 0,79 | AE68: 0,81 | AF68: 0,83 | AG68: 0,83 | AH68: 0,82 | AI68: 0,82 | AJ68: 0,85 | AK68: 0,86 | AL68: 0,85 | AM68: 0,91 | AN68: 0,91 | AO68: 0,89 | AP68: 0,9 | AQ68: 0,88 | AR68: 0,88 | AS68: 0,88 | AT68: 0,89 | AU68: 0,89 | AV68: 0,88 | AW68: 0,87 | AX68: 0,88 | AY68: 0,86 | AZ68: 0,85 | BA68: 0,87 | BB68: 0,83 | BC68: 0,83 | BD68: 0,81 | BE68: 0,81 | BF68: 0,82 | BG68: 0,82 | BH68: 0,81 | BI68: 0,82 | BJ68: 0,81 | BK68: 0,83 | BL68: 0,84 | BM68: 0,87 | BN68: 0,92 | BO68: 0,93 | BP68: 0.93 | BQ68: 0.93 | BR68: 0.93 | BS68: 0.91 | BT68: 0.93 | BU68: 0.94 | BV68: 0.96 | BW68: 0.95 | BX68: 0.96 | BY68: 0.94
A69: 1776 | B69: Weißeritzkreis / Hermsdorf/Erzgebirge | C69: 1776 | D69: 0,77 | E69: 0,75 | F69: 0,75 | G69: 0,77 | H69: 0,77 | I69: 0,76 | J69: 0,76 | K69: 0,76 | L69: 0,78 | M69: 0,77 | N69: 0,78 | O69: 0,77 | P69: 0,76 | Q69: 0,75 | R69: 0,75 | S69: 0,74 | T69: 0,72 | U69: 0,73 | V69: 0,73 | W69: 0,72 | X69: 0,71 | Y69: 0,71 | Z69: 0,7 | AA69: 0,68 | AB69: 0,7 | AC69: 0,71 | AD69: 0,71 | AE69: 0,72 | AF69: 0,74 | AG69: 0,75 | AH69: 0,73 | AI69: 0,74 | AJ69: 0,76 | AK69: 0,77 | AL69: 0,77 | AM69: 0,81 | AN69: 0,81 | AO69: 0,79 | AP69: 0,8 | AQ69: 0,78 | AR69: 0,79 | AS69: 0,78 | AT69: 0,79 | AU69: 0,79 | AV69: 0,79 | AW69: 0,78 | AX69: 0,78 | AY69: 0,76 | AZ69: 0,76 | BA69: 0,77 | BB69: 0,74 | BC69: 0,73 | BD69: 0,72 | BE69: 0,72 | BF69: 0,73 | BG69: 0,73 | BH69: 0,72 | BI69: 0,73 | BJ69: 0,72 | BK69: 0,74 | BL69: 0,75 | BM69: 0,77 | BN69: 0,82 | BO69: 0,83 | BP69: 0.82 | BQ69: 0.82 | BR69: 0.82 | BS69: 0.81 | BT69: 0.82 | BU69: 0.83 | BV69: 0.85 | BW69: 0.84 | BX69: 0.84 | BY69: 0.82
A70: 1778 | B70: Weißeritzkreis / Geising | C70: 1778 | D70: 0,78 | E70: 0,76 | F70: 0,76 | G70: 0,78 | H70: 0,78 | I70: 0,77 | J70: 0,77 | K70: 0,77 | L70: 0,79 | M70: 0,78 | N70: 0,79 | O70: 0,78 | P70: 0,77 | Q70: 0,76 | R70: 0,76 | S70: 0,74 | T70: 0,73 | U70: 0,74 | V70: 0,74 | W70: 0,73 | X70: 0,72 | Y70: 0,72 | Z70: 0,71 | AA70: 0,69 | AB70: 0,71 | AC70: 0,71 | AD70: 0,72 | AE70: 0,73 | AF70: 0,75 | AG70: 0,75 | AH70: 0,74 | AI70: 0,74 | AJ70: 0,76 | AK70: 0,78 | AL70: 0,78 | AM70: 0,82 | AN70: 0,82 | AO70: 0,8 | AP70: 0,81 | AQ70: 0,79 | AR70: 0,8 | AS70: 0,79 | AT70: 0,8 | AU70: 0,8 | AV70: 0,8 | AW70: 0,79 | AX70: 0,79 | AY70: 0,77 | AZ70: 0,77 | BA70: 0,78 | BB70: 0,75 | BC70: 0,74 | BD70: 0,73 | BE70: 0,73 | BF70: 0,74 | BG70: 0,74 | BH70: 0,73 | BI70: 0,74 | BJ70: 0,73 | BK70: 0,75 | BL70: 0,76 | BM70: 0,78 | BN70: 0,83 | BO70: 0,84 | BP70: 0.83 | BQ70: 0.83 | BR70: 0.83 | BS70: 0.82 | BT70: 0.83 | BU70: 0.84 | BV70: 0.86 | BW70: 0.85 | BX70: 0.85 | BY70: 0.84
A71: =C71 -> 1796 | B71: Sächsische Schweiz / Pirna | C71: 1796 | D71: 0,98 | E71: 0,95 | F71: 0,95 | G71: 0,98 | H71: 0,98 | I71: 0,97 | J71: 0,97 | K71: 0,97 | L71: 0,99 | M71: 0,98 | N71: 1 | O71: 0,98 | P71: 0,97 | Q71: 0,97 | R71: 0,96 | S71: 0,94 | T71: 0,91 | U71: 0,92 | V71: 0,92 | W71: 0,92 | X71: 0,89 | Y71: 0,89 | Z71: 0,88 | AA71: 0,85 | AB71: 0,88 | AC71: 0,88 | AD71: 0,88 | AE71: 0,91 | AF71: 0,93 | AG71: 0,94 | AH71: 0,93 | AI71: 0,93 | AJ71: 0,96 | AK71: 0,98 | AL71: 0,96 | AM71: 1,03 | AN71: 1,04 | AO71: 1,01 | AP71: 1,03 | AQ71: 1,01 | AR71: 1,01 | AS71: 1 | AT71: 1,01 | AU71: 1,01 | AV71: 1 | AW71: 0,99 | AX71: 1,01 | AY71: 0,98 | AZ71: 0,97 | BA71: 0,99 | BB71: 0,94 | BC71: 0,94 | BD71: 0,93 | BE71: 0,92 | BF71: 0,93 | BG71: 0,93 | BH71: 0,91 | BI71: 0,93 | BJ71: 0,93 | BK71: 0,95 | BL71: 0,96 | BM71: 0,99 | BN71: 1,05 | BO71: 1,07 | BP71: 1.07 | BQ71: 1.07 | BR71: 1.06 | BS71: 1.05 | BT71: 1.08 | BU71: 1.09 | BV71: 1.10 | BW71: 1.10 | BX71: 1.12 | BY71: 1.08
A72: 1809 | B72: Sächsische Schweiz / Müglitztal | C72: 1809 | D72: 0,98 | E72: 0,96 | F72: 0,96 | G72: 0,99 | H72: 0,99 | I72: 0,97 | J72: 0,97 | K72: 0,97 | L72: 1 | M72: 0,99 | N72: 1 | O72: 0,99 | P72: 0,98 | Q72: 0,97 | R72: 0,97 | S72: 0,94 | T72: 0,92 | U72: 0,93 | V72: 0,93 | W72: 0,92 | X72: 0,9 | Y72: 0,89 | Z72: 0,88 | AA72: 0,85 | AB72: 0,89 | AC72: 0,89 | AD72: 0,89 | AE72: 0,91 | AF72: 0,94 | AG72: 0,95 | AH72: 0,93 | AI72: 0,93 | AJ72: 0,96 | AK72: 0,98 | AL72: 0,96 | AM72: 1,03 | AN72: 1,04 | AO72: 1,01 | AP72: 1,03 | AQ72: 1,01 | AR72: 1,01 | AS72: 1 | AT72: 1,01 | AU72: 1,02 | AV72: 1,01 | AW72: 1 | AX72: 1,01 | AY72: 0,99 | AZ72: 0,97 | BA72: 1 | BB72: 0,95 | BC72: 0,95 | BD72: 0,93 | BE72: 0,93 | BF72: 0,93 | BG72: 0,93 | BH72: 0,92 | BI72: 0,94 | BJ72: 0,94 | BK72: 0,96 | BL72: 0,96 | BM72: 0,99 | BN72: 1,06 | BO72: 1,08 | BP72: 1.07 | BQ72: 1.07 | BR72: 1.07 | BS72: 1.05 | BT72: 1.08 | BU72: 1.10 | BV72: 1.11 | BW72: 1.10 | BX72: 1.12 | BY72: 1.09
A73: 1814 | B73: Sächsische Schweiz / Bad Schandau | C73: 1814 | D73: 0,96 | E73: 0,94 | F73: 0,93 | G73: 0,97 | H73: 0,96 | I73: 0,95 | J73: 0,95 | K73: 0,95 | L73: 0,97 | M73: 0,96 | N73: 0,98 | O73: 0,96 | P73: 0,95 | Q73: 0,95 | R73: 0,94 | S73: 0,92 | T73: 0,9 | U73: 0,9 | V73: 0,91 | W73: 0,9 | X73: 0,87 | Y73: 0,87 | Z73: 0,86 | AA73: 0,83 | AB73: 0,87 | AC73: 0,87 | AD73: 0,87 | AE73: 0,89 | AF73: 0,91 | AG73: 0,92 | AH73: 0,91 | AI73: 0,91 | AJ73: 0,94 | AK73: 0,96 | AL73: 0,94 | AM73: 1,01 | AN73: 1,02 | AO73: 0,99 | AP73: 1 | AQ73: 0,98 | AR73: 0,99 | AS73: 0,98 | AT73: 0,99 | AU73: 0,99 | AV73: 0,98 | AW73: 0,97 | AX73: 0,99 | AY73: 0,96 | AZ73: 0,95 | BA73: 0,98 | BB73: 0,92 | BC73: 0,92 | BD73: 0,91 | BE73: 0,91 | BF73: 0,91 | BG73: 0,91 | BH73: 0,9 | BI73: 0,91 | BJ73: 0,91 | BK73: 0,93 | BL73: 0,94 | BM73: 0,97 | BN73: 1,03 | BO73: 1,05 | BP73: 1.04 | BQ73: 1.04 | BR73: 1.04 | BS73: 1.02 | BT73: 1.05 | BU73: 1.06 | BV73: 1.08 | BW73: 1.07 | BX73: 1.09 | BY73: 1.06
A74: 1816 | B74: Sächsische Schweiz / Bad Gottleuba-Berggießhübel | C74: 1816 | D74: 0,87 | E74: 0,85 | F74: 0,85 | G74: 0,88 | H74: 0,88 | I74: 0,86 | J74: 0,86 | K74: 0,87 | L74: 0,88 | M74: 0,88 | N74: 0,89 | O74: 0,88 | P74: 0,86 | Q74: 0,86 | R74: 0,86 | S74: 0,84 | T74: 0,82 | U74: 0,83 | V74: 0,83 | W74: 0,82 | X74: 0,8 | Y74: 0,8 | Z74: 0,79 | AA74: 0,77 | AB74: 0,79 | AC74: 0,8 | AD74: 0,8 | AE74: 0,82 | AF74: 0,84 | AG74: 0,84 | AH74: 0,83 | AI74: 0,83 | AJ74: 0,86 | AK74: 0,87 | AL74: 0,86 | AM74: 0,92 | AN74: 0,92 | AO74: 0,9 | AP74: 0,91 | AQ74: 0,89 | AR74: 0,9 | AS74: 0,89 | AT74: 0,9 | AU74: 0,9 | AV74: 0,9 | AW74: 0,89 | AX74: 0,9 | AY74: 0,87 | AZ74: 0,86 | BA74: 0,89 | BB74: 0,84 | BC74: 0,84 | BD74: 0,83 | BE74: 0,82 | BF74: 0,83 | BG74: 0,83 | BH74: 0,82 | BI74: 0,83 | BJ74: 0,83 | BK74: 0,85 | BL74: 0,85 | BM74: 0,88 | BN74: 0,94 | BO74: 0,95 | BP74: 0.94 | BQ74: 0.94 | BR74: 0.94 | BS74: 0.93 | BT74: 0.95 | BU74: 0.96 | BV74: 0.97 | BW74: 0.97 | BX74: 0.98 | BY74: 0.95
A75: 1819 | B75: Sächsische Schweiz / Bahretal | C75: 1819 | D75: 0,91 | E75: 0,89 | F75: 0,89 | G75: 0,91 | H75: 0,91 | I75: 0,9 | J75: 0,9 | K75: 0,9 | L75: 0,92 | M75: 0,91 | N75: 0,92 | O75: 0,91 | P75: 0,9 | Q75: 0,89 | R75: 0,89 | S75: 0,87 | T75: 0,85 | U75: 0,86 | V75: 0,86 | W75: 0,85 | X75: 0,83 | Y75: 0,83 | Z75: 0,82 | AA75: 0,8 | AB75: 0,82 | AC75: 0,82 | AD75: 0,83 | AE75: 0,85 | AF75: 0,87 | AG75: 0,88 | AH75: 0,86 | AI75: 0,87 | AJ75: 0,89 | AK75: 0,91 | AL75: 0,9 | AM75: 0,95 | AN75: 0,96 | AO75: 0,93 | AP75: 0,95 | AQ75: 0,93 | AR75: 0,93 | AS75: 0,93 | AT75: 0,94 | AU75: 0,94 | AV75: 0,93 | AW75: 0,92 | AX75: 0,93 | AY75: 0,91 | AZ75: 0,9 | BA75: 0,92 | BB75: 0,87 | BC75: 0,87 | BD75: 0,86 | BE75: 0,86 | BF75: 0,86 | BG75: 0,86 | BH75: 0,85 | BI75: 0,86 | BJ75: 0,86 | BK75: 0,88 | BL75: 0,89 | BM75: 0,92 | BN75: 0,97 | BO75: 0,99 | BP75: 0.98 | BQ75: 0.98 | BR75: 0.98 | BS75: 0.97 | BT75: 0.99 | BU75: 1.00 | BV75: 1.01 | BW75: 1.01 | BX75: 1.02 | BY75: 0.99
A76: 1824 | B76: Sächsische Schweiz / Gohrisch | C76: 1824 | D76: 0,93 | E76: 0,9 | F76: 0,9 | G76: 0,93 | H76: 0,93 | I76: 0,91 | J76: 0,91 | K76: 0,92 | L76: 0,94 | M76: 0,93 | N76: 0,94 | O76: 0,93 | P76: 0,92 | Q76: 0,91 | R76: 0,91 | S76: 0,89 | T76: 0,87 | U76: 0,87 | V76: 0,88 | W76: 0,87 | X76: 0,84 | Y76: 0,84 | Z76: 0,83 | AA76: 0,81 | AB76: 0,84 | AC76: 0,84 | AD76: 0,84 | AE76: 0,86 | AF76: 0,88 | AG76: 0,89 | AH76: 0,88 | AI76: 0,88 | AJ76: 0,9 | AK76: 0,92 | AL76: 0,91 | AM76: 0,97 | AN76: 0,98 | AO76: 0,95 | AP76: 0,97 | AQ76: 0,95 | AR76: 0,95 | AS76: 0,94 | AT76: 0,95 | AU76: 0,96 | AV76: 0,95 | AW76: 0,94 | AX76: 0,95 | AY76: 0,93 | AZ76: 0,91 | BA76: 0,94 | BB76: 0,89 | BC76: 0,89 | BD76: 0,87 | BE76: 0,87 | BF76: 0,88 | BG76: 0,88 | BH76: 0,87 | BI76: 0,88 | BJ76: 0,88 | BK76: 0,9 | BL76: 0,9 | BM76: 0,93 | BN76: 0,99 | BO76: 1,01 | BP76: 1 | BQ76: 1 | BR76: 1 | BS76: 0.99 | BT76: 1.01 | BU76: 1.02 | BV76: 1.03 | BW76: 1.03 | BX76: 1.04 | BY76: 1.01
A77: 1825 | B77: Sächsische Schweiz / Liebstadt | C77: 1825 | D77: 0,9 | E77: 0,88 | F77: 0,88 | G77: 0,9 | H77: 0,9 | I77: 0,88 | J77: 0,88 | K77: 0,89 | L77: 0,91 | M77: 0,9 | N77: 0,91 | O77: 0,9 | P77: 0,89 | Q77: 0,88 | R77: 0,88 | S77: 0,86 | T77: 0,84 | U77: 0,85 | V77: 0,85 | W77: 0,84 | X77: 0,82 | Y77: 0,82 | Z77: 0,81 | AA77: 0,79 | AB77: 0,81 | AC77: 0,81 | AD77: 0,82 | AE77: 0,84 | AF77: 0,86 | AG77: 0,87 | AH77: 0,85 | AI77: 0,86 | AJ77: 0,88 | AK77: 0,89 | AL77: 0,89 | AM77: 0,94 | AN77: 0,95 | AO77: 0,92 | AP77: 0,94 | AQ77: 0,92 | AR77: 0,92 | AS77: 0,91 | AT77: 0,92 | AU77: 0,93 | AV77: 0,92 | AW77: 0,91 | AX77: 0,92 | AY77: 0,9 | AZ77: 0,89 | BA77: 0,91 | BB77: 0,86 | BC77: 0,86 | BD77: 0,85 | BE77: 0,84 | BF77: 0,85 | BG77: 0,85 | BH77: 0,84 | BI77: 0,85 | BJ77: 0,85 | BK77: 0,87 | BL77: 0,88 | BM77: 0,9 | BN77: 0,96 | BO77: 0,97 | BP77: 0.97 | BQ77: 0.97 | BR77: 0.97 | BS77: 0.95 | BT77: 0.98 | BU77: 0.99 | BV77: 1.00 | BW77: 1.00 | BX77: 1.01 | BY77: 0.98
A78: 1829 | B78: Sächsische Schweiz / Stadt Wehlen | C78: 1829 | D78: 0,99 | E78: 0,96 | F78: 0,96 | G78: 0,99 | H78: 0,99 | I78: 0,97 | J78: 0,97 | K78: 0,98 | L78: 1 | M78: 0,99 | N78: 1 | O78: 0,99 | P78: 0,98 | Q78: 0,97 | R78: 0,97 | S78: 0,94 | T78: 0,92 | U78: 0,93 | V78: 0,93 | W78: 0,92 | X78: 0,9 | Y78: 0,89 | Z78: 0,88 | AA78: 0,86 | AB78: 0,89 | AC78: 0,89 | AD78: 0,89 | AE78: 0,91 | AF78: 0,94 | AG78: 0,95 | AH78: 0,93 | AI78: 0,94 | AJ78: 0,96 | AK78: 0,98 | AL78: 0,96 | AM78: 1,03 | AN78: 1,04 | AO78: 1,01 | AP78: 1,03 | AQ78: 1,01 | AR78: 1,02 | AS78: 1,01 | AT78: 1,02 | AU78: 1,02 | AV78: 1,01 | AW78: 1 | AX78: 1,02 | AY78: 0,99 | AZ78: 0,98 | BA78: 1 | BB78: 0,95 | BC78: 0,95 | BD78: 0,94 | BE78: 0,93 | BF78: 0,94 | BG78: 0,94 | BH78: 0,92 | BI78: 0,94 | BJ78: 0,94 | BK78: 0,96 | BL78: 0,97 | BM78: 0,99 | BN78: 1,06 | BO78: 1,08 | BP78: 1.07 | BQ78: 1.07 | BR78: 1.07 | BS78: 1.06 | BT78: 1.08 | BU78: 1.10 | BV78: 1.11 | BW78: 1.11 | BX78: 1.13 | BY78: 1.09
A79: 1833 | B79: Sächsische Schweiz / Stolpen | C79: 1833 | D79: 0,92 | E79: 0,9 | F79: 0,9 | G79: 0,92 | H79: 0,92 | I79: 0,91 | J79: 0,91 | K79: 0,91 | L79: 0,93 | M79: 0,92 | N79: 0,93 | O79: 0,92 | P79: 0,91 | Q79: 0,9 | R79: 0,9 | S79: 0,88 | T79: 0,86 | U79: 0,86 | V79: 0,87 | W79: 0,86 | X79: 0,84 | Y79: 0,84 | Z79: 0,82 | AA79: 0,8 | AB79: 0,83 | AC79: 0,83 | AD79: 0,83 | AE79: 0,85 | AF79: 0,88 | AG79: 0,88 | AH79: 0,87 | AI79: 0,87 | AJ79: 0,9 | AK79: 0,91 | AL79: 0,9 | AM79: 0,96 | AN79: 0,97 | AO79: 0,94 | AP79: 0,96 | AQ79: 0,94 | AR79: 0,94 | AS79: 0,93 | AT79: 0,94 | AU79: 0,95 | AV79: 0,94 | AW79: 0,93 | AX79: 0,94 | AY79: 0,92 | AZ79: 0,91 | BA79: 0,93 | BB79: 0,88 | BC79: 0,88 | BD79: 0,87 | BE79: 0,86 | BF79: 0,87 | BG79: 0,87 | BH79: 0,86 | BI79: 0,87 | BJ79: 0,87 | BK79: 0,89 | BL79: 0,9 | BM79: 0,92 | BN79: 0,98 | BO79: 1 | BP79: 0.99 | BQ79: 0.99 | BR79: 0.99 | BS79: 0.98 | BT79: 1.00 | BU79: 1.01 | BV79: 1.02 | BW79: 1.02 | BX79: 1.03 | BY79: 1.01
A80: 1844 | B80: Sächsische Schweiz / Hohwald | C80: 1844 | D80: 0,89 | E80: 0,87 | F80: 0,87 | G80: 0,9 | H80: 0,9 | I80: 0,88 | J80: 0,88 | K80: 0,89 | L80: 0,91 | M80: 0,9 | N80: 0,91 | O80: 0,9 | P80: 0,88 | Q80: 0,88 | R80: 0,88 | S80: 0,85 | T80: 0,83 | U80: 0,84 | V80: 0,84 | W80: 0,84 | X80: 0,82 | Y80: 0,81 | Z80: 0,8 | AA80: 0,78 | AB80: 0,81 | AC80: 0,81 | AD80: 0,81 | AE80: 0,83 | AF80: 0,85 | AG80: 0,86 | AH80: 0,85 | AI80: 0,85 | AJ80: 0,87 | AK80: 0,89 | AL80: 0,88 | AM80: 0,94 | AN80: 0,94 | AO80: 0,92 | AP80: 0,93 | AQ80: 0,92 | AR80: 0,92 | AS80: 0,91 | AT80: 0,92 | AU80: 0,92 | AV80: 0,92 | AW80: 0,91 | AX80: 0,92 | AY80: 0,89 | AZ80: 0,88 | BA80: 0,9 | BB80: 0,86 | BC80: 0,86 | BD80: 0,84 | BE80: 0,84 | BF80: 0,85 | BG80: 0,85 | BH80: 0,84 | BI80: 0,85 | BJ80: 0,85 | BK80: 0,86 | BL80: 0,87 | BM80: 0,9 | BN80: 0,96 | BO80: 0,97 | BP80: 0.97 | BQ80: 0.97 | BR80: 0.96 | BS80: 0.95 | BT80: 0.97 | BU80: 0.98 | BV80: 1.00 | BW80: 0.99 | BX80: 1.00 | BY80: 0.98
A81: 1847 | B81: Sächsische Schweiz / Lohmen | C81: 1847 | D81: 0,94 | E81: 0,92 | F81: 0,92 | G81: 0,95 | H81: 0,94 | I81: 0,93 | J81: 0,93 | K81: 0,93 | L81: 0,95 | M81: 0,94 | N81: 0,95 | O81: 0,94 | P81: 0,93 | Q81: 0,93 | R81: 0,92 | S81: 0,9 | T81: 0,88 | U81: 0,88 | V81: 0,89 | W81: 0,88 | X81: 0,86 | Y81: 0,85 | Z81: 0,84 | AA81: 0,82 | AB81: 0,85 | AC81: 0,85 | AD81: 0,85 | AE81: 0,87 | AF81: 0,9 | AG81: 0,9 | AH81: 0,89 | AI81: 0,89 | AJ81: 0,92 | AK81: 0,94 | AL81: 0,92 | AM81: 0,99 | AN81: 0,99 | AO81: 0,97 | AP81: 0,98 | AQ81: 0,96 | AR81: 0,97 | AS81: 0,96 | AT81: 0,97 | AU81: 0,97 | AV81: 0,96 | AW81: 0,95 | AX81: 0,97 | AY81: 0,94 | AZ81: 0,93 | BA81: 0,95 | BB81: 0,9 | BC81: 0,9 | BD81: 0,89 | BE81: 0,89 | BF81: 0,89 | BG81: 0,89 | BH81: 0,88 | BI81: 0,89 | BJ81: 0,89 | BK81: 0,91 | BL81: 0,92 | BM81: 0,95 | BN81: 1,01 | BO81: 1,02 | BP81: 1.02 | BQ81: 1.02 | BR81: 1.02 | BS81: 1.00 | BT81: 1.03 | BU81: 1.04 | BV81: 1.05 | BW81: 1.05 | BX81: 1.06 | BY81: 1.03
A82: 1848 | B82: Sächsische Schweiz / Hohnstein | C82: 1848 | D82: 0,9 | E82: 0,88 | F82: 0,88 | G82: 0,9 | H82: 0,9 | I82: 0,89 | J82: 0,89 | K82: 0,89 | L82: 0,91 | M82: 0,9 | N82: 0,91 | O82: 0,9 | P82: 0,89 | Q82: 0,88 | R82: 0,88 | S82: 0,86 | T82: 0,84 | U82: 0,85 | V82: 0,85 | W82: 0,84 | X82: 0,82 | Y82: 0,82 | Z82: 0,81 | AA82: 0,79 | AB82: 0,81 | AC82: 0,81 | AD82: 0,82 | AE82: 0,83 | AF82: 0,86 | AG82: 0,86 | AH82: 0,85 | AI82: 0,85 | AJ82: 0,88 | AK82: 0,89 | AL82: 0,88 | AM82: 0,94 | AN82: 0,95 | AO82: 0,92 | AP82: 0,94 | AQ82: 0,92 | AR82: 0,92 | AS82: 0,91 | AT82: 0,92 | AU82: 0,93 | AV82: 0,92 | AW82: 0,91 | AX82: 0,92 | AY82: 0,9 | AZ82: 0,89 | BA82: 0,91 | BB82: 0,86 | BC82: 0,86 | BD82: 0,85 | BE82: 0,84 | BF82: 0,85 | BG82: 0,85 | BH82: 0,84 | BI82: 0,85 | BJ82: 0,85 | BK82: 0,87 | BL82: 0,88 | BM82: 0,9 | BN82: 0,96 | BO82: 0,97 | BP82: 0.97 | BQ82: 0.97 | BR82: 0.97 | BS82: 0.95 | BT82: 0.98 | BU82: 0.99 | BV82: 1.00 | BW82: 0.99 | BX82: 1.01 | BY82: 0.98
A83: 1855 | B83: Sächsische Schweiz / Kirnitzschtal | C83: 1855 | D83: 0,92 | E83: 0,9 | F83: 0,89 | G83: 0,92 | H83: 0,92 | I83: 0,9 | J83: 0,9 | K83: 0,91 | L83: 0,93 | M83: 0,92 | N83: 0,93 | O83: 0,92 | P83: 0,91 | Q83: 0,9 | R83: 0,9 | S83: 0,88 | T83: 0,86 | U83: 0,86 | V83: 0,87 | W83: 0,86 | X83: 0,84 | Y83: 0,83 | Z83: 0,82 | AA83: 0,8 | AB83: 0,83 | AC83: 0,83 | AD83: 0,83 | AE83: 0,85 | AF83: 0,87 | AG83: 0,88 | AH83: 0,87 | AI83: 0,87 | AJ83: 0,9 | AK83: 0,91 | AL83: 0,9 | AM83: 0,96 | AN83: 0,97 | AO83: 0,94 | AP83: 0,96 | AQ83: 0,94 | AR83: 0,94 | AS83: 0,93 | AT83: 0,94 | AU83: 0,95 | AV83: 0,94 | AW83: 0,93 | AX83: 0,94 | AY83: 0,92 | AZ83: 0,91 | BA83: 0,93 | BB83: 0,88 | BC83: 0,88 | BD83: 0,87 | BE83: 0,86 | BF83: 0,87 | BG83: 0,87 | BH83: 0,86 | BI83: 0,87 | BJ83: 0,87 | BK83: 0,89 | BL83: 0,89 | BM83: 0,92 | BN83: 0,98 | BO83: 1 | BP83: 0.99 | BQ83: 0.99 | BR83: 0.99 | BS83: 0.98 | BT83: 1.00 | BU83: 1.01 | BV83: 1.02 | BW83: 1.02 | BX83: 1.03 | BY83: 1.01
A84: 1877 | B84: Bautzen / Rammenau | C84: 1877 | D84: 0,92 | E84: 0,9 | F84: 0,9 | G84: 0,93 | H84: 0,92 | I84: 0,91 | J84: 0,91 | K84: 0,91 | L84: 0,93 | M84: 0,92 | N84: 0,93 | O84: 0,92 | P84: 0,91 | Q84: 0,9 | R84: 0,9 | S84: 0,88 | T84: 0,86 | U84: 0,86 | V84: 0,87 | W84: 0,86 | X84: 0,84 | Y84: 0,84 | Z84: 0,82 | AA84: 0,8 | AB84: 0,83 | AC84: 0,83 | AD84: 0,83 | AE84: 0,85 | AF84: 0,88 | AG84: 0,88 | AH84: 0,87 | AI84: 0,87 | AJ84: 0,9 | AK84: 0,91 | AL84: 0,9 | AM84: 0,96 | AN84: 0,97 | AO84: 0,95 | AP84: 0,96 | AQ84: 0,94 | AR84: 0,95 | AS84: 0,94 | AT84: 0,95 | AU84: 0,95 | AV84: 0,94 | AW84: 0,93 | AX84: 0,94 | AY84: 0,92 | AZ84: 0,91 | BA84: 0,93 | BB84: 0,88 | BC84: 0,88 | BD84: 0,87 | BE84: 0,86 | BF84: 0,87 | BG84: 0,87 | BH84: 0,86 | BI84: 0,87 | BJ84: 0,87 | BK84: 0,89 | BL84: 0,9 | BM84: 0,93 | BN84: 0,99 | BO84: 1 | BP84: 1 | BQ84: 1 | BR84: 0.99 | BS84: 0.98 | BT84: 1.00 | BU84: 1.02 | BV84: 1.03 | BW84: 1.02 | BX84: 1.04 | BY84: 1.01
A85: 1896 | B85: Kamenz / Lichtenberg | C85: 1896 | D85: 0,91 | E85: 0,89 | F85: 0,89 | G85: 0,92 | H85: 0,91 | I85: 0,9 | J85: 0,9 | K85: 0,9 | L85: 0,92 | M85: 0,91 | N85: 0,92 | O85: 0,91 | P85: 0,9 | Q85: 0,89 | R85: 0,89 | S85: 0,87 | T85: 0,85 | U85: 0,86 | V85: 0,86 | W85: 0,85 | X85: 0,83 | Y85: 0,83 | Z85: 0,82 | AA85: 0,79 | AB85: 0,82 | AC85: 0,82 | AD85: 0,83 | AE85: 0,84 | AF85: 0,87 | AG85: 0,87 | AH85: 0,86 | AI85: 0,86 | AJ85: 0,89 | AK85: 0,91 | AL85: 0,9 | AM85: 0,95 | AN85: 0,96 | AO85: 0,94 | AP85: 0,95 | AQ85: 0,93 | AR85: 0,94 | AS85: 0,93 | AT85: 0,94 | AU85: 0,94 | AV85: 0,93 | AW85: 0,92 | AX85: 0,93 | AY85: 0,91 | AZ85: 0,9 | BA85: 0,92 | BB85: 0,87 | BC85: 0,87 | BD85: 0,86 | BE85: 0,85 | BF85: 0,86 | BG85: 0,86 | BH85: 0,85 | BI85: 0,86 | BJ85: 0,86 | BK85: 0,88 | BL85: 0,89 | BM85: 0,92 | BN85: 0,98 | BO85: 0,99 | BP85: 0.99 | BQ85: 0.99 | BR85: 0.98 | BS85: 0.97 | BT85: 0.99 | BU85: 1.00 | BV85: 1.02 | BW85: 1.01 | BX85: 1.03 | BY85: 1.00
A86: 1900 | B86: Kamenz / Großröhrsdorf | C86: 1900 | D86: 0,92 | E86: 0,9 | F86: 0,9 | G86: 0,93 | H86: 0,92 | I86: 0,91 | J86: 0,91 | K86: 0,91 | L86: 0,93 | M86: 0,92 | N86: 0,93 | O86: 0,92 | P86: 0,91 | Q86: 0,9 | R86: 0,9 | S86: 0,88 | T86: 0,86 | U86: 0,87 | V86: 0,87 | W86: 0,86 | X86: 0,84 | Y86: 0,84 | Z86: 0,83 | AA86: 0,8 | AB86: 0,83 | AC86: 0,83 | AD86: 0,83 | AE86: 0,85 | AF86: 0,88 | AG86: 0,88 | AH86: 0,87 | AI86: 0,87 | AJ86: 0,9 | AK86: 0,92 | AL86: 0,9 | AM86: 0,97 | AN86: 0,97 | AO86: 0,95 | AP86: 0,96 | AQ86: 0,94 | AR86: 0,95 | AS86: 0,94 | AT86: 0,95 | AU86: 0,95 | AV86: 0,94 | AW86: 0,93 | AX86: 0,94 | AY86: 0,92 | AZ86: 0,91 | BA86: 0,93 | BB86: 0,88 | BC86: 0,88 | BD86: 0,87 | BE86: 0,87 | BF86: 0,87 | BG86: 0,87 | BH86: 0,86 | BI86: 0,87 | BJ86: 0,87 | BK86: 0,89 | BL86: 0,9 | BM86: 0,93 | BN86: 0,99 | BO86: 1 | BP86: 1 | BQ86: 1 | BR86: 0.99 | BS86: 0.98 | BT86: 1.00 | BU86: 1.02 | BV86: 1.03 | BW86: 1.02 | BX86: 1.04 | BY86: 1.01
A87: 1904 | B87: Bautzen / Neukirch/Lausitz | C87: 1904 | D87: 0,88 | E87: 0,86 | F87: 0,86 | G87: 0,89 | H87: 0,89 | I87: 0,87 | J87: 0,87 | K87: 0,88 | L87: 0,89 | M87: 0,88 | N87: 0,9 | O87: 0,88 | P87: 0,87 | Q87: 0,87 | R87: 0,86 | S87: 0,84 | T87: 0,82 | U87: 0,83 | V87: 0,83 | W87: 0,83 | X87: 0,81 | Y87: 0,8 | Z87: 0,79 | AA87: 0,77 | AB87: 0,8 | AC87: 0,8 | AD87: 0,8 | AE87: 0,82 | AF87: 0,84 | AG87: 0,85 | AH87: 0,84 | AI87: 0,84 | AJ87: 0,86 | AK87: 0,88 | AL87: 0,87 | AM87: 0,92 | AN87: 0,93 | AO87: 0,91 | AP87: 0,92 | AQ87: 0,9 | AR87: 0,91 | AS87: 0,9 | AT87: 0,91 | AU87: 0,91 | AV87: 0,9 | AW87: 0,9 | AX87: 0,9 | AY87: 0,88 | AZ87: 0,87 | BA87: 0,89 | BB87: 0,85 | BC87: 0,84 | BD87: 0,83 | BE87: 0,83 | BF87: 0,84 | BG87: 0,84 | BH87: 0,83 | BI87: 0,84 | BJ87: 0,83 | BK87: 0,85 | BL87: 0,86 | BM87: 0,89 | BN87: 0,95 | BO87: 0,96 | BP87: 0.95 | BQ87: 0.95 | BR87: 0.95 | BS87: 0.94 | BT87: 0.96 | BU87: 0.97 | BV87: 0.98 | BW87: 0.98 | BX87: 0.99 | BY87: 0.96
A88: 1906 | B88: Bautzen / Burkau | C88: 1906 | D88: 0,94 | E88: 0,91 | F88: 0,91 | G88: 0,94 | H88: 0,94 | I88: 0,92 | J88: 0,92 | K88: 0,93 | L88: 0,95 | M88: 0,94 | N88: 0,95 | O88: 0,93 | P88: 0,92 | Q88: 0,92 | R88: 0,91 | S88: 0,89 | T88: 0,87 | U88: 0,88 | V88: 0,88 | W88: 0,87 | X88: 0,85 | Y88: 0,85 | Z88: 0,84 | AA88: 0,81 | AB88: 0,84 | AC88: 0,84 | AD88: 0,84 | AE88: 0,86 | AF88: 0,89 | AG88: 0,89 | AH88: 0,88 | AI88: 0,88 | AJ88: 0,91 | AK88: 0,93 | AL88: 0,91 | AM88: 0,98 | AN88: 0,98 | AO88: 0,96 | AP88: 0,98 | AQ88: 0,96 | AR88: 0,96 | AS88: 0,95 | AT88: 0,96 | AU88: 0,96 | AV88: 0,96 | AW88: 0,95 | AX88: 0,96 | AY88: 0,93 | AZ88: 0,92 | BA88: 0,95 | BB88: 0,89 | BC88: 0,89 | BD88: 0,88 | BE88: 0,88 | BF88: 0,89 | BG88: 0,88 | BH88: 0,87 | BI88: 0,89 | BJ88: 0,89 | BK88: 0,91 | BL88: 0,91 | BM88: 0,94 | BN88: 1 | BO88: 1,02 | BP88: 1.01 | BQ88: 1.01 | BR88: 1.01 | BS88: 0.99 | BT88: 1.02 | BU88: 1.03 | BV88: 1.04 | BW88: 1.04 | BX88: 1.06 | BY88: 1.03
A89: 1909 | B89: Bautzen / Frankenthal | C89: 1909 | D89: 0,92 | E89: 0,9 | F89: 0,9 | G89: 0,92 | H89: 0,92 | I89: 0,91 | J89: 0,91 | K89: 0,91 | L89: 0,93 | M89: 0,92 | N89: 0,93 | O89: 0,92 | P89: 0,91 | Q89: 0,9 | R89: 0,9 | S89: 0,88 | T89: 0,86 | U89: 0,86 | V89: 0,87 | W89: 0,86 | X89: 0,84 | Y89: 0,83 | Z89: 0,82 | AA89: 0,8 | AB89: 0,83 | AC89: 0,83 | AD89: 0,83 | AE89: 0,85 | AF89: 0,87 | AG89: 0,88 | AH89: 0,87 | AI89: 0,87 | AJ89: 0,9 | AK89: 0,91 | AL89: 0,9 | AM89: 0,96 | AN89: 0,97 | AO89: 0,94 | AP89: 0,96 | AQ89: 0,94 | AR89: 0,94 | AS89: 0,93 | AT89: 0,94 | AU89: 0,95 | AV89: 0,94 | AW89: 0,93 | AX89: 0,94 | AY89: 0,92 | AZ89: 0,91 | BA89: 0,93 | BB89: 0,88 | BC89: 0,88 | BD89: 0,87 | BE89: 0,86 | BF89: 0,87 | BG89: 0,87 | BH89: 0,86 | BI89: 0,87 | BJ89: 0,87 | BK89: 0,89 | BL89: 0,9 | BM89: 0,92 | BN89: 0,98 | BO89: 1 | BP89: 0.99 | BQ89: 0.99 | BR89: 0.99 | BS89: 0.98 | BT89: 1.00 | BU89: 1.01 | BV89: 1.03 | BW89: 1.02 | BX89: 1.03 | BY89: 1.01
A90: 1917 | B90: Kamenz / Kamenz | C90: 1917 | D90: 0,99 | E90: 0,96 | F90: 0,96 | G90: 1 | H90: 0,99 | I90: 0,98 | J90: 0,98 | K90: 0,98 | L90: 1 | M90: 0,99 | N90: 1,01 | O90: 0,99 | P90: 0,98 | Q90: 0,97 | R90: 0,97 | S90: 0,94 | T90: 0,92 | U90: 0,92 | V90: 0,93 | W90: 0,92 | X90: 0,9 | Y90: 0,89 | Z90: 0,88 | AA90: 0,85 | AB90: 0,89 | AC90: 0,89 | AD90: 0,89 | AE90: 0,91 | AF90: 0,94 | AG90: 0,95 | AH90: 0,94 | AI90: 0,94 | AJ90: 0,97 | AK90: 0,99 | AL90: 0,97 | AM90: 1,04 | AN90: 1,05 | AO90: 1,02 | AP90: 1,04 | AQ90: 1,02 | AR90: 1,02 | AS90: 1,01 | AT90: 1,02 | AU90: 1,02 | AV90: 1,01 | AW90: 1 | AX90: 1,02 | AY90: 0,99 | AZ90: 0,97 | BA90: 1 | BB90: 0,94 | BC90: 0,94 | BD90: 0,93 | BE90: 0,93 | BF90: 0,93 | BG90: 0,93 | BH90: 0,92 | BI90: 0,94 | BJ90: 0,93 | BK90: 0,96 | BL90: 0,96 | BM90: 1 | BN90: 1,07 | BO90: 1,08 | BP90: 1.08 | BQ90: 1.08 | BR90: 1.08 | BS90: 1.06 | BT90: 1.09 | BU90: 1.11 | BV90: 1.12 | BW90: 1.11 | BX90: 1.13 | BY90: 1.10
A91: 1920 | B91: Kamenz / Crostwitz | C91: 1920 | D91: 0,96 | E91: 0,93 | F91: 0,93 | G91: 0,96 | H91: 0,96 | I91: 0,94 | J91: 0,94 | K91: 0,95 | L91: 0,97 | M91: 0,96 | N91: 0,97 | O91: 0,96 | P91: 0,94 | Q91: 0,94 | R91: 0,93 | S91: 0,91 | T91: 0,89 | U91: 0,9 | V91: 0,9 | W91: 0,89 | X91: 0,87 | Y91: 0,87 | Z91: 0,85 | AA91: 0,83 | AB91: 0,86 | AC91: 0,86 | AD91: 0,86 | AE91: 0,88 | AF91: 0,91 | AG91: 0,91 | AH91: 0,9 | AI91: 0,9 | AJ91: 0,93 | AK91: 0,95 | AL91: 0,93 | AM91: 1 | AN91: 1,01 | AO91: 0,98 | AP91: 1 | AQ91: 0,98 | AR91: 0,98 | AS91: 0,97 | AT91: 0,98 | AU91: 0,99 | AV91: 0,98 | AW91: 0,97 | AX91: 0,98 | AY91: 0,95 | AZ91: 0,94 | BA91: 0,97 | BB91: 0,92 | BC91: 0,92 | BD91: 0,9 | BE91: 0,9 | BF91: 0,91 | BG91: 0,9 | BH91: 0,89 | BI91: 0,91 | BJ91: 0,91 | BK91: 0,93 | BL91: 0,93 | BM91: 0,96 | BN91: 1,03 | BO91: 1,04 | BP91: 1.04 | BQ91: 1.04 | BR91: 1.03 | BS91: 1.02 | BT91: 1.05 | BU91: 1.06 | BV91: 1.07 | BW91: 1.07 | BX91: 1.08 | BY91: 1.05
A92: 1936 | B92: Kamenz / Schwepnitz | C92: 1936 | D92: 0,96 | E92: 0,94 | F92: 0,94 | G92: 0,97 | H92: 0,96 | I92: 0,95 | J92: 0,95 | K92: 0,95 | L92: 0,97 | M92: 0,96 | N92: 0,98 | O92: 0,96 | P92: 0,95 | Q92: 0,94 | R92: 0,94 | S92: 0,91 | T92: 0,89 | U92: 0,9 | V92: 0,9 | W92: 0,9 | X92: 0,87 | Y92: 0,87 | Z92: 0,86 | AA92: 0,83 | AB92: 0,86 | AC92: 0,86 | AD92: 0,87 | AE92: 0,89 | AF92: 0,91 | AG92: 0,92 | AH92: 0,91 | AI92: 0,91 | AJ92: 0,94 | AK92: 0,95 | AL92: 0,94 | AM92: 1,01 | AN92: 1,01 | AO92: 0,99 | AP92: 1,01 | AQ92: 0,99 | AR92: 0,99 | AS92: 0,98 | AT92: 0,99 | AU92: 0,99 | AV92: 0,98 | AW92: 0,97 | AX92: 0,99 | AY92: 0,96 | AZ92: 0,95 | BA92: 0,97 | BB92: 0,92 | BC92: 0,92 | BD92: 0,91 | BE92: 0,9 | BF92: 0,91 | BG92: 0,91 | BH92: 0,9 | BI92: 0,91 | BJ92: 0,91 | BK92: 0,93 | BL92: 0,94 | BM92: 0,97 | BN92: 1,03 | BO92: 1,05 | BP92: 1.04 | BQ92: 1.04 | BR92: 1.04 | BS92: 1.03 | BT92: 1.05 | BU92: 1.07 | BV92: 1.08 | BW92: 1.07 | BX92: 1.09 | BY92: 1.06
A93: 1945 | B93: Oberspreewald-Lausitz / Ruhland | C93: 1945 | D93: 1 | E93: 0,97 | F93: 0,97 | G93: 1 | H93: 1 | I93: 0,98 | J93: 0,98 | K93: 0,99 | L93: 1,01 | M93: 1 | N93: 1,01 | O93: 1 | P93: 0,98 | Q93: 0,98 | R93: 0,97 | S93: 0,95 | T93: 0,92 | U93: 0,93 | V93: 0,93 | W93: 0,93 | X93: 0,9 | Y93: 0,9 | Z93: 0,89 | AA93: 0,86 | AB93: 0,89 | AC93: 0,89 | AD93: 0,89 | AE93: 0,92 | AF93: 0,94 | AG93: 0,95 | AH93: 0,94 | AI93: 0,94 | AJ93: 0,97 | AK93: 0,99 | AL93: 0,97 | AM93: 1,04 | AN93: 1,05 | AO93: 1,03 | AP93: 1,05 | AQ93: 1,02 | AR93: 1,03 | AS93: 1,02 | AT93: 1,02 | AU93: 1,03 | AV93: 1,02 | AW93: 1,01 | AX93: 1,02 | AY93: 1 | AZ93: 0,98 | BA93: 1,01 | BB93: 0,95 | BC93: 0,95 | BD93: 0,94 | BE93: 0,94 | BF93: 0,94 | BG93: 0,94 | BH93: 0,93 | BI93: 0,95 | BJ93: 0,95 | BK93: 0,97 | BL93: 0,97 | BM93: 1 | BN93: 1,07 | BO93: 1,09 | BP93: 1.09 | BQ93: 1.09 | BR93: 1.08 | BS93: 1.07 | BT93: 1.10 | BU93: 1.11 | BV93: 1.12 | BW93: 1.12 | BX93: 1.14 | BY93: 1.10
A94: 1968 | B94: Oberspreewald-Lausitz / Schipkau | C94: 1968 | D94: 1,01 | E94: 0,98 | F94: 0,98 | G94: 1,02 | H94: 1,01 | I94: 1 | J94: 1 | K94: 1 | L94: 1,02 | M94: 1,01 | N94: 1,03 | O94: 1,01 | P94: 1 | Q94: 0,99 | R94: 0,99 | S94: 0,96 | T94: 0,93 | U94: 0,94 | V94: 0,94 | W94: 0,94 | X94: 0,91 | Y94: 0,91 | Z94: 0,9 | AA94: 0,87 | AB94: 0,9 | AC94: 0,9 | AD94: 0,9 | AE94: 0,93 | AF94: 0,96 | AG94: 0,96 | AH94: 0,95 | AI94: 0,95 | AJ94: 0,98 | AK94: 1 | AL94: 0,98 | AM94: 1,06 | AN94: 1,07 | AO94: 1,04 | AP94: 1,06 | AQ94: 1,04 | AR94: 1,04 | AS94: 1,03 | AT94: 1,04 | AU94: 1,04 | AV94: 1,03 | AW94: 1,02 | AX94: 1,04 | AY94: 1,01 | AZ94: 0,99 | BA94: 1,02 | BB94: 0,96 | BC94: 0,96 | BD94: 0,95 | BE94: 0,95 | BF94: 0,95 | BG94: 0,95 | BH94: 0,94 | BI94: 0,96 | BJ94: 0,96 | BK94: 0,98 | BL94: 0,98 | BM94: 1,02 | BN94: 1,09 | BO94: 1,11 | BP94: 1.1 | BQ94: 1.1 | BR94: 1.1 | BS94: 1.09 | BT94: 1.12 | BU94: 1.13 | BV94: 1.14 | BW94: 1.14 | BX94: 1.16 | BY94: 1.12
A95: 1979 | B95: Oberspreewald-Lausitz / Lauchhammer | C95: 1979 | D95: 1,02 | E95: 1 | F95: 1 | G95: 1,03 | H95: 1,03 | I95: 1,01 | J95: 1,01 | K95: 1,02 | L95: 1,04 | M95: 1,03 | N95: 1,04 | O95: 1,03 | P95: 1,01 | Q95: 1,01 | R95: 1 | S95: 0,97 | T95: 0,95 | U95: 0,95 | V95: 0,96 | W95: 0,95 | X95: 0,93 | Y95: 0,92 | Z95: 0,91 | AA95: 0,88 | AB95: 0,92 | AC95: 0,92 | AD95: 0,92 | AE95: 0,94 | AF95: 0,97 | AG95: 0,98 | AH95: 0,97 | AI95: 0,97 | AJ95: 1 | AK95: 1,02 | AL95: 1 | AM95: 1,08 | AN95: 1,09 | AO95: 1,07 | AP95: 1,09 | AQ95: 1,06 | AR95: 1,06 | AS95: 1,05 | AT95: 1,06 | AU95: 1,06 | AV95: 1,05 | AW95: 1,04 | AX95: 1,05 | AY95: 1,02 | AZ95: 1,01 | BA95: 1,03 | BB95: 0,97 | BC95: 0,97 | BD95: 0,96 | BE95: 0,96 | BF95: 0,96 | BG95: 0,96 | BH95: 0,95 | BI95: 0,97 | BJ95: 0,97 | BK95: 0,99 | BL95: 1 | BM95: 1,03 | BN95: 1,11 | BO95: 1,13 | BP95: 1.12 | BQ95: 1.12 | BR95: 1.12 | BS95: 1.11 | BT95: 1.14 | BU95: 1.16 | BV95: 1.17 | BW95: 1.16 | BX95: 1.18 | BY95: 1.15
A96: 1983 | B96: Oberspreewald-Lausitz / Neu-Seeland | C96: 1983 | D96: 1,02 | E96: 0,99 | F96: 0,99 | G96: 1,03 | H96: 1,02 | I96: 1,01 | J96: 1,01 | K96: 1,01 | L96: 1,03 | M96: 1,02 | N96: 1,04 | O96: 1,02 | P96: 1,01 | Q96: 1 | R96: 1 | S96: 0,97 | T96: 0,94 | U96: 0,95 | V96: 0,95 | W96: 0,94 | X96: 0,92 | Y96: 0,92 | Z96: 0,9 | AA96: 0,87 | AB96: 0,91 | AC96: 0,91 | AD96: 0,91 | AE96: 0,93 | AF96: 0,96 | AG96: 0,97 | AH96: 0,96 | AI96: 0,97 | AJ96: 0,99 | AK96: 1,01 | AL96: 1 | AM96: 1,08 | AN96: 1,09 | AO96: 1,06 | AP96: 1,08 | AQ96: 1,05 | AR96: 1,05 | AS96: 1,04 | AT96: 1,05 | AU96: 1,05 | AV96: 1,04 | AW96: 1,03 | AX96: 1,04 | AY96: 1,01 | AZ96: 1 | BA96: 1,03 | BB96: 0,96 | BC96: 0,96 | BD96: 0,95 | BE96: 0,95 | BF96: 0,95 | BG96: 0,95 | BH96: 0,94 | BI96: 0,96 | BJ96: 0,96 | BK96: 0,98 | BL96: 0,99 | BM96: 1,02 | BN96: 1,1 | BO96: 1,12 | BP96: 1.11 | BQ96: 1.12 | BR96: 1.11 | BS96: 1.10 | BT96: 1.13 | BU96: 1.15 | BV96: 1.16 | BW96: 1.15 | BX96: 1.18 | BY96: 1.14
A97: 1987 | B97: Oberspreewald-Lausitz / Schwarzheide | C97: 1987 | D97: 1,01 | E97: 0,99 | F97: 0,99 | G97: 1,02 | H97: 1,02 | I97: 1 | J97: 1 | K97: 1 | L97: 1,03 | M97: 1,02 | N97: 1,03 | O97: 1,02 | P97: 1 | Q97: 1 | R97: 0,99 | S97: 0,96 | T97: 0,94 | U97: 0,95 | V97: 0,95 | W97: 0,94 | X97: 0,92 | Y97: 0,91 | Z97: 0,9 | AA97: 0,87 | AB97: 0,91 | AC97: 0,91 | AD97: 0,91 | AE97: 0,93 | AF97: 0,96 | AG97: 0,97 | AH97: 0,96 | AI97: 0,96 | AJ97: 0,99 | AK97: 1,01 | AL97: 0,99 | AM97: 1,07 | AN97: 1,08 | AO97: 1,05 | AP97: 1,07 | AQ97: 1,05 | AR97: 1,05 | AS97: 1,04 | AT97: 1,04 | AU97: 1,05 | AV97: 1,04 | AW97: 1,03 | AX97: 1,04 | AY97: 1,01 | AZ97: 1 | BA97: 1,03 | BB97: 0,97 | BC97: 0,97 | BD97: 0,95 | BE97: 0,95 | BF97: 0,95 | BG97: 0,95 | BH97: 0,94 | BI97: 0,96 | BJ97: 0,96 | BK97: 0,98 | BL97: 0,99 | BM97: 1,02 | BN97: 1,1 | BO97: 1,12 | BP97: 1.11 | BQ97: 1.11 | BR97: 1.11 | BS97: 1.09 | BT97: 1.12 | BU97: 1.14 | BV97: 1.15 | BW97: 1.15 | BX97: 1.17 | BY97: 1.13
A98: 1990 | B98: Oberspreewald-Lausitz / Ortrand | C98: 1990 | D98: 1 | E98: 0,97 | F98: 0,97 | G98: 1,01 | H98: 1 | I98: 0,99 | J98: 0,99 | K98: 0,99 | L98: 1,01 | M98: 1 | N98: 1,02 | O98: 1 | P98: 0,99 | Q98: 0,98 | R98: 0,98 | S98: 0,95 | T98: 0,93 | U98: 0,93 | V98: 0,94 | W98: 0,93 | X98: 0,91 | Y98: 0,9 | Z98: 0,89 | AA98: 0,86 | AB98: 0,89 | AC98: 0,9 | AD98: 0,9 | AE98: 0,92 | AF98: 0,95 | AG98: 0,96 | AH98: 0,94 | AI98: 0,95 | AJ98: 0,97 | AK98: 0,99 | AL98: 0,97 | AM98: 1,05 | AN98: 1,06 | AO98: 1,03 | AP98: 1,05 | AQ98: 1,03 | AR98: 1,03 | AS98: 1,02 | AT98: 1,03 | AU98: 1,03 | AV98: 1,02 | AW98: 1,01 | AX98: 1,03 | AY98: 1 | AZ98: 0,98 | BA98: 1,01 | BB98: 0,95 | BC98: 0,95 | BD98: 0,94 | BE98: 0,94 | BF98: 0,94 | BG98: 0,94 | BH98: 0,93 | BI98: 0,95 | BJ98: 0,95 | BK98: 0,97 | BL98: 0,97 | BM98: 1,01 | BN98: 1,08 | BO98: 1,09 | BP98: 1.09 | BQ98: 1.09 | BR98: 1.09 | BS98: 1.07 | BT98: 1.10 | BU98: 1.12 | BV98: 1.13 | BW98: 1.12 | BX98: 1.14 | BY98: 1.11
A99: 1993 | B99: Oberspreewald-Lausitz / Schipkau | C99: 1993 | D99: 0,99 | E99: 0,97 | F99: 0,97 | G99: 1 | H99: 1 | I99: 0,98 | J99: 0,98 | K99: 0,98 | L99: 1,01 | M99: 0,99 | N99: 1,01 | O99: 1 | P99: 0,98 | Q99: 0,97 | R99: 0,97 | S99: 0,94 | T99: 0,92 | U99: 0,93 | V99: 0,93 | W99: 0,92 | X99: 0,9 | Y99: 0,9 | Z99: 0,88 | AA99: 0,86 | AB99: 0,89 | AC99: 0,89 | AD99: 0,89 | AE99: 0,91 | AF99: 0,94 | AG99: 0,95 | AH99: 0,94 | AI99: 0,94 | AJ99: 0,96 | AK99: 0,98 | AL99: 0,97 | AM99: 1,04 | AN99: 1,05 | AO99: 1,02 | AP99: 1,04 | AQ99: 1,02 | AR99: 1,02 | AS99: 1,01 | AT99: 1,02 | AU99: 1,03 | AV99: 1,02 | AW99: 1 | AX99: 1,02 | AY99: 0,99 | AZ99: 0,98 | BA99: 1 | BB99: 0,95 | BC99: 0,95 | BD99: 0,93 | BE99: 0,93 | BF99: 0,94 | BG99: 0,94 | BH99: 0,92 | BI99: 0,94 | BJ99: 0,94 | BK99: 0,96 | BL99: 0,97 | BM99: 1 | BN99: 1,07 | BO99: 1,09 | BP99: 1.08 | BQ99: 1.08 | BR99: 1.08 | BS99: 1.07 | BT99: 1.09 | BU99: 1.11 | BV99: 1.12 | BW99: 1.11 | BX99: 1.14 | BY99: 1.10
A100: 1994 | B100: Oberspreewald-Lausitz / Schipkau | C100: 1994 | D100: 0,97 | E100: 0,95 | F100: 0,95 | G100: 0,98 | H100: 0,97 | I100: 0,96 | J100: 0,96 | K100: 0,96 | L100: 0,98 | M100: 0,97 | N100: 0,98 | O100: 0,97 | P100: 0,95 | Q100: 0,95 | R100: 0,94 | S100: 0,92 | T100: 0,9 | U100: 0,9 | V100: 0,91 | W100: 0,9 | X100: 0,88 | Y100: 0,87 | Z100: 0,86 | AA100: 0,84 | AB100: 0,87 | AC100: 0,87 | AD100: 0,87 | AE100: 0,89 | AF100: 0,92 | AG100: 0,92 | AH100: 0,91 | AI100: 0,91 | AJ100: 0,94 | AK100: 0,96 | AL100: 0,94 | AM100: 1,01 | AN100: 1,02 | AO100: 1 | AP100: 1,02 | AQ100: 0,99 | AR100: 1 | AS100: 0,99 | AT100: 0,99 | AU100: 1 | AV100: 0,99 | AW100: 0,98 | AX100: 0,99 | AY100: 0,96 | AZ100: 0,95 | BA100: 0,98 | BB100: 0,92 | BC100: 0,92 | BD100: 0,91 | BE100: 0,91 | BF100: 0,91 | BG100: 0,91 | BH100: 0,9 | BI100: 0,92 | BJ100: 0,92 | BK100: 0,94 | BL100: 0,94 | BM100: 0,97 | BN100: 1,04 | BO100: 1,06 | BP100: 1.05 | BQ100: 1.05 | BR100: 1.05 | BS100: 1.03 | BT100: 1.06 | BU100: 1.08 | BV100: 1.09 | BW100: 1.08 | BX100: 1.10 | BY100: 1.07
A101: 1996 | B101: Oberspreewald-Lausitz / Schipkau | C101: 1996 | D101: 1 | E101: 0,97 | F101: 0,97 | G101: 1,01 | H101: 1 | I101: 0,99 | J101: 0,99 | K101: 0,99 | L101: 1,01 | M101: 1 | N101: 1,01 | O101: 1 | P101: 0,98 | Q101: 0,98 | R101: 0,98 | S101: 0,95 | T101: 0,92 | U101: 0,93 | V101: 0,93 | W101: 0,93 | X101: 0,9 | Y101: 0,9 | Z101: 0,89 | AA101: 0,86 | AB101: 0,89 | AC101: 0,89 | AD101: 0,89 | AE101: 0,92 | AF101: 0,95 | AG101: 0,95 | AH101: 0,94 | AI101: 0,94 | AJ101: 0,97 | AK101: 0,99 | AL101: 0,97 | AM101: 1,05 | AN101: 1,06 | AO101: 1,03 | AP101: 1,05 | AQ101: 1,03 | AR101: 1,03 | AS101: 1,02 | AT101: 1,03 | AU101: 1,03 | AV101: 1,02 | AW101: 1,01 | AX101: 1,02 | AY101: 1 | AZ101: 0,98 | BA101: 1,01 | BB101: 0,95 | BC101: 0,95 | BD101: 0,94 | BE101: 0,94 | BF101: 0,94 | BG101: 0,94 | BH101: 0,93 | BI101: 0,95 | BJ101: 0,95 | BK101: 0,97 | BL101: 0,97 | BM101: 1 | BN101: 1,08 | BO101: 1,09 | BP101: 1.09 | BQ101: 1.09 | BR101: 1.09 | BS101: 1.07 | BT101: 1.10 | BU101: 1.12 | BV101: 1.13 | BW101: 1.12 | BX101: 1.14 | BY101: 1.11
A102: 1998 | B102: Oberspreewald-Lausitz / Schipkau | C102: 1998 | D102: 0,99 | E102: 0,96 | F102: 0,96 | G102: 1 | H102: 0,99 | I102: 0,98 | J102: 0,97 | K102: 0,98 | L102: 1 | M102: 0,99 | N102: 1 | O102: 0,99 | P102: 0,97 | Q102: 0,97 | R102: 0,96 | S102: 0,94 | T102: 0,91 | U102: 0,92 | V102: 0,92 | W102: 0,92 | X102: 0,89 | Y102: 0,89 | Z102: 0,88 | AA102: 0,85 | AB102: 0,88 | AC102: 0,88 | AD102: 0,89 | AE102: 0,91 | AF102: 0,93 | AG102: 0,94 | AH102: 0,93 | AI102: 0,93 | AJ102: 0,96 | AK102: 0,98 | AL102: 0,96 | AM102: 1,03 | AN102: 1,04 | AO102: 1,02 | AP102: 1,04 | AQ102: 1,01 | AR102: 1,02 | AS102: 1,01 | AT102: 1,01 | AU102: 1,02 | AV102: 1,01 | AW102: 1 | AX102: 1,01 | AY102: 0,98 | AZ102: 0,97 | BA102: 1 | BB102: 0,94 | BC102: 0,94 | BD102: 0,93 | BE102: 0,93 | BF102: 0,93 | BG102: 0,93 | BH102: 0,92 | BI102: 0,94 | BJ102: 0,93 | BK102: 0,96 | BL102: 0,96 | BM102: 0,99 | BN102: 1,06 | BO102: 1,08 | BP102: 1.07 | BQ102: 1.08 | BR102: 1.07 | BS102: 1.06 | BT102: 1.09 | BU102: 1.10 | BV102: 1.11 | BW102: 1.11 | BX102: 1.13 | BY102: 1.09
A103: 2625 | B103: Bautzen / Bautzen | C103: 2625 | D103: 0,99 | E103: 0,96 | F103: 0,96 | G103: 1 | H103: 1 | I103: 0,98 | J103: 0,98 | K103: 0,99 | L103: 1,01 | M103: 1 | N103: 1,01 | O103: 1 | P103: 0,98 | Q103: 0,98 | R103: 0,98 | S103: 0,95 | T103: 0,92 | U103: 0,93 | V103: 0,93 | W103: 0,92 | X103: 0,9 | Y103: 0,9 | Z103: 0,88 | AA103: 0,86 | AB103: 0,89 | AC103: 0,89 | AD103: 0,89 | AE103: 0,92 | AF103: 0,95 | AG103: 0,96 | AH103: 0,95 | AI103: 0,95 | AJ103: 0,98 | AK103: 1 | AL103: 0,98 | AM103: 1,06 | AN103: 1,06 | AO103: 1,04 | AP103: 1,06 | AQ103: 1,03 | AR103: 1,03 | AS103: 1,02 | AT103: 1,02 | AU103: 1,03 | AV103: 1,02 | AW103: 1,01 | AX103: 1,02 | AY103: 0,99 | AZ103: 0,98 | BA103: 1 | BB103: 0,94 | BC103: 0,94 | BD103: 0,93 | BE103: 0,93 | BF103: 0,93 | BG103: 0,93 | BH103: 0,92 | BI103: 0,94 | BJ103: 0,93 | BK103: 0,96 | BL103: 0,96 | BM103: 1 | BN103: 1,07 | BO103: 1,09 | BP103: 1.08 | BQ103: 1.09 | BR103: 1.08 | BS103: 1.07 | BT103: 1.10 | BU103: 1.12 | BV103: 1.14 | BW103: 1.13 | BX103: 1.15 | BY103: 1.11
A104: 2627 | B104: Bautzen / Radibor | C104: 2627 | D104: 0,95 | E104: 0,92 | F104: 0,92 | G104: 0,95 | H104: 0,95 | I104: 0,93 | J104: 0,93 | K104: 0,94 | L104: 0,96 | M104: 0,95 | N104: 0,96 | O104: 0,95 | P104: 0,93 | Q104: 0,93 | R104: 0,93 | S104: 0,9 | T104: 0,88 | U104: 0,89 | V104: 0,89 | W104: 0,88 | X104: 0,86 | Y104: 0,86 | Z104: 0,85 | AA104: 0,82 | AB104: 0,85 | AC104: 0,85 | AD104: 0,85 | AE104: 0,87 | AF104: 0,9 | AG104: 0,9 | AH104: 0,89 | AI104: 0,89 | AJ104: 0,92 | AK104: 0,94 | AL104: 0,92 | AM104: 0,99 | AN104: 1 | AO104: 0,97 | AP104: 0,99 | AQ104: 0,97 | AR104: 0,97 | AS104: 0,96 | AT104: 0,97 | AU104: 0,98 | AV104: 0,97 | AW104: 0,96 | AX104: 0,97 | AY104: 0,94 | AZ104: 0,93 | BA104: 0,96 | BB104: 0,91 | BC104: 0,91 | BD104: 0,89 | BE104: 0,89 | BF104: 0,9 | BG104: 0,9 | BH104: 0,88 | BI104: 0,9 | BJ104: 0,9 | BK104: 0,92 | BL104: 0,92 | BM104: 0,95 | BN104: 1,02 | BO104: 1,03 | BP104: 1.02 | BQ104: 1.02 | BR104: 1.02 | BS104: 1.01 | BT104: 1.03 | BU104: 1.05 | BV104: 1.06 | BW104: 1.05 | BX104: 1.07 | BY104: 1.04
A105: 2633 | B105: Bautzen / Göda | C105: 2633 | D105: 0,95 | E105: 0,93 | F105: 0,93 | G105: 0,96 | H105: 0,96 | I105: 0,94 | J105: 0,94 | K105: 0,94 | L105: 0,96 | M105: 0,95 | N105: 0,97 | O105: 0,95 | P105: 0,94 | Q105: 0,93 | R105: 0,93 | S105: 0,91 | T105: 0,89 | U105: 0,89 | V105: 0,89 | W105: 0,89 | X105: 0,86 | Y105: 0,86 | Z105: 0,85 | AA105: 0,82 | AB105: 0,86 | AC105: 0,86 | AD105: 0,86 | AE105: 0,88 | AF105: 0,9 | AG105: 0,91 | AH105: 0,9 | AI105: 0,9 | AJ105: 0,93 | AK105: 0,94 | AL105: 0,93 | AM105: 0,99 | AN105: 1 | AO105: 0,98 | AP105: 0,99 | AQ105: 0,97 | AR105: 0,98 | AS105: 0,97 | AT105: 0,98 | AU105: 0,98 | AV105: 0,97 | AW105: 0,96 | AX105: 0,98 | AY105: 0,95 | AZ105: 0,94 | BA105: 0,96 | BB105: 0,91 | BC105: 0,91 | BD105: 0,9 | BE105: 0,9 | BF105: 0,9 | BG105: 0,9 | BH105: 0,89 | BI105: 0,9 | BJ105: 0,9 | BK105: 0,92 | BL105: 0,93 | BM105: 0,96 | BN105: 1,02 | BO105: 1,04 | BP105: 1.03 | BQ105: 1.03 | BR105: 1.03 | BS105: 1.01 | BT105: 1.04 | BU105: 1.05 | BV105: 1.06 | BW105: 1.06 | BX105: 1.08 | BY105: 1.05
A106: 2681 | B106: Bautzen / Kirschau | C106: 2681 | D106: 0,91 | E106: 0,89 | F106: 0,89 | G106: 0,92 | H106: 0,92 | I106: 0,9 | J106: 0,9 | K106: 0,91 | L106: 0,93 | M106: 0,91 | N106: 0,93 | O106: 0,92 | P106: 0,9 | Q106: 0,9 | R106: 0,89 | S106: 0,87 | T106: 0,85 | U106: 0,86 | V106: 0,86 | W106: 0,85 | X106: 0,83 | Y106: 0,83 | Z106: 0,82 | AA106: 0,8 | AB106: 0,82 | AC106: 0,82 | AD106: 0,83 | AE106: 0,85 | AF106: 0,87 | AG106: 0,88 | AH106: 0,86 | AI106: 0,87 | AJ106: 0,89 | AK106: 0,91 | AL106: 0,9 | AM106: 0,96 | AN106: 0,96 | AO106: 0,94 | AP106: 0,96 | AQ106: 0,94 | AR106: 0,94 | AS106: 0,93 | AT106: 0,94 | AU106: 0,94 | AV106: 0,94 | AW106: 0,93 | AX106: 0,94 | AY106: 0,91 | AZ106: 0,9 | BA106: 0,92 | BB106: 0,87 | BC106: 0,87 | BD106: 0,86 | BE106: 0,86 | BF106: 0,86 | BG106: 0,86 | BH106: 0,85 | BI106: 0,86 | BJ106: 0,86 | BK106: 0,88 | BL106: 0,89 | BM106: 0,92 | BN106: 0,98 | BO106: 0,99 | BP106: 0.99 | BQ106: 0.99 | BR106: 0.98 | BS106: 0.97 | BT106: 1.00 | BU106: 1.01 | BV106: 1.02 | BW106: 1.01 | BX106: 1.03 | BY106: 1.00
A107: 2689 | B107: Bautzen / Sohland an der Spree | C107: 2689 | D107: 0,9 | E107: 0,88 | F107: 0,88 | G107: 0,91 | H107: 0,91 | I107: 0,89 | J107: 0,89 | K107: 0,9 | L107: 0,91 | M107: 0,9 | N107: 0,92 | O107: 0,9 | P107: 0,89 | Q107: 0,89 | R107: 0,88 | S107: 0,86 | T107: 0,84 | U107: 0,85 | V107: 0,85 | W107: 0,84 | X107: 0,82 | Y107: 0,82 | Z107: 0,81 | AA107: 0,79 | AB107: 0,82 | AC107: 0,82 | AD107: 0,82 | AE107: 0,84 | AF107: 0,86 | AG107: 0,87 | AH107: 0,85 | AI107: 0,86 | AJ107: 0,88 | AK107: 0,9 | AL107: 0,89 | AM107: 0,95 | AN107: 0,95 | AO107: 0,93 | AP107: 0,94 | AQ107: 0,92 | AR107: 0,93 | AS107: 0,92 | AT107: 0,93 | AU107: 0,93 | AV107: 0,92 | AW107: 0,92 | AX107: 0,93 | AY107: 0,9 | AZ107: 0,89 | BA107: 0,91 | BB107: 0,87 | BC107: 0,86 | BD107: 0,85 | BE107: 0,85 | BF107: 0,86 | BG107: 0,85 | BH107: 0,84 | BI107: 0,86 | BJ107: 0,85 | BK107: 0,87 | BL107: 0,88 | BM107: 0,91 | BN107: 0,97 | BO107: 0,98 | BP107: 0.98 | BQ107: 0.98 | BR107: 0.97 | BS107: 0.96 | BT107: 0.98 | BU107: 0.99 | BV107: 1.01 | BW107: 1.00 | BX107: 1.02 | BY107: 0.99
A108: 2692 | B108: Bautzen / Obergurig | C108: 2692 | D108: 0,94 | E108: 0,92 | F108: 0,92 | G108: 0,95 | H108: 0,95 | I108: 0,93 | J108: 0,93 | K108: 0,94 | L108: 0,96 | M108: 0,95 | N108: 0,96 | O108: 0,95 | P108: 0,93 | Q108: 0,93 | R108: 0,92 | S108: 0,9 | T108: 0,88 | U108: 0,89 | V108: 0,89 | W108: 0,88 | X108: 0,86 | Y108: 0,86 | Z108: 0,84 | AA108: 0,82 | AB108: 0,85 | AC108: 0,85 | AD108: 0,85 | AE108: 0,87 | AF108: 0,9 | AG108: 0,9 | AH108: 0,89 | AI108: 0,89 | AJ108: 0,92 | AK108: 0,94 | AL108: 0,92 | AM108: 0,99 | AN108: 1 | AO108: 0,97 | AP108: 0,99 | AQ108: 0,97 | AR108: 0,97 | AS108: 0,96 | AT108: 0,97 | AU108: 0,97 | AV108: 0,97 | AW108: 0,96 | AX108: 0,97 | AY108: 0,94 | AZ108: 0,93 | BA108: 0,96 | BB108: 0,9 | BC108: 0,9 | BD108: 0,89 | BE108: 0,89 | BF108: 0,89 | BG108: 0,89 | BH108: 0,88 | BI108: 0,9 | BJ108: 0,89 | BK108: 0,92 | BL108: 0,92 | BM108: 0,95 | BN108: 1,01 | BO108: 1,03 | BP108: 1.02 | BQ108: 1.02 | BR108: 1.02 | BS108: 1.01 | BT108: 1.03 | BU108: 1.05 | BV108: 1.06 | BW108: 1.05 | BX108: 1.07 | BY108: 1.04
A109: 2694 | B109: Bautzen / Großdubrau | C109: 2694 | D109: 0,97 | E109: 0,95 | F109: 0,95 | G109: 0,98 | H109: 0,97 | I109: 0,96 | J109: 0,96 | K109: 0,96 | L109: 0,98 | M109: 0,97 | N109: 0,98 | O109: 0,97 | P109: 0,95 | Q109: 0,95 | R109: 0,95 | S109: 0,92 | T109: 0,9 | U109: 0,91 | V109: 0,91 | W109: 0,9 | X109: 0,88 | Y109: 0,88 | Z109: 0,86 | AA109: 0,84 | AB109: 0,87 | AC109: 0,87 | AD109: 0,87 | AE109: 0,89 | AF109: 0,92 | AG109: 0,92 | AH109: 0,91 | AI109: 0,91 | AJ109: 0,94 | AK109: 0,96 | AL109: 0,94 | AM109: 1,01 | AN109: 1,02 | AO109: 0,99 | AP109: 1,01 | AQ109: 0,99 | AR109: 1 | AS109: 0,99 | AT109: 1 | AU109: 1 | AV109: 0,99 | AW109: 0,98 | AX109: 1 | AY109: 0,97 | AZ109: 0,96 | BA109: 0,98 | BB109: 0,93 | BC109: 0,93 | BD109: 0,92 | BE109: 0,91 | BF109: 0,92 | BG109: 0,92 | BH109: 0,9 | BI109: 0,92 | BJ109: 0,92 | BK109: 0,94 | BL109: 0,95 | BM109: 0,97 | BN109: 1,04 | BO109: 1,06 | BP109: 1.05 | BQ109: 1.05 | BR109: 1.05 | BS109: 1.03 | BT109: 1.06 | BU109: 1.07 | BV109: 1.08 | BW109: 1.08 | BX109: 1.10 | BY109: 1.07
A110: 2699 | B110: Bautzen / Neschwitz | C110: 2699 | D110: 0,97 | E110: 0,95 | F110: 0,95 | G110: 0,98 | H110: 0,98 | I110: 0,96 | J110: 0,96 | K110: 0,96 | L110: 0,99 | M110: 0,97 | N110: 0,99 | O110: 0,97 | P110: 0,96 | Q110: 0,95 | R110: 0,95 | S110: 0,92 | T110: 0,9 | U110: 0,91 | V110: 0,91 | W110: 0,91 | X110: 0,88 | Y110: 0,88 | Z110: 0,87 | AA110: 0,84 | AB110: 0,87 | AC110: 0,87 | AD110: 0,87 | AE110: 0,89 | AF110: 0,92 | AG110: 0,93 | AH110: 0,92 | AI110: 0,92 | AJ110: 0,94 | AK110: 0,96 | AL110: 0,95 | AM110: 1,02 | AN110: 1,03 | AO110: 1 | AP110: 1,02 | AQ110: 1 | AR110: 1 | AS110: 0,99 | AT110: 1 | AU110: 1 | AV110: 1 | AW110: 0,98 | AX110: 1 | AY110: 0,97 | AZ110: 0,96 | BA110: 0,99 | BB110: 0,93 | BC110: 0,93 | BD110: 0,92 | BE110: 0,92 | BF110: 0,92 | BG110: 0,92 | BH110: 0,91 | BI110: 0,93 | BJ110: 0,92 | BK110: 0,95 | BL110: 0,95 | BM110: 0,98 | BN110: 1,05 | BO110: 1,06 | BP110: 1.06 | BQ110: 1.06 | BR110: 1.05 | BS110: 1.04 | BT110: 1.07 | BU110: 1.08 | BV110: 1.09 | BW110: 1.09 | BX110: 1.11 | BY110: 1.07
A111: 2708 | B111: Löbau-Zittau / Kittlitz | C111: 2708 | D111: 0,91 | E111: 0,88 | F111: 0,88 | G111: 0,91 | H111: 0,91 | I111: 0,89 | J111: 0,89 | K111: 0,9 | L111: 0,92 | M111: 0,91 | N111: 0,92 | O111: 0,91 | P111: 0,89 | Q111: 0,89 | R111: 0,89 | S111: 0,86 | T111: 0,84 | U111: 0,85 | V111: 0,85 | W111: 0,85 | X111: 0,82 | Y111: 0,82 | Z111: 0,81 | AA111: 0,79 | AB111: 0,82 | AC111: 0,82 | AD111: 0,82 | AE111: 0,84 | AF111: 0,86 | AG111: 0,87 | AH111: 0,85 | AI111: 0,86 | AJ111: 0,88 | AK111: 0,9 | AL111: 0,89 | AM111: 0,95 | AN111: 0,95 | AO111: 0,93 | AP111: 0,94 | AQ111: 0,93 | AR111: 0,93 | AS111: 0,92 | AT111: 0,93 | AU111: 0,93 | AV111: 0,93 | AW111: 0,92 | AX111: 0,93 | AY111: 0,9 | AZ111: 0,89 | BA111: 0,92 | BB111: 0,87 | BC111: 0,87 | BD111: 0,85 | BE111: 0,85 | BF111: 0,86 | BG111: 0,86 | BH111: 0,85 | BI111: 0,86 | BJ111: 0,86 | BK111: 0,88 | BL111: 0,88 | BM111: 0,91 | BN111: 0,97 | BO111: 0,98 | BP111: 0.98 | BQ111: 0.98 | BR111: 0.97 | BS111: 0.96 | BT111: 0.98 | BU111: 1.00 | BV111: 1.01 | BW111: 1.00 | BX111: 1.02 | BY111: 0.99
A112: 2727 | B112: Löbau-Zittau / Neugersdorf | C112: 2727 | D112: 0,88 | E112: 0,86 | F112: 0,86 | G112: 0,88 | H112: 0,88 | I112: 0,86 | J112: 0,87 | K112: 0,87 | L112: 0,89 | M112: 0,88 | N112: 0,89 | O112: 0,88 | P112: 0,86 | Q112: 0,86 | R112: 0,86 | S112: 0,84 | T112: 0,82 | U112: 0,82 | V112: 0,83 | W112: 0,82 | X112: 0,8 | Y112: 0,8 | Z112: 0,79 | AA112: 0,77 | AB112: 0,79 | AC112: 0,79 | AD112: 0,8 | AE112: 0,81 | AF112: 0,84 | AG112: 0,84 | AH112: 0,83 | AI112: 0,84 | AJ112: 0,86 | AK112: 0,87 | AL112: 0,87 | AM112: 0,92 | AN112: 0,93 | AO112: 0,9 | AP112: 0,92 | AQ112: 0,9 | AR112: 0,9 | AS112: 0,89 | AT112: 0,9 | AU112: 0,91 | AV112: 0,9 | AW112: 0,89 | AX112: 0,9 | AY112: 0,87 | AZ112: 0,86 | BA112: 0,88 | BB112: 0,84 | BC112: 0,84 | BD112: 0,82 | BE112: 0,82 | BF112: 0,83 | BG112: 0,83 | BH112: 0,82 | BI112: 0,83 | BJ112: 0,83 | BK112: 0,85 | BL112: 0,85 | BM112: 0,88 | BN112: 0,94 | BO112: 0,95 | BP112: 0.95 | BQ112: 0.95 | BR112: 0.94 | BS112: 0.93 | BT112: 0.95 | BU112: 0.96 | BV112: 0.98 | BW112: 0.97 | BX112: 0.98 | BY112: 0.96
A113: 2730 | B113: Löbau-Zittau / Ebersbach/Sachsen | C113: 2730 | D113: 0,89 | E113: 0,87 | F113: 0,87 | G113: 0,9 | H113: 0,89 | I113: 0,88 | J113: 0,88 | K113: 0,88 | L113: 0,9 | M113: 0,89 | N113: 0,9 | O113: 0,89 | P113: 0,88 | Q113: 0,87 | R113: 0,87 | S113: 0,85 | T113: 0,83 | U113: 0,84 | V113: 0,84 | W113: 0,83 | X113: 0,81 | Y113: 0,81 | Z113: 0,8 | AA113: 0,78 | AB113: 0,81 | AC113: 0,81 | AD113: 0,81 | AE113: 0,83 | AF113: 0,85 | AG113: 0,86 | AH113: 0,84 | AI113: 0,85 | AJ113: 0,87 | AK113: 0,89 | AL113: 0,88 | AM113: 0,94 | AN113: 0,94 | AO113: 0,92 | AP113: 0,93 | AQ113: 0,91 | AR113: 0,92 | AS113: 0,91 | AT113: 0,92 | AU113: 0,92 | AV113: 0,91 | AW113: 0,9 | AX113: 0,91 | AY113: 0,89 | AZ113: 0,88 | BA113: 0,9 | BB113: 0,85 | BC113: 0,85 | BD113: 0,84 | BE113: 0,84 | BF113: 0,84 | BG113: 0,84 | BH113: 0,83 | BI113: 0,84 | BJ113: 0,84 | BK113: 0,86 | BL113: 0,87 | BM113: 0,9 | BN113: 0,96 | BO113: 0,97 | BP113: 0.96 | BQ113: 0.96 | BR113: 0.96 | BS113: 0.95 | BT113: 0.97 | BU113: 0.98 | BV113: 0.99 | BW113: 0.99 | BX113: 1.00 | BY113: 0.98
A114: 2733 | B114: Bautzen / Cunewalde | C114: 2733 | D114: 0,92 | E114: 0,89 | F114: 0,89 | G114: 0,92 | H114: 0,92 | I114: 0,9 | J114: 0,9 | K114: 0,91 | L114: 0,93 | M114: 0,92 | N114: 0,93 | O114: 0,91 | P114: 0,9 | Q114: 0,9 | R114: 0,89 | S114: 0,87 | T114: 0,85 | U114: 0,86 | V114: 0,86 | W114: 0,85 | X114: 0,83 | Y114: 0,83 | Z114: 0,82 | AA114: 0,8 | AB114: 0,82 | AC114: 0,82 | AD114: 0,83 | AE114: 0,85 | AF114: 0,87 | AG114: 0,88 | AH114: 0,86 | AI114: 0,87 | AJ114: 0,89 | AK114: 0,91 | AL114: 0,9 | AM114: 0,96 | AN114: 0,96 | AO114: 0,94 | AP114: 0,95 | AQ114: 0,94 | AR114: 0,94 | AS114: 0,93 | AT114: 0,94 | AU114: 0,94 | AV114: 0,94 | AW114: 0,93 | AX114: 0,94 | AY114: 0,91 | AZ114: 0,9 | BA114: 0,92 | BB114: 0,88 | BC114: 0,87 | BD114: 0,86 | BE114: 0,86 | BF114: 0,87 | BG114: 0,86 | BH114: 0,85 | BI114: 0,87 | BJ114: 0,86 | BK114: 0,88 | BL114: 0,89 | BM114: 0,92 | BN114: 0,98 | BO114: 0,99 | BP114: 0.99 | BQ114: 0.99 | BR114: 0.98 | BS114: 0.97 | BT114: 1.00 | BU114: 1.01 | BV114: 1.02 | BW114: 1.01 | BX114: 1.03 | BY114: 1.00
A115: 2736 | B115: Löbau-Zittau / Oppach | C115: 2736 | D115: 0,89 | E115: 0,87 | F115: 0,87 | G115: 0,89 | H115: 0,89 | I115: 0,87 | J115: 0,87 | K115: 0,88 | L115: 0,9 | M115: 0,89 | N115: 0,9 | O115: 0,89 | P115: 0,87 | Q115: 0,87 | R115: 0,87 | S115: 0,84 | T115: 0,83 | U115: 0,83 | V115: 0,84 | W115: 0,83 | X115: 0,81 | Y115: 0,81 | Z115: 0,79 | AA115: 0,77 | AB115: 0,8 | AC115: 0,8 | AD115: 0,8 | AE115: 0,82 | AF115: 0,84 | AG115: 0,85 | AH115: 0,84 | AI115: 0,84 | AJ115: 0,86 | AK115: 0,88 | AL115: 0,87 | AM115: 0,93 | AN115: 0,93 | AO115: 0,91 | AP115: 0,92 | AQ115: 0,91 | AR115: 0,91 | AS115: 0,9 | AT115: 0,91 | AU115: 0,91 | AV115: 0,91 | AW115: 0,9 | AX115: 0,91 | AY115: 0,88 | AZ115: 0,87 | BA115: 0,89 | BB115: 0,85 | BC115: 0,85 | BD115: 0,83 | BE115: 0,83 | BF115: 0,84 | BG115: 0,84 | BH115: 0,83 | BI115: 0,84 | BJ115: 0,84 | BK115: 0,86 | BL115: 0,86 | BM115: 0,89 | BN115: 0,95 | BO115: 0,96 | BP115: 0.95 | BQ115: 0.95 | BR115: 0.95 | BS115: 0.94 | BT115: 0.96 | BU115: 0.97 | BV115: 0.98 | BW115: 0.98 | BX115: 0.99 | BY115: 0.97
A116: 2739 | B116: Löbau-Zittau / Eibau | C116: 2739 | D116: 0,89 | E116: 0,87 | F116: 0,87 | G116: 0,9 | H116: 0,9 | I116: 0,88 | J116: 0,88 | K116: 0,89 | L116: 0,91 | M116: 0,9 | N116: 0,91 | O116: 0,89 | P116: 0,88 | Q116: 0,88 | R116: 0,88 | S116: 0,85 | T116: 0,83 | U116: 0,84 | V116: 0,84 | W116: 0,84 | X116: 0,81 | Y116: 0,81 | Z116: 0,8 | AA116: 0,78 | AB116: 0,81 | AC116: 0,81 | AD116: 0,81 | AE116: 0,83 | AF116: 0,85 | AG116: 0,86 | AH116: 0,85 | AI116: 0,85 | AJ116: 0,87 | AK116: 0,89 | AL116: 0,88 | AM116: 0,94 | AN116: 0,94 | AO116: 0,92 | AP116: 0,93 | AQ116: 0,92 | AR116: 0,92 | AS116: 0,91 | AT116: 0,92 | AU116: 0,92 | AV116: 0,92 | AW116: 0,91 | AX116: 0,92 | AY116: 0,89 | AZ116: 0,88 | BA116: 0,9 | BB116: 0,86 | BC116: 0,86 | BD116: 0,84 | BE116: 0,84 | BF116: 0,85 | BG116: 0,85 | BH116: 0,83 | BI116: 0,85 | BJ116: 0,84 | BK116: 0,86 | BL116: 0,87 | BM116: 0,9 | BN116: 0,96 | BO116: 0,97 | BP116: 0.96 | BQ116: 0.96 | BR116: 0.96 | BS116: 0.95 | BT116: 0.97 | BU116: 0.98 | BV116: 1.00 | BW116: 0.99 | BX116: 1.00 | BY116: 0.98
A117: 2742 | B117: Löbau-Zittau / Neusalza-Spremberg | C117: 2742 | D117: 0,9 | E117: 0,88 | F117: 0,88 | G117: 0,91 | H117: 0,9 | I117: 0,89 | J117: 0,89 | K117: 0,89 | L117: 0,91 | M117: 0,9 | N117: 0,91 | O117: 0,9 | P117: 0,89 | Q117: 0,88 | R117: 0,88 | S117: 0,86 | T117: 0,84 | U117: 0,85 | V117: 0,85 | W117: 0,84 | X117: 0,82 | Y117: 0,82 | Z117: 0,81 | AA117: 0,79 | AB117: 0,81 | AC117: 0,81 | AD117: 0,82 | AE117: 0,83 | AF117: 0,86 | AG117: 0,86 | AH117: 0,85 | AI117: 0,85 | AJ117: 0,88 | AK117: 0,9 | AL117: 0,89 | AM117: 0,94 | AN117: 0,95 | AO117: 0,92 | AP117: 0,94 | AQ117: 0,92 | AR117: 0,93 | AS117: 0,92 | AT117: 0,93 | AU117: 0,93 | AV117: 0,92 | AW117: 0,91 | AX117: 0,92 | AY117: 0,9 | AZ117: 0,89 | BA117: 0,91 | BB117: 0,86 | BC117: 0,86 | BD117: 0,85 | BE117: 0,85 | BF117: 0,85 | BG117: 0,85 | BH117: 0,84 | BI117: 0,85 | BJ117: 0,85 | BK117: 0,87 | BL117: 0,88 | BM117: 0,91 | BN117: 0,97 | BO117: 0,98 | BP117: 0.97 | BQ117: 0.97 | BR117: 0.97 | BS117: 0.96 | BT117: 0.98 | BU117: 0.99 | BV117: 1.00 | BW117: 1.00 | BX117: 1.01 | BY117: 0.99
A118: 2747 | B118: Löbau-Zittau / Strahwalde | C118: 2747 | D118: 0,9 | E118: 0,88 | F118: 0,88 | G118: 0,91 | H118: 0,9 | I118: 0,89 | J118: 0,89 | K118: 0,89 | L118: 0,91 | M118: 0,9 | N118: 0,91 | O118: 0,9 | P118: 0,89 | Q118: 0,88 | R118: 0,88 | S118: 0,86 | T118: 0,84 | U118: 0,85 | V118: 0,85 | W118: 0,84 | X118: 0,82 | Y118: 0,82 | Z118: 0,81 | AA118: 0,79 | AB118: 0,81 | AC118: 0,81 | AD118: 0,82 | AE118: 0,83 | AF118: 0,86 | AG118: 0,86 | AH118: 0,85 | AI118: 0,85 | AJ118: 0,88 | AK118: 0,89 | AL118: 0,88 | AM118: 0,94 | AN118: 0,95 | AO118: 0,92 | AP118: 0,94 | AQ118: 0,92 | AR118: 0,92 | AS118: 0,92 | AT118: 0,93 | AU118: 0,93 | AV118: 0,92 | AW118: 0,91 | AX118: 0,92 | AY118: 0,9 | AZ118: 0,89 | BA118: 0,91 | BB118: 0,86 | BC118: 0,86 | BD118: 0,85 | BE118: 0,85 | BF118: 0,86 | BG118: 0,85 | BH118: 0,84 | BI118: 0,86 | BJ118: 0,85 | BK118: 0,87 | BL118: 0,88 | BM118: 0,91 | BN118: 0,97 | BO118: 0,98 | BP118: 0.97 | BQ118: 0.97 | BR118: 0.97 | BS118: 0.95 | BT118: 0.98 | BU118: 0.99 | BV118: 1.00 | BW118: 1.00 | BX118: 1.01 | BY118: 0.98
A119: 2748 | B119: Löbau-Zittau / Bernstadt auf dem Eigen | C119: 2748 | D119: 0,94 | E119: 0,92 | F119: 0,92 | G119: 0,95 | H119: 0,95 | I119: 0,93 | J119: 0,93 | K119: 0,93 | L119: 0,96 | M119: 0,94 | N119: 0,96 | O119: 0,94 | P119: 0,93 | Q119: 0,92 | R119: 0,92 | S119: 0,9 | T119: 0,88 | U119: 0,88 | V119: 0,89 | W119: 0,88 | X119: 0,86 | Y119: 0,85 | Z119: 0,84 | AA119: 0,82 | AB119: 0,85 | AC119: 0,85 | AD119: 0,85 | AE119: 0,87 | AF119: 0,89 | AG119: 0,9 | AH119: 0,89 | AI119: 0,89 | AJ119: 0,92 | AK119: 0,94 | AL119: 0,92 | AM119: 0,98 | AN119: 0,99 | AO119: 0,97 | AP119: 0,98 | AQ119: 0,96 | AR119: 0,97 | AS119: 0,96 | AT119: 0,97 | AU119: 0,97 | AV119: 0,97 | AW119: 0,95 | AX119: 0,97 | AY119: 0,94 | AZ119: 0,93 | BA119: 0,96 | BB119: 0,9 | BC119: 0,9 | BD119: 0,89 | BE119: 0,89 | BF119: 0,89 | BG119: 0,89 | BH119: 0,88 | BI119: 0,9 | BJ119: 0,89 | BK119: 0,92 | BL119: 0,92 | BM119: 0,95 | BN119: 1,01 | BO119: 1,03 | BP119: 1.02 | BQ119: 1.02 | BR119: 1.01 | BS119: 1.00 | BT119: 1.03 | BU119: 1.04 | BV119: 1.05 | BW119: 1.05 | BX119: 1.07 | BY119: 1.04
A120: 2763 | B120: Löbau-Zittau / Zittau | C120: 2763 | D120: 0,93 | E120: 0,91 | F120: 0,91 | G120: 0,94 | H120: 0,94 | I120: 0,92 | J120: 0,92 | K120: 0,93 | L120: 0,95 | M120: 0,93 | N120: 0,95 | O120: 0,93 | P120: 0,92 | Q120: 0,92 | R120: 0,92 | S120: 0,89 | T120: 0,87 | U120: 0,88 | V120: 0,88 | W120: 0,87 | X120: 0,85 | Y120: 0,85 | Z120: 0,84 | AA120: 0,81 | AB120: 0,84 | AC120: 0,84 | AD120: 0,84 | AE120: 0,86 | AF120: 0,89 | AG120: 0,89 | AH120: 0,88 | AI120: 0,89 | AJ120: 0,91 | AK120: 0,93 | AL120: 0,92 | AM120: 0,98 | AN120: 0,98 | AO120: 0,96 | AP120: 0,97 | AQ120: 0,96 | AR120: 0,96 | AS120: 0,95 | AT120: 0,96 | AU120: 0,96 | AV120: 0,96 | AW120: 0,95 | AX120: 0,96 | AY120: 0,93 | AZ120: 0,92 | BA120: 0,95 | BB120: 0,9 | BC120: 0,9 | BD120: 0,88 | BE120: 0,88 | BF120: 0,89 | BG120: 0,88 | BH120: 0,87 | BI120: 0,89 | BJ120: 0,88 | BK120: 0,9 | BL120: 0,91 | BM120: 0,94 | BN120: 1 | BO120: 1,02 | BP120: 1.01 | BQ120: 1.01 | BR120: 1.01 | BS120: 0.99 | BT120: 1.02 | BU120: 1.03 | BV120: 1.04 | BW120: 1.04 | BX120: 1.06 | BY120: 1.03
A121: 2779 | B121: Löbau-Zittau / Großschönau | C121: 2779 | D121: 0,91 | E121: 0,89 | F121: 0,89 | G121: 0,92 | H121: 0,92 | I121: 0,9 | J121: 0,9 | K121: 0,9 | L121: 0,93 | M121: 0,91 | N121: 0,93 | O121: 0,91 | P121: 0,9 | Q121: 0,9 | R121: 0,89 | S121: 0,87 | T121: 0,85 | U121: 0,86 | V121: 0,86 | W121: 0,85 | X121: 0,83 | Y121: 0,83 | Z121: 0,82 | AA121: 0,8 | AB121: 0,82 | AC121: 0,82 | AD121: 0,83 | AE121: 0,85 | AF121: 0,87 | AG121: 0,88 | AH121: 0,86 | AI121: 0,87 | AJ121: 0,89 | AK121: 0,91 | AL121: 0,9 | AM121: 0,96 | AN121: 0,96 | AO121: 0,94 | AP121: 0,95 | AQ121: 0,93 | AR121: 0,94 | AS121: 0,93 | AT121: 0,94 | AU121: 0,94 | AV121: 0,94 | AW121: 0,93 | AX121: 0,94 | AY121: 0,91 | AZ121: 0,9 | BA121: 0,93 | BB121: 0,88 | BC121: 0,88 | BD121: 0,86 | BE121: 0,86 | BF121: 0,87 | BG121: 0,86 | BH121: 0,85 | BI121: 0,87 | BJ121: 0,86 | BK121: 0,88 | BL121: 0,89 | BM121: 0,92 | BN121: 0,98 | BO121: 0,99 | BP121: 0.99 | BQ121: 0.99 | BR121: 0.98 | BS121: 0.97 | BT121: 0.99 | BU121: 1.00 | BV121: 1.02 | BW121: 1.01 | BX121: 1.03 | BY121: 1.00
A122: 2782 | B122: Löbau-Zittau / Seifhennersdorf | C122: 2782 | D122: 0,9 | E122: 0,87 | F122: 0,87 | G122: 0,9 | H122: 0,9 | I122: 0,88 | J122: 0,88 | K122: 0,89 | L122: 0,91 | M122: 0,9 | N122: 0,91 | O122: 0,9 | P122: 0,88 | Q122: 0,88 | R122: 0,88 | S122: 0,86 | T122: 0,84 | U122: 0,84 | V122: 0,85 | W122: 0,84 | X122: 0,82 | Y122: 0,81 | Z122: 0,8 | AA122: 0,78 | AB122: 0,81 | AC122: 0,81 | AD122: 0,81 | AE122: 0,83 | AF122: 0,85 | AG122: 0,86 | AH122: 0,85 | AI122: 0,85 | AJ122: 0,88 | AK122: 0,89 | AL122: 0,88 | AM122: 0,94 | AN122: 0,95 | AO122: 0,92 | AP122: 0,93 | AQ122: 0,92 | AR122: 0,92 | AS122: 0,91 | AT122: 0,92 | AU122: 0,93 | AV122: 0,92 | AW122: 0,91 | AX122: 0,92 | AY122: 0,89 | AZ122: 0,88 | BA122: 0,91 | BB122: 0,86 | BC122: 0,86 | BD122: 0,84 | BE122: 0,84 | BF122: 0,85 | BG122: 0,85 | BH122: 0,84 | BI122: 0,85 | BJ122: 0,85 | BK122: 0,87 | BL122: 0,87 | BM122: 0,9 | BN122: 0,96 | BO122: 0,97 | BP122: 0.97 | BQ122: 0.97 | BR122: 0.96 | BS122: 0.95 | BT122: 0.97 | BU122: 0.99 | BV122: 1.00 | BW122: 0.99 | BX122: 1.01 | BY122: 0.98
A123: 2785 | B123: Löbau-Zittau / Olbersdorf | C123: 2785 | D123: 0,93 | E123: 0,9 | F123: 0,9 | G123: 0,93 | H123: 0,93 | I123: 0,92 | J123: 0,92 | K123: 0,92 | L123: 0,94 | M123: 0,93 | N123: 0,94 | O123: 0,93 | P123: 0,92 | Q123: 0,91 | R123: 0,91 | S123: 0,89 | T123: 0,87 | U123: 0,87 | V123: 0,87 | W123: 0,87 | X123: 0,84 | Y123: 0,84 | Z123: 0,83 | AA123: 0,81 | AB123: 0,84 | AC123: 0,84 | AD123: 0,84 | AE123: 0,86 | AF123: 0,88 | AG123: 0,89 | AH123: 0,88 | AI123: 0,88 | AJ123: 0,91 | AK123: 0,92 | AL123: 0,91 | AM123: 0,97 | AN123: 0,98 | AO123: 0,95 | AP123: 0,97 | AQ123: 0,95 | AR123: 0,95 | AS123: 0,94 | AT123: 0,95 | AU123: 0,96 | AV123: 0,95 | AW123: 0,94 | AX123: 0,95 | AY123: 0,93 | AZ123: 0,92 | BA123: 0,94 | BB123: 0,89 | BC123: 0,89 | BD123: 0,88 | BE123: 0,87 | BF123: 0,88 | BG123: 0,88 | BH123: 0,87 | BI123: 0,88 | BJ123: 0,88 | BK123: 0,9 | BL123: 0,9 | BM123: 0,93 | BN123: 1 | BO123: 1,01 | BP123: 1 | BQ123: 1 | BR123: 1 | BS123: 0.99 | BT123: 1.01 | BU123: 1.02 | BV123: 1.04 | BW123: 1.03 | BX123: 1.05 | BY123: 1.02
A124: 2788 | B124: Löbau-Zittau / Schlegel | C124: 2788 | D124: 0,96 | E124: 0,93 | F124: 0,93 | G124: 0,96 | H124: 0,96 | I124: 0,95 | J124: 0,95 | K124: 0,95 | L124: 0,97 | M124: 0,96 | N124: 0,97 | O124: 0,96 | P124: 0,95 | Q124: 0,94 | R124: 0,94 | S124: 0,91 | T124: 0,89 | U124: 0,9 | V124: 0,9 | W124: 0,89 | X124: 0,87 | Y124: 0,87 | Z124: 0,86 | AA124: 0,83 | AB124: 0,86 | AC124: 0,86 | AD124: 0,86 | AE124: 0,88 | AF124: 0,91 | AG124: 0,92 | AH124: 0,91 | AI124: 0,91 | AJ124: 0,93 | AK124: 0,95 | AL124: 0,94 | AM124: 1 | AN124: 1,01 | AO124: 0,98 | AP124: 1 | AQ124: 0,98 | AR124: 0,99 | AS124: 0,98 | AT124: 0,99 | AU124: 0,99 | AV124: 0,98 | AW124: 0,97 | AX124: 0,99 | AY124: 0,96 | AZ124: 0,95 | BA124: 0,97 | BB124: 0,92 | BC124: 0,92 | BD124: 0,91 | BE124: 0,9 | BF124: 0,91 | BG124: 0,91 | BH124: 0,89 | BI124: 0,91 | BJ124: 0,91 | BK124: 0,93 | BL124: 0,93 | BM124: 0,96 | BN124: 1,03 | BO124: 1,04 | BP124: 1.04 | BQ124: 1.04 | BR124: 1.03 | BS124: 1.02 | BT124: 1.05 | BU124: 1.06 | BV124: 1.07 | BW124: 1.07 | BX124: 1.09 | BY124: 1.06
A125: 2791 | B125: Löbau-Zittau / Oderwitz | C125: 2791 | D125: 0,91 | E125: 0,89 | F125: 0,89 | G125: 0,92 | H125: 0,92 | I125: 0,9 | J125: 0,9 | K125: 0,91 | L125: 0,93 | M125: 0,91 | N125: 0,93 | O125: 0,91 | P125: 0,9 | Q125: 0,9 | R125: 0,89 | S125: 0,87 | T125: 0,85 | U125: 0,86 | V125: 0,86 | W125: 0,85 | X125: 0,83 | Y125: 0,83 | Z125: 0,82 | AA125: 0,8 | AB125: 0,82 | AC125: 0,82 | AD125: 0,83 | AE125: 0,84 | AF125: 0,87 | AG125: 0,88 | AH125: 0,86 | AI125: 0,87 | AJ125: 0,89 | AK125: 0,91 | AL125: 0,9 | AM125: 0,96 | AN125: 0,96 | AO125: 0,94 | AP125: 0,95 | AQ125: 0,93 | AR125: 0,94 | AS125: 0,93 | AT125: 0,94 | AU125: 0,94 | AV125: 0,93 | AW125: 0,93 | AX125: 0,94 | AY125: 0,91 | AZ125: 0,9 | BA125: 0,93 | BB125: 0,88 | BC125: 0,88 | BD125: 0,86 | BE125: 0,86 | BF125: 0,87 | BG125: 0,86 | BH125: 0,85 | BI125: 0,87 | BJ125: 0,86 | BK125: 0,88 | BL125: 0,89 | BM125: 0,92 | BN125: 0,98 | BO125: 0,99 | BP125: 0.99 | BQ125: 0.99 | BR125: 0.98 | BS125: 0.97 | BT125: 0.99 | BU125: 1.00 | BV125: 1.02 | BW125: 1.01 | BX125: 1.03 | BY125: 1.00
A126: 2794 | B126: Löbau-Zittau / Leutersdorf | C126: 2794 | D126: 0,89 | E126: 0,86 | F126: 0,86 | G126: 0,89 | H126: 0,89 | I126: 0,87 | J126: 0,87 | K126: 0,88 | L126: 0,9 | M126: 0,89 | N126: 0,9 | O126: 0,89 | P126: 0,87 | Q126: 0,87 | R126: 0,87 | S126: 0,84 | T126: 0,83 | U126: 0,83 | V126: 0,84 | W126: 0,83 | X126: 0,81 | Y126: 0,81 | Z126: 0,8 | AA126: 0,77 | AB126: 0,8 | AC126: 0,8 | AD126: 0,8 | AE126: 0,82 | AF126: 0,84 | AG126: 0,85 | AH126: 0,84 | AI126: 0,84 | AJ126: 0,86 | AK126: 0,88 | AL126: 0,87 | AM126: 0,93 | AN126: 0,93 | AO126: 0,91 | AP126: 0,92 | AQ126: 0,91 | AR126: 0,91 | AS126: 0,9 | AT126: 0,91 | AU126: 0,91 | AV126: 0,91 | AW126: 0,9 | AX126: 0,91 | AY126: 0,88 | AZ126: 0,87 | BA126: 0,9 | BB126: 0,85 | BC126: 0,85 | BD126: 0,83 | BE126: 0,83 | BF126: 0,84 | BG126: 0,84 | BH126: 0,83 | BI126: 0,84 | BJ126: 0,84 | BK126: 0,86 | BL126: 0,86 | BM126: 0,89 | BN126: 0,95 | BO126: 0,96 | BP126: 0.95 | BQ126: 0.95 | BR126: 0.95 | BS126: 0.94 | BT126: 0.96 | BU126: 0.97 | BV126: 0.98 | BW126: 0.98 | BX126: 0.99 | BY126: 0.97
A127: 2796 | B127: Löbau-Zittau / Jonsdorf | C127: 2796 | D127: 0,85 | E127: 0,83 | F127: 0,83 | G127: 0,86 | H127: 0,85 | I127: 0,84 | J127: 0,84 | K127: 0,84 | L127: 0,86 | M127: 0,85 | N127: 0,86 | O127: 0,85 | P127: 0,84 | Q127: 0,83 | R127: 0,83 | S127: 0,81 | T127: 0,8 | U127: 0,8 | V127: 0,81 | W127: 0,8 | X127: 0,78 | Y127: 0,78 | Z127: 0,77 | AA127: 0,75 | AB127: 0,77 | AC127: 0,77 | AD127: 0,78 | AE127: 0,79 | AF127: 0,81 | AG127: 0,82 | AH127: 0,8 | AI127: 0,81 | AJ127: 0,83 | AK127: 0,85 | AL127: 0,84 | AM127: 0,89 | AN127: 0,89 | AO127: 0,87 | AP127: 0,88 | AQ127: 0,87 | AR127: 0,87 | AS127: 0,86 | AT127: 0,87 | AU127: 0,88 | AV127: 0,87 | AW127: 0,86 | AX127: 0,87 | AY127: 0,85 | AZ127: 0,84 | BA127: 0,86 | BB127: 0,82 | BC127: 0,82 | BD127: 0,8 | BE127: 0,8 | BF127: 0,81 | BG127: 0,81 | BH127: 0,8 | BI127: 0,81 | BJ127: 0,8 | BK127: 0,82 | BL127: 0,83 | BM127: 0,86 | BN127: 0,91 | BO127: 0,92 | BP127: 0.91 | BQ127: 0.91 | BR127: 0.91 | BS127: 0.90 | BT127: 0.92 | BU127: 0.93 | BV127: 0.94 | BW127: 0.93 | BX127: 0.95 | BY127: 0.92
A128: 2797 | B128: Löbau-Zittau / Oybin | C128: 2797 | D128: 0,87 | E128: 0,85 | F128: 0,85 | G128: 0,87 | H128: 0,87 | I128: 0,85 | J128: 0,85 | K128: 0,86 | L128: 0,88 | M128: 0,87 | N128: 0,88 | O128: 0,87 | P128: 0,85 | Q128: 0,85 | R128: 0,85 | S128: 0,83 | T128: 0,81 | U128: 0,82 | V128: 0,82 | W128: 0,81 | X128: 0,79 | Y128: 0,79 | Z128: 0,78 | AA128: 0,76 | AB128: 0,78 | AC128: 0,79 | AD128: 0,79 | AE128: 0,8 | AF128: 0,83 | AG128: 0,83 | AH128: 0,82 | AI128: 0,82 | AJ128: 0,85 | AK128: 0,86 | AL128: 0,85 | AM128: 0,9 | AN128: 0,91 | AO128: 0,89 | AP128: 0,9 | AQ128: 0,88 | AR128: 0,89 | AS128: 0,88 | AT128: 0,89 | AU128: 0,89 | AV128: 0,89 | AW128: 0,88 | AX128: 0,89 | AY128: 0,86 | AZ128: 0,86 | BA128: 0,88 | BB128: 0,83 | BC128: 0,83 | BD128: 0,82 | BE128: 0,82 | BF128: 0,82 | BG128: 0,82 | BH128: 0,81 | BI128: 0,82 | BJ128: 0,82 | BK128: 0,84 | BL128: 0,84 | BM128: 0,87 | BN128: 0,93 | BO128: 0,94 | BP128: 0.93 | BQ128: 0.93 | BR128: 0.93 | BS128: 0.92 | BT128: 0.94 | BU128: 0.95 | BV128: 0.96 | BW128: 0.95 | BX128: 0.97 | BY128: 0.94
A129: 2799 | B129: Löbau-Zittau / Waltersdorf | C129: 2799 | D129: 0,86 | E129: 0,84 | F129: 0,84 | G129: 0,86 | H129: 0,86 | I129: 0,85 | J129: 0,85 | K129: 0,85 | L129: 0,87 | M129: 0,86 | N129: 0,87 | O129: 0,86 | P129: 0,84 | Q129: 0,84 | R129: 0,84 | S129: 0,82 | T129: 0,8 | U129: 0,81 | V129: 0,81 | W129: 0,8 | X129: 0,78 | Y129: 0,78 | Z129: 0,77 | AA129: 0,75 | AB129: 0,78 | AC129: 0,78 | AD129: 0,78 | AE129: 0,8 | AF129: 0,82 | AG129: 0,82 | AH129: 0,81 | AI129: 0,81 | AJ129: 0,84 | AK129: 0,85 | AL129: 0,84 | AM129: 0,9 | AN129: 0,9 | AO129: 0,88 | AP129: 0,89 | AQ129: 0,88 | AR129: 0,88 | AS129: 0,87 | AT129: 0,88 | AU129: 0,89 | AV129: 0,88 | AW129: 0,87 | AX129: 0,88 | AY129: 0,85 | AZ129: 0,85 | BA129: 0,87 | BB129: 0,82 | BC129: 0,82 | BD129: 0,81 | BE129: 0,81 | BF129: 0,82 | BG129: 0,81 | BH129: 0,8 | BI129: 0,81 | BJ129: 0,81 | BK129: 0,83 | BL129: 0,84 | BM129: 0,86 | BN129: 0,92 | BO129: 0,93 | BP129: 0.92 | BQ129: 0.92 | BR129: 0.92 | BS129: 0.91 | BT129: 0.93 | BU129: 0.94 | BV129: 0.95 | BW129: 0.94 | BX129: 0.96 | BY129: 0.93
A130: 2826 | B130: Görlitz, Stadt / Görlitz | C130: 2826 | D130: 0,98 | E130: 0,96 | F130: 0,96 | G130: 0,99 | H130: 0,99 | I130: 0,98 | J130: 0,98 | K130: 0,98 | L130: 1,01 | M130: 0,99 | N130: 1,01 | O130: 0,99 | P130: 0,98 | Q130: 0,97 | R130: 0,97 | S130: 0,94 | T130: 0,92 | U130: 0,92 | V130: 0,92 | W130: 0,92 | X130: 0,89 | Y130: 0,89 | Z130: 0,88 | AA130: 0,85 | AB130: 0,89 | AC130: 0,88 | AD130: 0,89 | AE130: 0,91 | AF130: 0,94 | AG130: 0,95 | AH130: 0,94 | AI130: 0,94 | AJ130: 0,97 | AK130: 0,99 | AL130: 0,98 | AM130: 1,05 | AN130: 1,06 | AO130: 1,03 | AP130: 1,05 | AQ130: 1,02 | AR130: 1,02 | AS130: 1,01 | AT130: 1,02 | AU130: 1,02 | AV130: 1,01 | AW130: 1 | AX130: 1,02 | AY130: 0,98 | AZ130: 0,97 | BA130: 1 | BB130: 0,94 | BC130: 0,94 | BD130: 0,93 | BE130: 0,92 | BF130: 0,93 | BG130: 0,93 | BH130: 0,91 | BI130: 0,93 | BJ130: 0,93 | BK130: 0,95 | BL130: 0,96 | BM130: 0,99 | BN130: 1,07 | BO130: 1,09 | BP130: 1.07 | BQ130: 1.08 | BR130: 1.07 | BS130: 1.07 | BT130: 1.10 | BU130: 1.11 | BV130: 1.13 | BW130: 1.12 | BX130: 1.14 | BY130: 1.11
A131: 2827 | B131: Görlitz, Stadt / Görlitz | C131: 2827 | D131: 0,95 | E131: 0,93 | F131: 0,93 | G131: 0,96 | H131: 0,95 | I131: 0,94 | J131: 0,94 | K131: 0,94 | L131: 0,96 | M131: 0,95 | N131: 0,97 | O131: 0,95 | P131: 0,94 | Q131: 0,93 | R131: 0,93 | S131: 0,9 | T131: 0,88 | U131: 0,89 | V131: 0,89 | W131: 0,88 | X131: 0,86 | Y131: 0,86 | Z131: 0,85 | AA131: 0,82 | AB131: 0,85 | AC131: 0,85 | AD131: 0,85 | AE131: 0,87 | AF131: 0,9 | AG131: 0,91 | AH131: 0,9 | AI131: 0,9 | AJ131: 0,93 | AK131: 0,95 | AL131: 0,93 | AM131: 1 | AN131: 1 | AO131: 0,98 | AP131: 1 | AQ131: 0,97 | AR131: 0,98 | AS131: 0,97 | AT131: 0,98 | AU131: 0,98 | AV131: 0,97 | AW131: 0,96 | AX131: 0,98 | AY131: 0,95 | AZ131: 0,94 | BA131: 0,96 | BB131: 0,91 | BC131: 0,91 | BD131: 0,9 | BE131: 0,89 | BF131: 0,9 | BG131: 0,9 | BH131: 0,88 | BI131: 0,9 | BJ131: 0,9 | BK131: 0,92 | BL131: 0,92 | BM131: 0,96 | BN131: 1,02 | BO131: 1,04 | BP131: 1.03 | BQ131: 1.03 | BR131: 1.03 | BS131: 1.01 | BT131: 1.04 | BU131: 1.05 | BV131: 1.07 | BW131: 1.06 | BX131: 1.08 | BY131: 1.05
A132: 2828 | B132: Görlitz, Stadt / Görlitz | C132: 2828 | D132: 0,97 | E132: 0,94 | F132: 0,94 | G132: 0,98 | H132: 0,97 | I132: 0,96 | J132: 0,96 | K132: 0,96 | L132: 0,99 | M132: 0,97 | N132: 0,99 | O132: 0,97 | P132: 0,96 | Q132: 0,95 | R132: 0,95 | S132: 0,92 | T132: 0,9 | U132: 0,91 | V132: 0,91 | W132: 0,9 | X132: 0,88 | Y132: 0,87 | Z132: 0,86 | AA132: 0,84 | AB132: 0,87 | AC132: 0,87 | AD132: 0,87 | AE132: 0,89 | AF132: 0,92 | AG132: 0,93 | AH132: 0,92 | AI132: 0,92 | AJ132: 0,95 | AK132: 0,97 | AL132: 0,95 | AM132: 1,02 | AN132: 1,03 | AO132: 1 | AP132: 1,02 | AQ132: 1 | AR132: 1 | AS132: 0,99 | AT132: 1 | AU132: 1 | AV132: 0,99 | AW132: 0,98 | AX132: 1 | AY132: 0,97 | AZ132: 0,95 | BA132: 0,98 | BB132: 0,92 | BC132: 0,92 | BD132: 0,91 | BE132: 0,91 | BF132: 0,91 | BG132: 0,91 | BH132: 0,9 | BI132: 0,92 | BJ132: 0,91 | BK132: 0,94 | BL132: 0,94 | BM132: 0,98 | BN132: 1,04 | BO132: 1,06 | BP132: 1.05 | BQ132: 1.05 | BR132: 1.05 | BS132: 1.04 | BT132: 1.07 | BU132: 1.08 | BV132: 1.10 | BW132: 1.09 | BX132: 1.11 | BY132: 1.08
A133: 2829 | B133: Niederschlesischer Oberlausitzkreis / Markersdorf | C133: 2829 | D133: 0,94 | E133: 0,92 | F133: 0,92 | G133: 0,95 | H133: 0,94 | I133: 0,93 | J133: 0,93 | K133: 0,93 | L133: 0,95 | M133: 0,94 | N133: 0,95 | O133: 0,94 | P133: 0,92 | Q133: 0,92 | R133: 0,92 | S133: 0,89 | T133: 0,87 | U133: 0,88 | V133: 0,88 | W133: 0,87 | X133: 0,85 | Y133: 0,85 | Z133: 0,84 | AA133: 0,81 | AB133: 0,84 | AC133: 0,84 | AD133: 0,84 | AE133: 0,86 | AF133: 0,89 | AG133: 0,89 | AH133: 0,88 | AI133: 0,89 | AJ133: 0,91 | AK133: 0,93 | AL133: 0,91 | AM133: 0,98 | AN133: 0,98 | AO133: 0,96 | AP133: 0,98 | AQ133: 0,96 | AR133: 0,96 | AS133: 0,95 | AT133: 0,96 | AU133: 0,97 | AV133: 0,96 | AW133: 0,95 | AX133: 0,96 | AY133: 0,94 | AZ133: 0,93 | BA133: 0,95 | BB133: 0,9 | BC133: 0,9 | BD133: 0,89 | BE133: 0,88 | BF133: 0,89 | BG133: 0,89 | BH133: 0,88 | BI133: 0,89 | BJ133: 0,89 | BK133: 0,91 | BL133: 0,92 | BM133: 0,94 | BN133: 1,01 | BO133: 1,02 | BP133: 1.01 | BQ133: 1.01 | BR133: 1.01 | BS133: 1.00 | BT133: 1.02 | BU133: 1.03 | BV133: 1.05 | BW133: 1.04 | BX133: 1.06 | BY133: 1.03
A134: 2894 | B134: Niederschlesischer Oberlausitzkreis / Vierkirchen | C134: 2894 | D134: 0,94 | E134: 0,91 | F134: 0,91 | G134: 0,94 | H134: 0,94 | I134: 0,93 | J134: 0,92 | K134: 0,93 | L134: 0,95 | M134: 0,94 | N134: 0,95 | O134: 0,94 | P134: 0,92 | Q134: 0,92 | R134: 0,92 | S134: 0,89 | T134: 0,87 | U134: 0,88 | V134: 0,88 | W134: 0,87 | X134: 0,85 | Y134: 0,85 | Z134: 0,84 | AA134: 0,81 | AB134: 0,84 | AC134: 0,84 | AD134: 0,84 | AE134: 0,86 | AF134: 0,89 | AG134: 0,89 | AH134: 0,88 | AI134: 0,89 | AJ134: 0,91 | AK134: 0,93 | AL134: 0,91 | AM134: 0,98 | AN134: 0,98 | AO134: 0,96 | AP134: 0,98 | AQ134: 0,96 | AR134: 0,96 | AS134: 0,95 | AT134: 0,96 | AU134: 0,97 | AV134: 0,96 | AW134: 0,95 | AX134: 0,96 | AY134: 0,93 | AZ134: 0,92 | BA134: 0,95 | BB134: 0,9 | BC134: 0,9 | BD134: 0,88 | BE134: 0,88 | BF134: 0,89 | BG134: 0,89 | BH134: 0,87 | BI134: 0,89 | BJ134: 0,89 | BK134: 0,91 | BL134: 0,91 | BM134: 0,94 | BN134: 1,01 | BO134: 1,02 | BP134: 1.01 | BQ134: 1.01 | BR134: 1.01 | BS134: 1.00 | BT134: 1.02 | BU134: 1.03 | BV134: 1.05 | BW134: 1.04 | BX134: 1.06 | BY134: 1.03
A135: =C135 -> 2899 | B135: Löbau-Zittau / Ostritz | C135: 2899 | D135: 0,95 | E135: 0,92 | F135: 0,92 | G135: 0,95 | H135: 0,95 | I135: 0,93 | J135: 0,93 | K135: 0,94 | L135: 0,96 | M135: 0,95 | N135: 0,96 | O135: 0,94 | P135: 0,93 | Q135: 0,93 | R135: 0,92 | S135: 0,9 | T135: 0,88 | U135: 0,89 | V135: 0,89 | W135: 0,88 | X135: 0,86 | Y135: 0,85 | Z135: 0,84 | AA135: 0,82 | AB135: 0,85 | AC135: 0,85 | AD135: 0,85 | AE135: 0,87 | AF135: 0,89 | AG135: 0,9 | AH135: 0,89 | AI135: 0,89 | AJ135: 0,92 | AK135: 0,94 | AL135: 0,92 | AM135: 0,98 | AN135: 0,99 | AO135: 0,97 | AP135: 0,98 | AQ135: 0,97 | AR135: 0,97 | AS135: 0,96 | AT135: 0,97 | AU135: 0,97 | AV135: 0,97 | AW135: 0,96 | AX135: 0,97 | AY135: 0,94 | AZ135: 0,93 | BA135: 0,96 | BB135: 0,91 | BC135: 0,91 | BD135: 0,89 | BE135: 0,89 | BF135: 0,9 | BG135: 0,89 | BH135: 0,88 | BI135: 0,9 | BJ135: 0,9 | BK135: 0,92 | BL135: 0,92 | BM135: 0,95 | BN135: 1,01 | BO135: 1,03 | BP135: 1.02 | BQ135: 1.02 | BR135: 1.02 | BS135: 1.00 | BT135: 1.03 | BU135: 1.04 | BV135: 1.05 | BW135: 1.05 | BX135: 1.07 | BY135: 1.04
A136: 2906 | B136: Niederschlesischer Oberlausitzkreis / Niesky | C136: 2906 | D136: 0,97 | E136: 0,95 | F136: 0,94 | G136: 0,97 | H136: 0,97 | I136: 0,96 | J136: 0,96 | K136: 0,96 | L136: 0,98 | M136: 0,97 | N136: 0,98 | O136: 0,97 | P136: 0,95 | Q136: 0,95 | R136: 0,94 | S136: 0,92 | T136: 0,9 | U136: 0,9 | V136: 0,91 | W136: 0,9 | X136: 0,88 | Y136: 0,87 | Z136: 0,86 | AA136: 0,83 | AB136: 0,87 | AC136: 0,87 | AD136: 0,87 | AE136: 0,89 | AF136: 0,91 | AG136: 0,92 | AH136: 0,91 | AI136: 0,91 | AJ136: 0,94 | AK136: 0,96 | AL136: 0,94 | AM136: 1,01 | AN136: 1,02 | AO136: 0,99 | AP136: 1,01 | AQ136: 0,99 | AR136: 1 | AS136: 0,98 | AT136: 0,99 | AU136: 1 | AV136: 0,99 | AW136: 0,98 | AX136: 0,99 | AY136: 0,97 | AZ136: 0,95 | BA136: 0,98 | BB136: 0,93 | BC136: 0,93 | BD136: 0,91 | BE136: 0,91 | BF136: 0,92 | BG136: 0,92 | BH136: 0,9 | BI136: 0,92 | BJ136: 0,92 | BK136: 0,94 | BL136: 0,94 | BM136: 0,97 | BN136: 1,04 | BO136: 1,06 | BP136: 1.05 | BQ136: 1.05 | BR136: 1.04 | BS136: 1.03 | BT136: 1.06 | BU136: 1.07 | BV136: 1.08 | BW136: 1.08 | BX136: 1.10 | BY136: 1.07
A137: 2923 | B137: Niederschlesischer Oberlausitzkreis / Neißeaue | C137: 2923 | D137: 0,96 | E137: 0,94 | F137: 0,94 | G137: 0,97 | H137: 0,97 | I137: 0,95 | J137: 0,95 | K137: 0,95 | L137: 0,97 | M137: 0,96 | N137: 0,98 | O137: 0,96 | P137: 0,95 | Q137: 0,94 | R137: 0,94 | S137: 0,91 | T137: 0,89 | U137: 0,9 | V137: 0,9 | W137: 0,89 | X137: 0,87 | Y137: 0,87 | Z137: 0,86 | AA137: 0,83 | AB137: 0,86 | AC137: 0,86 | AD137: 0,86 | AE137: 0,88 | AF137: 0,91 | AG137: 0,92 | AH137: 0,9 | AI137: 0,91 | AJ137: 0,93 | AK137: 0,95 | AL137: 0,93 | AM137: 1 | AN137: 1,01 | AO137: 0,98 | AP137: 1 | AQ137: 0,98 | AR137: 0,99 | AS137: 0,98 | AT137: 0,99 | AU137: 0,99 | AV137: 0,98 | AW137: 0,97 | AX137: 0,99 | AY137: 0,96 | AZ137: 0,95 | BA137: 0,98 | BB137: 0,92 | BC137: 0,92 | BD137: 0,91 | BE137: 0,91 | BF137: 0,91 | BG137: 0,91 | BH137: 0,9 | BI137: 0,91 | BJ137: 0,91 | BK137: 0,94 | BL137: 0,94 | BM137: 0,97 | BN137: 1,03 | BO137: 1,05 | BP137: 1.04 | BQ137: 1.04 | BR137: 1.04 | BS137: 1.02 | BT137: 1.05 | BU137: 1.06 | BV137: 1.07 | BW137: 1.07 | BX137: 1.09 | BY137: 1.06
A138: 2929 | B138: Niederschlesischer Oberlausitzkreis / Rothenburg/Oberlausitz | C138: 2929 | D138: 0,97 | E138: 0,94 | F138: 0,94 | G138: 0,97 | H138: 0,97 | I138: 0,96 | J138: 0,95 | K138: 0,96 | L138: 0,98 | M138: 0,97 | N138: 0,98 | O138: 0,96 | P138: 0,95 | Q138: 0,94 | R138: 0,94 | S138: 0,92 | T138: 0,9 | U138: 0,9 | V138: 0,9 | W138: 0,9 | X138: 0,87 | Y138: 0,87 | Z138: 0,86 | AA138: 0,83 | AB138: 0,87 | AC138: 0,86 | AD138: 0,87 | AE138: 0,88 | AF138: 0,91 | AG138: 0,92 | AH138: 0,91 | AI138: 0,91 | AJ138: 0,94 | AK138: 0,95 | AL138: 0,94 | AM138: 1,01 | AN138: 1,01 | AO138: 0,99 | AP138: 1,01 | AQ138: 0,99 | AR138: 0,99 | AS138: 0,98 | AT138: 0,99 | AU138: 1 | AV138: 0,99 | AW138: 0,98 | AX138: 0,99 | AY138: 0,96 | AZ138: 0,95 | BA138: 0,98 | BB138: 0,92 | BC138: 0,92 | BD138: 0,91 | BE138: 0,91 | BF138: 0,92 | BG138: 0,91 | BH138: 0,9 | BI138: 0,92 | BJ138: 0,92 | BK138: 0,94 | BL138: 0,94 | BM138: 0,97 | BN138: 1,04 | BO138: 1,05 | BP138: 1.05 | BQ138: 1.04 | BR138: 1.04 | BS138: 1.03 | BT138: 1.06 | BU138: 1.07 | BV138: 1.08 | BW138: 1.08 | BX138: 1.10 | BY138: 1.07
A139: 2943 | B139: Niederschlesischer Oberlausitzkreis / Boxberg/Oberlausitz | C139: 2943 | D139: 0,98 | E139: 0,95 | F139: 0,95 | G139: 0,98 | H139: 0,98 | I139: 0,96 | J139: 0,96 | K139: 0,97 | L139: 0,99 | M139: 0,98 | N139: 0,99 | O139: 0,97 | P139: 0,96 | Q139: 0,95 | R139: 0,95 | S139: 0,92 | T139: 0,9 | U139: 0,91 | V139: 0,91 | W139: 0,91 | X139: 0,88 | Y139: 0,88 | Z139: 0,87 | AA139: 0,84 | AB139: 0,87 | AC139: 0,87 | AD139: 0,87 | AE139: 0,89 | AF139: 0,92 | AG139: 0,93 | AH139: 0,92 | AI139: 0,92 | AJ139: 0,94 | AK139: 0,96 | AL139: 0,95 | AM139: 1,02 | AN139: 1,02 | AO139: 1 | AP139: 1,02 | AQ139: 1 | AR139: 1 | AS139: 0,99 | AT139: 1 | AU139: 1,01 | AV139: 1 | AW139: 0,99 | AX139: 1 | AY139: 0,97 | AZ139: 0,96 | BA139: 0,99 | BB139: 0,93 | BC139: 0,93 | BD139: 0,92 | BE139: 0,92 | BF139: 0,92 | BG139: 0,92 | BH139: 0,91 | BI139: 0,93 | BJ139: 0,93 | BK139: 0,95 | BL139: 0,95 | BM139: 0,98 | BN139: 1,05 | BO139: 1,07 | BP139: 1.06 | BQ139: 1.06 | BR139: 1.05 | BS139: 1.04 | BT139: 1.07 | BU139: 1.08 | BV139: 1.09 | BW139: 1.09 | BX139: 1.11 | BY139: 1.08
A140: 2953 | B140: Niederschlesischer Oberlausitzkreis / Gablenz | C140: 2953 | D140: 0,97 | E140: 0,95 | F140: 0,95 | G140: 0,98 | H140: 0,98 | I140: 0,96 | J140: 0,96 | K140: 0,96 | L140: 0,98 | M140: 0,97 | N140: 0,98 | O140: 0,97 | P140: 0,95 | Q140: 0,95 | R140: 0,94 | S140: 0,92 | T140: 0,9 | U140: 0,9 | V140: 0,91 | W140: 0,9 | X140: 0,88 | Y140: 0,87 | Z140: 0,86 | AA140: 0,84 | AB140: 0,87 | AC140: 0,87 | AD140: 0,87 | AE140: 0,89 | AF140: 0,91 | AG140: 0,92 | AH140: 0,91 | AI140: 0,91 | AJ140: 0,94 | AK140: 0,96 | AL140: 0,94 | AM140: 1,01 | AN140: 1,02 | AO140: 1 | AP140: 1,01 | AQ140: 1 | AR140: 1 | AS140: 0,99 | AT140: 1 | AU140: 1 | AV140: 0,99 | AW140: 0,98 | AX140: 1 | AY140: 0,97 | AZ140: 0,96 | BA140: 0,98 | BB140: 0,93 | BC140: 0,93 | BD140: 0,91 | BE140: 0,91 | BF140: 0,92 | BG140: 0,92 | BH140: 0,9 | BI140: 0,92 | BJ140: 0,92 | BK140: 0,94 | BL140: 0,95 | BM140: 0,98 | BN140: 1,04 | BO140: 1,06 | BP140: 1.05 | BQ140: 1.05 | BR140: 1.05 | BS140: 1.03 | BT140: 1.06 | BU140: 1.08 | BV140: 1.09 | BW140: 1.08 | BX140: 1.11 | BY140: 1.07
A141: 2956 | B141: Niederschlesischer Oberlausitzkreis / Rietschen | C141: 2956 | D141: 0,98 | E141: 0,95 | F141: 0,95 | G141: 0,98 | H141: 0,98 | I141: 0,96 | J141: 0,96 | K141: 0,96 | L141: 0,99 | M141: 0,97 | N141: 0,99 | O141: 0,97 | P141: 0,96 | Q141: 0,95 | R141: 0,95 | S141: 0,92 | T141: 0,9 | U141: 0,91 | V141: 0,91 | W141: 0,9 | X141: 0,88 | Y141: 0,88 | Z141: 0,87 | AA141: 0,84 | AB141: 0,87 | AC141: 0,87 | AD141: 0,87 | AE141: 0,89 | AF141: 0,92 | AG141: 0,93 | AH141: 0,91 | AI141: 0,92 | AJ141: 0,94 | AK141: 0,96 | AL141: 0,94 | AM141: 1,01 | AN141: 1,02 | AO141: 1 | AP141: 1,02 | AQ141: 1 | AR141: 1 | AS141: 0,99 | AT141: 1 | AU141: 1 | AV141: 1 | AW141: 0,98 | AX141: 1 | AY141: 0,97 | AZ141: 0,96 | BA141: 0,99 | BB141: 0,93 | BC141: 0,93 | BD141: 0,92 | BE141: 0,92 | BF141: 0,92 | BG141: 0,92 | BH141: 0,91 | BI141: 0,92 | BJ141: 0,92 | BK141: 0,95 | BL141: 0,95 | BM141: 0,98 | BN141: 1,05 | BO141: 1,06 | BP141: 1.05 | BQ141: 1.05 | BR141: 1.05 | BS141: 1.04 | BT141: 1.07 | BU141: 1.08 | BV141: 1.09 | BW141: 1.09 | BX141: 1.11 | BY141: 1.08
A142: 2957 | B142: Niederschlesischer Oberlausitzkreis / Weißkeißel | C142: 2957 | D142: 0,99 | E142: 0,96 | F142: 0,96 | G142: 0,99 | H142: 0,99 | I142: 0,97 | J142: 0,97 | K142: 0,97 | L142: 1 | M142: 0,98 | N142: 1 | O142: 0,98 | P142: 0,97 | Q142: 0,96 | R142: 0,96 | S142: 0,93 | T142: 0,91 | U142: 0,91 | V142: 0,92 | W142: 0,91 | X142: 0,89 | Y142: 0,88 | Z142: 0,87 | AA142: 0,84 | AB142: 0,88 | AC142: 0,88 | AD142: 0,88 | AE142: 0,9 | AF142: 0,92 | AG142: 0,93 | AH142: 0,92 | AI142: 0,92 | AJ142: 0,95 | AK142: 0,97 | AL142: 0,95 | AM142: 1,02 | AN142: 1,03 | AO142: 1,01 | AP142: 1,03 | AQ142: 1,01 | AR142: 1,01 | AS142: 1 | AT142: 1,01 | AU142: 1,01 | AV142: 1 | AW142: 0,99 | AX142: 1,01 | AY142: 0,98 | AZ142: 0,97 | BA142: 0,99 | BB142: 0,94 | BC142: 0,94 | BD142: 0,93 | BE142: 0,92 | BF142: 0,93 | BG142: 0,93 | BH142: 0,91 | BI142: 0,93 | BJ142: 0,93 | BK142: 0,96 | BL142: 0,96 | BM142: 0,99 | BN142: 1,06 | BO142: 1,07 | BP142: 1.07 | BQ142: 1.07 | BR142: 1.06 | BS142: 1.05 | BT142: 1.08 | BU142: 1.09 | BV142: 1.10 | BW142: 1.10 | BX142: 1.12 | BY142: 1.09
A143: 2959 | B143: Niederschlesischer Oberlausitzkreis / Schleife | C143: 2959 | D143: 0,98 | E143: 0,95 | F143: 0,95 | G143: 0,98 | H143: 0,98 | I143: 0,96 | J143: 0,96 | K143: 0,97 | L143: 0,99 | M143: 0,98 | N143: 0,99 | O143: 0,97 | P143: 0,96 | Q143: 0,95 | R143: 0,95 | S143: 0,92 | T143: 0,9 | U143: 0,91 | V143: 0,91 | W143: 0,9 | X143: 0,88 | Y143: 0,88 | Z143: 0,87 | AA143: 0,84 | AB143: 0,87 | AC143: 0,87 | AD143: 0,87 | AE143: 0,89 | AF143: 0,92 | AG143: 0,93 | AH143: 0,92 | AI143: 0,92 | AJ143: 0,94 | AK143: 0,96 | AL143: 0,95 | AM143: 1,02 | AN143: 1,02 | AO143: 1 | AP143: 1,02 | AQ143: 1 | AR143: 1 | AS143: 0,99 | AT143: 1 | AU143: 1 | AV143: 1 | AW143: 0,98 | AX143: 1 | AY143: 0,97 | AZ143: 0,96 | BA143: 0,99 | BB143: 0,93 | BC143: 0,93 | BD143: 0,92 | BE143: 0,92 | BF143: 0,92 | BG143: 0,92 | BH143: 0,91 | BI143: 0,92 | BJ143: 0,92 | BK143: 0,95 | BL143: 0,95 | BM143: 0,98 | BN143: 1,05 | BO143: 1,07 | BP143: 1.06 | BQ143: 1.06 | BR143: 1.05 | BS143: 1.04 | BT143: 1.07 | BU143: 1.08 | BV143: 1.09 | BW143: 1.09 | BX143: 1.11 | BY143: 1.08
A144: 2977 | B144: Hoyerswerda, Stadt / Hoyerswerda | C144: 2977 | D144: 1,02 | E144: 0,99 | F144: 0,99 | G144: 1,03 | H144: 1,03 | I144: 1,01 | J144: 1,01 | K144: 1,01 | L144: 1,04 | M144: 1,02 | N144: 1,04 | O144: 1,03 | P144: 1,01 | Q144: 1 | R144: 1 | S144: 0,97 | T144: 0,94 | U144: 0,95 | V144: 0,95 | W144: 0,95 | X144: 0,92 | Y144: 0,92 | Z144: 0,91 | AA144: 0,88 | AB144: 0,91 | AC144: 0,91 | AD144: 0,91 | AE144: 0,94 | AF144: 0,97 | AG144: 0,98 | AH144: 0,97 | AI144: 0,97 | AJ144: 1 | AK144: 1,02 | AL144: 1 | AM144: 1,08 | AN144: 1,09 | AO144: 1,06 | AP144: 1,08 | AQ144: 1,06 | AR144: 1,06 | AS144: 1,04 | AT144: 1,05 | AU144: 1,06 | AV144: 1,05 | AW144: 1,03 | AX144: 1,05 | AY144: 1,02 | AZ144: 1 | BA144: 1,03 | BB144: 0,97 | BC144: 0,97 | BD144: 0,96 | BE144: 0,96 | BF144: 0,96 | BG144: 0,96 | BH144: 0,94 | BI144: 0,96 | BJ144: 0,96 | BK144: 0,99 | BL144: 0,99 | BM144: 1,03 | BN144: 1,1 | BO144: 1,13 | BP144: 1.12 | BQ144: 1.12 | BR144: 1.12 | BS144: 1.10 | BT144: 1.14 | BU144: 1.15 | BV144: 1.17 | BW144: 1.16 | BX144: 1.18 | BY144: 1.15
A145: 2979 | B145: Kamenz / Elsterheide | C145: 2979 | D145: 1,01 | E145: 0,98 | F145: 0,98 | G145: 1,02 | H145: 1,01 | I145: 1 | J145: 1 | K145: 1 | L145: 1,02 | M145: 1,01 | N145: 1,03 | O145: 1,01 | P145: 1 | Q145: 0,99 | R145: 0,99 | S145: 0,96 | T145: 0,93 | U145: 0,94 | V145: 0,94 | W145: 0,94 | X145: 0,91 | Y145: 0,91 | Z145: 0,89 | AA145: 0,87 | AB145: 0,9 | AC145: 0,9 | AD145: 0,9 | AE145: 0,92 | AF145: 0,95 | AG145: 0,96 | AH145: 0,95 | AI145: 0,95 | AJ145: 0,98 | AK145: 1 | AL145: 0,99 | AM145: 1,06 | AN145: 1,07 | AO145: 1,04 | AP145: 1,07 | AQ145: 1,04 | AR145: 1,04 | AS145: 1,03 | AT145: 1,04 | AU145: 1,04 | AV145: 1,03 | AW145: 1,02 | AX145: 1,04 | AY145: 1,01 | AZ145: 0,99 | BA145: 1,02 | BB145: 0,96 | BC145: 0,96 | BD145: 0,95 | BE145: 0,95 | BF145: 0,95 | BG145: 0,95 | BH145: 0,94 | BI145: 0,95 | BJ145: 0,95 | BK145: 0,98 | BL145: 0,98 | BM145: 1,02 | BN145: 1,09 | BO145: 1,11 | BP145: 1.1 | BQ145: 1.1 | BR145: 1.1 | BS145: 1.09 | BT145: 1.12 | BU145: 1.13 | BV145: 1.15 | BW145: 1.14 | BX145: 1.16 | BY145: 1.13
A146: 2991 | B146: Kamenz / Leippe-Torno | C146: 2991 | D146: 1 | E146: 0,98 | F146: 0,98 | G146: 1,01 | H146: 1,01 | I146: 0,99 | J146: 0,99 | K146: 0,99 | L146: 1,02 | M146: 1 | N146: 1,02 | O146: 1 | P146: 0,99 | Q146: 0,98 | R146: 0,98 | S146: 0,95 | T146: 0,93 | U146: 0,93 | V146: 0,94 | W146: 0,93 | X146: 0,91 | Y146: 0,9 | Z146: 0,89 | AA146: 0,86 | AB146: 0,9 | AC146: 0,9 | AD146: 0,9 | AE146: 0,92 | AF146: 0,95 | AG146: 0,96 | AH146: 0,95 | AI146: 0,95 | AJ146: 0,97 | AK146: 1 | AL146: 0,98 | AM146: 1,05 | AN146: 1,06 | AO146: 1,04 | AP146: 1,06 | AQ146: 1,03 | AR146: 1,03 | AS146: 1,02 | AT146: 1,03 | AU146: 1,03 | AV146: 1,03 | AW146: 1,01 | AX146: 1,03 | AY146: 1 | AZ146: 0,99 | BA146: 1,01 | BB146: 0,95 | BC146: 0,95 | BD146: 0,94 | BE146: 0,94 | BF146: 0,94 | BG146: 0,94 | BH146: 0,93 | BI146: 0,95 | BJ146: 0,95 | BK146: 0,97 | BL146: 0,98 | BM146: 1,01 | BN146: 1,08 | BO146: 1,1 | BP146: 1.09 | BQ146: 1.09 | BR146: 1.09 | BS146: 1.08 | BT146: 1.11 | BU146: 1.12 | BV146: 1.14 | BW146: 1.13 | BX146: 1.15 | BY146: 1.12
A147: 2994 | B147: Kamenz / Bernsdorf | C147: 2994 | D147: 0,98 | E147: 0,96 | F147: 0,96 | G147: 0,99 | H147: 0,99 | I147: 0,97 | J147: 0,97 | K147: 0,97 | L147: 0,99 | M147: 0,98 | N147: 1 | O147: 0,98 | P147: 0,97 | Q147: 0,96 | R147: 0,96 | S147: 0,93 | T147: 0,91 | U147: 0,92 | V147: 0,92 | W147: 0,91 | X147: 0,89 | Y147: 0,89 | Z147: 0,87 | AA147: 0,85 | AB147: 0,88 | AC147: 0,88 | AD147: 0,88 | AE147: 0,9 | AF147: 0,93 | AG147: 0,94 | AH147: 0,93 | AI147: 0,93 | AJ147: 0,95 | AK147: 0,97 | AL147: 0,96 | AM147: 1,03 | AN147: 1,04 | AO147: 1,01 | AP147: 1,03 | AQ147: 1,01 | AR147: 1,01 | AS147: 1 | AT147: 1,01 | AU147: 1,01 | AV147: 1 | AW147: 0,99 | AX147: 1,01 | AY147: 0,98 | AZ147: 0,97 | BA147: 0,99 | BB147: 0,94 | BC147: 0,94 | BD147: 0,92 | BE147: 0,92 | BF147: 0,93 | BG147: 0,93 | BH147: 0,91 | BI147: 0,93 | BJ147: 0,93 | BK147: 0,95 | BL147: 0,96 | BM147: 0,99 | BN147: 1,06 | BO147: 1,07 | BP147: 1.07 | BQ147: 1.07 | BR147: 1.06 | BS147: 1.05 | BT147: 1.08 | BU147: 1.09 | BV147: 1.11 | BW147: 1.10 | BX147: 1.12 | BY147: 1.09
A148: 2997 | B148: Kamenz / Wittichenau | C148: 2997 | D148: 0,99 | E148: 0,96 | F148: 0,96 | G148: 0,99 | H148: 0,99 | I148: 0,97 | J148: 0,97 | K148: 0,98 | L148: 1 | M148: 0,99 | N148: 1 | O148: 0,99 | P148: 0,97 | Q148: 0,97 | R148: 0,96 | S148: 0,94 | T148: 0,91 | U148: 0,92 | V148: 0,92 | W148: 0,92 | X148: 0,89 | Y148: 0,89 | Z148: 0,88 | AA148: 0,85 | AB148: 0,88 | AC148: 0,88 | AD148: 0,88 | AE148: 0,91 | AF148: 0,93 | AG148: 0,94 | AH148: 0,93 | AI148: 0,93 | AJ148: 0,96 | AK148: 0,98 | AL148: 0,96 | AM148: 1,03 | AN148: 1,04 | AO148: 1,01 | AP148: 1,03 | AQ148: 1,01 | AR148: 1,02 | AS148: 1 | AT148: 1,01 | AU148: 1,02 | AV148: 1,01 | AW148: 1 | AX148: 1,01 | AY148: 0,98 | AZ148: 0,97 | BA148: 1 | BB148: 0,94 | BC148: 0,94 | BD148: 0,93 | BE148: 0,93 | BF148: 0,93 | BG148: 0,93 | BH148: 0,92 | BI148: 0,94 | BJ148: 0,94 | BK148: 0,96 | BL148: 0,96 | BM148: 0,99 | BN148: 1,06 | BO148: 1,08 | BP148: 1.07 | BQ148: 1.07 | BR148: 1.07 | BS148: 1.05 | BT148: 1.08 | BU148: 1.10 | BV148: 1.11 | BW148: 1.10 | BX148: 1.13 | BY148: 1.09
A149: 2999 | B149: Kamenz / Knappensee | C149: 2999 | D149: 0,98 | E149: 0,96 | F149: 0,96 | G149: 0,99 | H149: 0,99 | I149: 0,97 | J149: 0,97 | K149: 0,97 | L149: 1 | M149: 0,98 | N149: 1 | O149: 0,98 | P149: 0,97 | Q149: 0,96 | R149: 0,96 | S149: 0,93 | T149: 0,91 | U149: 0,92 | V149: 0,92 | W149: 0,91 | X149: 0,89 | Y149: 0,89 | Z149: 0,87 | AA149: 0,85 | AB149: 0,88 | AC149: 0,88 | AD149: 0,88 | AE149: 0,9 | AF149: 0,93 | AG149: 0,94 | AH149: 0,92 | AI149: 0,93 | AJ149: 0,95 | AK149: 0,97 | AL149: 0,95 | AM149: 1,03 | AN149: 1,03 | AO149: 1,01 | AP149: 1,03 | AQ149: 1,01 | AR149: 1,01 | AS149: 1 | AT149: 1,01 | AU149: 1,01 | AV149: 1,01 | AW149: 0,99 | AX149: 1,01 | AY149: 0,98 | AZ149: 0,97 | BA149: 1 | BB149: 0,94 | BC149: 0,94 | BD149: 0,93 | BE149: 0,93 | BF149: 0,93 | BG149: 0,93 | BH149: 0,92 | BI149: 0,93 | BJ149: 0,93 | BK149: 0,96 | BL149: 0,96 | BM149: 0,99 | BN149: 1,06 | BO149: 1,07 | BP149: 1.07 | BQ149: 1.07 | BR149: 1.06 | BS149: 1.05 | BT149: 1.08 | BU149: 1.09 | BV149: 1.10 | BW149: 1.10 | BX149: 1.12 | BY149: 1.09
A150: 3042 | B150: Cottbus, Stadt / Cottbus | C150: 3042 | D150: 1,05 | E150: 1,03 | F150: 1,03 | G150: 1,07 | H150: 1,06 | I150: 1,05 | J150: 1,05 | K150: 1,05 | L150: 1,08 | M150: 1,06 | N150: 1,08 | O150: 1,06 | P150: 1,04 | Q150: 1,04 | R150: 1,03 | S150: 1 | T150: 0,97 | U150: 0,98 | V150: 0,98 | W150: 0,97 | X150: 0,95 | Y150: 0,95 | Z150: 0,93 | AA150: 0,9 | AB150: 0,94 | AC150: 0,94 | AD150: 0,94 | AE150: 0,96 | AF150: 1 | AG150: 1,01 | AH150: 1 | AI150: 1 | AJ150: 1,03 | AK150: 1,05 | AL150: 1,04 | AM150: 1,12 | AN150: 1,13 | AO150: 1,11 | AP150: 1,13 | AQ150: 1,1 | AR150: 1,1 | AS150: 1,08 | AT150: 1,09 | AU150: 1,09 | AV150: 1,08 | AW150: 1,07 | AX150: 1,09 | AY150: 1,05 | AZ150: 1,03 | BA150: 1,06 | BB150: 1 | BC150: 1 | BD150: 0,98 | BE150: 0,98 | BF150: 0,99 | BG150: 0,99 | BH150: 0,97 | BI150: 0,99 | BJ150: 0,99 | BK150: 1,02 | BL150: 1,02 | BM150: 1,06 | BN150: 1,15 | BO150: 1,17 | BP150: 1.16 | BQ150: 1.16 | BR150: 1.16 | BS150: 1.15 | BT150: 1.19 | BU150: 1.20 | BV150: 1.22 | BW150: 1.21 | BX150: 1.24 | BY150: 1.20
A151: 3044 | B151: Cottbus, Stadt / Cottbus | C151: 3044 | D151: 1,05 | E151: 1,02 | F151: 1,02 | G151: 1,06 | H151: 1,06 | I151: 1,04 | J151: 1,04 | K151: 1,04 | L151: 1,07 | M151: 1,06 | N151: 1,07 | O151: 1,06 | P151: 1,04 | Q151: 1,03 | R151: 1,03 | S151: 0,99 | T151: 0,97 | U151: 0,97 | V151: 0,97 | W151: 0,97 | X151: 0,94 | Y151: 0,94 | Z151: 0,93 | AA151: 0,9 | AB151: 0,94 | AC151: 0,93 | AD151: 0,93 | AE151: 0,96 | AF151: 0,99 | AG151: 1 | AH151: 1 | AI151: 1 | AJ151: 1,03 | AK151: 1,05 | AL151: 1,03 | AM151: 1,12 | AN151: 1,13 | AO151: 1,1 | AP151: 1,12 | AQ151: 1,09 | AR151: 1,09 | AS151: 1,08 | AT151: 1,08 | AU151: 1,09 | AV151: 1,08 | AW151: 1,06 | AX151: 1,08 | AY151: 1,04 | AZ151: 1,03 | BA151: 1,06 | BB151: 0,99 | BC151: 0,99 | BD151: 0,98 | BE151: 0,98 | BF151: 0,98 | BG151: 0,98 | BH151: 0,97 | BI151: 0,99 | BJ151: 0,99 | BK151: 1,01 | BL151: 1,02 | BM151: 1,06 | BN151: 1,14 | BO151: 1,16 | BP151: 1.15 | BQ151: 1.16 | BR151: 1.15 | BS151: 1.14 | BT151: 1.18 | BU151: 1.20 | BV151: 1.21 | BW151: 1.20 | BX151: 1.23 | BY151: 1.19
A152: 3046 | B152: Cottbus, Stadt / Cottbus | C152: 3046 | D152: 1,04 | E152: 1,02 | F152: 1,02 | G152: 1,06 | H152: 1,05 | I152: 1,04 | J152: 1,04 | K152: 1,04 | L152: 1,06 | M152: 1,05 | N152: 1,07 | O152: 1,05 | P152: 1,03 | Q152: 1,02 | R152: 1,02 | S152: 0,99 | T152: 0,96 | U152: 0,97 | V152: 0,97 | W152: 0,96 | X152: 0,94 | Y152: 0,94 | Z152: 0,92 | AA152: 0,89 | AB152: 0,93 | AC152: 0,93 | AD152: 0,93 | AE152: 0,95 | AF152: 0,99 | AG152: 1 | AH152: 0,99 | AI152: 0,99 | AJ152: 1,02 | AK152: 1,04 | AL152: 1,02 | AM152: 1,11 | AN152: 1,12 | AO152: 1,09 | AP152: 1,11 | AQ152: 1,08 | AR152: 1,09 | AS152: 1,07 | AT152: 1,08 | AU152: 1,08 | AV152: 1,07 | AW152: 1,06 | AX152: 1,07 | AY152: 1,04 | AZ152: 1,02 | BA152: 1,05 | BB152: 0,99 | BC152: 0,99 | BD152: 0,97 | BE152: 0,97 | BF152: 0,98 | BG152: 0,98 | BH152: 0,96 | BI152: 0,98 | BJ152: 0,98 | BK152: 1,01 | BL152: 1,01 | BM152: 1,05 | BN152: 1,13 | BO152: 1,16 | BP152: 1.15 | BQ152: 1.15 | BR152: 1.15 | BS152: 1.13 | BT152: 1.17 | BU152: 1.19 | BV152: 1.20 | BW152: 1.19 | BX152: 1.22 | BY152: 1.18
A153: 3048 | B153: Cottbus, Stadt / Cottbus | C153: 3048 | D153: 1,03 | E153: 1,01 | F153: 1,01 | G153: 1,04 | H153: 1,04 | I153: 1,02 | J153: 1,02 | K153: 1,03 | L153: 1,05 | M153: 1,04 | N153: 1,05 | O153: 1,04 | P153: 1,02 | Q153: 1,01 | R153: 1,01 | S153: 0,98 | T153: 0,95 | U153: 0,96 | V153: 0,96 | W153: 0,95 | X153: 0,93 | Y153: 0,93 | Z153: 0,91 | AA153: 0,88 | AB153: 0,92 | AC153: 0,92 | AD153: 0,92 | AE153: 0,94 | AF153: 0,97 | AG153: 0,99 | AH153: 0,98 | AI153: 0,98 | AJ153: 1 | AK153: 1,03 | AL153: 1,01 | AM153: 1,09 | AN153: 1,1 | AO153: 1,07 | AP153: 1,1 | AQ153: 1,07 | AR153: 1,07 | AS153: 1,06 | AT153: 1,06 | AU153: 1,07 | AV153: 1,06 | AW153: 1,04 | AX153: 1,06 | AY153: 1,03 | AZ153: 1,01 | BA153: 1,04 | BB153: 0,98 | BC153: 0,98 | BD153: 0,97 | BE153: 0,97 | BF153: 0,97 | BG153: 0,97 | BH153: 0,95 | BI153: 0,97 | BJ153: 0,97 | BK153: 1 | BL153: 1 | BM153: 1,04 | BN153: 1,12 | BO153: 1,14 | BP153: 1.13 | BQ153: 1.13 | BR153: 1.13 | BS153: 1.12 | BT153: 1.15 | BU153: 1.17 | BV153: 1.18 | BW153: 1.17 | BX153: 1.20 | BY153: 1.16
A154: 3050 | B154: Cottbus, Stadt / Cottbus | C154: 3050 | D154: 1,05 | E154: 1,02 | F154: 1,02 | G154: 1,06 | H154: 1,06 | I154: 1,04 | J154: 1,04 | K154: 1,05 | L154: 1,07 | M154: 1,06 | N154: 1,07 | O154: 1,06 | P154: 1,04 | Q154: 1,03 | R154: 1,03 | S154: 1 | T154: 0,97 | U154: 0,97 | V154: 0,97 | W154: 0,97 | X154: 0,94 | Y154: 0,94 | Z154: 0,93 | AA154: 0,9 | AB154: 0,94 | AC154: 0,94 | AD154: 0,94 | AE154: 0,96 | AF154: 0,99 | AG154: 1,01 | AH154: 1 | AI154: 1 | AJ154: 1,03 | AK154: 1,05 | AL154: 1,03 | AM154: 1,12 | AN154: 1,13 | AO154: 1,1 | AP154: 1,13 | AQ154: 1,09 | AR154: 1,09 | AS154: 1,08 | AT154: 1,08 | AU154: 1,09 | AV154: 1,08 | AW154: 1,06 | AX154: 1,08 | AY154: 1,04 | AZ154: 1,03 | BA154: 1,06 | BB154: 0,99 | BC154: 0,99 | BD154: 0,98 | BE154: 0,98 | BF154: 0,98 | BG154: 0,98 | BH154: 0,97 | BI154: 0,99 | BJ154: 0,99 | BK154: 1,01 | BL154: 1,02 | BM154: 1,06 | BN154: 1,14 | BO154: 1,17 | BP154: 1.15 | BQ154: 1.16 | BR154: 1.16 | BS154: 1.15 | BT154: 1.18 | BU154: 1.20 | BV154: 1.22 | BW154: 1.20 | BX154: 1.23 | BY154: 1.19
A155: 3051 | B155: Cottbus, Stadt / Cottbus | C155: 3051 | D155: 1,01 | E155: 0,98 | F155: 0,98 | G155: 1,01 | H155: 1,01 | I155: 0,99 | J155: 0,99 | K155: 0,99 | L155: 1,02 | M155: 1 | N155: 1,02 | O155: 1 | P155: 0,98 | Q155: 0,98 | R155: 0,97 | S155: 0,95 | T155: 0,92 | U155: 0,93 | V155: 0,93 | W155: 0,93 | X155: 0,9 | Y155: 0,9 | Z155: 0,89 | AA155: 0,86 | AB155: 0,89 | AC155: 0,89 | AD155: 0,89 | AE155: 0,91 | AF155: 0,94 | AG155: 0,95 | AH155: 0,94 | AI155: 0,94 | AJ155: 0,97 | AK155: 0,99 | AL155: 0,97 | AM155: 1,05 | AN155: 1,05 | AO155: 1,03 | AP155: 1,05 | AQ155: 1,03 | AR155: 1,03 | AS155: 1,02 | AT155: 1,03 | AU155: 1,03 | AV155: 1,02 | AW155: 1,01 | AX155: 1,03 | AY155: 1 | AZ155: 0,99 | BA155: 1,01 | BB155: 0,95 | BC155: 0,95 | BD155: 0,94 | BE155: 0,94 | BF155: 0,95 | BG155: 0,94 | BH155: 0,93 | BI155: 0,95 | BJ155: 0,95 | BK155: 0,97 | BL155: 0,98 | BM155: 1,01 | BN155: 1,08 | BO155: 1,1 | BP155: 1.09 | BQ155: 1.09 | BR155: 1.09 | BS155: 1.07 | BT155: 1.10 | BU155: 1.12 | BV155: 1.13 | BW155: 1.12 | BX155: 1.15 | BY155: 1.11
A156: 3052 | B156: Cottbus, Stadt / Cottbus | C156: 3052 | D156: 1,01 | E156: 0,98 | F156: 0,98 | G156: 1,01 | H156: 1,01 | I156: 0,99 | J156: 0,99 | K156: 0,99 | L156: 1,02 | M156: 1 | N156: 1,02 | O156: 1 | P156: 0,98 | Q156: 0,98 | R156: 0,97 | S156: 0,95 | T156: 0,92 | U156: 0,93 | V156: 0,93 | W156: 0,93 | X156: 0,9 | Y156: 0,9 | Z156: 0,89 | AA156: 0,86 | AB156: 0,89 | AC156: 0,89 | AD156: 0,89 | AE156: 0,91 | AF156: 0,94 | AG156: 0,95 | AH156: 0,94 | AI156: 0,94 | AJ156: 0,97 | AK156: 0,99 | AL156: 0,97 | AM156: 1,04 | AN156: 1,05 | AO156: 1,03 | AP156: 1,05 | AQ156: 1,03 | AR156: 1,03 | AS156: 1,02 | AT156: 1,03 | AU156: 1,03 | AV156: 1,02 | AW156: 1,01 | AX156: 1,03 | AY156: 1 | AZ156: 0,99 | BA156: 1,01 | BB156: 0,95 | BC156: 0,95 | BD156: 0,94 | BE156: 0,94 | BF156: 0,95 | BG156: 0,95 | BH156: 0,93 | BI156: 0,95 | BJ156: 0,95 | BK156: 0,98 | BL156: 0,98 | BM156: 1,01 | BN156: 1,08 | BO156: 1,1 | BP156: 1.09 | BQ156: 1.09 | BR156: 1.09 | BS156: 1.07 | BT156: 1.10 | BU156: 1.12 | BV156: 1.13 | BW156: 1.12 | BX156: 1.15 | BY156: 1.11
A157: 3053 | B157: Cottbus, Stadt / Cottbus | C157: 3053 | D157: 1,01 | E157: 0,99 | F157: 0,99 | G157: 1,02 | H157: 1,02 | I157: 1 | J157: 1 | K157: 1 | L157: 1,02 | M157: 1,01 | N157: 1,03 | O157: 1,01 | P157: 0,99 | Q157: 0,98 | R157: 0,98 | S157: 0,95 | T157: 0,93 | U157: 0,94 | V157: 0,94 | W157: 0,93 | X157: 0,91 | Y157: 0,91 | Z157: 0,89 | AA157: 0,86 | AB157: 0,9 | AC157: 0,9 | AD157: 0,9 | AE157: 0,92 | AF157: 0,95 | AG157: 0,96 | AH157: 0,95 | AI157: 0,95 | AJ157: 0,97 | AK157: 0,99 | AL157: 0,98 | AM157: 1,05 | AN157: 1,06 | AO157: 1,04 | AP157: 1,06 | AQ157: 1,04 | AR157: 1,04 | AS157: 1,03 | AT157: 1,04 | AU157: 1,04 | AV157: 1,03 | AW157: 1,02 | AX157: 1,04 | AY157: 1 | AZ157: 0,99 | BA157: 1,02 | BB157: 0,96 | BC157: 0,96 | BD157: 0,95 | BE157: 0,95 | BF157: 0,95 | BG157: 0,95 | BH157: 0,94 | BI157: 0,96 | BJ157: 0,96 | BK157: 0,98 | BL157: 0,98 | BM157: 1,01 | BN157: 1,09 | BO157: 1,11 | BP157: 1.1 | BQ157: 1.1 | BR157: 1.1 | BS157: 1.08 | BT157: 1.11 | BU157: 1.13 | BV157: 1.14 | BW157: 1.13 | BX157: 1.16 | BY157: 1.12
A158: 3054 | B158: Cottbus, Stadt / Cottbus | C158: 3054 | D158: 1,02 | E158: 0,99 | F158: 0,99 | G158: 1,03 | H158: 1,02 | I158: 1,01 | J158: 1,01 | K158: 1,01 | L158: 1,03 | M158: 1,02 | N158: 1,03 | O158: 1,02 | P158: 1 | Q158: 0,99 | R158: 0,99 | S158: 0,96 | T158: 0,93 | U158: 0,94 | V158: 0,94 | W158: 0,94 | X158: 0,91 | Y158: 0,91 | Z158: 0,9 | AA158: 0,87 | AB158: 0,9 | AC158: 0,9 | AD158: 0,9 | AE158: 0,93 | AF158: 0,96 | AG158: 0,97 | AH158: 0,96 | AI158: 0,96 | AJ158: 0,98 | AK158: 1 | AL158: 0,98 | AM158: 1,06 | AN158: 1,07 | AO158: 1,05 | AP158: 1,07 | AQ158: 1,05 | AR158: 1,05 | AS158: 1,04 | AT158: 1,04 | AU158: 1,05 | AV158: 1,04 | AW158: 1,03 | AX158: 1,04 | AY158: 1,01 | AZ158: 1 | BA158: 1,02 | BB158: 0,96 | BC158: 0,96 | BD158: 0,95 | BE158: 0,95 | BF158: 0,96 | BG158: 0,96 | BH158: 0,94 | BI158: 0,96 | BJ158: 0,96 | BK158: 0,99 | BL158: 0,99 | BM158: 1,02 | BN158: 1,1 | BO158: 1,12 | BP158: 1.11 | BQ158: 1.11 | BR158: 1.11 | BS158: 1.09 | BT158: 1.12 | BU158: 1.14 | BV158: 1.15 | BW158: 1.14 | BX158: 1.17 | BY158: 1.13
A159: 3055 | B159: Cottbus, Stadt / Cottbus | C159: 3055 | D159: 1,03 | E159: 1,01 | F159: 1,01 | G159: 1,04 | H159: 1,04 | I159: 1,02 | J159: 1,02 | K159: 1,02 | L159: 1,05 | M159: 1,03 | N159: 1,05 | O159: 1,04 | P159: 1,02 | Q159: 1,01 | R159: 1,01 | S159: 0,97 | T159: 0,95 | U159: 0,96 | V159: 0,96 | W159: 0,95 | X159: 0,93 | Y159: 0,92 | Z159: 0,91 | AA159: 0,88 | AB159: 0,92 | AC159: 0,92 | AD159: 0,92 | AE159: 0,94 | AF159: 0,97 | AG159: 0,98 | AH159: 0,97 | AI159: 0,98 | AJ159: 1 | AK159: 1,02 | AL159: 1,01 | AM159: 1,09 | AN159: 1,1 | AO159: 1,07 | AP159: 1,1 | AQ159: 1,07 | AR159: 1,07 | AS159: 1,05 | AT159: 1,06 | AU159: 1,06 | AV159: 1,06 | AW159: 1,04 | AX159: 1,06 | AY159: 1,03 | AZ159: 1,01 | BA159: 1,04 | BB159: 0,98 | BC159: 0,98 | BD159: 0,96 | BE159: 0,96 | BF159: 0,97 | BG159: 0,97 | BH159: 0,95 | BI159: 0,97 | BJ159: 0,97 | BK159: 1 | BL159: 1 | BM159: 1,04 | BN159: 1,12 | BO159: 1,14 | BP159: 1.13 | BQ159: 1.13 | BR159: 1.13 | BS159: 1.12 | BT159: 1.15 | BU159: 1.17 | BV159: 1.18 | BW159: 1.17 | BX159: 1.20 | BY159: 1.16
A160: 3058 | B160: Spree-Neiße / Frauendorf | C160: 3058 | D160: 1 | E160: 0,97 | F160: 0,97 | G160: 1,01 | H160: 1 | I160: 0,99 | J160: 0,98 | K160: 0,99 | L160: 1,01 | M160: 1 | N160: 1,01 | O160: 1 | P160: 0,98 | Q160: 0,97 | R160: 0,97 | S160: 0,94 | T160: 0,92 | U160: 0,93 | V160: 0,93 | W160: 0,92 | X160: 0,9 | Y160: 0,9 | Z160: 0,88 | AA160: 0,85 | AB160: 0,89 | AC160: 0,89 | AD160: 0,89 | AE160: 0,91 | AF160: 0,94 | AG160: 0,95 | AH160: 0,93 | AI160: 0,94 | AJ160: 0,96 | AK160: 0,98 | AL160: 0,96 | AM160: 1,04 | AN160: 1,05 | AO160: 1,02 | AP160: 1,04 | AQ160: 1,02 | AR160: 1,03 | AS160: 1,01 | AT160: 1,02 | AU160: 1,03 | AV160: 1,02 | AW160: 1,01 | AX160: 1,02 | AY160: 0,99 | AZ160: 0,98 | BA160: 1,01 | BB160: 0,95 | BC160: 0,95 | BD160: 0,94 | BE160: 0,94 | BF160: 0,94 | BG160: 0,94 | BH160: 0,93 | BI160: 0,95 | BJ160: 0,95 | BK160: 0,97 | BL160: 0,97 | BM160: 1 | BN160: 1,07 | BO160: 1,09 | BP160: 1.08 | BQ160: 1.08 | BR160: 1.08 | BS160: 1.06 | BT160: 1.09 | BU160: 1.11 | BV160: 1.12 | BW160: 1.11 | BX160: 1.14 | BY160: 1.10
A161: 3096 | B161: Spree-Neiße / Schmogrow-Fehrow | C161: 3096 | D161: 1,01 | E161: 0,99 | F161: 0,99 | G161: 1,02 | H161: 1,02 | I161: 1 | J161: 1 | K161: 1 | L161: 1,02 | M161: 1,01 | N161: 1,02 | O161: 1,01 | P161: 0,99 | Q161: 0,98 | R161: 0,98 | S161: 0,95 | T161: 0,93 | U161: 0,94 | V161: 0,94 | W161: 0,93 | X161: 0,91 | Y161: 0,91 | Z161: 0,89 | AA161: 0,86 | AB161: 0,9 | AC161: 0,9 | AD161: 0,9 | AE161: 0,92 | AF161: 0,95 | AG161: 0,96 | AH161: 0,95 | AI161: 0,95 | AJ161: 0,97 | AK161: 0,99 | AL161: 0,98 | AM161: 1,05 | AN161: 1,06 | AO161: 1,04 | AP161: 1,06 | AQ161: 1,04 | AR161: 1,04 | AS161: 1,03 | AT161: 1,04 | AU161: 1,04 | AV161: 1,03 | AW161: 1,02 | AX161: 1,03 | AY161: 1 | AZ161: 0,99 | BA161: 1,02 | BB161: 0,96 | BC161: 0,96 | BD161: 0,95 | BE161: 0,95 | BF161: 0,95 | BG161: 0,95 | BH161: 0,94 | BI161: 0,96 | BJ161: 0,96 | BK161: 0,98 | BL161: 0,98 | BM161: 1,01 | BN161: 1,09 | BO161: 1,11 | BP161: 1.1 | BQ161: 1.1 | BR161: 1.1 | BS161: 1.08 | BT161: 1.11 | BU161: 1.13 | BV161: 1.14 | BW161: 1.13 | BX161: 1.16 | BY161: 1.12
A162: 3099 | B162: Spree-Neiße / Kolkwitz | C162: 3099 | D162: 1,02 | E162: 0,99 | F162: 0,99 | G162: 1,03 | H162: 1,02 | I162: 1 | J162: 1 | K162: 1,01 | L162: 1,03 | M162: 1,02 | N162: 1,03 | O162: 1,02 | P162: 1 | Q162: 0,99 | R162: 0,99 | S162: 0,96 | T162: 0,93 | U162: 0,94 | V162: 0,94 | W162: 0,94 | X162: 0,91 | Y162: 0,91 | Z162: 0,9 | AA162: 0,87 | AB162: 0,9 | AC162: 0,9 | AD162: 0,9 | AE162: 0,93 | AF162: 0,95 | AG162: 0,96 | AH162: 0,95 | AI162: 0,96 | AJ162: 0,98 | AK162: 1 | AL162: 0,98 | AM162: 1,06 | AN162: 1,07 | AO162: 1,05 | AP162: 1,07 | AQ162: 1,04 | AR162: 1,05 | AS162: 1,03 | AT162: 1,04 | AU162: 1,05 | AV162: 1,04 | AW162: 1,02 | AX162: 1,04 | AY162: 1,01 | AZ162: 1 | BA162: 1,02 | BB162: 0,96 | BC162: 0,96 | BD162: 0,95 | BE162: 0,95 | BF162: 0,95 | BG162: 0,95 | BH162: 0,94 | BI162: 0,96 | BJ162: 0,96 | BK162: 0,98 | BL162: 0,99 | BM162: 1,02 | BN162: 1,09 | BO162: 1,11 | BP162: 1.11 | BQ162: 1.11 | BR162: 1.1 | BS162: 1.09 | BT162: 1.12 | BU162: 1.14 | BV162: 1.15 | BW162: 1.14 | BX162: 1.17 | BY162: 1.13
A163: 3103 | B163: Oberspreewald-Lausitz / Neupetershain | C163: 3103 | D163: 1 | E163: 0,97 | F163: 0,97 | G163: 1,01 | H163: 1 | I163: 0,98 | J163: 0,98 | K163: 0,99 | L163: 1,01 | M163: 1 | N163: 1,01 | O163: 1 | P163: 0,98 | Q163: 0,97 | R163: 0,97 | S163: 0,94 | T163: 0,92 | U163: 0,93 | V163: 0,93 | W163: 0,92 | X163: 0,9 | Y163: 0,9 | Z163: 0,88 | AA163: 0,86 | AB163: 0,89 | AC163: 0,89 | AD163: 0,89 | AE163: 0,91 | AF163: 0,94 | AG163: 0,95 | AH163: 0,94 | AI163: 0,94 | AJ163: 0,97 | AK163: 0,99 | AL163: 0,97 | AM163: 1,05 | AN163: 1,05 | AO163: 1,03 | AP163: 1,05 | AQ163: 1,02 | AR163: 1,03 | AS163: 1,02 | AT163: 1,02 | AU163: 1,03 | AV163: 1,02 | AW163: 1,01 | AX163: 1,02 | AY163: 0,99 | AZ163: 0,98 | BA163: 1 | BB163: 0,95 | BC163: 0,95 | BD163: 0,93 | BE163: 0,93 | BF163: 0,94 | BG163: 0,94 | BH163: 0,92 | BI163: 0,94 | BJ163: 0,94 | BK163: 0,96 | BL163: 0,97 | BM163: 1 | BN163: 1,07 | BO163: 1,09 | BP163: 1.08 | BQ163: 1.09 | BR163: 1.08 | BS163: 1.07 | BT163: 1.10 | BU163: 1.11 | BV163: 1.13 | BW163: 1.12 | BX163: 1.14 | BY163: 1.11
A164: 3116 | B164: Spree-Neiße / Drebkau | C164: 3116 | D164: 1,01 | E164: 0,98 | F164: 0,98 | G164: 1,02 | H164: 1,01 | I164: 0,99 | J164: 0,99 | K164: 1 | L164: 1,02 | M164: 1,01 | N164: 1,02 | O164: 1,01 | P164: 0,99 | Q164: 0,98 | R164: 0,98 | S164: 0,95 | T164: 0,93 | U164: 0,93 | V164: 0,94 | W164: 0,93 | X164: 0,91 | Y164: 0,9 | Z164: 0,89 | AA164: 0,86 | AB164: 0,9 | AC164: 0,9 | AD164: 0,9 | AE164: 0,92 | AF164: 0,95 | AG164: 0,96 | AH164: 0,95 | AI164: 0,95 | AJ164: 0,97 | AK164: 0,99 | AL164: 0,98 | AM164: 1,05 | AN164: 1,06 | AO164: 1,04 | AP164: 1,06 | AQ164: 1,03 | AR164: 1,04 | AS164: 1,02 | AT164: 1,03 | AU164: 1,04 | AV164: 1,03 | AW164: 1,02 | AX164: 1,03 | AY164: 1 | AZ164: 0,99 | BA164: 1,01 | BB164: 0,96 | BC164: 0,96 | BD164: 0,94 | BE164: 0,94 | BF164: 0,95 | BG164: 0,95 | BH164: 0,93 | BI164: 0,95 | BJ164: 0,95 | BK164: 0,98 | BL164: 0,98 | BM164: 1,01 | BN164: 1,08 | BO164: 1,1 | BP164: 1.09 | BQ164: 1.1 | BR164: 1.09 | BS164: 1.08 | BT164: 1.11 | BU164: 1.12 | BV164: 1.14 | BW164: 1.13 | BX164: 1.15 | BY164: 1.12
A165: 3119 | B165: Spree-Neiße / Welzow | C165: 3119 | D165: 1 | E165: 0,97 | F165: 0,97 | G165: 1,01 | H165: 1 | I165: 0,99 | J165: 0,99 | K165: 0,99 | L165: 1,01 | M165: 1 | N165: 1,02 | O165: 1 | P165: 0,98 | Q165: 0,98 | R165: 0,98 | S165: 0,95 | T165: 0,92 | U165: 0,93 | V165: 0,93 | W165: 0,93 | X165: 0,9 | Y165: 0,9 | Z165: 0,89 | AA165: 0,86 | AB165: 0,89 | AC165: 0,89 | AD165: 0,89 | AE165: 0,92 | AF165: 0,95 | AG165: 0,95 | AH165: 0,94 | AI165: 0,95 | AJ165: 0,97 | AK165: 0,99 | AL165: 0,98 | AM165: 1,05 | AN165: 1,06 | AO165: 1,03 | AP165: 1,05 | AQ165: 1,03 | AR165: 1,03 | AS165: 1,02 | AT165: 1,03 | AU165: 1,03 | AV165: 1,02 | AW165: 1,01 | AX165: 1,02 | AY165: 0,99 | AZ165: 0,98 | BA165: 1,01 | BB165: 0,95 | BC165: 0,95 | BD165: 0,94 | BE165: 0,94 | BF165: 0,94 | BG165: 0,94 | BH165: 0,93 | BI165: 0,94 | BJ165: 0,94 | BK165: 0,97 | BL165: 0,97 | BM165: 1,01 | BN165: 1,08 | BO165: 1,1 | BP165: 1.09 | BQ165: 1.09 | BR165: 1.09 | BS165: 1.07 | BT165: 1.10 | BU165: 1.12 | BV165: 1.13 | BW165: 1.12 | BX165: 1.15 | BY165: 1.11
A166: 3130 | B166: Spree-Neiße / Bagenz | C166: 3130 | D166: 0,98 | E166: 0,96 | F166: 0,96 | G166: 0,99 | H166: 0,99 | I166: 0,97 | J166: 0,97 | K166: 0,97 | L166: 0,99 | M166: 0,98 | N166: 0,99 | O166: 0,98 | P166: 0,96 | Q166: 0,95 | R166: 0,95 | S166: 0,93 | T166: 0,9 | U166: 0,91 | V166: 0,91 | W166: 0,91 | X166: 0,88 | Y166: 0,88 | Z166: 0,87 | AA166: 0,84 | AB166: 0,87 | AC166: 0,87 | AD166: 0,87 | AE166: 0,89 | AF166: 0,92 | AG166: 0,93 | AH166: 0,92 | AI166: 0,92 | AJ166: 0,95 | AK166: 0,96 | AL166: 0,95 | AM166: 1,02 | AN166: 1,03 | AO166: 1 | AP166: 1,02 | AQ166: 1 | AR166: 1,01 | AS166: 1 | AT166: 1 | AU166: 1,01 | AV166: 1 | AW166: 0,99 | AX166: 1 | AY166: 0,98 | AZ166: 0,96 | BA166: 0,99 | BB166: 0,93 | BC166: 0,93 | BD166: 0,92 | BE166: 0,92 | BF166: 0,93 | BG166: 0,92 | BH166: 0,91 | BI166: 0,93 | BJ166: 0,93 | BK166: 0,95 | BL166: 0,95 | BM166: 0,98 | BN166: 1,05 | BO166: 1,07 | BP166: 1.06 | BQ166: 1.06 | BR166: 1.06 | BS166: 1.04 | BT166: 1.07 | BU166: 1.09 | BV166: 1.10 | BW166: 1.09 | BX166: 1.12 | BY166: 1.08
A167: 3149 | B167: Spree-Neiße / Groß Schacksdorf-Simmersdorf | C167: 3149 | D167: 1 | E167: 0,98 | F167: 0,98 | G167: 1,01 | H167: 1,01 | I167: 0,99 | J167: 0,99 | K167: 0,99 | L167: 1,02 | M167: 1 | N167: 1,02 | O167: 1 | P167: 0,98 | Q167: 0,98 | R167: 0,97 | S167: 0,94 | T167: 0,92 | U167: 0,93 | V167: 0,93 | W167: 0,93 | X167: 0,9 | Y167: 0,9 | Z167: 0,89 | AA167: 0,86 | AB167: 0,89 | AC167: 0,89 | AD167: 0,89 | AE167: 0,91 | AF167: 0,94 | AG167: 0,95 | AH167: 0,94 | AI167: 0,94 | AJ167: 0,97 | AK167: 0,99 | AL167: 0,97 | AM167: 1,04 | AN167: 1,05 | AO167: 1,03 | AP167: 1,05 | AQ167: 1,03 | AR167: 1,03 | AS167: 1,02 | AT167: 1,03 | AU167: 1,03 | AV167: 1,02 | AW167: 1,01 | AX167: 1,03 | AY167: 1 | AZ167: 0,98 | BA167: 1,01 | BB167: 0,95 | BC167: 0,95 | BD167: 0,94 | BE167: 0,94 | BF167: 0,94 | BG167: 0,94 | BH167: 0,93 | BI167: 0,95 | BJ167: 0,95 | BK167: 0,97 | BL167: 0,98 | BM167: 1,01 | BN167: 1,08 | BO167: 1,1 | BP167: 1.09 | BQ167: 1.09 | BR167: 1.08 | BS167: 1.07 | BT167: 1.10 | BU167: 1.12 | BV167: 1.13 | BW167: 1.12 | BX167: 1.15 | BY167: 1.11
A168: 3159 | B168: Spree-Neiße / Wiesengrund | C168: 3159 | D168: 0,99 | E168: 0,96 | F168: 0,96 | G168: 0,99 | H168: 0,99 | I168: 0,97 | J168: 0,97 | K168: 0,97 | L168: 1 | M168: 0,98 | N168: 1 | O168: 0,98 | P168: 0,97 | Q168: 0,96 | R168: 0,96 | S168: 0,93 | T168: 0,91 | U168: 0,91 | V168: 0,92 | W168: 0,91 | X168: 0,89 | Y168: 0,88 | Z168: 0,87 | AA168: 0,84 | AB168: 0,88 | AC168: 0,88 | AD168: 0,88 | AE168: 0,9 | AF168: 0,93 | AG168: 0,93 | AH168: 0,92 | AI168: 0,93 | AJ168: 0,95 | AK168: 0,97 | AL168: 0,95 | AM168: 1,03 | AN168: 1,03 | AO168: 1,01 | AP168: 1,03 | AQ168: 1,01 | AR168: 1,01 | AS168: 1 | AT168: 1,01 | AU168: 1,01 | AV168: 1,01 | AW168: 0,99 | AX168: 1,01 | AY168: 0,98 | AZ168: 0,97 | BA168: 0,99 | BB168: 0,94 | BC168: 0,94 | BD168: 0,92 | BE168: 0,92 | BF168: 0,93 | BG168: 0,93 | BH168: 0,91 | BI168: 0,93 | BJ168: 0,93 | BK168: 0,95 | BL168: 0,96 | BM168: 0,99 | BN168: 1,06 | BO168: 1,08 | BP168: 1.07 | BQ168: 1.07 | BR168: 1.06 | BS168: 1.05 | BT168: 1.08 | BU168: 1.09 | BV168: 1.11 | BW168: 1.10 | BX168: 1.12 | BY168: 1.09
A169: 3172 | B169: Spree-Neiße / Gastrose-Kerkwitz | C169: 3172 | D169: 1,02 | E169: 1 | F169: 1 | G169: 1,03 | H169: 1,03 | I169: 1,01 | J169: 1,01 | K169: 1,01 | L169: 1,03 | M169: 1,02 | N169: 1,03 | O169: 1,02 | P169: 1 | Q169: 0,99 | R169: 0,99 | S169: 0,96 | T169: 0,93 | U169: 0,94 | V169: 0,94 | W169: 0,94 | X169: 0,91 | Y169: 0,91 | Z169: 0,9 | AA169: 0,87 | AB169: 0,9 | AC169: 0,9 | AD169: 0,9 | AE169: 0,92 | AF169: 0,95 | AG169: 0,96 | AH169: 0,95 | AI169: 0,96 | AJ169: 0,98 | AK169: 1 | AL169: 0,98 | AM169: 1,06 | AN169: 1,07 | AO169: 1,05 | AP169: 1,07 | AQ169: 1,05 | AR169: 1,05 | AS169: 1,04 | AT169: 1,04 | AU169: 1,05 | AV169: 1,04 | AW169: 1,03 | AX169: 1,04 | AY169: 1,01 | AZ169: 1 | BA169: 1,03 | BB169: 0,96 | BC169: 0,96 | BD169: 0,95 | BE169: 0,95 | BF169: 0,96 | BG169: 0,96 | BH169: 0,94 | BI169: 0,96 | BJ169: 0,96 | BK169: 0,99 | BL169: 0,99 | BM169: 1,02 | BN169: 1,1 | BO169: 1,12 | BP169: 1.11 | BQ169: 1.11 | BR169: 1.11 | BS169: 1.09 | BT169: 1.13 | BU169: 1.14 | BV169: 1.15 | BW169: 1.14 | BX169: 1.17 | BY169: 1.14
A170: 3185 | B170: Spree-Neiße / Peitz | C170: 3185 | D170: 1,02 | E170: 1 | F170: 1 | G170: 1,03 | H170: 1,03 | I170: 1,01 | J170: 1,01 | K170: 1,01 | L170: 1,04 | M170: 1,02 | N170: 1,04 | O170: 1,02 | P170: 1 | Q170: 0,99 | R170: 0,99 | S170: 0,96 | T170: 0,94 | U170: 0,94 | V170: 0,95 | W170: 0,94 | X170: 0,92 | Y170: 0,91 | Z170: 0,9 | AA170: 0,87 | AB170: 0,91 | AC170: 0,91 | AD170: 0,91 | AE170: 0,93 | AF170: 0,96 | AG170: 0,97 | AH170: 0,96 | AI170: 0,96 | AJ170: 0,99 | AK170: 1,01 | AL170: 0,99 | AM170: 1,07 | AN170: 1,08 | AO170: 1,05 | AP170: 1,08 | AQ170: 1,05 | AR170: 1,05 | AS170: 1,04 | AT170: 1,05 | AU170: 1,05 | AV170: 1,04 | AW170: 1,03 | AX170: 1,05 | AY170: 1,01 | AZ170: 1 | BA170: 1,03 | BB170: 0,97 | BC170: 0,97 | BD170: 0,95 | BE170: 0,95 | BF170: 0,96 | BG170: 0,96 | BH170: 0,94 | BI170: 0,96 | BJ170: 0,96 | BK170: 0,99 | BL170: 0,99 | BM170: 1,02 | BN170: 1,1 | BO170: 1,12 | BP170: 1.11 | BQ170: 1.11 | BR170: 1.11 | BS170: 1.10 | BT170: 1.13 | BU170: 1.15 | BV170: 1.16 | BW170: 1.15 | BX170: 1.18 | BY170: 1.14
A171: 3197 | B171: Spree-Neiße / Jänschwalde | C171: 3197 | D171: 1 | E171: 0,97 | F171: 0,97 | G171: 1,01 | H171: 1 | I171: 0,99 | J171: 0,98 | K171: 0,99 | L171: 1,01 | M171: 1 | N171: 1,01 | O171: 0,99 | P171: 0,98 | Q171: 0,97 | R171: 0,96 | S171: 0,94 | T171: 0,92 | U171: 0,92 | V171: 0,92 | W171: 0,92 | X171: 0,89 | Y171: 0,89 | Z171: 0,88 | AA171: 0,85 | AB171: 0,89 | AC171: 0,89 | AD171: 0,89 | AE171: 0,91 | AF171: 0,93 | AG171: 0,94 | AH171: 0,93 | AI171: 0,93 | AJ171: 0,96 | AK171: 0,98 | AL171: 0,96 | AM171: 1,04 | AN171: 1,05 | AO171: 1,02 | AP171: 1,04 | AQ171: 1,02 | AR171: 1,03 | AS171: 1,01 | AT171: 1,02 | AU171: 1,02 | AV171: 1,02 | AW171: 1 | AX171: 1,02 | AY171: 0,99 | AZ171: 0,98 | BA171: 1 | BB171: 0,94 | BC171: 0,94 | BD171: 0,93 | BE171: 0,93 | BF171: 0,94 | BG171: 0,94 | BH171: 0,92 | BI171: 0,94 | BJ171: 0,94 | BK171: 0,97 | BL171: 0,97 | BM171: 1 | BN171: 1,07 | BO171: 1,09 | BP171: 1.08 | BQ171: 1.08 | BR171: 1.08 | BS171: 1.06 | BT171: 1.10 | BU171: 1.11 | BV171: 1.12 | BW171: 1.11 | BX171: 1.14 | BY171: 1.11
A172: 3205 | B172: Oberspreewald-Lausitz / Bronkow | C172: 3205 | D172: 0,99 | E172: 0,96 | F172: 0,96 | G172: 0,99 | H172: 0,99 | I172: 0,97 | J172: 0,97 | K172: 0,97 | L172: 1 | M172: 0,98 | N172: 1 | O172: 0,98 | P172: 0,97 | Q172: 0,96 | R172: 0,96 | S172: 0,93 | T172: 0,91 | U172: 0,92 | V172: 0,92 | W172: 0,91 | X172: 0,89 | Y172: 0,89 | Z172: 0,87 | AA172: 0,85 | AB172: 0,88 | AC172: 0,88 | AD172: 0,88 | AE172: 0,9 | AF172: 0,93 | AG172: 0,94 | AH172: 0,92 | AI172: 0,93 | AJ172: 0,95 | AK172: 0,97 | AL172: 0,95 | AM172: 1,03 | AN172: 1,04 | AO172: 1,01 | AP172: 1,03 | AQ172: 1,01 | AR172: 1,01 | AS172: 1 | AT172: 1,01 | AU172: 1,01 | AV172: 1 | AW172: 0,99 | AX172: 1,01 | AY172: 0,98 | AZ172: 0,97 | BA172: 0,99 | BB172: 0,94 | BC172: 0,94 | BD172: 0,92 | BE172: 0,92 | BF172: 0,93 | BG172: 0,93 | BH172: 0,91 | BI172: 0,93 | BJ172: 0,93 | BK172: 0,95 | BL172: 0,96 | BM172: 0,99 | BN172: 1,06 | BO172: 1,08 | BP172: 1.07 | BQ172: 1.07 | BR172: 1.07 | BS172: 1.05 | BT172: 1.08 | BU172: 1.10 | BV172: 1.11 | BW172: 1.10 | BX172: 1.12 | BY172: 1.09
A173: 3222 | B173: Oberspreewald-Lausitz / Hindenberg | C173: 3222 | D173: 1,04 | E173: 1,02 | F173: 1,02 | G173: 1,06 | H173: 1,05 | I173: 1,03 | J173: 1,04 | K173: 1,04 | L173: 1,06 | M173: 1,05 | N173: 1,06 | O173: 1,05 | P173: 1,03 | Q173: 1,02 | R173: 1,02 | S173: 0,99 | T173: 0,96 | U173: 0,97 | V173: 0,97 | W173: 0,96 | X173: 0,94 | Y173: 0,94 | Z173: 0,92 | AA173: 0,89 | AB173: 0,93 | AC173: 0,93 | AD173: 0,93 | AE173: 0,95 | AF173: 0,99 | AG173: 1 | AH173: 0,99 | AI173: 0,99 | AJ173: 1,02 | AK173: 1,04 | AL173: 1,02 | AM173: 1,1 | AN173: 1,11 | AO173: 1,09 | AP173: 1,11 | AQ173: 1,08 | AR173: 1,08 | AS173: 1,07 | AT173: 1,07 | AU173: 1,08 | AV173: 1,07 | AW173: 1,06 | AX173: 1,07 | AY173: 1,04 | AZ173: 1,02 | BA173: 1,05 | BB173: 0,99 | BC173: 0,99 | BD173: 0,97 | BE173: 0,97 | BF173: 0,98 | BG173: 0,98 | BH173: 0,96 | BI173: 0,98 | BJ173: 0,98 | BK173: 1,01 | BL173: 1,01 | BM173: 1,05 | BN173: 1,13 | BO173: 1,15 | BP173: 1.14 | BQ173: 1.15 | BR173: 1.15 | BS173: 1.13 | BT173: 1.17 | BU173: 1.18 | BV173: 1.20 | BW173: 1.19 | BX173: 1.21 | BY173: 1.18
A174: 3226 | B174: Oberspreewald-Lausitz / Vetschau | C174: 3226 | D174: 1,03 | E174: 1 | F174: 1 | G174: 1,04 | H174: 1,04 | I174: 1,02 | J174: 1,02 | K174: 1,02 | L174: 1,04 | M174: 1,03 | N174: 1,05 | O174: 1,03 | P174: 1,01 | Q174: 1,01 | R174: 1 | S174: 0,97 | T174: 0,95 | U174: 0,95 | V174: 0,96 | W174: 0,95 | X174: 0,93 | Y174: 0,92 | Z174: 0,91 | AA174: 0,88 | AB174: 0,92 | AC174: 0,92 | AD174: 0,92 | AE174: 0,94 | AF174: 0,97 | AG174: 0,98 | AH174: 0,97 | AI174: 0,97 | AJ174: 1 | AK174: 1,02 | AL174: 1 | AM174: 1,08 | AN174: 1,09 | AO174: 1,07 | AP174: 1,09 | AQ174: 1,06 | AR174: 1,07 | AS174: 1,05 | AT174: 1,06 | AU174: 1,06 | AV174: 1,05 | AW174: 1,04 | AX174: 1,06 | AY174: 1,02 | AZ174: 1,01 | BA174: 1,04 | BB174: 0,97 | BC174: 0,97 | BD174: 0,96 | BE174: 0,96 | BF174: 0,97 | BG174: 0,97 | BH174: 0,95 | BI174: 0,97 | BJ174: 0,97 | BK174: 1 | BL174: 1 | BM174: 1,03 | BN174: 1,11 | BO174: 1,13 | BP174: 1.12 | BQ174: 1.13 | BR174: 1.12 | BS174: 1.11 | BT174: 1.14 | BU174: 1.16 | BV174: 1.17 | BW174: 1.16 | BX174: 1.19 | BY174: 1.15
A175: 3229 | B175: Oberspreewald-Lausitz / Altdöbern | C175: 3229 | D175: 1 | E175: 0,98 | F175: 0,98 | G175: 1,01 | H175: 1,01 | I175: 0,99 | J175: 0,99 | K175: 0,99 | L175: 1,02 | M175: 1 | N175: 1,02 | O175: 1 | P175: 0,99 | Q175: 0,98 | R175: 0,98 | S175: 0,95 | T175: 0,93 | U175: 0,93 | V175: 0,94 | W175: 0,93 | X175: 0,9 | Y175: 0,9 | Z175: 0,89 | AA175: 0,86 | AB175: 0,9 | AC175: 0,9 | AD175: 0,9 | AE175: 0,92 | AF175: 0,95 | AG175: 0,96 | AH175: 0,94 | AI175: 0,95 | AJ175: 0,97 | AK175: 0,99 | AL175: 0,97 | AM175: 1,05 | AN175: 1,06 | AO175: 1,03 | AP175: 1,05 | AQ175: 1,03 | AR175: 1,03 | AS175: 1,02 | AT175: 1,03 | AU175: 1,03 | AV175: 1,03 | AW175: 1,01 | AX175: 1,03 | AY175: 1 | AZ175: 0,99 | BA175: 1,01 | BB175: 0,95 | BC175: 0,95 | BD175: 0,94 | BE175: 0,94 | BF175: 0,94 | BG175: 0,94 | BH175: 0,93 | BI175: 0,95 | BJ175: 0,95 | BK175: 0,97 | BL175: 0,98 | BM175: 1,01 | BN175: 1,08 | BO175: 1,1 | BP175: 1.09 | BQ175: 1.09 | BR175: 1.09 | BS175: 1.07 | BT175: 1.11 | BU175: 1.12 | BV175: 1.13 | BW175: 1.13 | BX175: 1.15 | BY175: 1.11
A176: 3238 | B176: Elbe-Elster / Staupitz | C176: 3238 | D176: 0,99 | E176: 0,97 | F176: 0,97 | G176: 1 | H176: 1 | I176: 0,98 | J176: 0,98 | K176: 0,98 | L176: 1 | M176: 0,99 | N176: 1,01 | O176: 0,99 | P176: 0,98 | Q176: 0,97 | R176: 0,97 | S176: 0,94 | T176: 0,92 | U176: 0,93 | V176: 0,93 | W176: 0,92 | X176: 0,9 | Y176: 0,9 | Z176: 0,88 | AA176: 0,85 | AB176: 0,89 | AC176: 0,89 | AD176: 0,89 | AE176: 0,91 | AF176: 0,94 | AG176: 0,95 | AH176: 0,94 | AI176: 0,94 | AJ176: 0,96 | AK176: 0,98 | AL176: 0,97 | AM176: 1,04 | AN176: 1,05 | AO176: 1,02 | AP176: 1,04 | AQ176: 1,02 | AR176: 1,02 | AS176: 1,01 | AT176: 1,02 | AU176: 1,02 | AV176: 1,01 | AW176: 1 | AX176: 1,02 | AY176: 0,99 | AZ176: 0,98 | BA176: 1 | BB176: 0,94 | BC176: 0,94 | BD176: 0,93 | BE176: 0,93 | BF176: 0,94 | BG176: 0,93 | BH176: 0,92 | BI176: 0,94 | BJ176: 0,94 | BK176: 0,96 | BL176: 0,97 | BM176: 1 | BN176: 1,07 | BO176: 1,09 | BP176: 1.08 | BQ176: 1.08 | BR176: 1.08 | BS176: 1.06 | BT176: 1.09 | BU176: 1.11 | BV176: 1.12 | BW176: 1.11 | BX176: 1.13 | BY176: 1.10
A177: 3246 | B177: Elbe-Elster / Babben | C177: 3246 | D177: 1 | E177: 0,97 | F177: 0,97 | G177: 1,01 | H177: 1 | I177: 0,98 | J177: 0,98 | K177: 0,99 | L177: 1,01 | M177: 1 | N177: 1,01 | O177: 1 | P177: 0,98 | Q177: 0,97 | R177: 0,97 | S177: 0,94 | T177: 0,92 | U177: 0,93 | V177: 0,93 | W177: 0,92 | X177: 0,9 | Y177: 0,9 | Z177: 0,88 | AA177: 0,86 | AB177: 0,89 | AC177: 0,89 | AD177: 0,89 | AE177: 0,91 | AF177: 0,94 | AG177: 0,95 | AH177: 0,94 | AI177: 0,94 | AJ177: 0,96 | AK177: 0,98 | AL177: 0,97 | AM177: 1,04 | AN177: 1,05 | AO177: 1,03 | AP177: 1,05 | AQ177: 1,02 | AR177: 1,03 | AS177: 1,02 | AT177: 1,02 | AU177: 1,03 | AV177: 1,02 | AW177: 1,01 | AX177: 1,02 | AY177: 0,99 | AZ177: 0,98 | BA177: 1 | BB177: 0,95 | BC177: 0,95 | BD177: 0,93 | BE177: 0,93 | BF177: 0,94 | BG177: 0,94 | BH177: 0,93 | BI177: 0,94 | BJ177: 0,94 | BK177: 0,97 | BL177: 0,97 | BM177: 1 | BN177: 1,07 | BO177: 1,09 | BP177: 1.09 | BQ177: 1.09 | BR177: 1.08 | BS177: 1.07 | BT177: 1.10 | BU177: 1.11 | BV177: 1.13 | BW177: 1.12 | BX177: 1.14 | BY177: 1.11
A178: 3249 | B178: Elbe-Elster / Breitenau | C178: 3249 | D178: 1 | E178: 0,98 | F178: 0,98 | G178: 1,01 | H178: 1 | I178: 0,99 | J178: 0,99 | K178: 0,99 | L178: 1,01 | M178: 1 | N178: 1,01 | O178: 1 | P178: 0,98 | Q178: 0,98 | R178: 0,97 | S178: 0,95 | T178: 0,92 | U178: 0,93 | V178: 0,93 | W178: 0,93 | X178: 0,9 | Y178: 0,9 | Z178: 0,89 | AA178: 0,86 | AB178: 0,89 | AC178: 0,89 | AD178: 0,89 | AE178: 0,92 | AF178: 0,95 | AG178: 0,95 | AH178: 0,94 | AI178: 0,94 | AJ178: 0,97 | AK178: 0,99 | AL178: 0,97 | AM178: 1,05 | AN178: 1,06 | AO178: 1,03 | AP178: 1,05 | AQ178: 1,03 | AR178: 1,03 | AS178: 1,02 | AT178: 1,03 | AU178: 1,03 | AV178: 1,02 | AW178: 1,01 | AX178: 1,02 | AY178: 0,99 | AZ178: 0,98 | BA178: 1,01 | BB178: 0,95 | BC178: 0,95 | BD178: 0,94 | BE178: 0,93 | BF178: 0,94 | BG178: 0,94 | BH178: 0,93 | BI178: 0,95 | BJ178: 0,94 | BK178: 0,97 | BL178: 0,97 | BM178: 1 | BN178: 1,08 | BO178: 1,1 | BP178: 1.09 | BQ178: 1.09 | BR178: 1.09 | BS178: 1.07 | BT178: 1.10 | BU178: 1.12 | BV178: 1.13 | BW178: 1.12 | BX178: 1.14 | BY178: 1.11
A179: 3253 | B179: Elbe-Elster / Schilda | C179: 3253 | D179: 1 | E179: 0,97 | F179: 0,97 | G179: 1,01 | H179: 1 | I179: 0,99 | J179: 0,99 | K179: 0,99 | L179: 1,01 | M179: 1 | N179: 1,01 | O179: 1 | P179: 0,98 | Q179: 0,98 | R179: 0,97 | S179: 0,95 | T179: 0,92 | U179: 0,93 | V179: 0,93 | W179: 0,93 | X179: 0,9 | Y179: 0,9 | Z179: 0,89 | AA179: 0,86 | AB179: 0,89 | AC179: 0,9 | AD179: 0,9 | AE179: 0,92 | AF179: 0,95 | AG179: 0,95 | AH179: 0,94 | AI179: 0,94 | AJ179: 0,97 | AK179: 0,99 | AL179: 0,97 | AM179: 1,05 | AN179: 1,06 | AO179: 1,03 | AP179: 1,05 | AQ179: 1,03 | AR179: 1,03 | AS179: 1,02 | AT179: 1,03 | AU179: 1,03 | AV179: 1,02 | AW179: 1,01 | AX179: 1,02 | AY179: 1 | AZ179: 0,98 | BA179: 1,01 | BB179: 0,95 | BC179: 0,95 | BD179: 0,94 | BE179: 0,94 | BF179: 0,94 | BG179: 0,94 | BH179: 0,93 | BI179: 0,95 | BJ179: 0,95 | BK179: 0,97 | BL179: 0,97 | BM179: 1 | BN179: 1,08 | BO179: 1,09 | BP179: 1.09 | BQ179: 1.09 | BR179: 1.09 | BS179: 1.07 | BT179: 1.10 | BU179: 1.12 | BV179: 1.13 | BW179: 1.12 | BX179: 1.14 | BY179: 1.11
A180: 4103 | B180: Leipzig, Stadt / Leipzig | C180: 4103 | D180: 1,06 | E180: 1,03 | F180: 1,03 | G180: 1,08 | H180: 1,07 | I180: 1,06 | J180: 1,06 | K180: 1,06 | L180: 1,09 | M180: 1,08 | N180: 1,1 | O180: 1,09 | P180: 1,07 | Q180: 1,07 | R180: 1,07 | S180: 1,03 | T180: 1 | U180: 1 | V180: 1 | W180: 1 | X180: 0,97 | Y180: 0,97 | Z180: 0,95 | AA180: 0,92 | AB180: 0,96 | AC180: 0,97 | AD180: 0,97 | AE180: 1 | AF180: 1,04 | AG180: 1,04 | AH180: 1,04 | AI180: 1,04 | AJ180: 1,07 | AK180: 1,09 | AL180: 1,08 | AM180: 1,16 | AN180: 1,18 | AO180: 1,14 | AP180: 1,16 | AQ180: 1,12 | AR180: 1,12 | AS180: 1,11 | AT180: 1,11 | AU180: 1,12 | AV180: 1,1 | AW180: 1,09 | AX180: 1,1 | AY180: 1,07 | AZ180: 1,05 | BA180: 1,08 | BB180: 1,01 | BC180: 1,01 | BD180: 0,99 | BE180: 0,99 | BF180: 1 | BG180: 1 | BH180: 0,98 | BI180: 1 | BJ180: 1 | BK180: 1,02 | BL180: 1,04 | BM180: 1,08 | BN180: 1,16 | BO180: 1,19 | BP180: 1.19 | BQ180: 1.2 | BR180: 1.2 | BS180: 1.18 | BT180: 1.22 | BU180: 1.24 | BV180: 1.26 | BW180: 1.24 | BX180: 1.26 | BY180: 1.22
A181: 4105 | B181: Leipzig, Stadt / Leipzig | C181: 4105 | D181: 1,05 | E181: 1,02 | F181: 1,02 | G181: 1,06 | H181: 1,06 | I181: 1,04 | J181: 1,04 | K181: 1,05 | L181: 1,07 | M181: 1,06 | N181: 1,08 | O181: 1,07 | P181: 1,06 | Q181: 1,05 | R181: 1,05 | S181: 1,01 | T181: 0,98 | U181: 0,99 | V181: 0,99 | W181: 0,98 | X181: 0,96 | Y181: 0,96 | Z181: 0,94 | AA181: 0,91 | AB181: 0,95 | AC181: 0,95 | AD181: 0,95 | AE181: 0,98 | AF181: 1,02 | AG181: 1,03 | AH181: 1,02 | AI181: 1,02 | AJ181: 1,05 | AK181: 1,07 | AL181: 1,06 | AM181: 1,14 | AN181: 1,15 | AO181: 1,12 | AP181: 1,14 | AQ181: 1,1 | AR181: 1,1 | AS181: 1,09 | AT181: 1,09 | AU181: 1,1 | AV181: 1,08 | AW181: 1,07 | AX181: 1,08 | AY181: 1,05 | AZ181: 1,04 | BA181: 1,06 | BB181: 1 | BC181: 1 | BD181: 0,98 | BE181: 0,98 | BF181: 0,98 | BG181: 0,98 | BH181: 0,97 | BI181: 0,99 | BJ181: 0,99 | BK181: 1,01 | BL181: 1,02 | BM181: 1,07 | BN181: 1,14 | BO181: 1,17 | BP181: 1.17 | BQ181: 1.18 | BR181: 1.17 | BS181: 1.16 | BT181: 1.19 | BU181: 1.21 | BV181: 1.23 | BW181: 1.22 | BX181: 1.23 | BY181: 1.19
A182: 4107 | B182: Leipzig, Stadt / Leipzig | C182: 4107 | D182: 1,05 | E182: 1,02 | F182: 1,02 | G182: 1,06 | H182: 1,06 | I182: 1,04 | J182: 1,04 | K182: 1,05 | L182: 1,07 | M182: 1,06 | N182: 1,08 | O182: 1,07 | P182: 1,06 | Q182: 1,05 | R182: 1,05 | S182: 1,01 | T182: 0,98 | U182: 0,99 | V182: 0,99 | W182: 0,98 | X182: 0,96 | Y182: 0,96 | Z182: 0,94 | AA182: 0,91 | AB182: 0,95 | AC182: 0,95 | AD182: 0,95 | AE182: 0,98 | AF182: 1,02 | AG182: 1,03 | AH182: 1,02 | AI182: 1,02 | AJ182: 1,05 | AK182: 1,07 | AL182: 1,06 | AM182: 1,14 | AN182: 1,15 | AO182: 1,12 | AP182: 1,14 | AQ182: 1,1 | AR182: 1,1 | AS182: 1,09 | AT182: 1,09 | AU182: 1,1 | AV182: 1,08 | AW182: 1,07 | AX182: 1,08 | AY182: 1,05 | AZ182: 1,04 | BA182: 1,06 | BB182: 1 | BC182: 1 | BD182: 0,98 | BE182: 0,98 | BF182: 0,99 | BG182: 0,99 | BH182: 0,97 | BI182: 0,99 | BJ182: 0,99 | BK182: 1,01 | BL182: 1,03 | BM182: 1,07 | BN182: 1,14 | BO182: 1,17 | BP182: 1.17 | BQ182: 1.18 | BR182: 1.17 | BS182: 1.16 | BT182: 1.19 | BU182: 1.21 | BV182: 1.23 | BW182: 1.22 | BX182: 1.23 | BY182: 1.19
A183: 4109 | B183: Leipzig, Stadt / Leipzig | C183: 4109 | D183: 1,05 | E183: 1,02 | F183: 1,02 | G183: 1,06 | H183: 1,06 | I183: 1,04 | J183: 1,04 | K183: 1,04 | L183: 1,07 | M183: 1,06 | N183: 1,08 | O183: 1,07 | P183: 1,06 | Q183: 1,05 | R183: 1,05 | S183: 1,01 | T183: 0,98 | U183: 0,99 | V183: 0,99 | W183: 0,98 | X183: 0,96 | Y183: 0,96 | Z183: 0,94 | AA183: 0,91 | AB183: 0,95 | AC183: 0,95 | AD183: 0,95 | AE183: 0,98 | AF183: 1,02 | AG183: 1,03 | AH183: 1,02 | AI183: 1,02 | AJ183: 1,05 | AK183: 1,07 | AL183: 1,05 | AM183: 1,14 | AN183: 1,15 | AO183: 1,11 | AP183: 1,14 | AQ183: 1,1 | AR183: 1,1 | AS183: 1,09 | AT183: 1,09 | AU183: 1,1 | AV183: 1,08 | AW183: 1,07 | AX183: 1,08 | AY183: 1,05 | AZ183: 1,04 | BA183: 1,06 | BB183: 1 | BC183: 1 | BD183: 0,98 | BE183: 0,98 | BF183: 0,98 | BG183: 0,98 | BH183: 0,97 | BI183: 0,99 | BJ183: 0,99 | BK183: 1,01 | BL183: 1,02 | BM183: 1,07 | BN183: 1,14 | BO183: 1,17 | BP183: 1.17 | BQ183: 1.18 | BR183: 1.17 | BS183: 1.16 | BT183: 1.19 | BU183: 1.21 | BV183: 1.23 | BW183: 1.22 | BX183: 1.23 | BY183: 1.19
A184: 4129 | B184: Leipzig, Stadt / Leipzig | C184: 4129 | D184: 1,06 | E184: 1,04 | F184: 1,04 | G184: 1,08 | H184: 1,07 | I184: 1,06 | J184: 1,06 | K184: 1,06 | L184: 1,09 | M184: 1,08 | N184: 1,1 | O184: 1,09 | P184: 1,07 | Q184: 1,07 | R184: 1,07 | S184: 1,03 | T184: 1 | U184: 1 | V184: 1 | W184: 1 | X184: 0,97 | Y184: 0,97 | Z184: 0,95 | AA184: 0,92 | AB184: 0,96 | AC184: 0,97 | AD184: 0,97 | AE184: 1 | AF184: 1,04 | AG184: 1,05 | AH184: 1,04 | AI184: 1,04 | AJ184: 1,07 | AK184: 1,09 | AL184: 1,08 | AM184: 1,17 | AN184: 1,18 | AO184: 1,14 | AP184: 1,16 | AQ184: 1,12 | AR184: 1,12 | AS184: 1,11 | AT184: 1,11 | AU184: 1,12 | AV184: 1,1 | AW184: 1,09 | AX184: 1,1 | AY184: 1,07 | AZ184: 1,05 | BA184: 1,08 | BB184: 1,01 | BC184: 1,01 | BD184: 1 | BE184: 1 | BF184: 1 | BG184: 1 | BH184: 0,99 | BI184: 1,01 | BJ184: 1 | BK184: 1,03 | BL184: 1,04 | BM184: 1,08 | BN184: 1,17 | BO184: 1,2 | BP184: 1.19 | BQ184: 1.2 | BR184: 1.2 | BS184: 1.19 | BT184: 1.22 | BU184: 1.24 | BV184: 1.26 | BW184: 1.25 | BX184: 1.26 | BY184: 1.22
A185: 4155 | B185: Leipzig, Stadt / Leipzig | C185: 4155 | D185: 1,05 | E185: 1,02 | F185: 1,02 | G185: 1,07 | H185: 1,06 | I185: 1,04 | J185: 1,05 | K185: 1,05 | L185: 1,07 | M185: 1,06 | N185: 1,08 | O185: 1,07 | P185: 1,06 | Q185: 1,05 | R185: 1,05 | S185: 1,01 | T185: 0,98 | U185: 0,99 | V185: 0,99 | W185: 0,98 | X185: 0,96 | Y185: 0,96 | Z185: 0,94 | AA185: 0,91 | AB185: 0,95 | AC185: 0,95 | AD185: 0,95 | AE185: 0,98 | AF185: 1,02 | AG185: 1,03 | AH185: 1,02 | AI185: 1,02 | AJ185: 1,05 | AK185: 1,07 | AL185: 1,06 | AM185: 1,14 | AN185: 1,15 | AO185: 1,12 | AP185: 1,14 | AQ185: 1,1 | AR185: 1,1 | AS185: 1,09 | AT185: 1,09 | AU185: 1,1 | AV185: 1,09 | AW185: 1,07 | AX185: 1,08 | AY185: 1,05 | AZ185: 1,04 | BA185: 1,06 | BB185: 1 | BC185: 1 | BD185: 0,98 | BE185: 0,98 | BF185: 0,99 | BG185: 0,99 | BH185: 0,97 | BI185: 1 | BJ185: 0,99 | BK185: 1,01 | BL185: 1,03 | BM185: 1,07 | BN185: 1,15 | BO185: 1,17 | BP185: 1.17 | BQ185: 1.18 | BR185: 1.18 | BS185: 1.16 | BT185: 1.20 | BU185: 1.21 | BV185: 1.23 | BW185: 1.22 | BX185: 1.23 | BY185: 1.20
A186: 4157 | B186: Leipzig, Stadt / Leipzig | C186: 4157 | D186: 1,04 | E186: 1,01 | F186: 1,01 | G186: 1,05 | H186: 1,05 | I186: 1,03 | J186: 1,03 | K186: 1,04 | L186: 1,06 | M186: 1,05 | N186: 1,07 | O186: 1,06 | P186: 1,04 | Q186: 1,04 | R186: 1,04 | S186: 1 | T186: 0,97 | U186: 0,98 | V186: 0,98 | W186: 0,97 | X186: 0,95 | Y186: 0,95 | Z186: 0,93 | AA186: 0,9 | AB186: 0,94 | AC186: 0,94 | AD186: 0,95 | AE186: 0,97 | AF186: 1,01 | AG186: 1,02 | AH186: 1,01 | AI186: 1,01 | AJ186: 1,04 | AK186: 1,06 | AL186: 1,04 | AM186: 1,13 | AN186: 1,14 | AO186: 1,1 | AP186: 1,12 | AQ186: 1,09 | AR186: 1,09 | AS186: 1,08 | AT186: 1,08 | AU186: 1,09 | AV186: 1,07 | AW186: 1,06 | AX186: 1,07 | AY186: 1,04 | AZ186: 1,03 | BA186: 1,05 | BB186: 0,99 | BC186: 0,99 | BD186: 0,97 | BE186: 0,97 | BF186: 0,98 | BG186: 0,98 | BH186: 0,96 | BI186: 0,98 | BJ186: 0,98 | BK186: 1 | BL186: 1,01 | BM186: 1,06 | BN186: 1,13 | BO186: 1,16 | BP186: 1.16 | BQ186: 1.16 | BR186: 1.16 | BS186: 1.15 | BT186: 1.18 | BU186: 1.20 | BV186: 1.21 | BW186: 1.20 | BX186: 1.22 | BY186: 1.18
A187: 4158 | B187: Leipzig, Stadt / Leipzig | C187: 4158 | D187: 1 | E187: 0,97 | F187: 0,97 | G187: 1,01 | H187: 1 | I187: 0,98 | J187: 0,98 | K187: 0,99 | L187: 1,01 | M187: 1 | N187: 1,02 | O187: 1,01 | P187: 0,99 | Q187: 0,98 | R187: 0,98 | S187: 0,96 | T187: 0,93 | U187: 0,94 | V187: 0,94 | W187: 0,93 | X187: 0,91 | Y187: 0,91 | Z187: 0,89 | AA187: 0,87 | AB187: 0,9 | AC187: 0,9 | AD187: 0,9 | AE187: 0,93 | AF187: 0,96 | AG187: 0,96 | AH187: 0,95 | AI187: 0,95 | AJ187: 0,98 | AK187: 1 | AL187: 0,98 | AM187: 1,06 | AN187: 1,07 | AO187: 1,04 | AP187: 1,06 | AQ187: 1,03 | AR187: 1,03 | AS187: 1,02 | AT187: 1,03 | AU187: 1,04 | AV187: 1,02 | AW187: 1,01 | AX187: 1,02 | AY187: 1 | AZ187: 0,98 | BA187: 1,01 | BB187: 0,95 | BC187: 0,95 | BD187: 0,94 | BE187: 0,93 | BF187: 0,94 | BG187: 0,94 | BH187: 0,93 | BI187: 0,95 | BJ187: 0,95 | BK187: 0,97 | BL187: 0,97 | BM187: 1,01 | BN187: 1,08 | BO187: 1,1 | BP187: 1.1 | BQ187: 1.1 | BR187: 1.1 | BS187: 1.08 | BT187: 1.11 | BU187: 1.12 | BV187: 1.14 | BW187: 1.13 | BX187: 1.14 | BY187: 1.11
A188: 4159 | B188: Leipzig, Stadt / Leipzig | C188: 4159 | D188: 1,03 | E188: 1,01 | F188: 1,01 | G188: 1,05 | H188: 1,04 | I188: 1,02 | J188: 1,02 | K188: 1,03 | L188: 1,05 | M188: 1,04 | N188: 1,06 | O188: 1,05 | P188: 1,03 | Q188: 1,03 | R188: 1,02 | S188: 0,99 | T188: 0,96 | U188: 0,97 | V188: 0,97 | W188: 0,97 | X188: 0,94 | Y188: 0,94 | Z188: 0,93 | AA188: 0,9 | AB188: 0,93 | AC188: 0,94 | AD188: 0,94 | AE188: 0,96 | AF188: 1 | AG188: 1 | AH188: 0,99 | AI188: 0,99 | AJ188: 1,02 | AK188: 1,04 | AL188: 1,03 | AM188: 1,11 | AN188: 1,12 | AO188: 1,09 | AP188: 1,11 | AQ188: 1,07 | AR188: 1,08 | AS188: 1,06 | AT188: 1,07 | AU188: 1,08 | AV188: 1,06 | AW188: 1,05 | AX188: 1,06 | AY188: 1,04 | AZ188: 1,02 | BA188: 1,05 | BB188: 0,98 | BC188: 0,99 | BD188: 0,97 | BE188: 0,97 | BF188: 0,97 | BG188: 0,97 | BH188: 0,96 | BI188: 0,98 | BJ188: 0,98 | BK188: 1 | BL188: 1,01 | BM188: 1,05 | BN188: 1,12 | BO188: 1,15 | BP188: 1.14 | BQ188: 1.15 | BR188: 1.15 | BS188: 1.13 | BT188: 1.16 | BU188: 1.18 | BV188: 1.20 | BW188: 1.19 | BX188: 1.20 | BY188: 1.16
A189: 4177 | B189: Leipzig, Stadt / Leipzig | C189: 4177 | D189: 1,05 | E189: 1,03 | F189: 1,03 | G189: 1,07 | H189: 1,07 | I189: 1,05 | J189: 1,06 | K189: 1,06 | L189: 1,08 | M189: 1,07 | N189: 1,09 | O189: 1,08 | P189: 1,07 | Q189: 1,06 | R189: 1,06 | S189: 1,02 | T189: 0,99 | U189: 1 | V189: 1 | W189: 0,99 | X189: 0,97 | Y189: 0,97 | Z189: 0,95 | AA189: 0,92 | AB189: 0,96 | AC189: 0,96 | AD189: 0,96 | AE189: 0,99 | AF189: 1,03 | AG189: 1,04 | AH189: 1,03 | AI189: 1,03 | AJ189: 1,06 | AK189: 1,08 | AL189: 1,07 | AM189: 1,15 | AN189: 1,17 | AO189: 1,13 | AP189: 1,15 | AQ189: 1,11 | AR189: 1,11 | AS189: 1,1 | AT189: 1,1 | AU189: 1,11 | AV189: 1,1 | AW189: 1,08 | AX189: 1,09 | AY189: 1,06 | AZ189: 1,05 | BA189: 1,07 | BB189: 1,01 | BC189: 1,01 | BD189: 0,99 | BE189: 0,99 | BF189: 0,99 | BG189: 0,99 | BH189: 0,98 | BI189: 1 | BJ189: 1 | BK189: 1,02 | BL189: 1,03 | BM189: 1,08 | BN189: 1,16 | BO189: 1,19 | BP189: 1.18 | BQ189: 1.19 | BR189: 1.19 | BS189: 1.18 | BT189: 1.21 | BU189: 1.23 | BV189: 1.25 | BW189: 1.24 | BX189: 1.25 | BY189: 1.21
A190: 4178 | B190: Leipzig, Stadt / Leipzig | C190: 4178 | D190: 1,04 | E190: 1,02 | F190: 1,02 | G190: 1,06 | H190: 1,05 | I190: 1,04 | J190: 1,04 | K190: 1,04 | L190: 1,07 | M190: 1,06 | N190: 1,08 | O190: 1,07 | P190: 1,06 | Q190: 1,05 | R190: 1,05 | S190: 1,01 | T190: 0,98 | U190: 0,99 | V190: 0,99 | W190: 0,98 | X190: 0,96 | Y190: 0,96 | Z190: 0,94 | AA190: 0,91 | AB190: 0,95 | AC190: 0,95 | AD190: 0,95 | AE190: 0,98 | AF190: 1,02 | AG190: 1,03 | AH190: 1,02 | AI190: 1,02 | AJ190: 1,05 | AK190: 1,07 | AL190: 1,05 | AM190: 1,14 | AN190: 1,15 | AO190: 1,12 | AP190: 1,14 | AQ190: 1,1 | AR190: 1,1 | AS190: 1,09 | AT190: 1,09 | AU190: 1,1 | AV190: 1,08 | AW190: 1,07 | AX190: 1,08 | AY190: 1,05 | AZ190: 1,04 | BA190: 1,06 | BB190: 1 | BC190: 1 | BD190: 0,98 | BE190: 0,98 | BF190: 0,98 | BG190: 0,98 | BH190: 0,97 | BI190: 0,99 | BJ190: 0,99 | BK190: 1,01 | BL190: 1,02 | BM190: 1,07 | BN190: 1,14 | BO190: 1,17 | BP190: 1.17 | BQ190: 1.18 | BR190: 1.17 | BS190: 1.16 | BT190: 1.19 | BU190: 1.21 | BV190: 1.23 | BW190: 1.22 | BX190: 1.23 | BY190: 1.19
A191: 4179 | B191: Leipzig, Stadt / Leipzig | C191: 4179 | D191: 1,05 | E191: 1,03 | F191: 1,03 | G191: 1,07 | H191: 1,06 | I191: 1,05 | J191: 1,05 | K191: 1,05 | L191: 1,08 | M191: 1,07 | N191: 1,09 | O191: 1,08 | P191: 1,06 | Q191: 1,05 | R191: 1,05 | S191: 1,02 | T191: 0,99 | U191: 0,99 | V191: 0,99 | W191: 0,99 | X191: 0,96 | Y191: 0,96 | Z191: 0,95 | AA191: 0,91 | AB191: 0,95 | AC191: 0,96 | AD191: 0,96 | AE191: 0,99 | AF191: 1,02 | AG191: 1,03 | AH191: 1,02 | AI191: 1,02 | AJ191: 1,05 | AK191: 1,07 | AL191: 1,06 | AM191: 1,15 | AN191: 1,16 | AO191: 1,12 | AP191: 1,15 | AQ191: 1,11 | AR191: 1,11 | AS191: 1,09 | AT191: 1,1 | AU191: 1,1 | AV191: 1,09 | AW191: 1,08 | AX191: 1,09 | AY191: 1,06 | AZ191: 1,04 | BA191: 1,07 | BB191: 1 | BC191: 1 | BD191: 0,99 | BE191: 0,99 | BF191: 0,99 | BG191: 0,99 | BH191: 0,98 | BI191: 1 | BJ191: 1 | BK191: 1,02 | BL191: 1,03 | BM191: 1,07 | BN191: 1,15 | BO191: 1,18 | BP191: 1.18 | BQ191: 1.19 | BR191: 1.18 | BS191: 1.17 | BT191: 1.20 | BU191: 1.22 | BV191: 1.24 | BW191: 1.23 | BX191: 1.24 | BY191: 1.20
A192: 4205 | B192: Leipzig, Stadt / Leipzig | C192: 4205 | D192: 1,02 | E192: 0,99 | F192: 0,99 | G192: 1,03 | H192: 1,03 | I192: 1,01 | J192: 1,01 | K192: 1,01 | L192: 1,04 | M192: 1,03 | N192: 1,05 | O192: 1,04 | P192: 1,02 | Q192: 1,01 | R192: 1,01 | S192: 0,98 | T192: 0,95 | U192: 0,96 | V192: 0,96 | W192: 0,96 | X192: 0,93 | Y192: 0,93 | Z192: 0,92 | AA192: 0,89 | AB192: 0,92 | AC192: 0,93 | AD192: 0,93 | AE192: 0,95 | AF192: 0,99 | AG192: 0,99 | AH192: 0,98 | AI192: 0,98 | AJ192: 1,01 | AK192: 1,03 | AL192: 1,02 | AM192: 1,09 | AN192: 1,1 | AO192: 1,07 | AP192: 1,09 | AQ192: 1,06 | AR192: 1,06 | AS192: 1,05 | AT192: 1,06 | AU192: 1,06 | AV192: 1,05 | AW192: 1,04 | AX192: 1,05 | AY192: 1,02 | AZ192: 1,01 | BA192: 1,03 | BB192: 0,97 | BC192: 0,97 | BD192: 0,96 | BE192: 0,96 | BF192: 0,96 | BG192: 0,96 | BH192: 0,95 | BI192: 0,97 | BJ192: 0,97 | BK192: 0,99 | BL192: 1 | BM192: 1,03 | BN192: 1,11 | BO192: 1,13 | BP192: 1.13 | BQ192: 1.13 | BR192: 1.13 | BS192: 1.11 | BT192: 1.14 | BU192: 1.16 | BV192: 1.18 | BW192: 1.17 | BX192: 1.18 | BY192: 1.14
A193: 4207 | B193: Leipzig, Stadt / Leipzig | C193: 4207 | D193: 1,03 | E193: 1 | F193: 1 | G193: 1,04 | H193: 1,03 | I193: 1,02 | J193: 1,02 | K193: 1,02 | L193: 1,05 | M193: 1,04 | N193: 1,06 | O193: 1,05 | P193: 1,03 | Q193: 1,02 | R193: 1,02 | S193: 0,99 | T193: 0,96 | U193: 0,97 | V193: 0,97 | W193: 0,97 | X193: 0,94 | Y193: 0,94 | Z193: 0,92 | AA193: 0,89 | AB193: 0,93 | AC193: 0,93 | AD193: 0,94 | AE193: 0,96 | AF193: 1 | AG193: 1 | AH193: 0,99 | AI193: 0,99 | AJ193: 1,02 | AK193: 1,04 | AL193: 1,03 | AM193: 1,11 | AN193: 1,12 | AO193: 1,08 | AP193: 1,11 | AQ193: 1,07 | AR193: 1,07 | AS193: 1,06 | AT193: 1,07 | AU193: 1,07 | AV193: 1,06 | AW193: 1,05 | AX193: 1,06 | AY193: 1,03 | AZ193: 1,02 | BA193: 1,04 | BB193: 0,98 | BC193: 0,98 | BD193: 0,97 | BE193: 0,96 | BF193: 0,97 | BG193: 0,97 | BH193: 0,96 | BI193: 0,98 | BJ193: 0,97 | BK193: 0,99 | BL193: 1,01 | BM193: 1,04 | BN193: 1,12 | BO193: 1,14 | BP193: 1.14 | BQ193: 1.15 | BR193: 1.14 | BS193: 1.13 | BT193: 1.16 | BU193: 1.18 | BV193: 1.19 | BW193: 1.18 | BX193: 1.20 | BY193: 1.16
A194: 4209 | B194: Leipzig, Stadt / Leipzig | C194: 4209 | D194: 1,03 | E194: 1,01 | F194: 1,01 | G194: 1,05 | H194: 1,04 | I194: 1,03 | J194: 1,03 | K194: 1,03 | L194: 1,06 | M194: 1,05 | N194: 1,07 | O194: 1,06 | P194: 1,04 | Q194: 1,03 | R194: 1,03 | S194: 1 | T194: 0,97 | U194: 0,98 | V194: 0,98 | W194: 0,97 | X194: 0,95 | Y194: 0,95 | Z194: 0,93 | AA194: 0,9 | AB194: 0,94 | AC194: 0,94 | AD194: 0,94 | AE194: 0,97 | AF194: 1,01 | AG194: 1,01 | AH194: 1 | AI194: 1 | AJ194: 1,03 | AK194: 1,05 | AL194: 1,04 | AM194: 1,12 | AN194: 1,13 | AO194: 1,1 | AP194: 1,12 | AQ194: 1,08 | AR194: 1,08 | AS194: 1,07 | AT194: 1,08 | AU194: 1,08 | AV194: 1,07 | AW194: 1,06 | AX194: 1,07 | AY194: 1,04 | AZ194: 1,03 | BA194: 1,05 | BB194: 0,99 | BC194: 0,99 | BD194: 0,97 | BE194: 0,97 | BF194: 0,97 | BG194: 0,97 | BH194: 0,96 | BI194: 0,98 | BJ194: 0,98 | BK194: 1 | BL194: 1,01 | BM194: 1,05 | BN194: 1,13 | BO194: 1,15 | BP194: 1.15 | BQ194: 1.16 | BR194: 1.16 | BS194: 1.14 | BT194: 1.17 | BU194: 1.19 | BV194: 1.21 | BW194: 1.20 | BX194: 1.21 | BY194: 1.17
A195: 4229 | B195: Leipzig, Stadt / Leipzig | C195: 4229 | D195: 1,05 | E195: 1,02 | F195: 1,02 | G195: 1,06 | H195: 1,06 | I195: 1,04 | J195: 1,04 | K195: 1,05 | L195: 1,07 | M195: 1,06 | N195: 1,08 | O195: 1,07 | P195: 1,06 | Q195: 1,05 | R195: 1,05 | S195: 1,01 | T195: 0,98 | U195: 0,99 | V195: 0,99 | W195: 0,98 | X195: 0,96 | Y195: 0,96 | Z195: 0,94 | AA195: 0,91 | AB195: 0,95 | AC195: 0,95 | AD195: 0,95 | AE195: 0,98 | AF195: 1,02 | AG195: 1,03 | AH195: 1,02 | AI195: 1,02 | AJ195: 1,05 | AK195: 1,07 | AL195: 1,06 | AM195: 1,14 | AN195: 1,15 | AO195: 1,12 | AP195: 1,14 | AQ195: 1,1 | AR195: 1,1 | AS195: 1,09 | AT195: 1,09 | AU195: 1,1 | AV195: 1,08 | AW195: 1,07 | AX195: 1,08 | AY195: 1,05 | AZ195: 1,04 | BA195: 1,06 | BB195: 1 | BC195: 1 | BD195: 0,98 | BE195: 0,98 | BF195: 0,99 | BG195: 0,99 | BH195: 0,97 | BI195: 1 | BJ195: 0,99 | BK195: 1,01 | BL195: 1,03 | BM195: 1,07 | BN195: 1,14 | BO195: 1,17 | BP195: 1.17 | BQ195: 1.18 | BR195: 1.17 | BS195: 1.16 | BT195: 1.19 | BU195: 1.21 | BV195: 1.23 | BW195: 1.22 | BX195: 1.23 | BY195: 1.19
A196: 4249 | B196: Leipzig, Stadt / Leipzig | C196: 4249 | D196: 1,01 | E196: 0,99 | F196: 0,99 | G196: 1,02 | H196: 1,02 | I196: 1 | J196: 1 | K196: 1 | L196: 1,03 | M196: 1,02 | N196: 1,04 | O196: 1,03 | P196: 1,01 | Q196: 1,01 | R196: 1 | S196: 0,98 | T196: 0,95 | U196: 0,96 | V196: 0,96 | W196: 0,95 | X196: 0,93 | Y196: 0,93 | Z196: 0,91 | AA196: 0,88 | AB196: 0,92 | AC196: 0,92 | AD196: 0,92 | AE196: 0,95 | AF196: 0,98 | AG196: 0,98 | AH196: 0,97 | AI196: 0,97 | AJ196: 1 | AK196: 1,02 | AL196: 1 | AM196: 1,08 | AN196: 1,09 | AO196: 1,06 | AP196: 1,08 | AQ196: 1,05 | AR196: 1,05 | AS196: 1,04 | AT196: 1,05 | AU196: 1,06 | AV196: 1,04 | AW196: 1,03 | AX196: 1,04 | AY196: 1,02 | AZ196: 1 | BA196: 1,03 | BB196: 0,97 | BC196: 0,97 | BD196: 0,95 | BE196: 0,95 | BF196: 0,96 | BG196: 0,96 | BH196: 0,95 | BI196: 0,97 | BJ196: 0,96 | BK196: 0,98 | BL196: 0,99 | BM196: 1,03 | BN196: 1,1 | BO196: 1,12 | BP196: 1.12 | BQ196: 1.12 | BR196: 1.12 | BS196: 1.10 | BT196: 1.13 | BU196: 1.15 | BV196: 1.16 | BW196: 1.16 | BX196: 1.17 | BY196: 1.13
A197: 4275 | B197: Leipzig, Stadt / Leipzig | C197: 4275 | D197: 1,05 | E197: 1,03 | F197: 1,03 | G197: 1,07 | H197: 1,06 | I197: 1,05 | J197: 1,05 | K197: 1,05 | L197: 1,08 | M197: 1,07 | N197: 1,09 | O197: 1,08 | P197: 1,06 | Q197: 1,06 | R197: 1,06 | S197: 1,02 | T197: 0,99 | U197: 0,99 | V197: 0,99 | W197: 0,99 | X197: 0,96 | Y197: 0,96 | Z197: 0,95 | AA197: 0,92 | AB197: 0,95 | AC197: 0,96 | AD197: 0,96 | AE197: 0,99 | AF197: 1,03 | AG197: 1,03 | AH197: 1,03 | AI197: 1,03 | AJ197: 1,06 | AK197: 1,08 | AL197: 1,07 | AM197: 1,15 | AN197: 1,16 | AO197: 1,13 | AP197: 1,15 | AQ197: 1,11 | AR197: 1,11 | AS197: 1,09 | AT197: 1,1 | AU197: 1,11 | AV197: 1,09 | AW197: 1,08 | AX197: 1,09 | AY197: 1,06 | AZ197: 1,04 | BA197: 1,07 | BB197: 1 | BC197: 1 | BD197: 0,99 | BE197: 0,99 | BF197: 0,99 | BG197: 0,99 | BH197: 0,98 | BI197: 1 | BJ197: 0,99 | BK197: 1,02 | BL197: 1,03 | BM197: 1,07 | BN197: 1,15 | BO197: 1,18 | BP197: 1.18 | BQ197: 1.19 | BR197: 1.18 | BS197: 1.17 | BT197: 1.21 | BU197: 1.22 | BV197: 1.24 | BW197: 1.23 | BX197: 1.24 | BY197: 1.20
A198: 4277 | B198: Leipzig, Stadt / Leipzig | C198: 4277 | D198: 1,03 | E198: 1,01 | F198: 1,01 | G198: 1,05 | H198: 1,04 | I198: 1,02 | J198: 1,03 | K198: 1,03 | L198: 1,05 | M198: 1,04 | N198: 1,06 | O198: 1,05 | P198: 1,04 | Q198: 1,03 | R198: 1,03 | S198: 1 | T198: 0,97 | U198: 0,97 | V198: 0,98 | W198: 0,97 | X198: 0,94 | Y198: 0,94 | Z198: 0,93 | AA198: 0,9 | AB198: 0,93 | AC198: 0,94 | AD198: 0,94 | AE198: 0,96 | AF198: 1 | AG198: 1,01 | AH198: 1 | AI198: 1 | AJ198: 1,03 | AK198: 1,05 | AL198: 1,03 | AM198: 1,11 | AN198: 1,12 | AO198: 1,09 | AP198: 1,11 | AQ198: 1,08 | AR198: 1,08 | AS198: 1,07 | AT198: 1,07 | AU198: 1,08 | AV198: 1,06 | AW198: 1,05 | AX198: 1,06 | AY198: 1,04 | AZ198: 1,02 | BA198: 1,05 | BB198: 0,98 | BC198: 0,99 | BD198: 0,97 | BE198: 0,97 | BF198: 0,97 | BG198: 0,97 | BH198: 0,96 | BI198: 0,98 | BJ198: 0,98 | BK198: 1 | BL198: 1,01 | BM198: 1,05 | BN198: 1,12 | BO198: 1,15 | BP198: 1.15 | BQ198: 1.15 | BR198: 1.15 | BS198: 1.13 | BT198: 1.17 | BU198: 1.18 | BV198: 1.20 | BW198: 1.19 | BX198: 1.20 | BY198: 1.17
A199: =C199 -> 4279 | B199: Leipzig, Stadt / Leipzig | C199: 4279 | D199: 1,02 | E199: 1 | F199: 1 | G199: 1,04 | H199: 1,03 | I199: 1,01 | J199: 1,02 | K199: 1,02 | L199: 1,04 | M199: 1,03 | N199: 1,05 | O199: 1,04 | P199: 1,03 | Q199: 1,02 | R199: 1,02 | S199: 0,99 | T199: 0,96 | U199: 0,97 | V199: 0,97 | W199: 0,96 | X199: 0,94 | Y199: 0,93 | Z199: 0,92 | AA199: 0,89 | AB199: 0,93 | AC199: 0,93 | AD199: 0,93 | AE199: 0,96 | AF199: 0,99 | AG199: 1 | AH199: 0,99 | AI199: 0,99 | AJ199: 1,02 | AK199: 1,04 | AL199: 1,02 | AM199: 1,1 | AN199: 1,11 | AO199: 1,08 | AP199: 1,1 | AQ199: 1,07 | AR199: 1,07 | AS199: 1,06 | AT199: 1,06 | AU199: 1,07 | AV199: 1,06 | AW199: 1,04 | AX199: 1,05 | AY199: 1,03 | AZ199: 1,01 | BA199: 1,04 | BB199: 0,98 | BC199: 0,98 | BD199: 0,96 | BE199: 0,96 | BF199: 0,96 | BG199: 0,96 | BH199: 0,95 | BI199: 0,97 | BJ199: 0,97 | BK199: 0,99 | BL199: 1 | BM199: 1,04 | BN199: 1,11 | BO199: 1,14 | BP199: 1.13 | BQ199: 1.14 | BR199: 1.14 | BS199: 1.12 | BT199: 1.15 | BU199: 1.17 | BV199: 1.19 | BW199: 1.18 | BX199: 1.19 | BY199: 1.15
A200: 4288 | B200: Leipzig, Stadt / Leipzig | C200: 4288 | D200: 0,98 | E200: 0,96 | F200: 0,96 | G200: 1 | H200: 0,99 | I200: 0,97 | J200: 0,97 | K200: 0,98 | L200: 1 | M200: 0,99 | N200: 1,01 | O200: 0,99 | P200: 0,98 | Q200: 0,97 | R200: 0,97 | S200: 0,95 | T200: 0,92 | U200: 0,93 | V200: 0,93 | W200: 0,93 | X200: 0,9 | Y200: 0,9 | Z200: 0,89 | AA200: 0,86 | AB200: 0,89 | AC200: 0,89 | AD200: 0,9 | AE200: 0,92 | AF200: 0,95 | AG200: 0,95 | AH200: 0,94 | AI200: 0,94 | AJ200: 0,97 | AK200: 0,99 | AL200: 0,97 | AM200: 1,05 | AN200: 1,05 | AO200: 1,02 | AP200: 1,04 | AQ200: 1,02 | AR200: 1,02 | AS200: 1,01 | AT200: 1,02 | AU200: 1,02 | AV200: 1,01 | AW200: 1 | AX200: 1,01 | AY200: 0,99 | AZ200: 0,97 | BA200: 1 | BB200: 0,94 | BC200: 0,94 | BD200: 0,93 | BE200: 0,93 | BF200: 0,93 | BG200: 0,93 | BH200: 0,92 | BI200: 0,94 | BJ200: 0,94 | BK200: 0,96 | BL200: 0,96 | BM200: 1 | BN200: 1,06 | BO200: 1,08 | BP200: 1.08 | BQ200: 1.09 | BR200: 1.08 | BS200: 1.06 | BT200: 1.09 | BU200: 1.11 | BV200: 1.12 | BW200: 1.11 | BX200: 1.13 | BY200: 1.09
... 918 more rows

Sheet Hilfstabellen
A1: Hilfstabellen
A3: Primärenergiefaktoren (nicht erneuerbarer Anteil nach DIN V 18599-1:2011-12 in kWhprimär pro kWhend) | D3: CO2-Äquivalent in kg/kWhend | E3: Quellen für CO2-Aquivalente
A4: Brennstoffe | B4: Biogas | C4: 0.50 | D4: 0.000 | E4: keine Daten vorhanden
B5: Bioöl | C5: 0.50 | D5: 0.000
B6: Braunkohle | C6: 1.20 | D6: 0.448 | E6: http://www.iwu.de/fileadmin/user_upload/dateien/energie/werkzeuge/kea.pdf
B7: Erdgas H | C7: 1.10 | D7: 0.239
B8: Flüssiggas | C8: 1.10 | D8: 0.260
B9: Heizöl EL | C9: 1.10 | D9: 0.313
B10: Holz | C10: 0.20 | D10: 0.011
B11: Steinkohle | C11: 1.10 | D11: 0.421
A12: Nah/Fernwärme aus KWK | B12: Wärme aus KWK erneuerbarer Brennst. | C12: 0.00 | D12: 0.000 | E12: keine Daten vorhanden
B13: Wärme aus KWK fossiler Brennst. | C13: 0.70 | D13: =D7*C13/1.1 -> 0.152 | E13: berechnet
A14: Nah-/Fernwärme aus Heizkraftwerk | B14: Nah-/Fernwärme erneuerbarer Brennstoff | C14: 0.10 | D14: 0.000 | E14: keine Daten vorhanden
B15: Nah-/Fernwärme fossiler Brennstoff | C15: 1.30 | D15: 0.110
A16: Umweltenergie | B16: Erdwärme, Geothermie | C16: 0.00 | D16: =1/4*D21 -> 0.158 | E16: http://www.iwu.de/fileadmin/user_upload/dateien/energie/werkzeuge/kea.pdf
B17: Solarenergie (Solarthermie) | C17: 0.00 | D17: 0.012
B18: Umgebungskälte (Kältemaschine) | C18: 0.00 | D18: =1/2.1*D21 -> 0.300
B19: Umgebungswärme (Wärmepumpe) | C19: 0.00 | D19: =1/2.7*D21 -> 0.234
A20: Strom | B20: Photovoltaik (Eigenverbrauch) | C20: 0.00 | D20: 0.062 | E20: http://www.iwu.de/fileadmin/user_upload/dateien/energie/werkzeuge/kea.pdf
B21: Strom (Bezug aus EVU-Netz) | C21: 2.40 | D21: 0.631
B22: Strom aus KWK fossiler Brennst. | C22: =C7-C13 -> 0.40 | D22: =D7-D13 -> 0.087 | E22: berechnet
A23: Leer | C23: 0.00 | D23: 0.00
A26: Flächenangabe in
B27: NGF | C27: FALSE
B28: BGF | C28: TRUE
B29: markiert | C29: =IF(OR(AND(C27=TRUE(),C28=TRUE()),AND(C27=FALSE(),C28=FALSE())),2,1) -> 1
A31: Anlass der Ausstellung
C32: 1
B33: Aushangpflicht | C33: 2
B34: Modernisierung-Erweiterung | C34: 3
B35: Neubau | C35: 4
B36: Sonstiges | C36: 5
B37: Vermietung-Verkauf | C37: 6
A39: Bundesland
C40: 1
B41: Baden-Württemberg | C41: 2
B42: Bayern | C42: 3
B43: Berlin | C43: 4
B44: Brandenburg | C44: 5
B45: Bremen | C45: 6
B46: Hamburg | C46: 7
B47: Hessen | C47: 8
B48: Mecklenburg-Vorpommern | C48: 9
B49: Niedersachsen | C49: 10
B50: Nordrhein-Westfalen | C50: 11
B51: Rheinland-Pfalz | C51: 12
B52: Saarland | C52: 13
B53: Sachsen | C53: 14
B54: Sachsen-Anhalt | C54: 15
B55: Schleswig-Holstein | C55: 16
B56: Thüringen | C56: 17
A58: Altersklasse für Gebäude und Wärmeerzeuger
A59: von | B59: bis
B60: 1918 | C60: bis 1918
A61: 1919 | B61: 1948 | C61: =A61&"..."&B61 -> 1919...1948
A62: 1949 | B62: 1957 | C62: 1949...1957
A63: 1958 | B63: 1968 | C63: 1958...1968
A64: 1969 | B64: 1978 | C64: 1969...1978
A65: 1979 | B65: 1982 | C65: 1979...1982
A66: 1983 | B66: 1994 | C66: 1983...1994
A67: 1995 | B67: 2002 | C67: 1995...2002
A68: 2003 | B68: 2007 | C68: 2003...2007
A69: 2008 | B69: 2015 | C69: 2008...2015
A70: 2016 | C70: ab 2016
B71: ausgewählt Gebäude | C71: =IF(Eingabewerte!$D$21<1919,$C$60,VLOOKUP(Eingabewerte!$D$21,Hilfstabellen!$A$60:$C$70,3)) -> 1979...1982
B72: ausgewählt Wärmeerzeuger | C72: =IF(Eingabewerte!$F$21<1919,$C$60,VLOOKUP(Eingabewerte!$F$21,Hilfstabellen!$A$60:$C$70,3)) -> 1979...1982
A75: Leerstand
B76: Leerstand | C76: FALSE
B77: kein Leerstand | C77: TRUE
B78: entsprechend der Bekanntmachung | C78: FALSE
B79: Sonstiges | C79: FALSE
A81: Datenerhebung
B82: Durch den Aussteller | C82: TRUE
B83: Durch den Eigentümer | C83: FALSE
A85: Gebäudetyp
A86: ganzes Gebäude | C86: 1
A87: ganze Liegenschaft | C87: 2
A88: Nichtwohnteil gemischtes genutztes Gebäude | C88: 3
A89: Wohnteil gemischt genutztes Gebäude | C89: 4
A91: spezifische Kosten [in €/kWh bzw €/m³]
A92: H | B92: Heizenergie | C92: =Eingabewerte!M30/100 -> 0.0790
A93: S | B93: Strom | C93: =Eingabewerte!M35/100 -> 0.1600
A94: W | B94: Wasser | C94: =Eingabewerte!M40/100 -> 0.0326
B95: Leer | C95: 0
A97: Modernisierungskombination
B98: 1 | C98: =IF(Eingabewerte!H74="","",Eingabewerte!H74) -> EM
B99: 2 | C99: =IF(Eingabewerte!H75="","",Eingabewerte!H75) -> EM
B100: 3 | C100: =IF(Eingabewerte!H76="","",Eingabewerte!H76) -> 
B101: 4 | C101: =IF(Eingabewerte!H77="","",Eingabewerte!H77) -> 
B102: 5 | C102: =IF(Eingabewerte!H78="","",Eingabewerte!H78) -> 
A104: Bauteil, Anlagenteil
B105: Abseiten
B106: Anlagenregelung
B107: Außenwand gg. Außenluft
B108: Außenwand gg. Erdreich
B109: Be- / Entfeuchtung
B110: Beleuchtung
B111: Boden gg. Außenluft
B112: Dach
B113: Dachfenster
B114: Eingangstür
B115: Fenster
B116: Gauben
B117: Gebäudeautomation
B118: Heizung
B119: Kälteerzeugung
B120: Kälteverteilung / -abgabe
B121: Kellerdecke
B122: Kühlung
B123: Luftundichtigkeiten
B124: Lüftung
B125: Lüftungsanlage
B126: Lüftungskonzept
B127: Luftverteilung / -abgabe
B128: Nebentür
B129: oberste Geschossdecke
B130: Rollladen und -kästen
B131: Sonstiges
B132: Wärmeerzeuger
B133: Wärmeverteilung / -abgabe
B134: Warmwasserbereitung
A137: Modernisierungskombination Auswahl
A138: EM | B138: als Einzelmaßnahme
A139: GM | B139: in Zusammenhang mit größerer Modernisierung
A144: CO2-Emissionen (Äquivalente)
B145: anzeigen? | C145: FALSE

Sheet Angaben Prüfstelle - Reg.
B2: Angaben zum Energieausweis
A4: 1 | B4: Aussteller_ID_DIBT | F4: =IF(Eingabewerte!K87=0,"",Eingabewerte!K87) -> peter.dorn.amt65@stadt-frankfurt.de
A5: =A4+1 -> 2 | B5: Aussteller_PWD_DIBT | F5: =PasswordGenerateMD5(Eingabewerte!K88) -> 
A6: 3 | B6: Ausstellungsdatum | F6: =Energieausweis!I69 -> 2020-06-10
A7: 4 | B7: Bundesland | F7: =Eingabewerte!D13 -> Hessen
A8: 5 | B8: Postleitzahl | F8: =Eingabewerte!B28 -> 60594
A9: 6 | B9: Gebäudeart | F9: =IF(Eingabewerte!C16=6100,"Wohngebäude","Nichtwohngebäude") -> Nichtwohngebäude
A10: 7 | B10: Art | F10: Energieverbrauchsausweis
A11: 8 | B11: Neubau | F11: 0

Sheet Angaben Prüfstelle - Allgemein
B2: Angaben zum Energieausweis | J2: Zusatz Nichtwohngebäude | P2: stellt eine Auswahl dar, die programmatisch ausgewertet wird und Einfluss auf die verwendeten XML-Daten hat
P3: hat keine Entsprechung im verbundenen XML-Schema
B4: Gebäudeart | F4: Nichtwohngebäude | P4: Zusatz Nichtwohngebäude: entspricht den Daten auf der linken Seite
B5: Allgemein | P5: Angaben zum Energieausweis: Angaben sind nur für Nichtwohngebäude relevant
A6: 1 | B6: Projektbezeichnung | F6: =Eingabewerte!D11 -> Amt für Bau und Immobilien
A7: =A6+1 -> 2 | B7: Ausstelldatum | F7: =TEXT(Energieausweis!I69,"TT.MM.JJJJ") -> 10.06.2020
A8: 3 | B8: Anlass der Ausstellung | F8: =INDEX(Hilfstabellen!$B$32:$B$37,Eingabewerte!K89) -> Aushangpflicht
A9: 4 | B9: Datenerhebung durch | F9: Aussteller
A10: 5 | B10: Berufsbezeichnung | F10: =Eingabewerte!D88 -> Dipl. Wirtschaftsingenieur
A11: 6 | B11: Name | F11: =Eingabewerte!D89 -> Dorn
A12: 7 | B12: Vorname | F12: =Eingabewerte!D90 -> Peter
A13: 8 | B13: Straße + Hausnummer | F13: =Eingabewerte!D91 -> Gerbermühlstraße 48
A14: 9 | B14: Postleitzahl | F14: =Eingabewerte!D92 -> 60459
A15: 10 | B15: Ort | F15: =Eingabewerte!$E$92 -> Frankfurt a. Main
A16: 11 | B16: Hauptnutzung/Gebäudekategorie | F16: =Energieausweis!D10 -> Verwaltungsgeb. mit norm. techn. Ausst.
A17: 12 | B17: Netto-Raumfläche | F17: =Eingabewerte!K20 -> 10062
A18: 13 | B18: Gebäudeteil | F18: =IF(Eingabewerte!$D$14="ganze Liegenschaft","ganzes Gebäude",Eingabewerte!$D$14) -> ganzes Gebäude
A19: 14 | B19: Bundesland | F19: =Eingabewerte!$D$13 -> Hessen
A20: 15 | B20: Strasse und Nr. | F20: =Energieausweis!D9 -> Gerbermühlstraße 48
A21: 16 | B21: Postleitzahl | F21: =Eingabewerte!B28 -> 60594
A22: 17 | B22: Postleitzahl (anonymisiert) | F22: =CONCATENATE(MID(F21,1,3),"XX") -> 605XX
A23: 18 | B23: Ort | F23: =Eingabewerte!D28 -> Frankfurt am Main, Stadtteil Sachsenhausen
A24: 19 | B24: EnEV-Version | F24: =YEAR(Energieausweis!G4) -> 2013
A25: 20 | B25: Baujahr | F25: =IF(OR(Eingabewerte!D21="",Eingabewerte!D21=0),"",Eingabewerte!D21) -> 1980
A26: 21 | B26: Altersklasse | F26: =Hilfstabellen!$C$71 -> 1979...1982
A27: 22 | B27: Wesentliche Energieträger (Wärmeerzeuger) | F27: =Eingabewerte!$F$22 -> Heizöl EL
A28: 23 | B28: Baujahr (Wärmeerzeuger) | F28: =IF(Eingabewerte!$F$21="","0",Eingabewerte!$F$21) -> 1980
A29: 24 | B29: Altersklasse (Wärmeerzeuger) | F29: =Hilfstabellen!$C$72 -> 1979...1982
A30: 25 | B30: Art (Erneuerbare Energien) | F30: =IF(Eingabewerte!D23="","",Eingabewerte!D23) -> 
A31: 26 | B31: Verwendung (Erneuerbare Energien) | F31: =IF(Eingabewerte!I23="","",Eingabewerte!I23) -> 
A32: 27 | B32: Fensterlüftung | F32: TRUE
A33: 28 | B33: Schachtlüftung | F33: FALSE
A34: 29 | B34: Lüftungsanlage m. WRG | F34: TRUE
A35: 30 | B35: Lüftungsanlage o. WRG | F35: FALSE
A36: 31 | B36: Mechanisch gekühlt | F36: FALSE
A37: 32 | B37: Primärenergieverbrauch | J37: =TEXT(Eingabewerte!$H$53,"0,0") -> 228,2
B38: Hauptnutzung
A39: =A37+1 -> 33 | B39: Nutzung | J39: =Eingabewerte!D16 -> Verwaltungsgeb. mit norm. techn. Ausst.
A40: =A39+1 -> 34 | B40: Flächenanteil in % | J40: =TEXT(Eingabewerte!$K$16/Eingabewerte!$K$20*100,"0") -> 97
A41: 35 | B41: Vergleichswert Heizung nach EnEV | J41: =TEXT('Mittelung Klassengrenzen'!$J$19,"0,0") -> 85,0
A42: 36 | B42: Vergleichswert Strom nach EnEV | J42: =TEXT('Mittelung Klassengrenzen'!$J$26,"0,0") -> 30,0
B43: 2. Nutzung
A44: =A42+1 -> 37 | B44: Nutzung | J44: =Energieausweis!D11 -> Verpflegungseinrichtungen
A45: 38 | B45: Flächenanteil in % | J45: =IF(Eingabewerte!$K$17="","",TEXT(Eingabewerte!$K$17/Eingabewerte!$K$20*100,"0")) -> 3
A46: 39 | B46: Vergleichswert Heizung nach EnEV | J46: =IF('Mittelung Klassengrenzen'!C6="","0,0",TEXT('Mittelung Klassengrenzen'!$J$20,"0,0")) -> 105,0
A47: 40 | B47: Vergleichswert Strom nach EnEV | J47: =IF('Mittelung Klassengrenzen'!C6="","0,0",TEXT('Mittelung Klassengrenzen'!$J$27,"0,0")) -> 75,0
B48: 3. Nutzung
A49: =A47+1 -> 41 | B49: Nutzung | J49: =Eingabewerte!D18&IF(OR(AND(Eingabewerte!D19="",Eingabewerte!D18=""),Eingabewerte!D19=""),"",", ")& " u.S." -> u.S.
A50: 42 | B50: Flächenanteil in % | J50: =IF(ROUND(SUM('Mittelung Klassengrenzen'!$D$7:$D$8)/'Mittelung Klassengrenzen'!$D$9*100,0)=0,"",TEXT(SUM('Mittelung Klassengrenzen'!$D$7:$D$8)/'Mittelung Klassengrenzen'!$D$9*100,"0")) -> 
A51: 43 | B51: Vergleichswert Heizung nach EnEV | J51: =IF(AND('Mittelung Klassengrenzen'!$D$8="",'Mittelung Klassengrenzen'!$D$7=""),"0,0",IF('Mittelung Klassengrenzen'!$D$8="",TEXT('Mittelung Klassengrenzen'!J21,"0,0"),IF('Mittelung Klassengrenzen'!$D$7="","0,0",TEXT(('Mittelung Klassengrenzen'!$D$7*'Mittelung Klassengrenzen'!$J$21+'Mittelung Klassengrenzen'!$D$8*'Mittelung Klassengrenzen'!$J$22)/SUM('Mittelung Klassengrenzen'!$D$7:$D$8),"0,0")))) -> 0,0
A52: 44 | B52: Vergleichswert Strom nach EnEV | J52: =IF(AND('Mittelung Klassengrenzen'!$D$8="",'Mittelung Klassengrenzen'!$D$7=""),"0,0",IF('Mittelung Klassengrenzen'!$D$8="",TEXT('Mittelung Klassengrenzen'!J21,"0,0"),IF('Mittelung Klassengrenzen'!$D$7="","0,0",TEXT(('Mittelung Klassengrenzen'!$D$7*'Mittelung Klassengrenzen'!$J$28+'Mittelung Klassengrenzen'!$D$8*'Mittelung Klassengrenzen'!$J$29)/SUM('Mittelung Klassengrenzen'!$D$7:$D$8),"0,0")))) -> 0,0
A54: =A52+1 -> 45 | B54: Heizungsverbrauch | J54: =TEXT('Mittelung Klassengrenzen'!$A$15,"0,0") -> 94,0
A55: 46 | B55: Stromverbrauch | J55: =TEXT('Mittelung Klassengrenzen'!$C$15,"0,0") -> 52,0
A56: 47 | B56: Vergleichswert Heizung nach EnEV | J56: =TEXT('Mittelung Klassengrenzen'!$J$23,"0,0") -> 86,0
A57: 48 | B57: Vergleichswert Strom nach EnEV | J57: =TEXT('Mittelung Klassengrenzen'!$J$30,"0,0") -> 32,0
A58: 49 | B58: Leerstand
A59: 50 | B59: Kein Leerstand | F59: =Hilfstabellen!$C$77 -> TRUE | J59: =Hilfstabellen!$C$77 -> TRUE
B60: Kein Leerstand Wert | F60: =IF(F59,"Kein längerer Leerstand zu berücksichtigen.","") -> Kein längerer Leerstand zu berücksichtigen. | J60: =IF(J59,"Kein längerer Leerstand zu berücksichtigen.","") -> Kein längerer Leerstand zu berücksichtigen.
B61: Leerstandskorrektur Sonstiges
A62: =A59+1 -> 51 | B62: Leerstandskorrektur Sonstiges | F62: =Hilfstabellen!C79 -> FALSE | J62: =Hilfstabellen!C79 -> FALSE
A63: =A62+1 -> 52 | B63: Sonstiges | F63: =IF(Hilfstabellen!$C80=FALSE(),"",IF(Eingabewerte!$F$59="","",Eingabewerte!$F$59)) ->  | J63: =IF(Hilfstabellen!$C80=FALSE(),"",IF(Eingabewerte!$F$59="","",Eingabewerte!$F$59)) -> 
A64: =A63+1 -> 53 | B64: Start | F64: =IF(Hilfstabellen!$C80=FALSE(),"",IF(Hilfstabellen!$C78=TRUE(),"",TEXT(IF(Eingabewerte!$F$60="","",Eingabewerte!$F$60), "TT.MM.JJJJ"))) ->  | J64: =IF(Hilfstabellen!$C80=FALSE(),"",IF(Hilfstabellen!$C78=TRUE(),"",TEXT(IF(Eingabewerte!$F$60="","",Eingabewerte!$F$60), "TT.MM.JJJJ"))) -> 
A65: 54 | B65: Enddatum | F65: =IF(Hilfstabellen!$C80=FALSE(),"",IF(Hilfstabellen!$C78=TRUE(),"",TEXT(IF(Eingabewerte!$F$61="","",Eingabewerte!$F$61), "TT.MM.JJJJ"))) ->  | J65: =IF(Hilfstabellen!$C80=FALSE(),"",IF(Hilfstabellen!$C78=TRUE(),"",TEXT(IF(Eingabewerte!$F$61="","",Eingabewerte!$F$61), "TT.MM.JJJJ"))) -> 
A66: 55 | B66: Primärenergiefaktor | F66: =IF(Hilfstabellen!$C80=FALSE(),"",IF(Hilfstabellen!$C78=TRUE(),"",TEXT(Eingabewerte!$F$63,"0,00"))) ->  | J66: =IF(Hilfstabellen!$C80=FALSE(),"",IF(Hilfstabellen!$C78=TRUE(),"",TEXT(Eingabewerte!$F$63,"0,00"))) -> 
A67: 56 | B67: Leerstandszuschläge (kWh/Gesamt) | F67: =IF(Hilfstabellen!$C80=FALSE(),"",IF(Hilfstabellen!$C78=TRUE(),"",Eingabewerte!$M$58)) ->  | J67: =IF(Hilfstabellen!$C80=FALSE(),"",IF(Hilfstabellen!$C78=TRUE(),"",Eingabewerte!$M$58)) -> 
A68: 57 | B68: Leerstandszuschläge (kWh/WW-Anteil) | F68: =IF(Hilfstabellen!$C80=FALSE(),"",IF(Hilfstabellen!$C78=TRUE(),"",Eingabewerte!$M$59)) ->  | J68: =IF(Hilfstabellen!$C80=FALSE(),"",IF(Hilfstabellen!$C78=TRUE(),"",Eingabewerte!$M$59)) -> 
A69: 58 | B69: Leerstandszuschläge (kWh/Heizanteil) | F69: =IF(Hilfstabellen!$C80=FALSE(),"",IF(Hilfstabellen!$C78=TRUE(),"",Eingabewerte!$M$60)) ->  | J69: =IF(Hilfstabellen!$C80=FALSE(),"",IF(Hilfstabellen!$C78=TRUE(),"",Eingabewerte!$M$60)) -> 
A70: 59 | B70: Leerstandszuschläge (kWh/Strom) | F70: =IF(Hilfstabellen!$C80=FALSE(),"",IF(Hilfstabellen!$C78=TRUE(),"",Eingabewerte!$M$61)) ->  | J70: =IF(Hilfstabellen!$C80=FALSE(),"",IF(Hilfstabellen!$C78=TRUE(),"",Eingabewerte!$M$61)) -> 
A71: 60 | B71: Klimafaktor | F71: =IF(Hilfstabellen!$C80=FALSE(),"",IF(Hilfstabellen!$C78=TRUE(),"",TEXT(Eingabewerte!$L$63,"0,00"))) ->  | J71: =IF(Hilfstabellen!$C80=FALSE(),"",IF(Hilfstabellen!$C78=TRUE(),"",TEXT(Eingabewerte!$L$63,"0,00"))) -> 
B72: Leerstandskorrektur nach Bekanntmachung
B73: Korrektur nach Bekanntmachung | F73: =Hilfstabellen!$C$78 -> FALSE | J73: =Hilfstabellen!$C$78 -> FALSE
B74: Entsprechend der Bekanntmachung | F74: =IF(Hilfstabellen!$C79=FALSE(),"",IF(Hilfstabellen!$C78=TRUE(),"",IF(Eingabewerte!$F$59="","",TEXT(Eingabewerte!$F$59,"0,00")))) ->  | J74: =IF(Hilfstabellen!$C79=FALSE(),"",IF(Hilfstabellen!$C78=TRUE(),"",IF(Eingabewerte!$F$59="","",TEXT(Eingabewerte!$F$59,"0,00")))) -> 
B75: Start | F75: =IF(Hilfstabellen!$C79=FALSE(),"",IF(Hilfstabellen!$C78=TRUE(),"",TEXT(IF(Eingabewerte!$F$60="","",Eingabewerte!$F$60), "TT.MM.JJJJ"))) ->  | J75: =IF(Hilfstabellen!$C79=FALSE(),"",IF(Hilfstabellen!$C78=TRUE(),"",TEXT(IF(Eingabewerte!$F$60="","",Eingabewerte!$F$60), "TT.MM.JJJJ"))) -> 
B76: Enddatum | F76: =IF(Hilfstabellen!$C$79=FALSE(),"",IF(Hilfstabellen!$C$78=TRUE(),"",TEXT(IF(Eingabewerte!$F$61="","",Eingabewerte!$F$61), "TT.MM.JJJJ"))) ->  | J76: =IF(Hilfstabellen!$C$79=FALSE(),"",IF(Hilfstabellen!$C$78=TRUE(),"",TEXT(IF(Eingabewerte!$F$61="","",Eingabewerte!$F$61), "TT.MM.JJJJ"))) -> 
B77: Primärenergiefaktor | F77: =IF(Hilfstabellen!$C79=FALSE(),"",IF(Hilfstabellen!$C78=TRUE(),"",TEXT(Eingabewerte!$F$63,"0,00"))) ->  | J77: =IF(Hilfstabellen!$C79=FALSE(),"",IF(Hilfstabellen!$C78=TRUE(),"",TEXT(Eingabewerte!$F$63,"0,00"))) -> 
B78: Leerstandszuschläge (kWh/Gesamt) | F78: =IF(Hilfstabellen!$C79=FALSE(),"",IF(Hilfstabellen!$C78=TRUE(),"",Eingabewerte!$M$58)) ->  | J78: =IF(Hilfstabellen!$C79=FALSE(),"",IF(Hilfstabellen!$C78=TRUE(),"",Eingabewerte!$M$58)) -> 
B79: Leerstandszuschläge (kWh/WW-Anteil) | F79: =IF(Hilfstabellen!$C79=FALSE(),"",IF(Hilfstabellen!$C78=TRUE(),"",Eingabewerte!$M$59)) ->  | J79: =IF(Hilfstabellen!$C79=FALSE(),"",IF(Hilfstabellen!$C78=TRUE(),"",Eingabewerte!$M$59)) -> 
B80: Leerstandszuschläge (kWh/Heizanteil) | F80: =IF(Hilfstabellen!$C79=FALSE(),"",IF(Hilfstabellen!$C78=TRUE(),"",Eingabewerte!$M$60)) ->  | J80: =IF(Hilfstabellen!$C79=FALSE(),"",IF(Hilfstabellen!$C78=TRUE(),"",Eingabewerte!$M$60)) -> 
B81: Leerstandszuschläge (kWh/Strom) | F81: =IF(Hilfstabellen!$C79=FALSE(),"",IF(Hilfstabellen!$C78=TRUE(),"",Eingabewerte!$M$61)) ->  | J81: =IF(Hilfstabellen!$C79=FALSE(),"",IF(Hilfstabellen!$C78=TRUE(),"",Eingabewerte!$M$61)) -> 
B82: Klimafaktor | F82: =IF(Hilfstabellen!$C79=FALSE(),"",IF(Hilfstabellen!$C78=TRUE(),"",TEXT(Eingabewerte!$F$63,"0,00"))) ->  | J82: =IF(Hilfstabellen!$C79=FALSE(),"",IF(Hilfstabellen!$C78=TRUE(),"",TEXT(Eingabewerte!$F$63,"0,00"))) -> 
B83: Strom enthält…
A84: =A71+1 -> 61 | B84: Zusatzheizung | J84: FALSE
A85: =A84+1 -> 62 | B85: Warmwasser | J85: FALSE
A86: 63 | B86: Lüftung | J86: TRUE
A87: 64 | B87: Beleuchtung | J87: TRUE
A88: 65 | B88: Kühlung | J88: FALSE
A89: 66 | B89: Sonstiges | J89: TRUE
A90: 67 | B90: Heizenergie enthält…
A91: 68 | B91: Warmwasser | F91: TRUE
A92: 69 | B92: Sanierung
A93: 70 | B93: Sind Energetische Sanierungen zu Empfehlen | F93: =IF(Energieausweis!B53="",FALSE(), TRUE()) -> TRUE
A94: 71 | B94: Genauere Angaben sind erhältlich bei/unter | F94: =Energieausweis!$B$72 -> energiemanagement.stadt-frankfurt.de
A95: 72 | B95: Weitere Empfehlungen auf gesondertem Blatt | F95: FALSE
B96: Wohngebäude
A97: =A95+1 -> 73 | B97: Energieeffizienzklasse
A98: =A97+1 -> 74 | B98: Energieverbrauch-An
A99: 75 | B99: Primärenergieverbrauch-An
A100: 76 | B100: Gebäudenutzungsfläche (An)
A101: 77 | B101: Flächenmittlung nach §19 EnEV
A102: 78 | B102: Keller beheizt?
A103: =A102+1 -> 79 | B103: Wohnfläche
A104: =A103+1 -> 80 | B104: Anzahl Wohnungen
B105: Warmwasserbereitung
A106: =A104+1 -> 81 | B106: Enthält Zuschläge
A107: 82 | B107: Start
A108: 83 | B108: Ende
A109: 84 | B109: Primärenergiefaktor
A110: 85 | B110: Warmwasserzuschlag / kWh
B111: Kühlung
A112: =A110+1 -> 86 | B112: Enthält Zuschläge
A113: 87 | B113: Start
A114: 88 | B114: Ende
A115: 89 | B115: Gebäudenutzfläche gekühlt
A116: 90 | B116: Primärenergie
A117: 91 | B117: Zuschlag für Kühlenergie / kWh
A118: 92 | B118: Gesondertes Blatt
A138: =A118+1 -> 93 | B138: Ergänzende Erläuterungen zu den Angaben im Energieausweis | F138: =CONCATENATE(Eingabewerte!A67,Eingabewerte!A68) -> Die Verbrauchswerte werden beeinflusst durch den baulichen Zustand, die Betriebsführung und das Nutzerverhalten.
A158: =A138+1 -> 94 | B158: Informationen beifügen | F158: FALSE
A159: =A158+1 -> 95 | B159: Datenerhebung durch den Aussteller | F159: TRUE
A160: 96 | B160: Datenerhebung durch den Eigentümer | F160: FALSE
A161: 97 | B161: Gebäudetyp | F161: Nichtwohngebäude
A162: 98 | B162: Zugangskennung | F162: =Eingabewerte!K87 -> peter.dorn.amt65@stadt-frankfurt.de
A163: 99 | B163: Registriernummer | F163: =IF(Eingabewerte!D94="","XX-2000-000000000",Eingabewerte!D94) -> HE-2015-000472842
A164: 100 | B164: Programm-Version | F164: =Eingabewerte!$A$6 -> Version 4.9 vom 06.10.2015

Sheet Angaben Prüfstelle - Zusatz
B2: Energieträger Wohngebäude
B4: Sonstiger Energietraegerverbrauch | C4: Umrechnungsfaktor | D4: Primaerenergiefaktor | E4: Startdatum | F4: Enddatum | G4: Verbrauchswert | H4: Verbrauchswert-kWh-Heizwert | I4: Warmwasserwert | J4: Warmwasserwertermittlung | K4: Witterungskorrekturfaktor | L4: Verbrauchswert-kWh-Strom
B13: Energieträger Nichtwohngebäude
B15: Sonstiger Energietraegerverbrauch | C15: Umrechnungsfaktor | D15: Primaerenergiefaktor | E15: Startdatum | F15: Enddatum | G15: Verbrauchswert | H15: Verbrauchswert-kWh-Heizwert | I15: Warmwasserwert | J15: Warmwasserwertermittlung | K15: Witterungskorrekturfaktor | L15: Verbrauchswert-kWh-Strom
B16: =IF(Eingabewerte!A44=20,"",INDEX(Hilfstabellen!$B$4:$B$23,Eingabewerte!A44)) -> Heizöl EL | C16: =IF(B16="","","1") -> 1 | D16: =IF(Eingabewerte!A44=20,"",TEXT(Eingabewerte!D44,"0,00")) -> 1,10 | E16: =IF(Eingabewerte!A44=20,"",TEXT(Eingabewerte!$D$27,"TT.MM.JJJJ")) -> 01.01.2012 | F16: =IF(Eingabewerte!A44=20,"",TEXT(Eingabewerte!$F$27,"TT.MM.JJJJ")) -> 31.12.2014 | G16: =IF(Eingabewerte!A44=20,"",TEXT(Eingabewerte!$D$29*Eingabewerte!$F44,"0")) -> 2348081 | H16: =G16 -> 2348081 | I16: =IF('Angaben Prüfstelle - Zusatz'!B16="","","0") -> 0 | J16: =IF('Angaben Prüfstelle - Zusatz'!B16="","",IF('Angaben Prüfstelle - Allgemein'!$F$91=TRUE(),"sonstige Ermittlung des Verbrauchsanteils der Warmwasserbereitung","keine Warmwasserbereitung enthalten")) -> sonstige Ermittlung des Verbrauchsanteils der Warmwasserbereitung | K16: =IF(Eingabewerte!A44=20,"",TEXT(Eingabewerte!$H$28,"0,00")) -> 1,21 | L16: =IF('Angaben Prüfstelle - Zusatz'!B16="","","0") -> 0
